Workbook

Sheet Original (hidden)
A1: Lighting analysis | B1: No
L2: Default Crash Distribution
A3: Major Growth Rate | B3: 0.03 | L3: K | M3: A | N3: B | O3: C | P3: O | Q3: Sum | U3: User Input
A4: Minor Growth Rate | B4: 0.01 | K4: % | L4: 0.009 | M4: 0.062 | N4: 0.166 | O4: 0.223 | P4: 0.54 | Q4: =SUM(L4:P4) -> 1 | U4: Input that will be drop-down box
A5: Open Major AADT | B5: 25000 | K5: Cost | L5: 10670000 | M5: 872612 | N5: 174018 | O5: 106215 | P5: 7700 | U5: Lookup Default/User input
A6: Open Minor AADT | B6: 15000 | K6: Old | L6: 10230000 | M6: 580320 | N6: 157170 | O6: 97650 | P6: 7600 | U6: Default
I7: Test | J7: 0 | K7: Use Val | L7: =IF($J$7=1,L6,L5) -> 10670000 | M7: =IF($J$7=1,M6,M5) -> 872612 | N7: =IF($J$7=1,N6,N5) -> 174018 | O7: =IF($J$7=1,O6,O5) -> 106215 | P7: =IF($J$7=1,P6,P5) -> 7700
A8: Current Year | B8: 2020 | U8: Linked cell
A9: Rate of Return | B9: 0.05 | U9: Formula
A10: Intersection Type | B10: 4ST | U10: Macro created Value
A11: Intersection Select | B11: Intx 1 | C11: ?
A12: Crash Data Used | B12: No | C12: ?
E13: (Will connect to macro maybe?)
A15: Project Opening Year | B15: 2020
A16: Analysis Period | B16: 10
F19: Annual Number of Crashes | M19: Annual Cost
B20: Year | C20: Major AADT | D20: Minor AADT | F20: Total Crash Pred | G20: Fatality | H20: Incap. | I20: Non-Inc. | J20: Possible Injury | K20: PDO | M20: Fatality | N20: Incap. | O20: Non-Inc. | P20: Possible Injury | Q20: PDO | R20: Total Cost | S20: Present Value
A21: =IF(B21=$B$15, 1, IF(AND(B21-$B$15<$B$16,B21-$B$15>0),B21-$B$15 + 1,"")) -> 1 | B21: =B8 -> 2020 | C21: =B5 -> 25000 | D21: =B6 -> 15000 | F21: 5.050936027 | G21: =$F21*L$4 -> 0.04545842425 | H21: =$F21*M$4 -> 0.3131580337 | I21: 0.8384553805 | J21: 1.126358734 | K21: 2.727505455 | M21: =G21*L$7 -> 485041.3867 | N21: =H21*M$7 -> 273265.4581 | O21: 145906.3284 | P21: 119636.1929 | Q21: 21001.792 | R21: =SUM(M21:Q21) -> 1044851.158 | S21: =IF(ISNUMBER(A21),(R21)/((1+$B$9)^(A21)),0) -> 995096.3411
A22: =IF(B22=$B$15, 1, IF(AND(B22-$B$15<$B$16,B22-$B$15>0),B22-$B$15 + 1,"")) -> 2 | B22: =B21+1 -> 2021 | C22: =C21*(1+$B$3) -> 25750 | D22: =D21*(1+$B$4) -> 15150 | F22: 5.18117121 | G22: 0.04663054089 | H22: 0.321232615 | I22: 0.8600744209 | J22: 1.15540118 | K22: 2.797832454 | M22: =G22*L$7 -> 497547.8713 | N22: 280311.4347 | O22: 149668.4306 | P22: 122720.9363 | Q22: 21543.30989 | R22: =SUM(M22:Q22) -> 1071791.983 | S22: =IF(ISNUMBER(A22),(R22)/((1+$B$9)^(A22)),0) -> 972146.9232
A23: 3 | B23: =B22+1 -> 2022 | C23: =C22*(1+$B$3) -> 26522.5 | D23: =D22*(1+$B$4) -> 15301.5 | F23: 5.314857975 | G23: 0.04783372178 | H23: 0.3295211945 | I23: 0.8822664239 | J23: 1.185213329 | K23: 2.870023307 | M23: 510385.8114 | N23: 287544.1486 | O23: 153530.2386 | P23: 125887.4337 | Q23: 22099.17946 | R23: 1099446.812 | S23: 949743.4935
A24: 4 | B24: 2023 | C24: 27318.175 | D24: 15454.515 | F24: 5.452088878 | G24: 0.0490687999 | H24: 0.3380295104 | I24: 0.9050467538 | J24: 1.21581582 | K24: 2.944127994 | M24: 523564.095 | N24: 294968.6072 | O24: 157494.426 | P24: 129137.8773 | Q24: 22669.78556 | R24: 1127834.791 | S24: 927872.4737
A25: 5 | B25: 2024 | C25: 28137.72025 | D25: 15609.06015 | F25: 5.592958968 | G25: 0.05033663072 | H25: 0.346763456 | I25: 0.9284311888 | J25: 1.24722985 | K25: 3.020197843 | M25: 537091.8497 | N25: 302589.9529 | O25: 161563.7386 | P25: 132474.5185 | Q25: 23255.52339 | R25: 1156975.583 | S25: 906520.6434
A26: 6 | B26: 2025 | C26: 28981.85186 | D26: 15765.15075 | F26: 5.737565857 | G26: 0.05163809272 | H26: 0.3557290832 | I26: 0.9524359323 | J26: 1.279477186 | K26: 3.098285563 | M26: 550978.4493 | N26: 310413.4667 | O26: 165740.9961 | P26: 135899.6693 | Q26: 23856.79883 | R26: 1186889.38 | S26: 885675.1296
A27: 7 | B27: 2026 | C27: 29851.30741 | D27: 15922.80226 | F27: 5.886009787 | G27: 0.05297408808 | H27: 0.3649326068 | I27: 0.9770776246 | J27: 1.312580182 | K27: 3.178445285 | M27: 565233.5198 | N27: 318444.5719 | O27: 170029.0941 | P27: 139415.7041 | Q27: 24474.02869 | R27: 1217596.919 | S27: 865323.3976
A28: 8 | B28: 2027 | C28: 30746.84664 | D28: 16082.03028 | F28: 6.0383937 | G28: 0.0543455433 | H28: 0.3743804094 | I28: 1.002373354 | J28: 1.346561795 | K28: 3.260732598 | M28: 579866.947 | N28: 326688.8378 | O28: 174431.0063 | P28: 143025.0611 | Q28: 25107.641 | R28: 1249119.493 | S28: 845453.2409
A29: 9 | B29: 2028 | C29: 31669.25203 | D29: 16242.85058 | F29: 6.194823315 | G29: 0.05575340984 | H29: 0.3840790455 | I29: 1.02834067 | J29: 1.381445599 | K29: 3.34520459 | M29: 594888.8829 | N29: 335151.9841 | O29: 178949.7868 | P29: 146730.2443 | Q29: 25758.07534 | R29: 1281478.973 | S29: 826052.7722
A30: 10 | B30: 2029 | C30: 32619.3296 | D30: 16405.27909 | F30: 6.3554072 | G30: 0.0571986648 | H30: 0.3940352464 | I30: 1.054997595 | J30: 1.417255806 | K30: 3.431919888 | M30: 610309.7534 | N30: 343839.8844 | O30: 183588.5715 | P30: 150533.8254 | Q30: 26425.78314 | R30: 1314697.818 | S30: 807110.4148
B31: 2030 | C31: 33597.90948 | D31: 16569.33188 | G31: 0 | H31: 0 | I31: 0 | J31: 0 | K31: 0 | M31: 0 | N31: 0 | O31: 0 | P31: 0 | Q31: 0 | R31: 0 | S31: 0
B32: 2031 | C32: 34605.84677 | D32: 16735.0252 | G32: 0 | H32: 0 | I32: 0 | J32: 0 | K32: 0 | M32: 0 | N32: 0 | O32: 0 | P32: 0 | Q32: 0 | R32: 0 | S32: 0
B33: 2032 | C33: 35644.02217 | D33: 16902.37545 | G33: 0 | H33: 0 | I33: 0 | J33: 0 | K33: 0 | M33: 0 | N33: 0 | O33: 0 | P33: 0 | Q33: 0 | R33: 0 | S33: 0
B34: 2033 | C34: 36713.34284 | D34: 17071.39921 | G34: 0 | H34: 0 | I34: 0 | J34: 0 | K34: 0 | M34: 0 | N34: 0 | O34: 0 | P34: 0 | Q34: 0 | R34: 0 | S34: 0
B35: 2034 | C35: 37814.74312 | D35: 17242.1132 | G35: 0 | H35: 0 | I35: 0 | J35: 0 | K35: 0 | M35: 0 | N35: 0 | O35: 0 | P35: 0 | Q35: 0 | R35: 0 | S35: 0
B36: 2035 | C36: 38949.18542 | D36: 17414.53433 | G36: 0 | H36: 0 | I36: 0 | J36: 0 | K36: 0 | M36: 0 | N36: 0 | O36: 0 | P36: 0 | Q36: 0 | R36: =SUM(M36:Q36) -> 0 | S36: 0
B37: 2036 | C37: 40117.66098 | D37: 17588.67967 | G37: 0 | H37: =$F37*M$4 -> 0 | I37: 0 | J37: 0 | K37: 0 | M37: 0 | N37: 0 | O37: 0 | P37: 0 | Q37: 0 | R37: =SUM(M37:Q37) -> 0 | S37: 0
B38: 2037 | C38: 41321.19081 | D38: 17764.56647 | G38: 0 | H38: 0 | I38: 0 | J38: 0 | K38: 0 | M38: 0 | N38: 0 | O38: 0 | P38: 0 | Q38: 0 | R38: 0 | S38: 0
B39: 2038 | C39: 42560.82653 | D39: 17942.21214 | G39: 0 | H39: 0 | I39: 0 | J39: 0 | K39: 0 | M39: 0 | N39: 0 | O39: 0 | P39: 0 | Q39: 0 | R39: 0 | S39: 0
B40: 2039 | C40: 43837.65133 | D40: 18121.63426 | G40: 0 | H40: 0 | I40: 0 | J40: 0 | K40: 0 | M40: 0 | N40: 0 | O40: 0 | P40: 0 | Q40: 0 | R40: 0 | S40: 0
B41: 2040 | C41: 45152.78087 | D41: 18302.8506 | G41: 0 | H41: =$F41*M$4 -> 0 | I41: 0 | J41: 0 | K41: 0 | M41: 0 | N41: 0 | O41: 0 | P41: 0 | Q41: 0 | R41: 0 | S41: 0
B42: 2041 | C42: 46507.36429 | D42: 18485.87911 | G42: =$F42*L$4 -> 0 | H42: 0 | I42: 0 | J42: 0 | K42: 0 | M42: 0 | N42: 0 | O42: 0 | P42: 0 | Q42: 0 | R42: 0 | S42: 0
B43: 2042 | C43: 47902.58522 | D43: 18670.7379 | G43: 0 | H43: 0 | I43: 0 | J43: 0 | K43: 0 | M43: 0 | N43: 0 | O43: 0 | P43: 0 | Q43: 0 | R43: 0 | S43: 0
B44: =B43+1 -> 2043 | C44: 49339.66278 | D44: 18857.44528 | G44: 0 | H44: 0 | I44: 0 | J44: 0 | K44: 0 | M44: 0 | N44: 0 | O44: 0 | P44: 0 | Q44: 0 | R44: 0 | S44: 0
B45: 2044 | C45: 50819.85266 | D45: 19046.01973 | G45: 0 | H45: 0 | I45: 0 | J45: 0 | K45: 0 | M45: 0 | N45: 0 | O45: 0 | P45: 0 | Q45: 0 | R45: 0 | S45: 0
B46: =B45+1 -> 2045 | C46: 52344.44824 | D46: 19236.47993 | G46: 0 | H46: 0 | I46: 0 | J46: 0 | K46: 0 | M46: 0 | N46: 0 | O46: 0 | P46: 0 | Q46: 0 | R46: 0 | S46: 0
B47: 2046 | C47: 53914.78169 | D47: 19428.84472 | G47: 0 | H47: 0 | I47: 0 | J47: 0 | K47: 0 | M47: 0 | N47: 0 | O47: 0 | P47: 0 | Q47: 0 | R47: 0 | S47: 0

Sheet CrashCosts - STwo (hidden)
B1: T W O W A Y S E G M E N T S
U3: Total Analysis Period Crash Cost
N4: Default Crash Distribution
B5: ='Crash Cost Totals'!B6 -> Site-specific | E5: FROM CRASH COST TOTALS TAB | G5: FROM TOTAL TAB | N5: K | O5: A | P5: B | Q5: C | R5: O | S5: Sum | U5: No Lighting | W5: With Lighting
B6: adjustment type: | E6: Opening Year = | F6: 2020 | G6: Segment Type = | I6: =Totals!D14 -> 0 | M6: % | N6: =VLOOKUP($I$6,Factors!$I$7:$N$13, 2, FALSE) ->  | O6: =VLOOKUP($I$6,Factors!$I$7:$N$13, 3, FALSE) ->  | P6: =VLOOKUP($I$6,Factors!$I$7:$N$13, 4,FALSE) ->  | Q6: =VLOOKUP($I$6,Factors!$I$7:$N$13, 5,FALSE) ->  | R6: =VLOOKUP($I$6,Factors!$I$7:$N$13, 6, FALSE) ->  | S6: =SUM(N6:R6) -> 
B7: ='Crash Cost Totals'!B6 -> Site-specific | E7: Analysis Period = | F7: 10 | G7: Analysis Year AADT = | I7: =Totals!BZ14 -> 0 | M7: Cost* | N7: 10670000 | O7: 872612 | P7: 174018 | Q7: 106215 | R7: 7700 | U7: =SUMIF($A$14:$A$70,">0",$J$76:$J$132) -> 0 | W7: =SUMIF($A$14:$A$70,">0",$R$76:$R$132) -> 0
E8: Growth Rate = | F8: 0.03 | G8: Segment Length (mi) = | I8: =Totals!AI14 -> 0 | AY8: Adjustment Factor to Reset to No Lighting Base Condition | BB8: =VLOOKUP(I6,Factors!$B$7:$F$13,5, FALSE) -> 
E9: Rate of Return = | F9: 0.05 | G9: Analysis Year = | I9: =Totals!BV14 -> 0 | M9: Use Val | N9: =N7 -> 10670000 | O9: =O7 -> 872612 | P9: =P7 -> 174018 | Q9: =Q7 -> 106215 | R9: =R7 -> 7700
M10: *Values are the 2020 FDOT KABCO crash costs as laied out in the FDOT Design Manual | X10: Analysis (Base Year) EB Computations
X11: Length | Y11: Sum lookup | Z11: Inverse dispersion parameter | AD11: Predicted crash total | AH11: Observed crash total | AL11: Weight | AR11: Original Mixed Lighting Predicted crash total | AY11: Adjusted Predicted crash total | BF11: EB Adjusted crash total
B12: AADT / Year | E12: Annual Number of Crashes - No Lighting | L12: Annual Number of Crashes - With Lighting | Z12: Multiple-vehicle | AB12: Single-vehicle | AD12: Multiple-vehicle | AF12: Single-vehicle | AH12: Multiple-vehicle | AJ12: Single-vehicle | AL12: Multiple-vehicle | AN12: Single-vehicle | AR12: Multiple-vehicle | AT12: Single-vehicle | AV12: Vehicle-pedestrian | AW12: Vehicle-bicycle | AY12: Multiple-vehicle | BA12: Single-vehicle | BC12: Vehicle-pedestrian | BD12: Vehicle-bicycle | BF12: Multiple-vehicle | BH12: Single-vehicle | BJ12: Vehicle-pedestrian | BK12: Vehicle-bicycle
B13: Year | C13: Major AADT | E13: Site Specific (Np/e) | F13: Fatality | G13: Incap. | H13: Non-Inc. | I13: Poss. Injury | J13: PDO | L13: Lighting CMF | M13: Adjusted Np/e | N13: Fatality | O13: Incap. | P13: Non-Inc. | Q13: Poss. Injury | R13: PDO | Z13: MV F+I | AA13: MV PDO | AB13: SV F+I | AC13: SV PDO | AD13: MV F+I | AE13: MV PDO | AF13: SV F+I | AG13: SV PDO | AH13: MV F+I | AI13: MV PDO | AJ13: SV F+I | AK13: SV PDO | AL13: MV F+I | AM13: MV PDO | AN13: SV F+I | AO13: SV PDO | AR13: MV F+I | AS13: MV PDO | AT13: SV F+I | AU13: SV PDO | AV13: F+I | AW13: F+I | AY13: MV F+I | AZ13: MV PDO | BA13: SV F+I | BB13: SV PDO | BC13: F+I | BD13: F+I | BF13: MV F+I | BG13: MV PDO | BH13: SV F+I | BI13: SV PDO | BJ13: F+I | BK13: F+I
A14: =IF(B14=$F$6, 1, IF(AND(B14-$F$6<$F$7,B14-$F$6>0),B14-$F$6 + 1,"")) ->  | B14: =I9 -> 0 | C14: =I7 -> 0 | E14: =IF(B14<$F$6+$F$7,IF($B$7="Site-specific",SUM(BF14:BK14),SUM(AY14:BD14)),"") ->  | F14: =IF(ISNUMBER($E14),$E14*N$6,"") ->  | G14: =IF(ISNUMBER($E14),$E14*O$6,"") ->  | H14: =IF(ISNUMBER($E14),$E14*P$6,"") ->  | I14: =IF(ISNUMBER($E14),$E14*Q$6,"") ->  | J14: =IF(ISNUMBER($E14),$E14*R$6,"") ->  | L14: =VLOOKUP(I6,Factors!$B$7:$F$13,4, FALSE) ->  | M14: =IF(B14<$F$6+$F$7,E14*L14,"") ->  | N14: =IF(ISNUMBER($E14),$M14*N$6,"") ->  | O14: =IF(ISNUMBER($E14),$M14*O$6,"") ->  | P14: =IF(ISNUMBER($E14),$M14*P$6,"") ->  | Q14: =IF(ISNUMBER($E14),$M14*Q$6,"") ->  | R14: =IF(ISNUMBER($E14),$M14*R$6,"") ->  | X14: =$I$8 -> 0 | Z14: =EXP(VLOOKUP($I$6,Totals!$BG$14:$BK$20,2,FALSE))*$X14 ->  | AA14: =EXP(VLOOKUP($I$6,Totals!$BG$14:$BK$20,3,FALSE))*$X14 ->  | AB14: =EXP(VLOOKUP($I$6,Totals!$BG$14:$BK$20,4,FALSE))*$X14 ->  | AC14: =EXP(VLOOKUP($I$6,Totals!$BG$14:$BK$20,5,FALSE))*$X14 ->  | AD14: =AY14 ->  | AE14: =AZ14 ->  | AL14: =1/(1 + AD14/Z14) ->  | AM14: =1/(1 + AE14/AA14) ->  | AY14: =AR14*$BB$8 ->  | AZ14: =AS14*$BB$8 ->  | BF14: =AL14*AD14 + (1-AL14)*AH14 ->  | BG14: =AM14*AE14 + (1-AM14)*AI14 ->  | BH14: =AN14*AF14 + (1-AN14)*AJ14 ->  | BI14: =AO14*AG14 + (1-AO14)*AK14 ->  | BJ14: =BC14/SUM(AY14:BB14)*SUM(BF14:BI14) ->  | BK14: =BD14/SUM(AY14:BB14)*SUM(BF14:BI14) -> 
A15: =IF(B15=$F$6, 1, IF(AND(B15-$F$6<$F$7,B15-$F$6>0),B15-$F$6 + 1,"")) ->  | B15: =B14+1 -> 1 | C15: =C14*(1+$F$8) -> 0 | E15: =IF(B15<$F$6+$F$7,IF($B$7="Site-specific",SUM(BF15:BK15),SUM(AY15:BD15)),"") ->  | F15: =IF(ISNUMBER($E15),$E15*N$6,"") ->  | G15: =IF(ISNUMBER($E15),$E15*O$6,"") ->  | H15: =IF(ISNUMBER($E15),$E15*P$6,"") ->  | I15: =IF(ISNUMBER($E15),$E15*Q$6,"") ->  | J15: =IF(ISNUMBER($E15),$E15*R$6,"") ->  | L15: =L14 ->  | M15: =IF(B15<$F$6+$F$7,E15*L15,"") ->  | N15: =IF(ISNUMBER($E15),$M15*N$6,"") ->  | AY15: =AR15*$BB$8 ->  | AZ15: =AS15*$BB$8 ->  | BA15: =AT15*$BB$8 ->  | BB15: =AU15*$BB$8 ->  | BC15: =AV15*$BB$8 ->  | BD15: =AW15*$BB$8 ->  | BF15: =IF($B15<($F$6+$F$7),AY15/AY$14*BF$14,"--") ->  | BG15: =IF($B15<($F$6+$F$7),AZ15/AZ$14*BG$14,"--") ->  | BJ15: =IF($B15<($F$6+$F$7),BC15/SUM(AY15:BB15)*SUM(BF15:BI15),"--") ->  | BK15: =IF($B15<($F$6+$F$7),BD15/SUM(AY15:BB15)*SUM(BF15:BI15),"--") -> 
B16: =B15+1 -> 2 | C16: 0 | BF16: =IF($B16<($F$6+$F$7),AY16/AY$14*BF$14,"--") ->  | BG16: =IF($B16<($F$6+$F$7),AZ16/AZ$14*BG$14,"--") ->  | BH16: =IF($B16<($F$6+$F$7),BA16/BA$14*BH$14,"--") ->  | BI16: =IF($B16<($F$6+$F$7),BB16/BB$14*BI$14,"--") ->  | BJ16: =IF($B16<($F$6+$F$7),BC16/SUM(AY16:BB16)*SUM(BF16:BI16),"--") ->  | BK16: =IF($B16<($F$6+$F$7),BD16/SUM(AY16:BB16)*SUM(BF16:BI16),"--") -> 
B17: 3 | C17: 0
B18: 4 | C18: 0
B19: 5 | C19: 0
B20: 6 | C20: 0
B21: 7 | C21: 0
B22: 8 | C22: 0
B23: 9 | C23: 0
B24: 10 | C24: 0
B25: 11 | C25: 0
B26: 12 | C26: 0
B27: 13 | C27: 0
B28: 14 | C28: 0
B29: 15 | C29: 0
B30: 16 | C30: 0
B31: 17 | C31: 0
B32: 18 | C32: 0
B33: 19 | C33: 0
B34: 20 | C34: 0
B35: 21 | C35: 0
B36: 22 | C36: 0
B37: =B36+1 -> 23 | C37: 0
B38: 24 | C38: 0
B39: =B38+1 -> 25 | C39: 0
B40: 26 | C40: 0
B41: 27 | C41: 0
B42: 28 | C42: 0
B43: 29 | C43: 0
B44: 30 | C44: 0
B45: 31 | C45: 0
B46: 32 | C46: 0
B47: 33 | C47: =C46*(1+$F$8) -> 0 | L47: =L46 ->  | N47: =IF(ISNUMBER($E47),$M47*N$6,"") -> 
B48: 34 | C48: 0
B49: 35 | C49: 0
B50: 36 | C50: 0
B51: 37 | C51: 0
B52: 38 | C52: 0
B53: 39 | C53: 0
B54: 40 | C54: 0
B55: 41 | C55: 0
B56: 42 | C56: 0
B57: 43 | C57: 0
B58: 44 | C58: 0
B59: 45 | C59: 0
B60: 46 | C60: 0
B61: 47 | C61: 0
B62: 48 | C62: 0
B63: 49 | C63: 0
B64: 50 | C64: 0
B65: 51 | C65: 0
B66: 52 | C66: 0
B67: 53 | C67: 0
B68: 54 | C68: 0
B69: 55 | C69: 0
B70: 56 | C70: 0 | F70: =IF(ISNUMBER($E70),$E70*N$6,"") ->  | G70: =IF(ISNUMBER($E70),$E70*O$6,"") ->  | H70: =IF(ISNUMBER($E70),$E70*P$6,"") ->  | I70: =IF(ISNUMBER($E70),$E70*Q$6,"") ->  | J70: =IF(ISNUMBER($E70),$E70*R$6,"") -> 
D74: Annual Cost | L74: Annual Cost
D75: Fatality | E75: Incap. | F75: Non-Inc. | G75: Poss. Injury | H75: PDO | I75: Total Cost | J75: Present Value | L75: Fatality | M75: Incap. | N75: Non-Inc. | O75: Poss. Injury | P75: PDO | Q75: Total Cost | R75: Present Value
D76: =IF(OR(NOT(ISNUMBER(A14)),ISBLANK(A14)),0,F14*N$9) -> 0 | E76: =IF(OR(NOT(ISNUMBER(A14)),ISBLANK(A14)),0,G14*O$9) -> 0 | F76: =IF(OR(NOT(ISNUMBER(A14)),ISBLANK(A14)),0,H14*P$9) -> 0 | G76: =IF(OR(NOT(ISNUMBER(A14)),ISBLANK(A14)),0,I14*Q$9) -> 0 | H76: =IF(OR(NOT(ISNUMBER(A14)),ISBLANK(A14)),0,J14*R$9) -> 0 | I76: =SUM(D76:H76) -> 0 | J76: =IF(ISNUMBER(A14),(I76)/((1+$F$9)^(A14)),0) -> 0 | L76: =IF(OR(NOT(ISNUMBER($A14)),ISBLANK($A14)),0,N14*N$9) -> 0 | M76: =IF(OR(NOT(ISNUMBER($A14)),ISBLANK($A14)),0,O14*O$9) -> 0 | N76: 0 | O76: 0 | P76: 0 | Q76: =SUM(L76:P76) -> 0 | R76: =IF(ISNUMBER(A14),(Q76)/((1+$F$9)^(A14)),0) -> 0
D77: 0 | E77: 0 | F77: 0 | G77: 0 | H77: 0 | I77: =SUM(D77:H77) -> 0 | J77: 0 | L77: =IF(OR(NOT(ISNUMBER($A15)),ISBLANK($A15)),0,N15*N$9) -> 0 | M77: =IF(OR(NOT(ISNUMBER($A15)),ISBLANK($A15)),0,O15*O$9) -> 0 | N77: =IF(OR(NOT(ISNUMBER($A15)),ISBLANK($A15)),0,P15*P$9) -> 0 | O77: =IF(OR(NOT(ISNUMBER($A15)),ISBLANK($A15)),0,Q15*Q$9) -> 0 | P77: =IF(OR(NOT(ISNUMBER($A15)),ISBLANK($A15)),0,R15*R$9) -> 0 | Q77: =SUM(L77:P77) -> 0 | R77: =IF(ISNUMBER(A15),(Q77)/((1+$F$9)^(A15)),0) -> 0
D78: 0 | E78: 0 | F78: 0 | G78: 0 | H78: 0 | I78: 0 | J78: 0 | L78: 0 | M78: 0 | N78: 0 | O78: 0 | P78: 0 | Q78: 0 | R78: 0
D79: 0 | E79: 0 | F79: 0 | G79: 0 | H79: 0 | I79: 0 | J79: 0 | L79: 0 | M79: 0 | N79: 0 | O79: 0 | P79: 0 | Q79: 0 | R79: 0
D80: 0 | E80: 0 | F80: 0 | G80: 0 | H80: 0 | I80: 0 | J80: 0 | L80: 0 | M80: 0 | N80: 0 | O80: 0 | P80: 0 | Q80: 0 | R80: 0
D81: 0 | E81: 0 | F81: 0 | G81: 0 | H81: 0 | I81: 0 | J81: 0 | L81: 0 | M81: 0 | N81: 0 | O81: 0 | P81: 0 | Q81: 0 | R81: 0
D82: 0 | E82: 0 | F82: 0 | G82: 0 | H82: 0 | I82: 0 | J82: 0 | L82: 0 | M82: 0 | N82: 0 | O82: 0 | P82: 0 | Q82: 0 | R82: 0
D83: 0 | E83: 0 | F83: 0 | G83: 0 | H83: 0 | I83: 0 | J83: 0 | L83: 0 | M83: 0 | N83: 0 | O83: 0 | P83: 0 | Q83: 0 | R83: 0
D84: 0 | E84: 0 | F84: 0 | G84: 0 | H84: 0 | I84: 0 | J84: 0 | L84: 0 | M84: 0 | N84: 0 | O84: 0 | P84: 0 | Q84: 0 | R84: 0
D85: 0 | E85: 0 | F85: 0 | G85: 0 | H85: 0 | I85: 0 | J85: 0 | L85: 0 | M85: 0 | N85: 0 | O85: 0 | P85: 0 | Q85: 0 | R85: 0
D86: 0 | E86: 0 | F86: 0 | G86: 0 | H86: 0 | I86: 0 | J86: 0 | L86: 0 | M86: 0 | N86: 0 | O86: 0 | P86: 0 | Q86: 0 | R86: 0
D87: 0 | E87: 0 | F87: 0 | G87: 0 | H87: 0 | I87: 0 | J87: 0 | L87: 0 | M87: 0 | N87: 0 | O87: 0 | P87: 0 | Q87: 0 | R87: 0
D88: 0 | E88: 0 | F88: 0 | G88: 0 | H88: 0 | I88: 0 | J88: 0 | L88: 0 | M88: 0 | N88: 0 | O88: 0 | P88: 0 | Q88: 0 | R88: 0
D89: 0 | E89: 0 | F89: 0 | G89: 0 | H89: 0 | I89: 0 | J89: 0 | L89: 0 | M89: 0 | N89: 0 | O89: 0 | P89: 0 | Q89: 0 | R89: 0
D90: 0 | E90: 0 | F90: 0 | G90: 0 | H90: 0 | I90: 0 | J90: 0 | L90: 0 | M90: 0 | N90: 0 | O90: 0 | P90: 0 | Q90: 0 | R90: 0
D91: 0 | E91: 0 | F91: 0 | G91: 0 | H91: 0 | I91: =SUM(D91:H91) -> 0 | J91: 0 | L91: 0 | M91: 0 | N91: 0 | O91: 0 | P91: 0 | Q91: 0 | R91: 0
D92: 0 | E92: 0 | F92: 0 | G92: 0 | H92: 0 | I92: =SUM(D92:H92) -> 0 | J92: 0 | L92: 0 | M92: 0 | N92: 0 | O92: 0 | P92: 0 | Q92: 0 | R92: 0
D93: 0 | E93: 0 | F93: 0 | G93: 0 | H93: 0 | I93: 0 | J93: 0 | L93: 0 | M93: 0 | N93: 0 | O93: 0 | P93: 0 | Q93: 0 | R93: 0
D94: 0 | E94: 0 | F94: 0 | G94: 0 | H94: 0 | I94: 0 | J94: 0 | L94: 0 | M94: 0 | N94: 0 | O94: 0 | P94: 0 | Q94: 0 | R94: 0
D95: 0 | E95: 0 | F95: 0 | G95: 0 | H95: 0 | I95: 0 | J95: 0 | L95: 0 | M95: 0 | N95: 0 | O95: 0 | P95: 0 | Q95: 0 | R95: 0
D96: 0 | E96: 0 | F96: 0 | G96: 0 | H96: 0 | I96: 0 | J96: 0 | L96: 0 | M96: 0 | N96: 0 | O96: 0 | P96: 0 | Q96: 0 | R96: 0
D97: 0 | E97: 0 | F97: 0 | G97: 0 | H97: 0 | I97: 0 | J97: 0 | L97: 0 | M97: 0 | N97: 0 | O97: 0 | P97: 0 | Q97: 0 | R97: 0
D98: 0 | E98: 0 | F98: 0 | G98: 0 | H98: 0 | I98: 0 | J98: 0 | L98: 0 | M98: 0 | N98: 0 | O98: 0 | P98: 0 | Q98: 0 | R98: 0
D99: 0 | E99: 0 | F99: 0 | G99: 0 | H99: 0 | I99: 0 | J99: 0 | L99: 0 | M99: 0 | N99: 0 | O99: 0 | P99: 0 | Q99: 0 | R99: 0
D100: 0 | E100: 0 | F100: 0 | G100: 0 | H100: 0 | I100: 0 | J100: 0 | L100: 0 | M100: 0 | N100: 0 | O100: 0 | P100: 0 | Q100: 0 | R100: 0
D101: 0 | E101: 0 | F101: 0 | G101: 0 | H101: 0 | I101: 0 | J101: 0 | L101: 0 | M101: 0 | N101: 0 | O101: 0 | P101: 0 | Q101: 0 | R101: 0
D102: 0 | E102: 0 | F102: 0 | G102: 0 | H102: 0 | I102: 0 | J102: 0 | L102: 0 | M102: 0 | N102: 0 | O102: 0 | P102: 0 | Q102: 0 | R102: 0
D103: 0 | E103: 0 | F103: 0 | G103: 0 | H103: 0 | I103: 0 | J103: 0 | L103: 0 | M103: 0 | N103: 0 | O103: 0 | P103: 0 | Q103: 0 | R103: 0
D104: 0 | E104: 0 | F104: 0 | G104: 0 | H104: 0 | I104: 0 | J104: 0 | L104: 0 | M104: 0 | N104: 0 | O104: 0 | P104: 0 | Q104: 0 | R104: 0
D105: 0 | E105: 0 | F105: 0 | G105: 0 | H105: 0 | I105: 0 | J105: 0 | L105: 0 | M105: 0 | N105: 0 | O105: 0 | P105: 0 | Q105: 0 | R105: 0
D106: 0 | E106: 0 | F106: 0 | G106: 0 | H106: 0 | I106: 0 | J106: 0 | L106: 0 | M106: 0 | N106: 0 | O106: 0 | P106: 0 | Q106: 0 | R106: 0
D107: 0 | E107: 0 | F107: 0 | G107: 0 | H107: 0 | I107: 0 | J107: 0 | L107: 0 | M107: 0 | N107: 0 | O107: 0 | P107: 0 | Q107: 0 | R107: 0
D108: =IF(OR(NOT(ISNUMBER(A46)),ISBLANK(A46)),0,F46*N$9) -> 0 | E108: =IF(OR(NOT(ISNUMBER(A46)),ISBLANK(A46)),0,G46*O$9) -> 0 | F108: =IF(OR(NOT(ISNUMBER(A46)),ISBLANK(A46)),0,H46*P$9) -> 0 | G108: =IF(OR(NOT(ISNUMBER(A46)),ISBLANK(A46)),0,I46*Q$9) -> 0 | H108: =IF(OR(NOT(ISNUMBER(A46)),ISBLANK(A46)),0,J46*R$9) -> 0 | I108: 0 | J108: =IF(ISNUMBER(A46),(I108)/((1+$F$9)^(A46)),0) -> 0 | L108: 0 | M108: 0 | N108: 0 | O108: 0 | P108: 0 | Q108: 0 | R108: 0
D109: 0 | E109: 0 | F109: 0 | G109: 0 | H109: 0 | I109: 0 | J109: 0 | L109: 0 | M109: 0 | N109: 0 | O109: 0 | P109: 0 | Q109: 0 | R109: 0
D110: 0 | E110: 0 | F110: 0 | G110: 0 | H110: 0 | I110: 0 | J110: 0 | L110: 0 | M110: 0 | N110: 0 | O110: 0 | P110: 0 | Q110: 0 | R110: 0
D111: 0 | E111: 0 | F111: 0 | G111: 0 | H111: 0 | I111: 0 | J111: 0 | L111: 0 | M111: 0 | N111: 0 | O111: 0 | P111: 0 | Q111: 0 | R111: 0
D112: 0 | E112: 0 | F112: 0 | G112: 0 | H112: 0 | I112: 0 | J112: 0 | L112: 0 | M112: 0 | N112: 0 | O112: 0 | P112: 0 | Q112: 0 | R112: 0
D113: 0 | E113: 0 | F113: 0 | G113: 0 | H113: 0 | I113: 0 | J113: 0 | L113: 0 | M113: 0 | N113: 0 | O113: 0 | P113: 0 | Q113: 0 | R113: 0
D114: 0 | E114: 0 | F114: 0 | G114: 0 | H114: 0 | I114: 0 | J114: 0 | L114: 0 | M114: 0 | N114: 0 | O114: 0 | P114: 0 | Q114: 0 | R114: 0
D115: 0 | E115: 0 | F115: 0 | G115: 0 | H115: 0 | I115: 0 | J115: 0 | L115: 0 | M115: 0 | N115: 0 | O115: 0 | P115: 0 | Q115: 0 | R115: 0
D116: 0 | E116: 0 | F116: 0 | G116: 0 | H116: 0 | I116: 0 | J116: 0 | L116: 0 | M116: 0 | N116: 0 | O116: 0 | P116: 0 | Q116: 0 | R116: 0
D117: 0 | E117: 0 | F117: 0 | G117: 0 | H117: 0 | I117: 0 | J117: 0 | L117: 0 | M117: 0 | N117: 0 | O117: 0 | P117: 0 | Q117: 0 | R117: 0
D118: 0 | E118: 0 | F118: 0 | G118: 0 | H118: 0 | I118: 0 | J118: 0 | L118: 0 | M118: 0 | N118: 0 | O118: 0 | P118: 0 | Q118: 0 | R118: 0
D119: 0 | E119: 0 | F119: 0 | G119: 0 | H119: 0 | I119: 0 | J119: 0 | L119: 0 | M119: 0 | N119: 0 | O119: 0 | P119: 0 | Q119: 0 | R119: 0
D120: 0 | E120: 0 | F120: 0 | G120: 0 | H120: 0 | I120: 0 | J120: 0 | L120: 0 | M120: 0 | N120: 0 | O120: 0 | P120: 0 | Q120: 0 | R120: 0
D121: 0 | E121: 0 | F121: 0 | G121: 0 | H121: 0 | I121: 0 | J121: 0 | L121: 0 | M121: 0 | N121: 0 | O121: 0 | P121: 0 | Q121: 0 | R121: 0
D122: 0 | E122: 0 | F122: 0 | G122: 0 | H122: 0 | I122: 0 | J122: 0 | L122: 0 | M122: 0 | N122: 0 | O122: 0 | P122: 0 | Q122: 0 | R122: 0
D123: 0 | E123: 0 | F123: 0 | G123: 0 | H123: 0 | I123: 0 | J123: 0 | L123: 0 | M123: 0 | N123: 0 | O123: 0 | P123: 0 | Q123: 0 | R123: 0
D124: 0 | E124: 0 | F124: 0 | G124: 0 | H124: 0 | I124: 0 | J124: 0 | L124: 0 | M124: 0 | N124: 0 | O124: 0 | P124: 0 | Q124: 0 | R124: 0
D125: 0 | E125: 0 | F125: 0 | G125: 0 | H125: 0 | I125: 0 | J125: 0 | L125: 0 | M125: 0 | N125: 0 | O125: 0 | P125: 0 | Q125: 0 | R125: 0
D126: 0 | E126: 0 | F126: 0 | G126: 0 | H126: 0 | I126: 0 | J126: 0 | L126: 0 | M126: 0 | N126: 0 | O126: 0 | P126: 0 | Q126: 0 | R126: 0
D127: 0 | E127: 0 | F127: 0 | G127: 0 | H127: 0 | I127: 0 | J127: 0 | L127: 0 | M127: 0 | N127: 0 | O127: 0 | P127: 0 | Q127: 0 | R127: 0
D128: 0 | E128: 0 | F128: 0 | G128: 0 | H128: 0 | I128: 0 | J128: 0 | L128: 0 | M128: 0 | N128: 0 | O128: 0 | P128: 0 | Q128: 0 | R128: 0
D129: 0 | E129: 0 | F129: 0 | G129: 0 | H129: 0 | I129: 0 | J129: 0 | L129: 0 | M129: 0 | N129: 0 | O129: 0 | P129: 0 | Q129: 0 | R129: 0
D130: 0 | E130: 0 | F130: 0 | G130: 0 | H130: 0 | I130: 0 | J130: 0 | L130: 0 | M130: 0 | N130: 0 | O130: 0 | P130: 0 | Q130: 0 | R130: 0
D131: 0 | E131: 0 | F131: 0 | G131: 0 | H131: 0 | I131: 0 | J131: 0 | L131: 0 | M131: 0 | N131: 0 | O131: 0 | P131: 0 | Q131: 0 | R131: 0
D132: 0 | E132: 0 | F132: 0 | G132: 0 | H132: 0 | I132: 0 | J132: 0 | L132: 0 | M132: 0 | N132: 0 | O132: 0 | P132: 0 | Q132: 0 | R132: 0

Sheet CrashCosts - SOne (hidden)
B1: O N E W A Y S E G M E N T S
U3: Total Analysis Period Crash Cost
N4: Default Crash Distribution
B5: Empirical Bayes | E5: FROM CRASH COST TOTALS TAB | G5: FROM TOTAL TAB | N5: K | O5: A | P5: B | Q5: C | R5: O | S5: Sum | U5: No Lighting | W5: With Lighting
B6: adjustment type: | E6: Opening Year = | F6: 2020 | G6: Segment Type = | I6: 4O | M6: % | N6: =VLOOKUP($I$6,Factors!$I$7:$N$13, 2,FALSE) -> 0.000884173298 | O6: =VLOOKUP($I$6,Factors!$I$7:$N$13, 3, FALSE) -> 0.01149425287 | P6: =VLOOKUP($I$6,Factors!$I$7:$N$13, 4, FALSE) -> 0.1167108753 | Q6: =VLOOKUP($I$6,Factors!$I$7:$N$13, 5, FALSE) -> 0.192749779 | R6: =VLOOKUP($I$6,Factors!$I$7:$N$13, 6, FALSE) -> 0.6781609195 | S6: =SUM(N6:R6) -> 1
B7: ='Crash Cost Totals'!B6 -> Site-specific | E7: Analysis Period = | F7: 10 | G7: Analysis Year AADT = | I7: =Totals!BZ14 -> 0 | M7: Cost* | N7: 10670000 | O7: 872612 | P7: 174018 | Q7: 106215 | R7: 7700 | U7: =SUMIF($A$14:$A$70,">0",$J$76:$J$132) -> 0 | W7: =SUMIF($A$14:$A$70,">0",$R$76:$R$132) -> 0
E8: Growth Rate = | F8: 0.03 | G8: Segment Length (mi) = | I8: =Totals!AI14 -> 0 | AY8: Adjustment Factor to Reset to No Lighting Base Condition | BB8: =VLOOKUP(I6,Factors!$B$7:$F$13,5, FALSE) -> 1.05507491
E9: Rate of Return = | F9: 0.05 | G9: Analysis Year = | I9: =Totals!BV14 -> 0 | M9: Use Val | N9: =N7 -> 10670000 | O9: =O7 -> 872612 | P9: =P7 -> 174018 | Q9: =Q7 -> 106215 | R9: =R7 -> 7700
M10: *Values are the 2020 FDOT KABCO crash costs as laied out in the FDOT Design Manual | X10: Analysis (Base Year) EB Computations
X11: Length | Y11: Sum lookup | Z11: Inverse dispersion parameter | AD11: Predicted crash total | AH11: Observed crash total | AL11: Weight | AR11: Original Mixed Lighting Predicted crash total | AY11: Adjusted Predicted crash total | BF11: EB Adjusted crash total
B12: AADT / Year | E12: Annual Number of Crashes - No Lighting | L12: Annual Number of Crashes - With Lighting | Z12: Multiple-vehicle | AB12: Single-vehicle | AD12: Multiple-vehicle | AF12: Single-vehicle | AH12: Multiple-vehicle | AJ12: Single-vehicle | AL12: Multiple-vehicle | AN12: Single-vehicle | AR12: Multiple-vehicle | AT12: Single-vehicle | AV12: Vehicle-pedestrian | AW12: Vehicle-bicycle | AY12: Multiple-vehicle | BA12: Single-vehicle | BC12: Vehicle-pedestrian | BD12: Vehicle-bicycle | BF12: Multiple-vehicle | BH12: Single-vehicle | BJ12: Vehicle-pedestrian | BK12: Vehicle-bicycle
B13: Year | C13: Major AADT | E13: Site Specific (Np/e) | F13: Fatality | G13: Incap. | H13: Non-Inc. | I13: Poss. Injury | J13: PDO | L13: Lighting CMF | M13: Adjusted Np/e | N13: Fatality | O13: Incap. | P13: Non-Inc. | Q13: Poss. Injury | R13: PDO | Z13: MV F+I | AA13: MV PDO | AB13: SV F+I | AC13: SV PDO | AD13: MV F+I | AE13: MV PDO | AF13: SV F+I | AG13: SV PDO | AH13: MV F+I | AI13: MV PDO | AJ13: SV F+I | AK13: SV PDO | AL13: MV F+I | AM13: MV PDO | AN13: SV F+I | AO13: SV PDO | AR13: MV F+I | AS13: MV PDO | AT13: SV F+I | AU13: SV PDO | AV13: F+I | AW13: F+I | AY13: MV F+I | AZ13: MV PDO | BA13: SV F+I | BB13: SV PDO | BC13: F+I | BD13: F+I | BF13: MV F+I | BG13: MV PDO | BH13: SV F+I | BI13: SV PDO | BJ13: F+I | BK13: F+I
A14: =IF(B14=$F$6, 1, IF(AND(B14-$F$6<$F$7,B14-$F$6>0),B14-$F$6 + 1,"")) ->  | B14: =I9 -> 0 | C14: =I7 -> 0 | E14: =IF(B14<$F$6+$F$7,IF($B$7="Site-specific",SUM(BF14:BK14),SUM(AY14:BD14)),"") ->  | F14: =IF(ISNUMBER($E14),$E14*N$6,"") ->  | G14: =IF(ISNUMBER($E14),$E14*O$6,"") ->  | H14: =IF(ISNUMBER($E14),$E14*P$6,"") ->  | I14: =IF(ISNUMBER($E14),$E14*Q$6,"") ->  | J14: =IF(ISNUMBER($E14),$E14*R$6,"") ->  | L14: =VLOOKUP(I6,Factors!$B$7:$F$13,4, FALSE) -> 0.94 | M14: =IF(B14<$F$6+$F$7,E14*L14,"") ->  | N14: =IF(ISNUMBER($E14),$M14*N$6,"") ->  | O14: =IF(ISNUMBER($E14),$M14*O$6,"") ->  | P14: =IF(ISNUMBER($E14),$M14*P$6,"") ->  | Q14: =IF(ISNUMBER($E14),$M14*Q$6,"") ->  | R14: =IF(ISNUMBER($E14),$M14*R$6,"") ->  | X14: =I8 -> 0 | Z14: =EXP(VLOOKUP($I$6,Totals!$BG$14:$BK$20,2,FALSE))*$X14 -> 0 | AA14: =EXP(VLOOKUP($I$6,Totals!$BG$14:$BK$20,3,FALSE))*$X14 -> 0 | AB14: =EXP(VLOOKUP($I$6,Totals!$BG$14:$BK$20,4,FALSE))*$X14 -> 0 | AC14: =EXP(VLOOKUP($I$6,Totals!$BG$14:$BK$20,5,FALSE))*$X14 -> 0 | AD14: =AY14 -> 0 | AE14: =AZ14 -> 0 | AF14: =BA14 -> 0 | AG14: =BB14 -> 0 | AL14: =1/(1 + AD14/Z14) ->  | AM14: =1/(1 + AE14/AA14) ->  | AY14: =AR14*$BB$8 -> 0 | AZ14: =AS14*$BB$8 -> 0 | BA14: =AT14*$BB$8 -> 0 | BB14: =AU14*$BB$8 -> 0 | BC14: =AV14*$BB$8 -> 0 | BD14: =AW14*$BB$8 -> 0 | BF14: =AL14*AD14 + (1-AL14)*AH14 ->  | BG14: =AM14*AE14 + (1-AM14)*AI14 ->  | BH14: =AN14*AF14 + (1-AN14)*AJ14 ->  | BI14: =AO14*AG14 + (1-AO14)*AK14 ->  | BJ14: =BC14/SUM(AY14:BB14)*SUM(BF14:BI14) ->  | BK14: =AW14/SUM(AR14:AU14)*SUM(BF14:BI14) -> 
B15: =B14+1 -> 1 | C15: =C14*(1+$F$8) -> 0 | E15: =IF(B15<$F$6+$F$7,IF($B$7="Site-specific",SUM(BF15:BK15),SUM(AY15:BD15)),"") ->  | F15: =IF(ISNUMBER($E15),$E15*N$6,"") ->  | G15: =IF(ISNUMBER($E15),$E15*O$6,"") ->  | H15: =IF(ISNUMBER($E15),$E15*P$6,"") ->  | I15: =IF(ISNUMBER($E15),$E15*Q$6,"") ->  | J15: =IF(ISNUMBER($E15),$E15*R$6,"") ->  | L15: =L14 -> 0.94 | M15: =IF(B15<$F$6+$F$7,E15*L15,"") ->  | N15: =IF(ISNUMBER($E15),$M15*N$6,"") ->  | AY15: 0 | AZ15: 0 | BA15: 0 | BB15: 0 | BC15: 0 | BD15: 0 | BF15: =IF($B15<($F$6+$F$7),BF$14*AY15/AY$14,"--") ->  | BG15: =IF($B15<($F$6+$F$7),BG$14*AZ15/AZ$14,"--") ->  | BJ15: =IF($B15<($F$6+$F$7),BC15/SUM(AY15:BB15)*SUM(BF15:BI15),"--") ->  | BK15: =IF($B15<($F$6+$F$7),BD15/SUM(AY15:BB15)*SUM(BF15:BI15),"--") -> 
B16: =B15+1 -> 2 | C16: 0 | L16: 0.94 | AY16: 0 | AZ16: 0 | BA16: 0 | BB16: 0 | BC16: 0 | BD16: 0 | BF16: =IF($B16<($F$6+$F$7),BF$14*AY16/AY$14,"--") ->  | BG16: =IF($B16<($F$6+$F$7),BG$14*AZ16/AZ$14,"--") ->  | BH16: =IF($B16<($F$6+$F$7),BH$14*BA16/BA$14,"--") ->  | BI16: =IF($B16<($F$6+$F$7),BI$14*BB16/BB$14,"--") ->  | BJ16: =IF($B16<($F$6+$F$7),BC16/SUM(AY16:BB16)*SUM(BF16:BI16),"--") ->  | BK16: =IF($B16<($F$6+$F$7),BD16/SUM(AY16:BB16)*SUM(BF16:BI16),"--") -> 
B17: 3 | C17: 0 | L17: 0.94 | AY17: 0 | AZ17: 0 | BA17: 0 | BB17: 0 | BC17: 0 | BD17: 0
B18: 4 | C18: 0 | L18: 0.94 | AY18: 0 | AZ18: 0 | BA18: 0 | BB18: 0 | BC18: 0 | BD18: 0
B19: 5 | C19: 0 | L19: 0.94 | AY19: 0 | AZ19: 0 | BA19: 0 | BB19: 0 | BC19: 0 | BD19: 0
B20: 6 | C20: 0 | L20: 0.94 | AY20: 0 | AZ20: 0 | BA20: 0 | BB20: 0 | BC20: 0 | BD20: 0
B21: 7 | C21: 0 | L21: 0.94 | AY21: 0 | AZ21: 0 | BA21: 0 | BB21: 0 | BC21: 0 | BD21: 0
B22: 8 | C22: 0 | L22: 0.94 | AY22: 0 | AZ22: 0 | BA22: 0 | BB22: 0 | BC22: 0 | BD22: 0
B23: 9 | C23: 0 | L23: 0.94 | AY23: 0 | AZ23: 0 | BA23: 0 | BB23: 0 | BC23: 0 | BD23: 0
B24: 10 | C24: 0 | L24: 0.94 | AY24: 0 | AZ24: 0 | BA24: 0 | BB24: 0 | BC24: 0 | BD24: 0
B25: 11 | C25: 0 | L25: 0.94 | AY25: 0 | AZ25: 0 | BA25: 0 | BB25: 0 | BC25: 0 | BD25: 0
B26: 12 | C26: 0 | L26: 0.94 | AY26: 0 | AZ26: 0 | BA26: 0 | BB26: 0 | BC26: 0 | BD26: 0
B27: 13 | C27: 0 | L27: 0.94 | AY27: 0 | AZ27: 0 | BA27: 0 | BB27: 0 | BC27: 0 | BD27: 0
B28: 14 | C28: 0 | L28: 0.94 | AY28: 0 | AZ28: 0 | BA28: 0 | BB28: 0 | BC28: 0 | BD28: 0
B29: 15 | C29: 0 | L29: 0.94 | AY29: 0 | AZ29: 0 | BA29: 0 | BB29: 0 | BC29: 0 | BD29: 0
B30: 16 | C30: 0 | L30: 0.94 | AY30: 0 | AZ30: 0 | BA30: 0 | BB30: 0 | BC30: 0 | BD30: 0
B31: 17 | C31: 0 | L31: 0.94 | AY31: 0 | AZ31: 0 | BA31: 0 | BB31: 0 | BC31: 0 | BD31: 0
B32: 18 | C32: 0 | L32: 0.94 | AY32: 0 | AZ32: 0 | BA32: 0 | BB32: 0 | BC32: 0 | BD32: 0
B33: 19 | C33: 0 | L33: 0.94 | AY33: 0 | AZ33: 0 | BA33: 0 | BB33: 0 | BC33: 0 | BD33: 0
B34: 20 | C34: 0 | L34: 0.94 | AY34: 0 | AZ34: 0 | BA34: 0 | BB34: 0 | BC34: 0 | BD34: 0
B35: 21 | C35: 0 | L35: 0.94 | AY35: 0 | AZ35: 0 | BA35: 0 | BB35: 0 | BC35: 0 | BD35: 0
B36: 22 | C36: 0 | L36: 0.94 | AY36: 0 | AZ36: 0 | BA36: 0 | BB36: 0 | BC36: 0 | BD36: 0
B37: =B36+1 -> 23 | C37: 0 | L37: 0.94 | AY37: 0 | AZ37: 0 | BA37: 0 | BB37: 0 | BC37: 0 | BD37: 0
B38: 24 | C38: 0 | L38: 0.94 | AY38: 0 | AZ38: 0 | BA38: 0 | BB38: 0 | BC38: 0 | BD38: 0
B39: =B38+1 -> 25 | C39: 0 | L39: 0.94 | AY39: 0 | AZ39: 0 | BA39: 0 | BB39: 0 | BC39: 0 | BD39: 0
B40: 26 | C40: 0 | L40: 0.94 | AY40: 0 | AZ40: 0 | BA40: 0 | BB40: 0 | BC40: 0 | BD40: 0
B41: 27 | C41: 0 | L41: 0.94 | AY41: 0 | AZ41: 0 | BA41: 0 | BB41: 0 | BC41: 0 | BD41: 0
B42: 28 | C42: 0 | L42: 0.94 | AY42: 0 | AZ42: 0 | BA42: 0 | BB42: 0 | BC42: 0 | BD42: 0
B43: 29 | C43: 0 | L43: 0.94 | AY43: 0 | AZ43: 0 | BA43: 0 | BB43: 0 | BC43: 0 | BD43: 0
B44: 30 | C44: 0 | L44: 0.94 | AY44: 0 | AZ44: 0 | BA44: 0 | BB44: 0 | BC44: 0 | BD44: 0
B45: 31 | C45: 0 | L45: 0.94 | AY45: 0 | AZ45: 0 | BA45: 0 | BB45: 0 | BC45: 0 | BD45: 0
B46: 32 | C46: 0 | L46: 0.94 | AY46: =AR46*$BB$8 -> 0 | AZ46: =AS46*$BB$8 -> 0 | BA46: =AT46*$BB$8 -> 0 | BB46: =AU46*$BB$8 -> 0 | BC46: =AV46*$BB$8 -> 0 | BD46: =AW46*$BB$8 -> 0
B47: 33 | C47: =C46*(1+$F$8) -> 0 | L47: =L46 -> 0.94 | N47: =IF(ISNUMBER($E47),$M47*N$6,"") ->  | AY47: 0 | AZ47: 0 | BA47: 0 | BB47: 0 | BC47: 0 | BD47: 0
B48: 34 | C48: 0 | L48: 0.94 | AY48: 0 | AZ48: 0 | BA48: 0 | BB48: 0 | BC48: 0 | BD48: 0
B49: 35 | C49: 0 | L49: 0.94 | AY49: 0 | AZ49: 0 | BA49: 0 | BB49: 0 | BC49: 0 | BD49: 0
B50: 36 | C50: 0 | L50: 0.94 | AY50: 0 | AZ50: 0 | BA50: 0 | BB50: 0 | BC50: 0 | BD50: 0
B51: 37 | C51: 0 | L51: 0.94 | AY51: 0 | AZ51: 0 | BA51: 0 | BB51: 0 | BC51: 0 | BD51: 0
B52: 38 | C52: 0 | L52: 0.94 | AY52: 0 | AZ52: 0 | BA52: 0 | BB52: 0 | BC52: 0 | BD52: 0
B53: 39 | C53: 0 | L53: 0.94 | AY53: 0 | AZ53: 0 | BA53: 0 | BB53: 0 | BC53: 0 | BD53: 0
B54: 40 | C54: 0 | L54: 0.94 | AY54: 0 | AZ54: 0 | BA54: 0 | BB54: 0 | BC54: 0 | BD54: 0
B55: 41 | C55: 0 | L55: 0.94 | AY55: 0 | AZ55: 0 | BA55: 0 | BB55: 0 | BC55: 0 | BD55: 0
B56: 42 | C56: 0 | L56: 0.94 | AY56: 0 | AZ56: 0 | BA56: 0 | BB56: 0 | BC56: 0 | BD56: 0
B57: 43 | C57: 0 | L57: 0.94 | AY57: 0 | AZ57: 0 | BA57: 0 | BB57: 0 | BC57: 0 | BD57: 0
B58: 44 | C58: 0 | L58: 0.94 | AY58: 0 | AZ58: 0 | BA58: 0 | BB58: 0 | BC58: 0 | BD58: 0
B59: 45 | C59: 0 | L59: 0.94 | AY59: 0 | AZ59: 0 | BA59: 0 | BB59: 0 | BC59: 0 | BD59: 0
B60: 46 | C60: 0 | L60: 0.94 | AY60: 0 | AZ60: 0 | BA60: 0 | BB60: 0 | BC60: 0 | BD60: 0
B61: 47 | C61: 0 | L61: 0.94 | AY61: 0 | AZ61: 0 | BA61: 0 | BB61: 0 | BC61: 0 | BD61: 0
B62: 48 | C62: 0 | L62: 0.94 | AY62: 0 | AZ62: 0 | BA62: 0 | BB62: 0 | BC62: 0 | BD62: 0
B63: 49 | C63: 0 | L63: 0.94 | AY63: 0 | AZ63: 0 | BA63: 0 | BB63: 0 | BC63: 0 | BD63: 0
B64: 50 | C64: 0 | L64: 0.94 | AY64: 0 | AZ64: 0 | BA64: 0 | BB64: 0 | BC64: 0 | BD64: 0
B65: 51 | C65: 0 | L65: 0.94 | AY65: 0 | AZ65: 0 | BA65: 0 | BB65: 0 | BC65: 0 | BD65: 0
B66: 52 | C66: 0 | L66: 0.94 | AY66: 0 | AZ66: 0 | BA66: 0 | BB66: 0 | BC66: 0 | BD66: 0
B67: 53 | C67: 0 | L67: 0.94 | AY67: 0 | AZ67: 0 | BA67: 0 | BB67: 0 | BC67: 0 | BD67: 0
B68: 54 | C68: 0 | L68: 0.94 | AY68: 0 | AZ68: 0 | BA68: 0 | BB68: 0 | BC68: 0 | BD68: 0
B69: 55 | C69: 0 | L69: 0.94 | AY69: 0 | AZ69: 0 | BA69: 0 | BB69: 0 | BC69: 0 | BD69: 0
B70: 56 | C70: 0 | L70: 0.94 | AY70: 0 | AZ70: 0 | BA70: 0 | BB70: 0 | BC70: 0 | BD70: 0
D74: Annual Cost | L74: Annual Cost
D75: Fatality | E75: Incap. | F75: Non-Inc. | G75: Poss. Injury | H75: PDO | I75: Total Cost | J75: Present Value | L75: Fatality | M75: Incap. | N75: Non-Inc. | O75: Poss. Injury | P75: PDO | Q75: Total Cost | R75: Present Value
D76: =IF(OR(NOT(ISNUMBER($A14)),ISBLANK($A14)),0,F14*N$9) -> 0 | E76: =IF(OR(NOT(ISNUMBER($A14)),ISBLANK($A14)),0,G14*O$9) -> 0 | F76: 0 | G76: 0 | H76: 0 | I76: =SUM(D76:H76) -> 0 | J76: =IF(ISNUMBER(A14),(I76)/((1+$F$9)^(A14)),0) -> 0 | L76: =IF(OR(NOT(ISNUMBER($A14)),ISBLANK($A14)),0,N14*N$9) -> 0 | M76: =IF(OR(NOT(ISNUMBER($A14)),ISBLANK($A14)),0,O14*O$9) -> 0 | N76: 0 | O76: 0 | P76: 0 | Q76: =SUM(L76:P76) -> 0 | R76: =IF(ISNUMBER($A14),(Q76)/((1+$F$9)^($A14)),0) -> 0
D77: =IF(OR(NOT(ISNUMBER($A15)),ISBLANK($A15)),0,F15*N$9) -> 0 | E77: =IF(OR(NOT(ISNUMBER($A15)),ISBLANK($A15)),0,G15*O$9) -> 0 | F77: =IF(OR(NOT(ISNUMBER($A15)),ISBLANK($A15)),0,H15*P$9) -> 0 | G77: =IF(OR(NOT(ISNUMBER($A15)),ISBLANK($A15)),0,I15*Q$9) -> 0 | H77: =IF(OR(NOT(ISNUMBER($A15)),ISBLANK($A15)),0,J15*R$9) -> 0 | I77: =SUM(D77:H77) -> 0 | J77: 0 | L77: =IF(OR(NOT(ISNUMBER($A15)),ISBLANK($A15)),0,N15*N$9) -> 0 | M77: =IF(OR(NOT(ISNUMBER($A15)),ISBLANK($A15)),0,O15*O$9) -> 0 | N77: =IF(OR(NOT(ISNUMBER($A15)),ISBLANK($A15)),0,P15*P$9) -> 0 | O77: =IF(OR(NOT(ISNUMBER($A15)),ISBLANK($A15)),0,Q15*Q$9) -> 0 | P77: =IF(OR(NOT(ISNUMBER($A15)),ISBLANK($A15)),0,R15*R$9) -> 0 | Q77: =SUM(L77:P77) -> 0 | R77: =IF(ISNUMBER($A15),(Q77)/((1+$F$9)^($A15)),0) -> 0
D78: 0 | E78: 0 | F78: 0 | G78: 0 | H78: 0 | I78: 0 | J78: 0 | L78: 0 | M78: 0 | N78: 0 | O78: 0 | P78: 0 | Q78: 0 | R78: 0
D79: 0 | E79: 0 | F79: 0 | G79: 0 | H79: 0 | I79: 0 | J79: 0 | L79: 0 | M79: 0 | N79: 0 | O79: 0 | P79: 0 | Q79: 0 | R79: 0
D80: 0 | E80: 0 | F80: 0 | G80: 0 | H80: 0 | I80: 0 | J80: 0 | L80: 0 | M80: 0 | N80: 0 | O80: 0 | P80: 0 | Q80: 0 | R80: 0
D81: 0 | E81: 0 | F81: 0 | G81: 0 | H81: 0 | I81: 0 | J81: 0 | L81: 0 | M81: 0 | N81: 0 | O81: 0 | P81: 0 | Q81: 0 | R81: 0
D82: 0 | E82: 0 | F82: 0 | G82: 0 | H82: 0 | I82: 0 | J82: 0 | L82: 0 | M82: 0 | N82: 0 | O82: 0 | P82: 0 | Q82: 0 | R82: 0
D83: 0 | E83: 0 | F83: 0 | G83: 0 | H83: 0 | I83: 0 | J83: 0 | L83: 0 | M83: 0 | N83: 0 | O83: 0 | P83: 0 | Q83: 0 | R83: 0
D84: 0 | E84: 0 | F84: 0 | G84: 0 | H84: 0 | I84: 0 | J84: 0 | L84: 0 | M84: 0 | N84: 0 | O84: 0 | P84: 0 | Q84: 0 | R84: 0
D85: 0 | E85: 0 | F85: 0 | G85: 0 | H85: 0 | I85: 0 | J85: 0 | L85: 0 | M85: 0 | N85: 0 | O85: 0 | P85: 0 | Q85: 0 | R85: 0
D86: 0 | E86: 0 | F86: 0 | G86: 0 | H86: 0 | I86: 0 | J86: 0 | L86: 0 | M86: 0 | N86: 0 | O86: 0 | P86: 0 | Q86: 0 | R86: 0
D87: 0 | E87: 0 | F87: 0 | G87: 0 | H87: 0 | I87: 0 | J87: 0 | L87: 0 | M87: 0 | N87: 0 | O87: 0 | P87: 0 | Q87: 0 | R87: 0
D88: 0 | E88: 0 | F88: 0 | G88: 0 | H88: 0 | I88: 0 | J88: 0 | L88: 0 | M88: 0 | N88: 0 | O88: 0 | P88: 0 | Q88: 0 | R88: 0
D89: 0 | E89: 0 | F89: 0 | G89: 0 | H89: 0 | I89: 0 | J89: 0 | L89: 0 | M89: 0 | N89: 0 | O89: 0 | P89: 0 | Q89: 0 | R89: 0
D90: 0 | E90: 0 | F90: 0 | G90: 0 | H90: 0 | I90: 0 | J90: 0 | L90: 0 | M90: 0 | N90: 0 | O90: 0 | P90: 0 | Q90: 0 | R90: 0
D91: 0 | E91: 0 | F91: 0 | G91: 0 | H91: 0 | I91: =SUM(D91:H91) -> 0 | J91: 0 | L91: 0 | M91: 0 | N91: 0 | O91: 0 | P91: 0 | Q91: 0 | R91: 0
D92: 0 | E92: 0 | F92: 0 | G92: 0 | H92: 0 | I92: =SUM(D92:H92) -> 0 | J92: 0 | L92: 0 | M92: 0 | N92: 0 | O92: 0 | P92: 0 | Q92: 0 | R92: 0
D93: 0 | E93: 0 | F93: 0 | G93: 0 | H93: 0 | I93: 0 | J93: 0 | L93: 0 | M93: 0 | N93: 0 | O93: 0 | P93: 0 | Q93: 0 | R93: 0
D94: 0 | E94: 0 | F94: 0 | G94: 0 | H94: 0 | I94: 0 | J94: 0 | L94: 0 | M94: 0 | N94: 0 | O94: 0 | P94: 0 | Q94: 0 | R94: 0
D95: 0 | E95: 0 | F95: 0 | G95: 0 | H95: 0 | I95: 0 | J95: 0 | L95: 0 | M95: 0 | N95: 0 | O95: 0 | P95: 0 | Q95: 0 | R95: 0
D96: 0 | E96: 0 | F96: 0 | G96: 0 | H96: 0 | I96: 0 | J96: 0 | L96: 0 | M96: 0 | N96: 0 | O96: 0 | P96: 0 | Q96: 0 | R96: 0
D97: 0 | E97: 0 | F97: 0 | G97: 0 | H97: 0 | I97: 0 | J97: 0 | L97: 0 | M97: 0 | N97: 0 | O97: 0 | P97: 0 | Q97: 0 | R97: 0
D98: 0 | E98: 0 | F98: 0 | G98: 0 | H98: 0 | I98: 0 | J98: 0 | L98: 0 | M98: 0 | N98: 0 | O98: 0 | P98: 0 | Q98: 0 | R98: 0
D99: 0 | E99: 0 | F99: 0 | G99: 0 | H99: 0 | I99: 0 | J99: 0 | L99: 0 | M99: 0 | N99: 0 | O99: 0 | P99: 0 | Q99: 0 | R99: 0
D100: 0 | E100: 0 | F100: 0 | G100: 0 | H100: 0 | I100: 0 | J100: 0 | L100: 0 | M100: 0 | N100: 0 | O100: 0 | P100: 0 | Q100: 0 | R100: 0
D101: 0 | E101: 0 | F101: 0 | G101: 0 | H101: 0 | I101: 0 | J101: 0 | L101: 0 | M101: 0 | N101: 0 | O101: 0 | P101: 0 | Q101: 0 | R101: 0
D102: 0 | E102: 0 | F102: 0 | G102: 0 | H102: 0 | I102: 0 | J102: 0 | L102: 0 | M102: 0 | N102: 0 | O102: 0 | P102: 0 | Q102: 0 | R102: 0
D103: 0 | E103: 0 | F103: 0 | G103: 0 | H103: 0 | I103: 0 | J103: 0 | L103: 0 | M103: 0 | N103: 0 | O103: 0 | P103: 0 | Q103: 0 | R103: 0
D104: 0 | E104: 0 | F104: 0 | G104: 0 | H104: 0 | I104: 0 | J104: 0 | L104: 0 | M104: 0 | N104: 0 | O104: 0 | P104: 0 | Q104: 0 | R104: 0
D105: 0 | E105: 0 | F105: 0 | G105: 0 | H105: 0 | I105: 0 | J105: 0 | L105: 0 | M105: 0 | N105: 0 | O105: 0 | P105: 0 | Q105: 0 | R105: 0
D106: 0 | E106: 0 | F106: 0 | G106: 0 | H106: 0 | I106: 0 | J106: 0 | L106: 0 | M106: 0 | N106: 0 | O106: 0 | P106: 0 | Q106: 0 | R106: 0
D107: 0 | E107: 0 | F107: 0 | G107: 0 | H107: 0 | I107: 0 | J107: 0 | L107: 0 | M107: 0 | N107: 0 | O107: 0 | P107: 0 | Q107: 0 | R107: 0
D108: 0 | E108: 0 | F108: 0 | G108: 0 | H108: 0 | I108: 0 | J108: =IF(ISNUMBER(A46),(I108)/((1+$F$9)^(A46)),0) -> 0 | L108: 0 | M108: 0 | N108: 0 | O108: 0 | P108: 0 | Q108: 0 | R108: 0
D109: 0 | E109: 0 | F109: 0 | G109: 0 | H109: 0 | I109: 0 | J109: 0 | L109: 0 | M109: 0 | N109: 0 | O109: 0 | P109: 0 | Q109: 0 | R109: 0
D110: 0 | E110: 0 | F110: 0 | G110: 0 | H110: 0 | I110: 0 | J110: 0 | L110: 0 | M110: 0 | N110: 0 | O110: 0 | P110: 0 | Q110: 0 | R110: 0
D111: 0 | E111: 0 | F111: 0 | G111: 0 | H111: 0 | I111: 0 | J111: 0 | L111: 0 | M111: 0 | N111: 0 | O111: 0 | P111: 0 | Q111: 0 | R111: 0
D112: 0 | E112: 0 | F112: 0 | G112: 0 | H112: 0 | I112: 0 | J112: 0 | L112: 0 | M112: 0 | N112: 0 | O112: 0 | P112: 0 | Q112: 0 | R112: 0
D113: 0 | E113: 0 | F113: 0 | G113: 0 | H113: 0 | I113: 0 | J113: 0 | L113: 0 | M113: 0 | N113: 0 | O113: 0 | P113: 0 | Q113: 0 | R113: 0
D114: 0 | E114: 0 | F114: 0 | G114: 0 | H114: 0 | I114: 0 | J114: 0 | L114: 0 | M114: 0 | N114: 0 | O114: 0 | P114: 0 | Q114: 0 | R114: 0
D115: 0 | E115: 0 | F115: 0 | G115: 0 | H115: 0 | I115: 0 | J115: 0 | L115: 0 | M115: 0 | N115: 0 | O115: 0 | P115: 0 | Q115: 0 | R115: 0
D116: 0 | E116: 0 | F116: 0 | G116: 0 | H116: 0 | I116: 0 | J116: 0 | L116: 0 | M116: 0 | N116: 0 | O116: 0 | P116: 0 | Q116: 0 | R116: 0
D117: 0 | E117: 0 | F117: 0 | G117: 0 | H117: 0 | I117: 0 | J117: 0 | L117: 0 | M117: 0 | N117: 0 | O117: 0 | P117: 0 | Q117: 0 | R117: 0
D118: 0 | E118: 0 | F118: 0 | G118: 0 | H118: 0 | I118: 0 | J118: 0 | L118: 0 | M118: 0 | N118: 0 | O118: 0 | P118: 0 | Q118: 0 | R118: 0
D119: 0 | E119: 0 | F119: 0 | G119: 0 | H119: 0 | I119: 0 | J119: 0 | L119: 0 | M119: 0 | N119: 0 | O119: 0 | P119: 0 | Q119: 0 | R119: 0
D120: 0 | E120: 0 | F120: 0 | G120: 0 | H120: 0 | I120: 0 | J120: 0 | L120: 0 | M120: 0 | N120: 0 | O120: 0 | P120: 0 | Q120: 0 | R120: 0
D121: 0 | E121: 0 | F121: 0 | G121: 0 | H121: 0 | I121: 0 | J121: 0 | L121: 0 | M121: 0 | N121: 0 | O121: 0 | P121: 0 | Q121: 0 | R121: 0
D122: 0 | E122: 0 | F122: 0 | G122: 0 | H122: 0 | I122: 0 | J122: 0 | L122: 0 | M122: 0 | N122: 0 | O122: 0 | P122: 0 | Q122: 0 | R122: 0
D123: 0 | E123: 0 | F123: 0 | G123: 0 | H123: 0 | I123: 0 | J123: 0 | L123: 0 | M123: 0 | N123: 0 | O123: 0 | P123: 0 | Q123: 0 | R123: 0
D124: 0 | E124: 0 | F124: 0 | G124: 0 | H124: 0 | I124: 0 | J124: 0 | L124: 0 | M124: 0 | N124: 0 | O124: 0 | P124: 0 | Q124: 0 | R124: 0
D125: 0 | E125: 0 | F125: 0 | G125: 0 | H125: 0 | I125: 0 | J125: 0 | L125: 0 | M125: 0 | N125: 0 | O125: 0 | P125: 0 | Q125: 0 | R125: 0
D126: 0 | E126: 0 | F126: 0 | G126: 0 | H126: 0 | I126: 0 | J126: 0 | L126: 0 | M126: 0 | N126: 0 | O126: 0 | P126: 0 | Q126: 0 | R126: 0
D127: 0 | E127: 0 | F127: 0 | G127: 0 | H127: 0 | I127: 0 | J127: 0 | L127: 0 | M127: 0 | N127: 0 | O127: 0 | P127: 0 | Q127: 0 | R127: 0
D128: 0 | E128: 0 | F128: 0 | G128: 0 | H128: 0 | I128: 0 | J128: 0 | L128: 0 | M128: 0 | N128: 0 | O128: 0 | P128: 0 | Q128: 0 | R128: 0
D129: 0 | E129: 0 | F129: 0 | G129: 0 | H129: 0 | I129: 0 | J129: 0 | L129: 0 | M129: 0 | N129: 0 | O129: 0 | P129: 0 | Q129: 0 | R129: 0
D130: 0 | E130: 0 | F130: 0 | G130: 0 | H130: 0 | I130: 0 | J130: 0 | L130: 0 | M130: 0 | N130: 0 | O130: 0 | P130: 0 | Q130: 0 | R130: 0
D131: 0 | E131: 0 | F131: 0 | G131: 0 | H131: 0 | I131: 0 | J131: 0 | L131: 0 | M131: 0 | N131: 0 | O131: 0 | P131: 0 | Q131: 0 | R131: 0
D132: 0 | E132: 0 | F132: 0 | G132: 0 | H132: 0 | I132: 0 | J132: 0 | L132: 0 | M132: 0 | N132: 0 | O132: 0 | P132: 0 | Q132: 0 | R132: 0

Sheet CrashCosts - Int. (hidden)
B1: I N T E R S E C T I O N S
U3: Total Analysis Period Crash Cost
F4: FROM TOTAL TAB | N4: Default Crash Distribution
B5: Empirical Bayes | F5: Area Type = | H5: Urban | J5: FROM CRASH COST TOTALS | N5: K | O5: A | P5: B | Q5: C | R5: O | S5: Sum | U5: No Lighting | W5: With Lighting
B6: adjustment type: | F6: Intersection Type = | H6: 4SG | J6: Opening Year = | K6: 2025 | M6: % | N6: =IF(ISNUMBER(SEARCH("Two-way", $X$14)),VLOOKUP($H$6,Factors!$O$20:$T$23, 2, FALSE),VLOOKUP($H$6,Factors!$O$24:$T$27, 2, FALSE)) -> 0.00362732995 | O6: =IF(ISNUMBER(SEARCH("Two-way", $X$14)),VLOOKUP($H$6,Factors!$O$20:$T$23, 3, FALSE),VLOOKUP($H$6,Factors!$O$24:$T$27, 3, FALSE)) -> 0.03186868456 | P6: =IF(ISNUMBER(SEARCH("Two-way", $X$14)),VLOOKUP($H$6,Factors!$O$20:$T$23,4, FALSE),VLOOKUP($H$6,Factors!$O$24:$T$27, 4, FALSE)) -> 0.1122643379 | Q6: =IF(ISNUMBER(SEARCH("Two-way", $X$14)),VLOOKUP($H$6,Factors!$O$20:$T$23, 5, FALSE),VLOOKUP($H$6,Factors!$O$24:$T$27, 5, FALSE)) -> 0.2238123543 | R6: =IF(ISNUMBER(SEARCH("Two-way", $X$14)),VLOOKUP($H$6,Factors!$O$20:$T$23, 6, FALSE),VLOOKUP($H$6,Factors!$O$24:$T$27, 6, FALSE)) -> 0.6284272934 | S6: =SUM(N6:R6) -> 1 | AW6: Intersection Lighting CMF | AZ6: =1-0.38*VLOOKUP(H6,Intersections!AB71:AC74,2,FALSE) -> 0.9107
B7: ='Crash Cost Totals'!B6 -> Site-specific | F7: Analysis Year Major AADT = | J7: Analysis Period = | K7: 20 | M7: Cost* | N7: 10670000 | O7: 872612 | P7: 174018 | Q7: 106215 | R7: 7700 | U7: =SUMIF($A$14:$A$70,">0",$K$76:$K$132) ->  | W7: =SUMIF($A$14:$A$70,">0",$S$76:$S$132) -> 
F8: Analysis Year Minor AADT = | J8: Major Growth Rate = | K8: 0.03 | AW8: Adjustment to "No Lighting" Base Condition (1.0 if Intersection analyzed w/ Lighting=No) | AZ8: =IF(H10="No",1,1/AZ6) -> 1.09805644
F9: Analysis Year = | H9: 2020 | J9: Minor Growth Rate = | K9: 0.01 | M9: Use Val | N9: =N7 -> 10670000 | O9: =O7 -> 872612 | P9: =P7 -> 174018 | Q9: =Q7 -> 106215 | R9: =R7 -> 7700
F10: Analyzed W/ Lighting = | H10: Yes | J10: Rate of Return = | K10: 0.05 | M10: *Values are the 2020 FDOT KABCO crash costs as laied out in the FDOT Design Manual | X10: Analysis (Base Year) EB Computations
X11: Type | Y11: Sum lookup | Z11: Inverse dispersion parameter | AD11: Predicted crash total | AH11: Observed crash total | AL11: Weight | AR11: Predicted crash total - As Analyzed | AW11: Predicted crash total - No Lighting | BB11: EB Adjusted crash total
B12: AADT / Year | F12: Annual Number of Crashes - No Lighting | M12: Annual Number of Crashes - With Lighting | Z12: Total-vehicle | AB12: Vehicle-pedestrian | AD12: Total-vehicle | AF12: Vehicle-pedestrian | AH12: Total-vehicle | AJ12: Vehicle-pedestrian | AL12: Total-vehicle | AN12: Vehicle-pedestrian | AR12: Total-vehicle | AT12: Vehicle-pedestrian | AU12: Vehicle-bicycle | AW12: Total-vehicle | AY12: Vehicle-pedestrian | AZ12: Vehicle-bicycle | BB12: Total-vehicle | BD12: Vehicle-pedestrian | BE12: Vehicle-bicycle
B13: Year | C13: Major AADT | D13: Minor AADT | F13: Total Crash Pred | G13: Fatality | H13: Incap. | I13: Non-Inc. | J13: Poss. Injury | K13: PDO | M13: Lighting CMF | N13: Total Crash Pred | O13: Fatality | P13: Incap. | Q13: Non-Inc. | R13: Poss. Injury | S13: PDO | Z13: TV F+I | AA13: TV PDO | AB13: VP F+I | AD13: TV F+I | AE13: TV PDO | AF13: VP F+I | AH13: TV F+I | AI13: TV PDO | AJ13: VP F+I | AL13: TV F+I | AM13: TV PDO | AN13: VP F+I | AR13: TV F+I | AS13: TV PDO | AT13: F+I | AU13: F+I | AW13: TV F+I | AX13: TV PDO | AY13: F+I | AZ13: F+I | BB13: TV F+I | BC13: TV PDO | BD13: F+I | BE13: F+I
A14: =IF(B14=$K$6, 1, IF(AND(B14-$K$6<$K$7,B14-$K$6>0),B14-$K$6 + 1,"")) ->  | B14: =H9 -> 2020 | C14: =H7 -> 0 | D14: =H8 -> 0 | F14: =IF(B14<$K$6+$K$7,IF($B$7="Site-specific",SUM(BB14:BE14),SUM(AW14:AZ14)),"") ->  | G14: =IF(ISNUMBER($F14),$F14*N$6,"") ->  | H14: =IF(ISNUMBER($F14),$F14*O$6,"") ->  | M14: =AZ6 -> 0.9107 | N14: =IF(B14<$K$6+$K$7,IF($B$7="Site-specific",(BB14+BC14+BE14)*M14+IF(OR($H$6="4SG",$H$6="3SG"),1,M14)*BD14,(AW14+AX14+AZ14)*M14+IF(OR($H$6="4SG",$H$6="3SG"),1,M14)*AY14),"") ->  | O14: =IF(ISNUMBER($F14),$N14*N$6,"") ->  | P14: =IF(ISNUMBER($F14),$N14*O$6,"") ->  | X14: 4SG, Two-way | Z14: =VLOOKUP($X14,Totals!$BG$33:$BJ$40,2,FALSE) -> 1.77 | AA14: =VLOOKUP($X14,Totals!$BG$33:$BJ$40,3,FALSE) -> 1.01 | AB14: =VLOOKUP($X14,Totals!$BG$33:$BJ$40,4,FALSE) -> 0.24 | AD14: =AW14 -> 0 | AE14: =AX14 -> 0 | AF14: =AY14 -> 0 | AL14: =1/(1+AD14/Z14) -> 1 | AM14: =1/(1+AE14/AA14) -> 1 | AN14: =1/(1+AF14/AB14) -> 1 | AW14: =IF($B14<$K$6+$K$7,AR14*$AZ$8,"--") -> 0 | AX14: =IF($B145<$K$6+$K$7,AS14*$AZ$8,"--") -> 0 | AY14: =IF($B14<$K$6+$K$7,IF(OR($H$6="4SG",$H$6="3SG"),AT14,AT14/SUM(AR14:AS14)*SUM(AW14:AX14)),"--") -> 0 | AZ14: =IF($B14<$K$6+$K$7,SUM(AW14:AX14)*(AU14/SUM(AR14:AS14)),"--") ->  | BB14: =AL14*AD14 + (1-AL14)*AH14 -> 0 | BC14: =AM14*AE14 + (1-AM14)*AI14 -> 0 | BD14: =AN14*AF14 + (1-AN14)*AJ14 -> 0 | BE14: =AU14/SUM(AR14:AS14)*SUM(BB14:BC14) -> 
B15: =B14+1 -> 2021 | C15: =C14*(1+$K$8) -> 0 | D15: =D14*(1+$K$9) -> 0 | F15: =IF(B15<$K$6+$K$7,IF($B$7="Site-specific",SUM(BB15:BE15),SUM(AW15:AZ15)),"") ->  | G15: =IF(ISNUMBER($F15),$F15*N$6,"") ->  | H15: =IF(ISNUMBER($F15),$F15*O$6,"") ->  | I15: =IF(ISNUMBER($F15),$F15*P$6,"") ->  | J15: =IF(ISNUMBER($F15),$F15*Q$6,"") ->  | K15: =IF(ISNUMBER($F15),$F15*R$6,"") ->  | M15: =M14 -> 0.9107 | N15: =IF(B15<$K$6+$K$7,IF($B$7="Site-specific",(BB15+BC15+BE15)*M15+IF(OR($H$6="4SG",$H$6="3SG"),1,M15)*BD15,(AW15+AX15+AZ15)*M15+IF(OR($H$6="4SG",$H$6="3SG"),1,M15)*AY15),"") ->  | O15: =IF(ISNUMBER($F15),$N15*N$6,"") ->  | AW15: 0 | AX15: 0 | AY15: 0 | BB15: =IF($B15<$K$6+$K$7,BB$14*AR15/AR$14,"--") ->  | BC15: =IF($B15<$K$6+$K$7,BC$14*AS15/AS$14,"--") ->  | BD15: =IF($B15<$K$6+$K$7,BD$14*AT15/AT$14,"--") ->  | BE15: =IF($B15<$K$6+$K$7,AU15/SUM(AR15:AS15)*SUM(BB15:BC15),"--") -> 
B16: =B15+1 -> 2022 | C16: 0 | D16: 0 | M16: =M15 -> 0.9107 | O16: =IF(ISNUMBER($F16),$N16*N$6,"") ->  | AW16: 0 | AX16: 0 | AY16: 0 | BE16: =IF($B16<$K$6+$K$7,AU16/SUM(AR16:AS16)*SUM(BB16:BC16),"--") -> 
B17: 2023 | C17: 0 | D17: 0 | M17: =M16 -> 0.9107 | O17: =IF(ISNUMBER($F17),$N17*N$6,"") ->  | AW17: 0 | AX17: 0 | AY17: 0
B18: 2024 | C18: 0 | D18: 0 | M18: 0.9107 | O18: =IF(ISNUMBER($F18),$N18*N$6,"") ->  | AW18: 0 | AX18: 0 | AY18: 0
A19: 1 | B19: 2025 | C19: 0 | D19: 0 | M19: 0.9107 | O19: =IF(ISNUMBER($F19),$N19*N$6,"") ->  | AW19: 0 | AX19: 0 | AY19: 0
A20: 2 | B20: 2026 | C20: 0 | D20: 0 | M20: 0.9107 | O20: =IF(ISNUMBER($F20),$N20*N$6,"") ->  | AW20: 0 | AX20: 0 | AY20: 0
A21: 3 | B21: 2027 | C21: 0 | D21: 0 | M21: 0.9107 | O21: =IF(ISNUMBER($F21),$N21*N$6,"") ->  | AW21: 0 | AX21: 0 | AY21: 0
A22: 4 | B22: 2028 | C22: 0 | D22: 0 | M22: 0.9107 | O22: =IF(ISNUMBER($F22),$N22*N$6,"") ->  | AW22: 0 | AX22: 0 | AY22: 0
A23: 5 | B23: 2029 | C23: 0 | D23: 0 | M23: 0.9107 | O23: =IF(ISNUMBER($F23),$N23*N$6,"") ->  | AW23: 0 | AX23: 0 | AY23: 0
A24: 6 | B24: 2030 | C24: 0 | D24: 0 | M24: 0.9107 | O24: =IF(ISNUMBER($F24),$N24*N$6,"") ->  | AW24: 0 | AX24: 0 | AY24: 0
A25: 7 | B25: 2031 | C25: 0 | D25: 0 | M25: 0.9107 | O25: =IF(ISNUMBER($F25),$N25*N$6,"") ->  | AW25: 0 | AX25: 0 | AY25: 0
A26: 8 | B26: 2032 | C26: 0 | D26: 0 | M26: 0.9107 | O26: =IF(ISNUMBER($F26),$N26*N$6,"") ->  | AW26: 0 | AX26: 0 | AY26: 0
A27: 9 | B27: 2033 | C27: 0 | D27: 0 | M27: 0.9107 | O27: =IF(ISNUMBER($F27),$N27*N$6,"") ->  | AW27: 0 | AX27: 0 | AY27: 0
A28: 10 | B28: 2034 | C28: 0 | D28: 0 | M28: 0.9107 | O28: =IF(ISNUMBER($F28),$N28*N$6,"") ->  | AW28: 0 | AX28: 0 | AY28: 0
A29: 11 | B29: 2035 | C29: 0 | D29: 0 | M29: 0.9107 | O29: =IF(ISNUMBER($F29),$N29*N$6,"") ->  | AW29: 0 | AX29: 0 | AY29: 0
A30: 12 | B30: 2036 | C30: 0 | D30: 0 | M30: 0.9107 | O30: =IF(ISNUMBER($F30),$N30*N$6,"") ->  | AW30: 0 | AX30: 0 | AY30: 0
A31: 13 | B31: 2037 | C31: 0 | D31: 0 | M31: 0.9107 | O31: =IF(ISNUMBER($F31),$N31*N$6,"") ->  | AW31: 0 | AX31: 0 | AY31: 0
A32: 14 | B32: 2038 | C32: 0 | D32: 0 | M32: 0.9107 | O32: =IF(ISNUMBER($F32),$N32*N$6,"") ->  | AW32: 0 | AX32: 0 | AY32: 0
A33: 15 | B33: 2039 | C33: 0 | D33: 0 | M33: 0.9107 | O33: =IF(ISNUMBER($F33),$N33*N$6,"") ->  | AW33: 0 | AX33: 0 | AY33: 0
A34: 16 | B34: 2040 | C34: 0 | D34: 0 | M34: 0.9107 | O34: =IF(ISNUMBER($F34),$N34*N$6,"") ->  | AW34: 0 | AX34: 0 | AY34: 0
A35: 17 | B35: 2041 | C35: 0 | D35: 0 | M35: 0.9107 | O35: =IF(ISNUMBER($F35),$N35*N$6,"") ->  | AW35: 0 | AX35: 0 | AY35: 0
A36: 18 | B36: 2042 | C36: 0 | D36: 0 | M36: 0.9107 | O36: =IF(ISNUMBER($F36),$N36*N$6,"") ->  | AW36: 0 | AX36: 0 | AY36: 0
A37: 19 | B37: =B36+1 -> 2043 | C37: 0 | D37: 0 | M37: 0.9107 | O37: =IF(ISNUMBER($F37),$N37*N$6,"") ->  | AW37: 0 | AX37: 0 | AY37: 0
A38: 20 | B38: 2044 | C38: 0 | D38: 0 | M38: 0.9107 | O38: =IF(ISNUMBER($F38),$N38*N$6,"") ->  | AW38: 0 | AX38: 0 | AY38: 0
B39: =B38+1 -> 2045 | C39: 0 | D39: 0 | M39: 0.9107 | O39: =IF(ISNUMBER($F39),$N39*N$6,"") ->  | AW39: -- | AX39: 0 | AY39: -- | AZ39: -- | BB39: -- | BC39: -- | BD39: -- | BE39: --
B40: 2046 | C40: 0 | D40: 0 | M40: 0.9107 | O40: =IF(ISNUMBER($F40),$N40*N$6,"") ->  | AW40: -- | AX40: 0 | AY40: -- | AZ40: -- | BB40: -- | BC40: -- | BD40: -- | BE40: --
B41: 2047 | C41: 0 | D41: 0 | M41: 0.9107 | O41: =IF(ISNUMBER($F41),$N41*N$6,"") ->  | AW41: -- | AX41: 0 | AY41: -- | AZ41: -- | BB41: -- | BC41: -- | BD41: -- | BE41: --
B42: 2048 | C42: 0 | D42: 0 | M42: 0.9107 | O42: =IF(ISNUMBER($F42),$N42*N$6,"") ->  | AW42: -- | AX42: 0 | AY42: -- | AZ42: -- | BB42: -- | BC42: -- | BD42: -- | BE42: --
B43: 2049 | C43: 0 | D43: 0 | M43: 0.9107 | O43: =IF(ISNUMBER($F43),$N43*N$6,"") ->  | AW43: -- | AX43: 0 | AY43: -- | AZ43: -- | BB43: -- | BC43: -- | BD43: -- | BE43: --
B44: 2050 | C44: 0 | D44: 0 | M44: 0.9107 | O44: =IF(ISNUMBER($F44),$N44*N$6,"") ->  | AW44: -- | AX44: 0 | AY44: -- | AZ44: -- | BB44: -- | BC44: -- | BD44: -- | BE44: --
B45: 2051 | C45: 0 | D45: 0 | M45: 0.9107 | O45: =IF(ISNUMBER($F45),$N45*N$6,"") ->  | AW45: -- | AX45: 0 | AY45: -- | AZ45: -- | BB45: -- | BC45: -- | BD45: -- | BE45: --
A46: =IF(B46=$K$6, 1, IF(AND(B46-$K$6<$K$7,B46-$K$6>0),B46-$K$6 + 1,"")) ->  | B46: 2052 | C46: 0 | D46: 0 | M46: 0.9107 | O46: =IF(ISNUMBER($F46),$N46*N$6,"") ->  | AW46: =IF($B46<$K$6+$K$7,AR46*$AZ$8,"--") -> -- | AX46: =IF($B177<$K$6+$K$7,AS46*$AZ$8,"--") -> 0 | AY46: =IF($B46<$K$6+$K$7,IF(OR($H$6="4SG",$H$6="3SG"),AT46,AT46/SUM(AR46:AS46)*SUM(AW46:AX46)),"--") -> -- | AZ46: =IF($B46<$K$6+$K$7,SUM(AW46:AX46)*(AU46/SUM(AR46:AS46)),"--") -> -- | BB46: -- | BC46: -- | BD46: -- | BE46: --
B47: 2053 | C47: =C46*(1+$K$8) -> 0 | D47: =D46*(1+$K$9) -> 0 | M47: 0.9107 | O47: =IF(ISNUMBER($F47),$N47*N$6,"") ->  | AW47: -- | AX47: 0 | AY47: -- | AZ47: -- | BB47: =IF($B47<$K$6+$K$7,BB$14*AR47/AR$14,"--") -> -- | BC47: =IF($B47<$K$6+$K$7,BC$14*AS47/AS$14,"--") -> -- | BD47: =IF($B47<$K$6+$K$7,BD$14*AT47/AT$14,"--") -> -- | BE47: --
B48: 2054 | C48: 0 | D48: 0 | M48: 0.9107 | O48: =IF(ISNUMBER($F48),$N48*N$6,"") ->  | AW48: -- | AX48: 0 | AY48: -- | AZ48: -- | BB48: -- | BC48: -- | BD48: -- | BE48: --
B49: 2055 | C49: 0 | D49: 0 | M49: 0.9107 | O49: =IF(ISNUMBER($F49),$N49*N$6,"") ->  | AW49: -- | AX49: 0 | AY49: -- | AZ49: -- | BB49: -- | BC49: -- | BD49: -- | BE49: --
B50: 2056 | C50: 0 | D50: 0 | M50: 0.9107 | O50: =IF(ISNUMBER($F50),$N50*N$6,"") ->  | AW50: -- | AX50: 0 | AY50: -- | AZ50: -- | BB50: -- | BC50: -- | BD50: -- | BE50: --
B51: 2057 | C51: 0 | D51: 0 | M51: 0.9107 | O51: =IF(ISNUMBER($F51),$N51*N$6,"") ->  | AW51: -- | AX51: 0 | AY51: -- | AZ51: -- | BB51: -- | BC51: -- | BD51: -- | BE51: --
B52: 2058 | C52: 0 | D52: 0 | M52: 0.9107 | O52: =IF(ISNUMBER($F52),$N52*N$6,"") ->  | AW52: -- | AX52: 0 | AY52: -- | AZ52: -- | BB52: -- | BC52: -- | BD52: -- | BE52: --
B53: 2059 | C53: 0 | D53: 0 | M53: 0.9107 | O53: =IF(ISNUMBER($F53),$N53*N$6,"") ->  | AW53: -- | AX53: 0 | AY53: -- | AZ53: -- | BB53: -- | BC53: -- | BD53: -- | BE53: --
B54: 2060 | C54: 0 | D54: 0 | M54: 0.9107 | O54: =IF(ISNUMBER($F54),$N54*N$6,"") ->  | AW54: -- | AX54: 0 | AY54: -- | AZ54: -- | BB54: -- | BC54: -- | BD54: -- | BE54: --
B55: 2061 | C55: 0 | D55: 0 | M55: 0.9107 | O55: =IF(ISNUMBER($F55),$N55*N$6,"") ->  | AW55: -- | AX55: 0 | AY55: -- | AZ55: -- | BB55: -- | BC55: -- | BD55: -- | BE55: --
B56: 2062 | C56: 0 | D56: 0 | M56: 0.9107 | O56: =IF(ISNUMBER($F56),$N56*N$6,"") ->  | AW56: -- | AX56: 0 | AY56: -- | AZ56: -- | BB56: -- | BC56: -- | BD56: -- | BE56: --
B57: 2063 | C57: 0 | D57: 0 | M57: 0.9107 | O57: =IF(ISNUMBER($F57),$N57*N$6,"") ->  | AW57: -- | AX57: 0 | AY57: -- | AZ57: -- | BB57: -- | BC57: -- | BD57: -- | BE57: --
B58: 2064 | C58: 0 | D58: 0 | M58: 0.9107 | O58: =IF(ISNUMBER($F58),$N58*N$6,"") ->  | AW58: -- | AX58: 0 | AY58: -- | AZ58: -- | BB58: -- | BC58: -- | BD58: -- | BE58: --
B59: 2065 | C59: 0 | D59: 0 | M59: 0.9107 | O59: =IF(ISNUMBER($F59),$N59*N$6,"") ->  | AW59: -- | AX59: 0 | AY59: -- | AZ59: -- | BB59: -- | BC59: -- | BD59: -- | BE59: --
B60: 2066 | C60: 0 | D60: 0 | M60: 0.9107 | O60: =IF(ISNUMBER($F60),$N60*N$6,"") ->  | AW60: -- | AX60: 0 | AY60: -- | AZ60: -- | BB60: -- | BC60: -- | BD60: -- | BE60: --
B61: 2067 | C61: 0 | D61: 0 | M61: 0.9107 | O61: =IF(ISNUMBER($F61),$N61*N$6,"") ->  | AW61: -- | AX61: 0 | AY61: -- | AZ61: -- | BB61: -- | BC61: -- | BD61: -- | BE61: --
B62: 2068 | C62: 0 | D62: 0 | M62: 0.9107 | O62: =IF(ISNUMBER($F62),$N62*N$6,"") ->  | AW62: -- | AX62: 0 | AY62: -- | AZ62: -- | BB62: -- | BC62: -- | BD62: -- | BE62: --
B63: 2069 | C63: 0 | D63: 0 | M63: 0.9107 | O63: =IF(ISNUMBER($F63),$N63*N$6,"") ->  | AW63: -- | AX63: 0 | AY63: -- | AZ63: -- | BB63: -- | BC63: -- | BD63: -- | BE63: --
B64: 2070 | C64: 0 | D64: 0 | M64: 0.9107 | O64: =IF(ISNUMBER($F64),$N64*N$6,"") ->  | AW64: -- | AX64: 0 | AY64: -- | AZ64: -- | BB64: -- | BC64: -- | BD64: -- | BE64: --
B65: 2071 | C65: 0 | D65: 0 | M65: 0.9107 | O65: =IF(ISNUMBER($F65),$N65*N$6,"") ->  | AW65: -- | AX65: 0 | AY65: -- | AZ65: -- | BB65: -- | BC65: -- | BD65: -- | BE65: --
B66: 2072 | C66: 0 | D66: 0 | M66: 0.9107 | O66: =IF(ISNUMBER($F66),$N66*N$6,"") ->  | AW66: -- | AX66: 0 | AY66: -- | AZ66: -- | BB66: -- | BC66: -- | BD66: -- | BE66: --
B67: 2073 | C67: 0 | D67: 0 | M67: 0.9107 | O67: =IF(ISNUMBER($F67),$N67*N$6,"") ->  | AW67: -- | AX67: 0 | AY67: -- | AZ67: -- | BB67: -- | BC67: -- | BD67: -- | BE67: --
B68: 2074 | C68: 0 | D68: 0 | M68: 0.9107 | O68: =IF(ISNUMBER($F68),$N68*N$6,"") ->  | AW68: -- | AX68: 0 | AY68: -- | AZ68: -- | BB68: -- | BC68: -- | BD68: -- | BE68: --
B69: 2075 | C69: 0 | D69: 0 | M69: 0.9107 | O69: =IF(ISNUMBER($F69),$N69*N$6,"") ->  | AW69: -- | AX69: 0 | AY69: -- | AZ69: -- | BB69: -- | BC69: -- | BD69: -- | BE69: --
B70: 2076 | C70: 0 | D70: 0 | M70: =M69 -> 0.9107 | O70: =IF(ISNUMBER($F70),$N70*N$6,"") ->  | AW70: -- | AX70: 0 | AY70: -- | AZ70: -- | BB70: -- | BC70: -- | BD70: -- | BE70: =IF($B70<$K$6+$K$7,BE$14*AU70/AU$14,"--") -> --
E74: Annual Cost | M74: Annual Cost
E75: Fatality | F75: Incap. | G75: Non-Inc. | H75: Poss. Injury | I75: PDO | J75: Total Cost | K75: Present Value | M75: Fatality | N75: Incap. | O75: Non-Inc. | P75: Poss. Injury | Q75: PDO | R75: Total Cost | S75: Present Value
E76: =IF(OR(NOT(ISNUMBER($A14)),ISBLANK($A14)),0,G14*N$9) -> 0 | F76: =IF(OR(NOT(ISNUMBER($A14)),ISBLANK($A14)),0,H14*O$9) -> 0 | G76: 0 | H76: 0 | I76: 0 | J76: =SUM(E76:I76) -> 0 | K76: =IF(ISNUMBER(A14),(J76)/((1+$K$10)^(A14)),0) -> 0 | M76: =IF(OR(NOT(ISNUMBER($A14)),ISBLANK($A14)),0,O14*N$9) -> 0 | N76: =IF(OR(NOT(ISNUMBER($A14)),ISBLANK($A14)),0,P14*O$9) -> 0 | O76: 0 | P76: 0 | Q76: 0 | R76: =SUM(M76:Q76) -> 0 | S76: =IF(ISNUMBER(A14),(R76)/((1+$K$10)^(A14)),0) -> 0
E77: =IF(OR(NOT(ISNUMBER($A15)),ISBLANK($A15)),0,G15*N$9) -> 0 | F77: =IF(OR(NOT(ISNUMBER($A15)),ISBLANK($A15)),0,H15*O$9) -> 0 | G77: =IF(OR(NOT(ISNUMBER($A15)),ISBLANK($A15)),0,I15*P$9) -> 0 | H77: =IF(OR(NOT(ISNUMBER($A15)),ISBLANK($A15)),0,J15*Q$9) -> 0 | I77: =IF(OR(NOT(ISNUMBER($A15)),ISBLANK($A15)),0,K15*R$9) -> 0 | J77: =SUM(E77:I77) -> 0 | K77: 0 | M77: =IF(OR(NOT(ISNUMBER($A15)),ISBLANK($A15)),0,O15*N$9) -> 0 | N77: =IF(OR(NOT(ISNUMBER($A15)),ISBLANK($A15)),0,P15*O$9) -> 0 | O77: =IF(OR(NOT(ISNUMBER($A15)),ISBLANK($A15)),0,Q15*P$9) -> 0 | P77: =IF(OR(NOT(ISNUMBER($A15)),ISBLANK($A15)),0,R15*Q$9) -> 0 | Q77: =IF(OR(NOT(ISNUMBER($A15)),ISBLANK($A15)),0,S15*R$9) -> 0 | R77: =SUM(M77:Q77) -> 0 | S77: 0
E78: 0 | F78: 0 | G78: 0 | H78: 0 | I78: 0 | J78: 0 | K78: 0 | M78: 0 | N78: 0 | O78: 0 | P78: 0 | Q78: 0 | R78: 0 | S78: 0
E79: 0 | F79: 0 | G79: 0 | H79: 0 | I79: 0 | J79: 0 | K79: 0 | M79: 0 | N79: 0 | O79: 0 | P79: 0 | Q79: 0 | R79: 0 | S79: 0
E80: 0 | F80: 0 | G80: 0 | H80: 0 | I80: 0 | J80: 0 | K80: 0 | M80: 0 | N80: 0 | O80: 0 | P80: 0 | Q80: 0 | R80: 0 | S80: 0
J91: =SUM(E91:I91) -> 
J92: =SUM(E92:I92) -> 
E101: 0 | F101: 0 | G101: 0 | H101: 0 | I101: 0 | J101: 0 | K101: 0 | M101: 0 | N101: 0 | O101: 0 | P101: 0 | Q101: 0 | R101: 0 | S101: 0
E102: 0 | F102: 0 | G102: 0 | H102: 0 | I102: 0 | J102: 0 | K102: 0 | M102: 0 | N102: 0 | O102: 0 | P102: 0 | Q102: 0 | R102: 0 | S102: 0
E103: 0 | F103: 0 | G103: 0 | H103: 0 | I103: 0 | J103: =SUM(E103:I103) -> 0 | K103: 0 | M103: 0 | N103: 0 | O103: 0 | P103: 0 | Q103: 0 | R103: 0 | S103: 0
E104: 0 | F104: 0 | G104: 0 | H104: 0 | I104: 0 | J104: 0 | K104: 0 | M104: 0 | N104: 0 | O104: 0 | P104: 0 | Q104: 0 | R104: 0 | S104: 0
E105: 0 | F105: 0 | G105: 0 | H105: 0 | I105: 0 | J105: 0 | K105: 0 | M105: 0 | N105: 0 | O105: 0 | P105: 0 | Q105: 0 | R105: 0 | S105: 0
E106: 0 | F106: 0 | G106: 0 | H106: 0 | I106: 0 | J106: 0 | K106: 0 | M106: 0 | N106: 0 | O106: 0 | P106: 0 | Q106: 0 | R106: 0 | S106: 0
E107: 0 | F107: 0 | G107: 0 | H107: 0 | I107: 0 | J107: 0 | K107: 0 | M107: 0 | N107: 0 | O107: 0 | P107: 0 | Q107: 0 | R107: 0 | S107: 0
E108: 0 | F108: 0 | G108: 0 | H108: 0 | I108: 0 | J108: 0 | K108: =IF(ISNUMBER(A46),(J108)/((1+$K$10)^(A46)),0) -> 0 | M108: 0 | N108: 0 | O108: 0 | P108: 0 | Q108: 0 | R108: 0 | S108: =IF(ISNUMBER(A46),(R108)/((1+$K$10)^(A46)),0) -> 0
E109: 0 | F109: 0 | G109: 0 | H109: 0 | I109: 0 | J109: 0 | K109: 0 | M109: 0 | N109: 0 | O109: 0 | P109: 0 | Q109: 0 | R109: 0 | S109: 0
E110: 0 | F110: 0 | G110: 0 | H110: 0 | I110: 0 | J110: 0 | K110: 0 | M110: 0 | N110: 0 | O110: 0 | P110: 0 | Q110: 0 | R110: 0 | S110: 0
E111: 0 | F111: 0 | G111: 0 | H111: 0 | I111: 0 | J111: 0 | K111: 0 | M111: 0 | N111: 0 | O111: 0 | P111: 0 | Q111: 0 | R111: 0 | S111: 0
E112: 0 | F112: 0 | G112: 0 | H112: 0 | I112: 0 | J112: 0 | K112: 0 | M112: 0 | N112: 0 | O112: 0 | P112: 0 | Q112: 0 | R112: 0 | S112: 0
E113: 0 | F113: 0 | G113: 0 | H113: 0 | I113: 0 | J113: 0 | K113: 0 | M113: 0 | N113: 0 | O113: 0 | P113: 0 | Q113: 0 | R113: 0 | S113: 0
E114: 0 | F114: 0 | G114: 0 | H114: 0 | I114: 0 | J114: 0 | K114: 0 | M114: 0 | N114: 0 | O114: 0 | P114: 0 | Q114: 0 | R114: 0 | S114: 0
E115: 0 | F115: 0 | G115: 0 | H115: 0 | I115: 0 | J115: 0 | K115: 0 | M115: 0 | N115: 0 | O115: 0 | P115: 0 | Q115: 0 | R115: 0 | S115: 0
E116: 0 | F116: 0 | G116: 0 | H116: 0 | I116: 0 | J116: 0 | K116: 0 | M116: 0 | N116: 0 | O116: 0 | P116: 0 | Q116: 0 | R116: 0 | S116: 0
E117: 0 | F117: 0 | G117: 0 | H117: 0 | I117: 0 | J117: 0 | K117: 0 | M117: 0 | N117: 0 | O117: 0 | P117: 0 | Q117: 0 | R117: 0 | S117: 0
E118: 0 | F118: 0 | G118: 0 | H118: 0 | I118: 0 | J118: 0 | K118: 0 | M118: 0 | N118: 0 | O118: 0 | P118: 0 | Q118: 0 | R118: 0 | S118: 0
E119: 0 | F119: 0 | G119: 0 | H119: 0 | I119: 0 | J119: 0 | K119: 0 | M119: 0 | N119: 0 | O119: 0 | P119: 0 | Q119: 0 | R119: 0 | S119: 0
E120: 0 | F120: 0 | G120: 0 | H120: 0 | I120: 0 | J120: 0 | K120: 0 | M120: 0 | N120: 0 | O120: 0 | P120: 0 | Q120: 0 | R120: 0 | S120: 0
E121: 0 | F121: 0 | G121: 0 | H121: 0 | I121: 0 | J121: 0 | K121: 0 | M121: 0 | N121: 0 | O121: 0 | P121: 0 | Q121: 0 | R121: 0 | S121: 0
E122: 0 | F122: 0 | G122: 0 | H122: 0 | I122: 0 | J122: 0 | K122: 0 | M122: 0 | N122: 0 | O122: 0 | P122: 0 | Q122: 0 | R122: 0 | S122: 0
E123: 0 | F123: 0 | G123: 0 | H123: 0 | I123: 0 | J123: 0 | K123: 0 | M123: 0 | N123: 0 | O123: 0 | P123: 0 | Q123: 0 | R123: 0 | S123: 0
E124: 0 | F124: 0 | G124: 0 | H124: 0 | I124: 0 | J124: 0 | K124: 0 | M124: 0 | N124: 0 | O124: 0 | P124: 0 | Q124: 0 | R124: 0 | S124: 0
E125: 0 | F125: 0 | G125: 0 | H125: 0 | I125: 0 | J125: 0 | K125: 0 | M125: 0 | N125: 0 | O125: 0 | P125: 0 | Q125: 0 | R125: 0 | S125: 0
E126: 0 | F126: 0 | G126: 0 | H126: 0 | I126: 0 | J126: 0 | K126: 0 | M126: 0 | N126: 0 | O126: 0 | P126: 0 | Q126: 0 | R126: 0 | S126: 0
E127: 0 | F127: 0 | G127: 0 | H127: 0 | I127: 0 | J127: 0 | K127: 0 | M127: 0 | N127: 0 | O127: 0 | P127: 0 | Q127: 0 | R127: 0 | S127: 0
E128: 0 | F128: 0 | G128: 0 | H128: 0 | I128: 0 | J128: 0 | K128: 0 | M128: 0 | N128: 0 | O128: 0 | P128: 0 | Q128: 0 | R128: 0 | S128: 0
E129: 0 | F129: 0 | G129: 0 | H129: 0 | I129: 0 | J129: 0 | K129: 0 | M129: 0 | N129: 0 | O129: 0 | P129: 0 | Q129: 0 | R129: 0 | S129: 0
E130: 0 | F130: 0 | G130: 0 | H130: 0 | I130: 0 | J130: 0 | K130: 0 | M130: 0 | N130: 0 | O130: 0 | P130: 0 | Q130: 0 | R130: 0 | S130: 0
E131: 0 | F131: 0 | G131: 0 | H131: 0 | I131: 0 | J131: 0 | K131: 0 | M131: 0 | N131: 0 | O131: 0 | P131: 0 | Q131: 0 | R131: 0 | S131: 0
E132: 0 | F132: 0 | G132: 0 | H132: 0 | I132: 0 | J132: 0 | K132: 0 | M132: 0 | N132: 0 | O132: 0 | P132: 0 | Q132: 0 | R132: 0 | S132: 0

Sheet Welcome
B2: HSM Chapter 12 NCHRP 17-58 Spreadsheet
B6: Developed by: Michael P. Pratt, Srinivas R. Geedipally, Hadi Khazraee, and Dominique Lord
B7: Version 2
B8: FOREWORD
B9: This software can be used to assist with the assessment of the safety performance of urban and suburban arterial facilities,
B10: including segments and intersections. It is intended for use by engineers and technicians responsible for safety analysis or
B11: management of urban streets.
B13: This software is intended for use with the updated Chapter 12 of the Highway Safety Manual. The analyst is encouraged to read
B14: the document so that he or she will have an understanding of how best to use the software and interpret its output.
B16: The equations used in this software are documented in this chapter. Analysts should refer to the chapter whenever they have
B17: questions about the modeling approach, assumptions, or limitations.
B19: INSTRUCTIONS
B21: Each cell on the analysis worksheets has been color-coded to indicate the type of data entered or displayed. The following list
B22: indentifies the meaning of each cell color.
B24: Blue cells represent "input data." Each time the worksheet is used, the values in these cells should be changed to represent the
C25: segment or intersection being evaluated. Input data must be provided by the analyst.
B26: Yellow cells represent "calibration factors." The values in these cells represent reasonable values for most situations and do not
C27: need to be changed. Calibration factors can be changed to more accurately reflect local conditions. However, field data
C28: from sites local to the agency should be the basis for this change.
B29: Purple cells represent "key output variables." The values are computed using the input data, calibration factors, and default values.
B30: Note: White, gray, and purple cells are locked and cannot be changed.
B32: DISCLAIMER
B33: No warranty is made by the developers or their employer as to the accuracy, completeness, or reliability of this software and its
B34: associated equations and documentation. No responsibility is assumed by the developers for incorrect results or damages resulting
B35: from the use of this software.
B37: COPYRIGHT © 2015
B38: This software is copyrighted. All rights are reserved. This product may not, in whole or in part, be copied, photocopied, reproduced,
B39: translated, or reduced to any electronic medium or machine-readable form without prior consent, in writing, from Michael P. Pratt.
B40: This product is subject to change without notice and does not represent a commitment on the part of Michael P. Pratt to notify
B41: any person of such revision.

Sheet FDOT Modifications
B2: FDOT Modifications
B6: Modifications by Kittelson & Associates, Inc
B7: Version 1.2 (May 2020)
B9: The Florida Department of Transportation (FDOT) has modified this workbook to include crash cost computations. The intent of these modifications is to support the analysis shown in Chapter 14, Manual of Uniform Traffic Studies (MUTS) for Roadway Lighting Justification. The NCHRP 17-58 research considered the presence of roadway lighting in the development of a recommended road segment crash prediction model (CPM). However, the NCHRP 17-58 CPM does not contain a lighting-presence-related crash modification factor (CMF). Fortunately, the Final Report for NCHRP 17-58 includes Tables 24, 25 and 26 providing information which can be used to convert the 17-58 SPF predictions such that they correspond to a base condition of “no lighting present.” The adjusted SPF can then be used with an “add roadway segment lighting” CMF to obtain reliable estimates of the average crash frequency when lighting is (or is not) present.
B18: The CMFs listed in the Highway Safety Manual (HSM) for adding roadway segment lighting are based upon NCHRP 617. The NCHRP 617 Final Report indicates that a CMF value of 0.94 is appropriate when adding lighting to a roadway segment. This CMF applies to total crashes (i.e., all crash types and severities) for a full day (i.e., daytime and nighttime combined).
B23: The adjusted SPF is used with the aforementioned CMF to compute the predicted crash frequency (or Np) of a road segment. If crash data is available, the expected crash frequency (or Ne) can be computed. The user should always select “site-specific” in the “Totals” worksheet tab when conducting Empirical Bays analysis or applying crash data. Project level analysis is not appropriate for lighting analysis.
B28: The crash cost calculations for street segments are done in the following two worksheets: “TWS Crash Cost” and “OWS Crash Cost”, with TWS being two-way street and OWS being one-way street. Each worksheet presents the calculations for one segment and has the ability to compute the life-cycle costs. At the top of each worksheet, user input fields are provided for: opening year, analysis period (years), traffic growth rate and rate of return (always 4% for FDOT projects). Each worksheet calculates a new value of Np or Ne for each analysis year in the analysis period. This crash frequency is then distributed by crash severity using the KABCO scale (i.e., K= fatality, A= incapacitating injury, etc.) crash distribution. The default severity distribution (provided in the Factors worksheet) was developed for FDOT roadways using 2013-2017 crash data. The annual crash cost is based upon values provided in the FDOT Design Manual, Table 122.6.2 – FDOT KABCO Crash Costs. The “TWS Crash Cost” and “OWS Crash Cost” worksheets are capable of applying the CMF to compute the with and without light crash costs. Each segment’s total with and without crash costs are reported in the “Crash Cost Totals” worksheet.
B39: The intersection crash costs are also computed using this workbook. In the “Intersections” tab, the user should always select “No” in Line 29 for the is “Lighting Present?” as this is the base condition. The intersection lighting CMF will be computed and applied for the with lighting condition in the “Intx Crash Cost” worksheet tab. Please note the intersection lighting CMF only applies to vehicle to vehicle crashes. The worksheet applies the CMF to no lighting vehicular crashes and then adds in the vehicle-pedestrian and vehicle-bicycle crashes before the KABCO distribution. Similar to the segment crash costs worksheets, the intersection with and without crash costs are computed in the “Intx Crash Cost” worksheet tab and reported in the “Crash Cost Totals” worksheet.

Sheet Two-way segments
C3: Safety Prediction Worksheet for Two-Way Urban and Suburban Arterial Segments
C5: General Information | I5: Site Information
C7: Analyst | D7: JRF | I7: Street number | K7: 123 | T7: Intercept | V7: AADT coefficient | Y7: Intercept
C8: Agency | D8: Kittelson | I8: Street name | K8: Main Street | T8: F+I | U8: PDO | V8: F+I | W8: PDO | Y8: Segment type | Z8: Multiple,F+I | AA8: Single,F+I | AB8: Multiple,PDO | AC8: Single,PDO
C9: Date | D9: =TODAY() -> 2020-08-21 | I9: Segment number | K9: 2 | S9: Multiple | T9: =VLOOKUP($H$27,$Y$8:$AC$12,MATCH($S9&","&T$8,$Y$8:$AC$8,0),FALSE) -> -11.56 | U9: =VLOOKUP($H$27,$Y$8:$AC$12,MATCH($S9&","&U$8,$Y$8:$AC$8,0),FALSE) -> -9.21 | V9: =VLOOKUP($H$27,$Y$15:$AC$19,MATCH($S9&","&V$8,$Y$15:$AC$15,0),FALSE) -> 1.24 | W9: =VLOOKUP($H$27,$Y$15:$AC$19,MATCH($S9&","&W$8,$Y$15:$AC$15,0),FALSE) -> 1.06 | Y9: 6U | Z9: -15.42 | AA9: -4.54 | AB9: -15.68 | AC9: -3.98
C10: Location | D10: Anywhere, FL | I10: Analysis year | K10: 2020 | S10: Single | T10: =VLOOKUP($H$27,$Y$8:$AC$12,MATCH($S10&","&T$8,$Y$8:$AC$8,0),FALSE) -> -5.26 | U10: =VLOOKUP($H$27,$Y$8:$AC$12,MATCH($S10&","&U$8,$Y$8:$AC$8,0),FALSE) -> -4.71 | V10: =VLOOKUP($H$27,$Y$15:$AC$19,MATCH($S10&","&V$8,$Y$15:$AC$15,0),FALSE) -> 0.46 | W10: =VLOOKUP($H$27,$Y$15:$AC$19,MATCH($S10&","&W$8,$Y$15:$AC$15,0),FALSE) -> 0.43 | Y10: 6D | Z10: -11.56 | AA10: -5.26 | AB10: -9.21 | AC10: -4.71
Y11: 7T | Z11: -11.44 | AA11: -4.54 | AB11: -9.2 | AC11: -3.98
T12: K | U12: A | V12: B | Y12: 8D | Z12: -11.38 | AA12: -5.36 | AB12: -8.84 | AC12: -4.34
S13: Constant | T13: -5.1142 | U13: -1.7347 | V13: -0.5751
C14: Output Summary | F14: Predicted crash frequency, crashes / year | L14: Combined CMF | S14: Area type | T14: -0.4714 | U14: -0.2505 | V14: -0.2505 | Y14: AADT coefficient
F15: F+I | G15: PDO | H15: Total | L15: F+I | M15: PDO | S15: Speed | T15: 0.0442 | U15: 0 | V15: 0 | Y15: Segment type | Z15: Multiple,F+I | AA15: Single,F+I | AB15: Multiple,PDO | AC15: Single,PDO
E16: Total crashes | F16: =SUM(F17:F20) -> 3.490576902 | G16: =SUM(G17:G18) -> 5.114117999 | H16: =F16+G16 -> 8.604694901 | K16: Multiple-vehicle crashes | L16: =PRODUCT(H58:H67) -> 0.9878670621 | M16: =PRODUCT(K58:K67) -> 0.9878670621 | S16: 6D | T16: -0.3327 | U16: -0.2923 | V16: -0.0938 | Y16: 6U | Z16: 1.63 | AA16: 0.37 | AB16: 1.7 | AC16: 0.34
E17: Multiple-vehicle crashes | F17: =$H51*$H$28*EXP(T9+V9*LN($H$29))*L16 -> 2.900229576 | G17: =$H51*$H$28*EXP(U9+W9*LN($H$29))*M16 -> 4.611769886 | K17: Single-vehicle crashes | L17: =PRODUCT(I58:I67) -> 0.8801551075 | M17: =PRODUCT(L58:L67) -> 0.8801551075 | S17: 8D | T17: -0.2296 | U17: -0.523 | V17: -0.2373 | Y17: 6D | Z17: 1.24 | AA17: 0.46 | AB17: 1.06 | AC17: 0.43
E18: Single-vehicle crashes | F18: =$H51*$H$28*EXP(T10+V10*LN($H$29))*L17 -> 0.3968888879 | G18: =$H51*$H$28*EXP(U10+W10*LN($H$29))*M17 -> 0.5023481124 | S18: V | T18: =T13+T14*IF($H$26="Urban",1,0)+T15*$H$31+T16*IF($H$27="6D",1,0)+T17*IF($H$27="8D",1,0) -> -3.9293 | U18: =U13+U14*IF($H$26="Urban",1,0)+U15*$H$31+U16*IF($H$27="6D",1,0)+U17*IF($H$27="8D",1,0) -> -2.2775 | V18: =V13+V14*IF($H$26="Urban",1,0)+V15*$H$31+V16*IF($H$27="6D",1,0)+V17*IF($H$27="8D",1,0) -> -0.9194 | Y18: 7T | Z18: 1.24 | AA18: 0.37 | AB18: 1.06 | AC18: 0.34
E19: Vehicle-pedestrian crashes | F19: =SUM(F17:G18)*$H52 -> 0.1261685469 | J19: Severity distribution for F+I crashes | S19: P | T19: =EXP(T18)/(1/$H54+EXP($T18)+EXP($U18)+EXP($V18)) -> 0.01292439056 | U19: =EXP(U18)/(1/$H54+EXP($T18)+EXP($U18)+EXP($V18)) -> 0.06741828468 | V19: =EXP(V18)/(1/$H54+EXP($T18)+EXP($U18)+EXP($V18)) -> 0.2621760612 | Y19: 8D | Z19: 1.24 | AA19: 0.46 | AB19: 1.06 | AC19: 0.43
E20: Vehicle-bicycle crashes | F20: =SUM(F17:G18)*$H53 -> 0.0672898917 | J20: K | K20: A | L20: B | M20: C
J21: =$F16*T19 -> 0.04511357916 | K21: =$F16*U19 -> 0.2353287073 | L21: =$F16*V19 -> 0.9151457034 | M21: =F16*(1-SUM(T19:V19)) -> 2.294988912
C23: Input Data | H23: Value | J23: Advisory Messages
C25: Basic Roadway Data | S25: Minimum | T25: Maximum | V25: Segment type | W25: Minimum | X25: Maximum
C26: Area type | H26: Urban | J26: . | V26: 6U | W26: 0 | X26: 78000
C27: Segment type | H27: 6D | J27: =IF(H27="7T","6 lanes + two-way left-turn lane.",".") -> . | V27: 6D | W27: 0 | X27: 118000
C28: Segment length, mi | H28: 0.7 | J28: . | V28: 7T | W28: 0 | X28: 94000
C29: Annual average daily traffic (AADT), veh/day | H29: 35552.57016 | I29: =IF(OR(H29<S29,H29>T29),"Check","") ->  | J29: . | S29: =VLOOKUP($H$27,$V$25:$X$29,MATCH(S$25,$V$25:$X$25,0),FALSE) -> 0 | T29: =VLOOKUP($H$27,$V$25:$X$29,MATCH(T$25,$V$25:$X$25,0),FALSE) -> 118000 | V29: 8D | W29: 0 | X29: 152000
C30: Number of highway-rail grade crossings present | H30: 0 | J30: =IF(H30>0,ROUND(H30/H28,0)&" crossings per mile.",".") -> . | S30: 0 | T30: 3
C31: Posted speed limit, mi/h | H31: 45 | J31: =IF(AND(H31<=30,H27="8D"),"Estimated ped/bike factors.",".") -> .
C32: Automated speed enforcement present? | H32: No | J32: .
C34: Access Data
C35: Driveway count | E35: Major commercial | H35: 5 | I35: =IF(OR(H35<S35,H35>T35),"Check","") ->  | J35: =IF(H35>0,ROUND(H35/H$28,0)&" major comm. driveways per mile.",".") -> 7 major comm. driveways per mile. | S35: 0 | T35: =138.8*H28 -> 97.16
E36: Major industrial | H36: 2 | I36: =IF(OR(H36<S36,H36>T36),"Check","") ->  | J36: =IF(H36>0,ROUND(H36/H$28,0)&" major industrial driveways per mile.",".") -> 3 major industrial driveways per mile. | S36: 0 | T36: =100*H28 -> 70
E37: Minor | H37: 5 | I37: =IF(OR(H37<S37,H37>T37),"Check","") ->  | J37: =IF(H37>0,ROUND(H37/H$28,0)&" minor driveways per mile.",".") -> 7 minor driveways per mile. | S37: 0 | T37: =119.2*H28 -> 83.44
C39: Cross Section Data
C40: Lane width, ft | H40: 12 | I40: =IF(OR(H40<S40,H40>T40),"Check","") ->  | J40: . | S40: 9 | T40: 27
C41: Outside shoulder width, ft | H41: 7 | I41: =IF(OR(H41<S41,H41>T41),"Check","") ->  | J41: . | S41: 0 | T41: 14
C42: Median width, ft | H42: 22 | I42: =IF(OR(H42<S42,H42>T42),"Check","") ->  | J42: =IF(AND(H27<>"6U",H42=0),"Must enter nonzero median width.",".") -> . | S42: 0 | T42: 240
C43: Median barrier present? | H43: No | J43: .
C45: Roadside Data
C46: Roadside fixed object count | H46: 5 | I46: =IF(OR(H46<S46,H46>T46),"Check","") ->  | J46: =IF(H46>0,ROUND(H46/H28,0)&" objects per mile.",".") -> 7 objects per mile. | S46: 0 | T46: =508*H28 -> 355.6
C47: Average roadside fixed object offset, ft | H47: 0 | I47: =IF(OR(H47<S47,H47>T47),"Check","") ->  | J47: . | S47: 0 | T47: 30
C49: Calibration Factors | H49: Value | K49: Default Values | S49: Segment type | T49: fped, ≤ 30 mph | U49: fped, ≥ 35 mph | V49: fbike, ≤ 30 mph | W49: fbike, ≥ 35 mph
C51: Local calibration factor (C) | H51: =K51 -> 1 | K51: 1 | S51: 6U | T51: 0.018 | U51: 0.013 | V51: 0.013 | W51: 0.007
C52: Adjustment factor for pedestrians (fped) | H52: =K52 -> 0.015 | K52: =VLOOKUP($H$27,$S$51:$W$54,IF($H$31<=30,2,3),FALSE) -> 0.015 | S52: 6D | T52: 0.029 | U52: 0.015 | V52: 0.007 | W52: 0.008
C53: Adjustment factor for bicyclists (fbike) | H53: =K53 -> 0.008 | K53: =VLOOKUP($H$27,$S$51:$W$54,IF($H$31<=30,4,5),FALSE) -> 0.008 | S53: 7T | T53: 0.034 | U53: 0.014 | V53: 0.025 | W53: 0.001
C54: Severity distribution calibration factor (Csdf,tws) | H54: =K54 -> 1 | K54: 1 | S54: 8D | T54: =U54 -> 0.023 | U54: 0.023 | V54: =W54 -> 0.014 | W54: 0.014
C56: Crash Modification Factors | H56: F+I | K56: PDO | V56: F+I coefficients | Y56: PDO coefficients
H57: Multiple | I57: Single | K57: Multiple | L57: Single | S57: Value | T57: Base | V57: Multiple | W57: Single | Y57: Multiple | Z57: Single
C58: Lane width | H58: =EXP(V58*($S58-$T58)) -> 1 | I58: =EXP(W58*($S58-$T58)) -> 1 | K58: =EXP(Y58*($S58-$T58)) -> 1 | L58: =EXP(Z58*($S58-$T58)) -> 1 | S58: =H40 -> 12 | T58: 12 | V58: -0.0219 | W58: =V58 -> -0.0219 | Y58: -0.0219 | Z58: =Y58 -> -0.0219
C59: Outside shoulder width | H59: =EXP(V59*($S59-$T59)) -> 0.8549177615 | I59: =EXP(W59*($S59-$T59)) -> 0.8549177615 | K59: =EXP(Y59*($S59-$T59)) -> 0.8549177615 | L59: =EXP(Z59*($S59-$T59)) -> 0.8549177615 | S59: =H41 -> 7 | T59: 1.5 | V59: -0.0285 | W59: =V59 -> -0.0285 | Y59: -0.0285 | Z59: =Y59 -> -0.0285
C60: Median width | H60: =IF(OR($H$27="6D",$H$27="8D"),EXP(V60*($S60-$T60)),1) -> 0.9608855229 | I60: =IF(OR($H$27="6D",$H$27="8D"),EXP(W60*($S60-$T60)),1) -> 0.9608855229 | K60: =IF(OR($H$27="6D",$H$27="8D"),EXP(Y60*($S60-$T60)),1) -> 0.9608855229 | L60: =IF(OR($H$27="6D",$H$27="8D"),EXP(Z60*($S60-$T60)),1) -> 0.9608855229 | S60: =H42 -> 22 | T60: 15 | V60: -0.0057 | W60: =V60 -> -0.0057 | Y60: -0.0057 | Z60: =Y60 -> -0.0057
C61: Median barrier | H61: =IF(OR($H$27="6U",$H$27="7T"),1,EXP(V61*$S61)) -> 1 | I61: =IF(OR($H$27="6U",$H$27="7T"),1,EXP(W61*$S61)) -> 1 | K61: =IF(OR($H$27="6U",$H$27="7T"),1,EXP(Y61*$S61)) -> 1 | L61: =IF(OR($H$27="6U",$H$27="7T"),1,EXP(Z61*$S61)) -> 1 | S61: =IF(H43="Yes",1,0) -> 0 | V61: -0.5106 | W61: 0.6766 | Y61: -0.5106 | Z61: 0.6766
C62: Highway-rail grade crossing | H62: =EXP(V62*$S62) -> 1 | I62: =EXP(W62*$S62) -> 1 | K62: =EXP(Y62*$S62) -> 1 | L62: =EXP(Z62*$S62) -> 1 | S62: =H30/H28 -> 0 | T62: 0 | V62: 0.0388 | W62: =V62 -> 0.0388 | Y62: 0.0388 | Z62: =Y62 -> 0.0388
C63: Major commercial driveways | H63: =EXP(V63*($S63-$T63)) -> 1.197217363 | K63: =EXP(Y63*($S63-$T63)) -> 1.197217363 | S63: =H35/H28 -> 7.142857143 | T63: 2 | V63: 0.035 | Y63: 0.035
C64: Major industrial driveways | H64: =EXP(V64*($S64-$T64)) -> 1.02007018 | K64: =EXP(Y64*($S64-$T64)) -> 1.02007018 | S64: =H36/H28 -> 2.857142857 | T64: 1 | V64: 0.0107 | Y64: 0.0107
C65: Minor driveways | H65: =EXP(V65*($S65-$T65)) -> 0.9846898392 | K65: =EXP(Y65*($S65-$T65)) -> 0.9846898392 | S65: =H37/H28 -> 7.142857143 | T65: 10 | V65: 0.0054 | Y65: 0.0054
C66: Automated speed enforcement | H66: =IF($S66=0,1,V66) -> 1 | I66: =IF($S66=0,1,W66) -> 1 | K66: =IF($S66=0,1,Y66) -> 1 | L66: =IF($S66=0,1,Z66) -> 1 | S66: =IF(H32="Yes",1,0) -> 0 | T66: 0 | V66: 0.83 | W66: 0.83 | Y66: 1 | Z66: 1
C67: Roadside fixed objects | I67: =1+0.01*$H46/$H28/EXP(W67*$S67) -> 1.071428571 | L67: =1+0.01*$H46/$H28/EXP(Z67*$S67) -> 1.071428571 | S67: =H47 -> 0 | W67: 0.131 | Z67: 0.131

Sheet One-way segments
C3: Safety Prediction Worksheet for One-Way Urban and Suburban Arterial Segments
C5: General Information | I5: Site Information
C7: Analyst | D7: JRF | I7: Street number | K7: SR 123 | T7: Intercept | V7: AADT coefficient | Y7: Intercept
C8: Agency | D8: Kittelson | I8: Street name | K8: Main Street | T8: F+I | U8: PDO | V8: F+I | W8: PDO | Y8: Segment type | Z8: Multiple,F+I | AA8: Single,F+I | AB8: Multiple,PDO | AC8: Single,PDO
C9: Date | D9: =TODAY() -> 2020-08-21 | I9: Segment number | K9: 1 | S9: Multiple | T9: =VLOOKUP($H$27,$Y$8:$AC$11,MATCH($S9&","&T$8,$Y$8:$AC$8,0),FALSE) -> -11.49 | U9: =VLOOKUP($H$27,$Y$8:$AC$11,MATCH($S9&","&U$8,$Y$8:$AC$8,0),FALSE) -> -8.27 | V9: 1.26 | W9: 1.02 | Y9: 2O | Z9: -11.48 | AA9: -5.32 | AB9: -8.26 | AC9: -4.71
C10: Location | D10: Anywhere, FL | I10: Analysis year | K10: 2020 | S10: Single | T10: =VLOOKUP($H$27,$Y$8:$AC$11,MATCH($S10&","&T$8,$Y$8:$AC$8,0),FALSE) -> -4.93 | U10: =VLOOKUP($H$27,$Y$8:$AC$11,MATCH($S10&","&U$8,$Y$8:$AC$8,0),FALSE) -> -4.72 | V10: 0.42 | W10: 0.43 | Y10: 3O | Z10: -11.49 | AA10: -4.93 | AB10: -8.27 | AC10: -4.72
Y11: 4O | Z11: -11.74 | AA11: -4.93 | AB11: -8.68 | AC11: -4.72
T12: K+A | U12: B
S13: Constant | T13: 0.2933 | U13: -0.381
C14: Output Summary | F14: Predicted crash frequency, crashes / year | L14: Combined CMF | S14: Lane | T14: -0.1226 | U14: 0
F15: F+I | G15: PDO | H15: Total | L15: F+I | M15: PDO | S15: R Shld | T15: -0.126 | U15: -0.05755
E16: Total crashes | F16: =SUM(F17:F20) -> 2.499225164 | G16: =SUM(G17:G18) -> 4.72772654 | H16: =F16+G16 -> 7.226951704 | K16: Multiple-vehicle crashes | L16: =PRODUCT(H60:H66) -> 1.370053787 | M16: =PRODUCT(K60:K66) -> 1.370053787 | S16: Area type | T16: -0.3994 | U16: 0
E17: Multiple-vehicle crashes | F17: =$H52*$H$28*EXP(T9+V9*LN($H$30))*L16 -> 1.989436811 | G17: =$H52*$H$28*EXP(U9+W9*LN($H$30))*M16 -> 4.365360047 | K17: Single-vehicle crashes | L17: =PRODUCT(I60:I66) -> 1.296935923 | M17: =PRODUCT(L60:L66) -> 1.296935923 | S17: Bike lane | T17: 0.9969 | U17: 0.504
E18: Single-vehicle crashes | F18: =$H52*$H$28*EXP(T10+V10*LN($H$30))*L17 -> 0.2653986815 | G18: =$H52*$H$28*EXP(U10+W10*LN($H$30))*M17 -> 0.3623664921 | S18: V | T18: =T13+T14*H39+T15*H40+T16*IF($H$26="Urban",1,0)+T17*IF($H$29="Yes",1,0) -> -1.2443 | U18: =U13+U14*H39+U15*H40+U16*IF($H$26="Urban",1,0)+U17*IF($H$29="Yes",1,0) -> -0.467325
E19: Vehicle-pedestrian crashes | F19: =SUM(F17:G18)*$H53 -> 0.1675814888 | J19: Severity distribution for F+I crashes | S19: P | T19: =EXP(T18)/(1/$H55+EXP($T18)+EXP($U18)) -> 0.1504803058 | U19: =EXP(U18)/(1/$H55+EXP($T18)+EXP($U18)) -> 0.3272771014
E20: Vehicle-bicycle crashes | F20: =SUM(F17:G18)*$H54 -> 0.07680818236 | J20: K | K20: A | L20: B | M20: C
J21: =F16*T19*H56 -> 0.03723233252 | K21: =F16*T19*(1-H56) -> 0.3388518344 | L21: =F16*U19 -> 0.8179391675 | M21: =F16*(1-SUM(T19:U19)) -> 1.30520183
C23: Input Data | H23: Value | J23: Advisory Messages
C25: Basic Roadway Data | S25: Minimum | T25: Maximum | V25: Segment type | W25: Minimum | X25: Maximum
C26: Area type | H26: Suburban | J26: . | V26: 2O | W26: 0 | X26: 34000
C27: Segment type | H27: 3O | J27: . | V27: 3O | W27: 0 | X27: 29000
C28: Segment length, mi | H28: 0.4 | J28: . | V28: 4O | W28: 0 | X28: 29000
C29: Bicycle lanes present? | H29: No | J29: .
C30: Annual average daily traffic (AADT), veh/day | H30: 25394.69297 | I30: =IF(OR(H30<S30,H30>T30),"Check","") ->  | J30: . | S30: =VLOOKUP($H$27,$V$25:$X$28,MATCH(S$25,$V$25:$X$25,0),FALSE) -> 0 | T30: =VLOOKUP($H$27,$V$25:$X$28,MATCH(T$25,$V$25:$X$25,0),FALSE) -> 29000
C31: Posted speed limit, mi/h | H31: 30 | J31: .
C32: Automated speed enforcement present? | H32: No | J32: .
C34: Access Data
C35: Driveway count | E35: Major commercial | H35: 6 | I35: =IF(OR(H35<S35,H35>T35),"Check","") ->  | J35: =IF(H35>0,ROUND(H35/H$28,0)&" major comm. driveways per mile.",".") -> 15 major comm. driveways per mile. | S35: 0 | T35: =58.3*H28 -> 23.32
E36: Minor | H36: 7 | I36: =IF(OR(H36<S36,H36>T36),"Check","") ->  | J36: =IF(H36>0,ROUND(H36/H$28,0)&" minor driveways per mile.",".") -> 18 minor driveways per mile. | S36: 0 | T36: =100*H28 -> 40
C38: Cross Section Data
C39: Lane width, ft | H39: 11 | I39: =IF(OR(H39<S39,H39>T39),"Check","") ->  | J39: . | S39: 9 | T39: 27
C40: Right shoulder width, ft | H40: 1.5 | I40: =IF(OR(H40<S40,H40>T40),"Check","") ->  | J40: . | S40: 0 | T40: 20
C42: Roadside Data
C43: On-street parallel parking length on right side, mi | H43: 0 | I43: =IF(OR(H43<S43,H43>T43),"Check","") ->  | J43: =IF(H$43+H$44>2*H$28,"Right-side park length > segment length.",".") -> . | S43: 0 | T43: =H28 -> 0.4
C44: On-street angle parking length on right side, mi | H44: 0 | J44: =IF(H27="4O","Effect not known for 4O segments.",IF(H$43+H$44>2*H$28,"Right-side park length > segment length.",".")) -> . | S44: 0 | T44: =H28 -> 0.4
C45: On-street parallel parking length on left side, mi | H45: 0 | I45: =IF(OR(H45<S45,H45>T45),"Check","") ->  | J45: =IF(H$45+H$46>2*H$28,"Left-side park length > segment length.",".") -> . | S45: 0 | T45: =H28 -> 0.4
C46: On-street angle parking length on left side, mi | H46: 0 | I46: =IF(OR(H46<S46,H46>T46),"Check","") ->  | J46: =IF(H29="4O","Effect not known for 4O segments.",IF(H$45+H$46>2*H$28,"Left-side park length > segment length.",".")) -> . | S46: 0 | T46: =H28 -> 0.4
C47: Roadside fixed object count | H47: 18 | J47: =IF(H47>0,ROUND(H47/H28,0)&" objects per mile.",".") -> 45 objects per mile. | S47: 0 | T47: =300*H28 -> 120
C48: Average roadside fixed object offset, ft | H48: 7 | J48: . | S48: 0 | T48: =IF($H$27="4O",25,30) -> 30
C50: Calibration Factors | H50: Value | K50: Default Values
C52: Local calibration factor (C) | H52: =K52 -> 1 | K52: 1 | S52: Segment type | T52: fped, ≤ 30 mph | U52: fped, ≥ 35 mph | V52: fbike, ≤ 30 mph | W52: fbike, ≥ 35 mph
C53: Adjustment factor for pedestrians (fped) | H53: =K53 -> 0.024 | K53: =VLOOKUP($H$27,$S$53:$W$55,IF($H$31<=30,2,3),FALSE) -> 0.024 | S53: 2O | T53: 0.017 | U53: 0.018 | V53: 0.011 | W53: 0.016
C54: Adjustment factor for bicyclists (fbike) | H54: =K54 -> 0.011 | K54: =VLOOKUP($H$27,$S$53:$W$55,IF($H$31<=30,4,5),FALSE) -> 0.011 | S54: 3O | T54: 0.024 | U54: 0.017 | V54: 0.011 | W54: 0.012
C55: Severity distribution calibration factor (Csdf,ows) | H55: =K55 -> 1 | K55: 1 | S55: 4O | T55: 0.021 | U55: 0.03 | V55: 0.021 | W55: 0.007
C56: Probability of fatality given K+A severity (PK|K+A) | H56: =K56 -> 0.099 | K56: 0.099
C58: Crash Modification Factors | H58: F+I | K58: PDO | V58: F+I coefficients | Y58: PDO coefficients
H59: Multiple | I59: Single | K59: Multiple | L59: Single | S59: Value | T59: Base | V59: Multiple | W59: Single | Y59: Multiple | Z59: Single | AB59: Parallel parking CMF coefficients
C60: Right shoulder width | H60: =EXP(V60*($S60-$T60)) -> 1.051533947 | I60: =EXP(W60*($S60-$T60)) -> 1.051533947 | K60: =EXP(Y60*($S60-$T60)) -> 1.051533947 | L60: =EXP(Z60*($S60-$T60)) -> 1.051533947 | S60: =H40 -> 1.5 | T60: 4 | V60: -0.0201 | W60: =V60 -> -0.0201 | Y60: -0.0201 | Z60: =Y60 -> -0.0201 | AB60: Segment type | AC60: F+I coefficients | AD60: PDO coefficients
C61: On-street parallel parking | H61: =1+$S61*(V61-1) -> 1 | I61: =1+$S61*(W61-1) -> 1 | K61: =1+$S61*(Y61-1) -> 1 | L61: =1+$S61*(Z61-1) -> 1 | S61: =(H43+H45)/2/H28 -> 0 | V61: =VLOOKUP($H$27,$AB$60:$AD$63,MATCH(V$58,$AB$60:$AD$60,0),FALSE) -> 1.359 | W61: =VLOOKUP($H$27,$AB$60:$AD$63,MATCH(V$58,$AB$60:$AD$60,0),FALSE) -> 1.359 | Y61: =VLOOKUP($H$27,$AB$60:$AD$63,MATCH(Y$58,$AB$60:$AD$60,0),FALSE) -> 1.359 | Z61: =VLOOKUP($H$27,$AB$60:$AD$63,MATCH(Y$58,$AB$60:$AD$60,0),FALSE) -> 1.359 | AB61: 2O | AC61: 1.112 | AD61: 1.112
C62: On-street angle parking | H62: =IF($H$27="4O",1,1+$S62*(V62-1)) -> 1 | I62: =IF($H$27="4O",1,1+$S62*(W62-1)) -> 1 | K62: =IF($H$27="4O",1,1+$S62*(Y62-1)) -> 1 | L62: =IF($H$27="4O",1,1+$S62*(Z62-1)) -> 1 | S62: =(H44+H46)/2/H28 -> 0 | V62: 4.364 | W62: 4.364 | Y62: 4.364 | Z62: 4.364 | AB62: 3O | AC62: 1.359 | AD62: 1.359
C63: Major commercial driveways | H63: =EXP(V63*($S63-$T63)) -> 1.258725876 | K63: =EXP(Y63*($S63-$T63)) -> 1.258725876 | S63: =H35/H28 -> 15 | T63: 2 | V63: 0.0177 | Y63: 0.0177 | AB63: 4O | AC63: 1.359 | AD63: 1.359
C64: Minor driveways | H64: =EXP(V64*($S64-$T64)) -> 1.035102028 | K64: =EXP(Y64*($S64-$T64)) -> 1.035102028 | S64: =H36/H28 -> 17.5 | T64: 10 | V64: 0.0046 | Y64: 0.0046
C65: Automated speed enforcement | H65: =IF($S65=0,1,V65) -> 1 | I65: =IF($S65=0,1,W65) -> 1 | K65: =IF($S65=0,1,Y65) -> 1 | L65: =IF($S65=0,1,Z65) -> 1 | S65: =IF(H32="Yes",1,0) -> 0 | T65: 0 | V65: 0.83 | W65: 0.83 | Y65: 1 | Z65: 1
C66: Roadside fixed objects | I66: =1+0.01*$H47/$H28/EXP(W66*$S66) -> 1.233375229 | L66: =1+0.01*$H47/$H28/EXP(Z66*$S66) -> 1.233375229 | S66: =H48 -> 7 | W66: 0.0938 | Z66: 0.0938

Sheet Intersections
C3: Safety Prediction Worksheet for Urban and Suburban Arterial Intersections
C5: General Information | I5: Site Information | S5: =Y23&","&T$7 -> 2x2,F+I | T5: =Y23&","&U$7 -> 2x2,PDO
C7: Analyst | D7: JRF | I7: Major street name | K7: Main Street | S7: =H27&IF(H28="Signalized","SG","ST") -> 4SG | T7: F+I | U7: PDO | X7: 3SG | Y7: 4SG | AB7: Coefficients by intersection type | AJ7: K+A | AK7: Two-way Signalized | AL7: One-way Signalized | AM7: Two-way stop | AO7: B | AP7: Two-way Signalized | AQ7: One-way Signalized | AR7: Two-way stop | AT7: Max AADTs | AU7: Major | AV7: Minor
C8: Agency | D8: Kittelson | I8: Minor street name | K8: Doe Street | S8: Intercept | T8: =VLOOKUP($S$7,$AB$8:$AF$12,MATCH($S$5,$AB$8:$AF$8,0),FALSE) -> -4.63 | U8: =VLOOKUP($S$7,$AB$8:$AH$12,MATCH($T$5,$AB$8:$AH$8,0),FALSE) -> -3.77 | W8: Intercept | X8: -6.6 | Y8: -9.53 | Z8: =VLOOKUP(W8,$W$7:$Y$12,MATCH($S$7,$W$7:$Y$7,0),FALSE) -> -9.53 | AB8: Intercept | AC8: 2x2,F+I | AD8: 1x2,F+I | AE8: 1x1,F+I | AF8: 2x2,PDO | AG8: 1x2,PDO | AH8: 1x1,PDO | AJ8: Constant | AK8: -1.767 | AL8: -2.042 | AM8: -1.106 | AO8: Constant | AP8: -0.725 | AQ8: -0.741 | AR8: -0.361 | AT8: 2x2,3ST | AU8: 66800 | AV8: 8600
C9: Date | D9: =TODAY() -> 2020-08-21 | I9: Intersection number | K9: 2 | S9: Major AADT | T9: =VLOOKUP($S$7,$AB$13:$AF$17,MATCH($S$5,$AB$13:$AF$13,0),FALSE) -> 0.36 | U9: =VLOOKUP($S$7,$AB$13:$AH$17,MATCH($T$5,$AB$13:$AH$13,0),FALSE) -> 0.27 | W9: Total AADT | X9: 0.05 | Y9: 0.4 | Z9: =VLOOKUP(W9,$W$7:$Y$12,MATCH($S$7,$W$7:$Y$7,0),FALSE) -> 0.4 | AB9: 3ST | AC9: -15.03 | AD9: -9.12 | AE9: -9.22 | AF9: -14.97 | AG9: -17.6 | AH9: -17.99 | AJ9: Area type | AK9: -0.116 | AL9: -0.407 | AM9: -0.382 | AO9: Area type | AP9: -0.116 | AQ9: -0.099 | AR9: -0.278 | AT9: 2x2,4ST | AU9: 54600 | AV9: 4600
C10: Location | D10: Anywhere, FL | I10: Analysis year | K10: 2020 | S10: Minor AADT | T10: =VLOOKUP($S$7,$AB$18:$AF$22,MATCH($S$5,$AB$18:$AF$18,0),FALSE) -> 0.27 | U10: =VLOOKUP($S$7,$AB$18:$AH$22,MATCH($T$5,$AB$18:$AH$18,0),FALSE) -> 0.27 | W10: AADT ratio | X10: 0.24 | Y10: 0.26 | Z10: =VLOOKUP(W10,$W$7:$Y$12,MATCH($S$7,$W$7:$Y$7,0),FALSE) -> 0.26 | AB10: 3SG | AC10: -7.11 | AD10: -11.21 | AE10: -11.31 | AF10: -5.07 | AG10: -7.07 | AH10: -7.46 | AJ10: RTOR | AK10: -1.166 | AO10: RTOR | AP10: -1.074 | AT10: 2x2,3SG | AU10: 94000 | AV10: 31000
S11: SPF | T11: =$H50*EXP(T8+T9*LN($H40)+T10*LN($I40)) -> 6.068442645 | U11: =$H50*EXP(U8+U9*LN($H40)+U10*LN($I40)) -> 5.584600564 | W11: PedVol | X11: 0.41 | Y11: 0.45 | Z11: =VLOOKUP(W11,$W$7:$Y$12,MATCH($S$7,$W$7:$Y$7,0),FALSE) -> 0.45 | AB11: 4ST | AC11: -10.08 | AD11: -10.83 | AE11: -10.93 | AF11: -12.01 | AG11: -12.06 | AH11: -12.46 | AJ11: U-turn | AK11: -0.142 | AO11: U-turn | AP11: -0.069 | AT11: 2x2,4SG | AU11: 137600 | AV11: 68400
S12: =IF(H28="Two-way stop",H28,H39&" "&H28) -> Two-way Signalized | T12: K+A | U12: B | W12: Lanes | X12: 0.09 | Y12: 0.04 | Z12: =VLOOKUP(W12,$W$7:$Y$12,MATCH($S$7,$W$7:$Y$7,0),FALSE) -> 0.04 | AB12: 4SG | AC12: -4.63 | AD12: -5.47 | AE12: -5.57 | AF12: -3.77 | AG12: -5.92 | AH12: -6.31 | AJ12: Major LT | AK12: -0.178 | AL12: -0.296 | AO12: Major LT | AP12: -0.108 | AQ12: -0.255 | AT12: 1x2,3ST | AU12: 42700 | AV12: 13400
S13: Constant | T13: =VLOOKUP($S13,$AJ$7:$AM$16,MATCH($S$12,$AJ$7:$AM$7,0),FALSE) -> -1.767 | U13: =VLOOKUP($S13,$AO$7:$AR$16,MATCH($S$12,$AO$7:$AR$7,0),FALSE) -> -0.725 | W13: Npedbase | AB13: Major AADT | AC13: 2x2,F+I | AD13: 1x2,F+I | AE13: 1x1,F+I | AF13: 2x2,PDO | AG13: 1x2,PDO | AH13: 1x1,PDO | AJ13: Lighting | AK13: -0.331 | AM13: -0.918 | AO13: Lighting | AR13: -0.397 | AT13: 1x2,4ST | AU13: 23400 | AV13: 19200
C14: Output Summary | F14: Predicted crash frequency, crashes / year | L14: Combined CMF | S14: Area type | T14: -0.116 | U14: -0.116 | AB14: 3ST | AC14: 1.09 | AD14: 0.65 | AE14: 0.65 | AF14: 1.35 | AG14: 1.53 | AH14: 1.53 | AJ14: Minor LT | AO14: Minor LT | AR14: -0.434 | AT14: 1x2,3SG | AU14: 43800 | AV14: 58800
F15: F+I | G15: PDO | H15: Total | L15: F+I | M15: PDO | S15: RTOR | T15: -1.166 | U15: -1.074 | AB15: 3SG | AC15: 0.65 | AD15: 0.59 | AE15: 0.59 | AF15: 0.47 | AG15: 0.49 | AH15: 0.49 | AJ15: Minor RT channel | AL15: -0.306 | AO15: Minor RT channel | AQ15: -0.504 | AT15: 1x2,4SG | AU15: 77000 | AV15: 98900
E16: Total crashes | F16: =SUM(F17:F19) -> 4.689273312 | G16: =G17 -> 4.130370577 | H16: =F16+G16 -> 8.819643889 | K16: Total-vehicle crashes | L16: =PRODUCT(H69:H75) -> 0.7396 | M16: =PRODUCT(K69:K75) -> 0.7396 | S16: U-turn | T16: -0.142 | U16: -0.069 | AB16: 4ST | AC16: 0.58 | AD16: 0.67 | AE16: 0.67 | AF16: 0.67 | AG16: 0.86 | AH16: 0.86 | AJ16: Major RT channel | AO16: Major RT channel | AQ16: 0.557 | AT16: 1x1,3ST | AU16: 16900 | AV16: 11100
E17: Total-vehicle crashes | F17: =T11*L16 -> 4.48822018 | G17: =U11*M16 -> 4.130370577 | K17: Vehicle-pedestrian crashes | L17: =PRODUCT(H78:H80) -> 1 | S17: Major LT | T17: -0.178 | U17: -0.108 | AB17: 4SG | AC17: 0.36 | AD17: 0.18 | AE17: 0.18 | AF17: 0.27 | AG17: 0.38 | AH17: 0.38 | AT17: 1x1,4ST | AU17: 11000 | AV17: 6800
E18: Vehicle-pedestrian crashes | F18: =IF(H28="Signalized",EXP(Z8+Z9*LN(H40+I40)+Z10*LN(MIN(H40:I40)/MAX(H40:I40))+Z11*LN(H31)+Z12*H32)*L17,(F17+G17)*H51) -> 0.03729990744 | S18: Lighting | T18: -0.331 | U18: 0 | AB18: Minor AADT | AC18: 2x2,F+I | AD18: 1x2,F+I | AE18: 1x1,F+I | AF18: 2x2,PDO | AG18: 1x2,PDO | AH18: 1x1,PDO | AT18: 1x1,3SG | AU18: 20100 | AV18: 7500
E19: Vehicle-bicycle crashes | F19: =(F17+G17)*H52 -> 0.1637532244 | J19: Severity distribution for F+I crashes | S19: Minor LT | T19: 0 | U19: 0 | AB19: 3ST | AC19: 0.53 | AD19: 0.11 | AE19: 0.11 | AF19: 0.15 | AG19: 0.31 | AH19: 0.31 | AT19: 1x1,4SG | AU19: 24300 | AV19: 16900
J20: K | K20: A | L20: B | M20: C | S20: Minor RT channel | T20: 0 | U20: 0 | AB20: 3SG | AC20: 0.16 | AD20: 0.56 | AE20: 0.56 | AF20: 0.14 | AG20: 0.35 | AH20: 0.35
J21: =F16*T23*H55 -> 0.03230466213 | K21: =F16*T23*(1-H55) -> 0.3113619563 | L21: =F16*U23 -> 1.120658855 | M21: =F16*(1-SUM(T23:U23)) -> 3.224947838 | S21: Major RT channel | T21: 0 | U21: 0 | AB21: 4ST | AC21: 0.6 | AD21: 0.41 | AE21: 0.41 | AF21: 0.75 | AG21: 0.51 | AH21: 0.51
S22: V | T22: =T13+IF($H26="Urban",1,0)*T14+IF(SUM($H44:$I44)=H27,1,0)*T15+H45*T16+$H42*T17+IF($H29="Yes",1,0)*T18+$I42*T19+IF($I46>0,1,0)*T20+$H46*T21 -> -2.239 | U22: =U13+IF($H26="Urban",1,0)*U14+IF(SUM($H44:$I44)=H27,1,0)*U15+H45*U16+$H42*U17+IF($H29="Yes",1,0)*U18+$I42*U19+IF($I46>0,1,0)*U20+$H46*U21 -> -1.057 | W22: Major config | X22: Minor config | Y22: Config | Z22: Check | AB22: 4SG | AC22: 0.27 | AD22: 0.37 | AE22: 0.37 | AF22: 0.27 | AG22: 0.36 | AH22: 0.36
C23: Input Data | H23: Value | J23: Advisory Messages | S23: P | T23: =EXP(T22)/(1/$H53+EXP($T22)+EXP($U22)) -> 0.07328782 | U23: =EXP(U22)/(1/$H53+EXP($T22)+EXP($U22)) -> 0.2389834801 | W23: =IF(H39="Two-way",2,1) -> 2 | X23: =IF(I39="Two-way",2,1) -> 2 | Y23: =W23&"x"&X23 -> 2x2 | Z23: =VLOOKUP(I41,S27:AA35,MATCH(H41,S27:AA27,0),FALSE) -> 1
C25: Intersection Data
C26: Area type | H26: Urban | J26: . | S26: Check values | T26: Major | AC26: 2x2 | AD26: Major | AM26: 1x2 | AN26: Major | AW26: 1x1 | AX26: Major
C27: Number of legs | H27: 4 | J27: =S7& " intersection type" -> 4SG intersection type | S27: Minor | T27: 1 | U27: 2 | V27: 3 | W27: 4 | X27: 5 | Y27: 6 | Z27: 7 | AA27: 8 | AC27: Minor | AD27: 1 | AE27: 2 | AF27: 3 | AG27: 4 | AH27: 5 | AI27: 6 | AJ27: 7 | AK27: 8 | AM27: Minor | AN27: 1 | AO27: 2 | AP27: 3 | AQ27: 4 | AR27: 5 | AS27: 6 | AT27: 7 | AU27: 8 | AW27: Minor | AX27: 1 | AY27: 2 | AZ27: 3 | BA27: 4 | BB27: 5 | BC27: 6 | BD27: 7 | BE27: 8
C28: Traffic control type | H28: Signalized | J28: . | S28: 1 | T28: =IF($Y$23="2x2",AD28,IF($Y$23="1x2",AN28,AX28)) -> 0 | U28: 0 | V28: 0 | W28: 0 | X28: 0 | Y28: 0 | Z28: 0 | AA28: 0 | AC28: 1 | AD28: 0 | AE28: 0 | AF28: 0 | AG28: 0 | AH28: 0 | AI28: 0 | AJ28: 0 | AK28: 0 | AM28: 1 | AN28: 0 | AO28: 0 | AP28: 0 | AQ28: 0 | AR28: 0 | AS28: 0 | AT28: 0 | AU28: 0 | AW28: 1 | AX28: 0 | AY28: 0 | AZ28: 0 | BA28: 0 | BB28: 0 | BC28: 0 | BD28: 0 | BE28: 0
C29: Lighting present? | H29: No | J29: . | S29: 2 | T29: 0 | U29: 0 | V29: 0 | W29: 0 | X29: 0 | Y29: 1 | Z29: 0 | AA29: 1 | AC29: 2 | AD29: 0 | AE29: 0 | AF29: 0 | AG29: 0 | AH29: 0 | AI29: 1 | AJ29: 0 | AK29: 1 | AM29: 2 | AN29: 0 | AO29: 1 | AP29: 1 | AQ29: 1 | AR29: 0 | AS29: 0 | AT29: 0 | AU29: 0 | AW29: 2 | AX29: 0 | AY29: 1 | AZ29: 1 | BA29: 1 | BB29: 0 | BC29: 0 | BD29: 0 | BE29: 0
C30: Red-light cameras present? | H30: No | J30: . | S30: 3 | T30: 0 | U30: 0 | V30: 0 | W30: 0 | X30: 0 | Y30: 0 | Z30: 0 | AA30: 0 | AC30: 3 | AD30: 0 | AE30: 0 | AF30: 0 | AG30: 0 | AH30: 0 | AI30: 0 | AJ30: 0 | AK30: 0 | AM30: 3 | AN30: 0 | AO30: 0 | AP30: 0 | AQ30: 0 | AR30: 0 | AS30: 0 | AT30: 0 | AU30: 0 | AW30: 3 | AX30: 0 | AY30: 1 | AZ30: 1 | BA30: 1 | BB30: 0 | BC30: 0 | BD30: 0 | BE30: 0
C31: Daily pedestrian volume crossing all legs (peds/day) | H31: 50 | J31: . | S31: 4 | T31: 0 | U31: 0 | V31: 0 | W31: 0 | X31: 0 | Y31: 1 | Z31: 0 | AA31: 1 | AC31: 4 | AD31: 0 | AE31: 0 | AF31: 0 | AG31: 0 | AH31: 0 | AI31: 1 | AJ31: 0 | AK31: 1 | AM31: 4 | AN31: 0 | AO31: 1 | AP31: 1 | AQ31: 1 | AR31: 0 | AS31: 0 | AT31: 0 | AU31: 0 | AW31: 4 | AX31: 0 | AY31: 1 | AZ31: 1 | BA31: 1 | BB31: 0 | BC31: 0 | BD31: 0 | BE31: 0
C32: Maximum number of lanes crossed by a pedestrian | H32: 7 | J32: . | S32: 5 | T32: 0 | U32: 0 | V32: 0 | W32: 0 | X32: 0 | Y32: 0 | Z32: 0 | AA32: 0 | AC32: 5 | AD32: 0 | AE32: 0 | AF32: 0 | AG32: 0 | AH32: 0 | AI32: 0 | AJ32: 0 | AK32: 0 | AM32: 5 | AN32: 0 | AO32: 0 | AP32: 0 | AQ32: 0 | AR32: 0 | AS32: 0 | AT32: 0 | AU32: 0 | AW32: 5 | AX32: 0 | AY32: 0 | AZ32: 0 | BA32: 0 | BB32: 0 | BC32: 0 | BD32: 0 | BE32: 0
C33: Number of bus stops within 1,000 ft of intersection | H33: 0 | J33: . | S33: 6 | T33: 0 | U33: 0 | V33: 0 | W33: 1 | X33: 0 | Y33: 1 | Z33: 0 | AA33: 1 | AC33: 6 | AD33: 0 | AE33: 0 | AF33: 0 | AG33: 1 | AH33: 0 | AI33: 1 | AJ33: 0 | AK33: 1 | AM33: 6 | AN33: 0 | AO33: 1 | AP33: 1 | AQ33: 1 | AR33: 0 | AS33: 0 | AT33: 0 | AU33: 0 | AW33: 6 | AX33: 0 | AY33: 0 | AZ33: 0 | BA33: 0 | BB33: 0 | BC33: 0 | BD33: 0 | BE33: 0
C34: School(s) present within 1,000 ft of intersection? | H34: No | J34: . | S34: 7 | T34: 0 | U34: 0 | V34: 0 | W34: 0 | X34: 0 | Y34: 0 | Z34: 0 | AA34: 0 | AC34: 7 | AD34: 0 | AE34: 0 | AF34: 0 | AG34: 0 | AH34: 0 | AI34: 0 | AJ34: 0 | AK34: 0 | AM34: 7 | AN34: 0 | AO34: 0 | AP34: 0 | AQ34: 0 | AR34: 0 | AS34: 0 | AT34: 0 | AU34: 0 | AW34: 7 | AX34: 0 | AY34: 0 | AZ34: 0 | BA34: 0 | BB34: 0 | BC34: 0 | BD34: 0 | BE34: 0
C35: Alcohol sales establishments within 1,000 ft | H35: 0 | J35: . | S35: 8 | T35: 0 | U35: 1 | V35: 0 | W35: 1 | X35: 0 | Y35: 1 | Z35: 0 | AA35: 1 | AC35: 8 | AD35: 0 | AE35: 1 | AF35: 0 | AG35: 1 | AH35: 0 | AI35: 1 | AJ35: 0 | AK35: 1 | AM35: 8 | AN35: 0 | AO35: 1 | AP35: 1 | AQ35: 1 | AR35: 0 | AS35: 0 | AT35: 0 | AU35: 0 | AW35: 8 | AX35: 0 | AY35: 0 | AZ35: 0 | BA35: 0 | BB35: 0 | BC35: 0 | BD35: 0 | BE35: 0
C37: Street Data | H37: Major | I37: Minor | J37: =IF(AND(OR(H31>V45,MAX(H40:I40)>MAX(T45:U45),MIN(H40:I40)>MIN(T45:U45)),H28="Signalized"),"Beyond range of veh-ped crash model", ".") -> . | S37: Major | V37: Minor
C39: Street configuration | H39: Two-way | I39: Two-way | J39: =IF(AND(H39="Two-way",I39="One-way"), "Major street must be one-way.",Y23&" intersection configuration") -> 2x2 intersection configuration | S39: Minimum | T39: Maximum | U39: Check | V39: Minimum | W39: Maximum | X39: Check
C40: Annual average daily traffic (AADT), veh/day | H40: 35552.57016 | I40: 19046.01973 | J40: =IF(AND(OR(Y23="1x1",Y23="2x2"),H40<I40),"Major AADT must exceed minor AADT.",IF(U40=0,"Check major" & IF(X40=0," & minor volume.", " volume."),IF(X40=0,"Check minor volume.","."))) -> . | S40: 0 | T40: =VLOOKUP(Y23&","&S7,AT8:AV19,2,FALSE) -> 137600 | U40: =IF(AND(H40>S40,H40<T40),1,0) -> 1 | V40: 0 | W40: =VLOOKUP(Y23&","&S7,AT8:AV19,3,FALSE) -> 68400 | X40: =IF(AND(I40>V40,I40<W40),1,0) -> 1
C41: Number of through lanes | H41: 6 | I41: 2 | J41: =IF(Z23=0,"Invalid lane count combination.",".") -> .
C42: Number of approaches with left-turn lanes | H42: 2 | I42: 2 | J42: =IF(OR(AND(W23=1,H42=2),AND(X23=1,I42=2)),"Can only have one left-turn lane.",".") -> . | S42: Ped max values | T42: Major | U42: Minor | V42: PedVol
C43: Number of left-turn movements with protected phasing | H43: 2 | I43: 0 | J43: =IF(AND(Y23="1x1",H43>0,I43>0),"Can only have one left-turn movement.",".") -> . | S43: 3SG | T43: 74300 | U43: 51500 | V43: 34200
C44: Number of right-turn movements prohibited on red | H44: 0 | I44: 0 | J44: =IF(AND(Y23="1x1",H44>0,I44>0),"Can only have one right-turn movement.",".") -> . | S44: 4SG | T44: 80200 | U44: 49100 | V44: 12600
C45: Number of U-turn movements prohibited | H45: 0 | I45: 0 | J45: . | S45: Value | T45: =VLOOKUP($S7,$S43:$V44,2,FALSE) -> 80200 | U45: =VLOOKUP($S7,$S43:$V44,3,FALSE) -> 49100 | V45: =VLOOKUP($S7,$S43:$V44,4,FALSE) -> 12600
C46: Number of approaches with right-turn channelization | H46: 0 | I46: 0 | J46: =IF(AND(Y23="1x1",H46>0, I46>0),"Can only have one right-turn movement.",".") -> .
C48: Calibration Factors | H48: Value | K48: Default Values
C50: Local calibration factor (C) | H50: =K50 -> 1 | K50: 1 | S50: Configuration | T50: PK|K+A | V50: fped for ST | W50: 3 | X50: 4 | Z50: fbike | AA50: Two-way | AB50: One-way
C51: Adjustment factor for pedestrians for stop control (fped) | H51: 0.049 | K51: =VLOOKUP(H39,V50:X52,MATCH(H27,V50:X50,0),FALSE) -> 0.049 | S51: Two-way Signalized | T51: 0.094 | V51: Two-way | W51: 0.051 | X51: 0.049 | Z51: 3ST | AA51: 0.048 | AB51: 0.018
C52: Adjustment factor for bicyclists (fbike) | H52: 0.019 | K52: =VLOOKUP(S7,Z50:AB54,MATCH(H39,Z50:AB50,0),FALSE) -> 0.019 | S52: One-way Signalized | T52: 0.046 | V52: One-way | W52: 0.015 | X52: 0.02 | Z52: 3SG | AA52: 0.029 | AB52: 0.016
C53: Severity distribution calibration factor, 2-way (Csdf,twi) | H53: 1 | K53: 1 | S53: Two-way stop | T53: 0.043 | Z53: 4ST | AA53: 0.039 | AB53: 0.022
C54: Severity distribution calibration factor, 1-way (Csdf,owi) | H54: 1 | K54: 1 | Z54: 4SG | AA54: 0.019 | AB54: 0.012
C55: Probability of fatality given K+A severity (PK|K+A) | H55: 0.094 | K55: =VLOOKUP(S12,S51:T53,2,FALSE) -> 0.094
F57: Manner of Collision Proportions
C58: 2x2 intersections | F58: 3ST, F+I | G58: 3ST, PDO | H58: 3SG, F+I | I58: 3SG, PDO | J58: 4ST, F+I | K58: 4ST, PDO | L58: 4SG, F+I | M58: 4SG, PDO
C59: Rear-end collision proportion | F59: 0.094 | G59: 0.154 | H59: 0.12 | I59: 0.189 | J59: 0.079 | K59: 0.098 | L59: 0.083 | M59: 0.148
C60: Angle colllision proportion | F60: 0.764 | G60: 0.629 | H60: 0.676 | I60: 0.554 | J60: 0.806 | K60: 0.707 | L60: 0.746 | M60: 0.552
C62: 1x2 or 1x1 intersections | F62: 3ST, F+I | G62: 3ST, PDO | H62: 3SG, F+I | I62: 3SG, PDO | J62: 4ST, F+I | K62: 4ST, PDO | L62: 4SG, F+I | M62: 4SG, PDO
C63: Rear-end collision proportion | F63: 0.1 | G63: 0.1 | H63: 0.111 | I63: 0.143 | J63: 0.047 | K63: 0.065 | L63: 0.03 | M63: 0.059
C64: Angle colllision proportion | F64: 0.3 | G64: 0.25 | H64: 0.889 | I64: 0.571 | J64: 0.822 | K64: 0.706 | L64: 0.837 | M64: 0.733
C66: Crash Modification Factors | H66: F+I | K66: PDO
C68: Total-vehicle crash CMFs | S68: Value | T68: F+I | U68: PDO | V68: Two-way,F+I | W68: One-way,F+I | X68: Two-way,PDO | Y68: One-way,PDO | AB68: Proportions | AC68: =VLOOKUP(S7,AB71:AC74,2,FALSE) -> 0.235 | AE68: Street | AF68: Base # | AG68: P | AI68: pra(mv+sv)(FI) | AJ68: =IF(Y23="2x2",HLOOKUP(S7&", F+I", F58:M60,3,FALSE), HLOOKUP(S7&", F+I", F62:M64,3,FALSE)) -> 0.746
C69: Lighting | H69: =1-$T69*$S69*$AC68 -> 1 | K69: =1-$U69*$S69*$AC68 -> 1 | S69: =IF(H29="Yes",1,0) -> 0 | T69: =IF(H$39="Two-way",V69,W69) -> 0.38 | U69: =IF(H$39="Two-way",X69,Y69) -> 0.38 | V69: 0.38 | W69: 0.38 | X69: 0.38 | Y69: 0.38 | AE69: Major | AF69: =IF(W23=2,6,2) -> 6 | AG69: =H40/(H40+I40) -> 0.6511627907 | AI69: pra(mv+sv)(PDO) | AJ69: =IF(Y23="2x2",HLOOKUP(S7&", PDO", F58:M60,3,FALSE), HLOOKUP(S7&", F+I", F62:M64,3,FALSE)) -> 0.552
C70: Red-light cameras | H70: =IF(H30="Yes",1-AJ72*(1-AJ74)-AJ73*(1-AJ75),1) -> 1 | K70: =IF(H30="Yes",1-AJ72*(1-AJ74)-AJ73*(1-AJ75),1) -> 1 | AB70: Configuration | AC70: Lighting | AE70: Minor | AF70: 2 | AG70: =I40/(H40+I40) -> 0.3488372093 | AI70: pre(mv+sv)(FI) | AJ70: =IF(Y23="2x2",HLOOKUP(S7&", F+I", F58:M60,2,FALSE), HLOOKUP(S7&", F+I", F62:M64,2,FALSE)) -> 0.083
C71: Left-turn signal phasing | H71: =IF($H$28="Signalized",$T71^$S71,1) -> 0.7396 | K71: =IF($H$28="Signalized",$U71^$S71,1) -> 0.7396 | S71: =SUM(H43:I43) -> 2 | T71: =IF(H$39="Two-way",V71,W71) -> 0.86 | U71: =IF(H$39="Two-way",X71,Y71) -> 0.86 | V71: 0.86 | W71: 1 | X71: 0.86 | Y71: 1 | AB71: 3ST | AC71: 0.238 | AI71: pre(mv+sv)(PDO) | AJ71: =IF(Y23="2x2",HLOOKUP(S7&", PDO", F58:M60,2,FALSE), HLOOKUP(S7&", F+I", F62:M64,2,FALSE)) -> 0.148
C72: Right-turn-on-red | H72: =IF($H$28="Signalized",$T72^$S72,1) -> 1 | K72: =IF($H$28="Signalized",$U72^$S72,1) -> 1 | S72: =SUM(H44:I44) -> 0 | T72: =IF(H$39="Two-way",V72,W72) -> 0.98 | U72: =IF(H$39="Two-way",X72,Y72) -> 0.98 | V72: 0.98 | W72: 0.98 | X72: 0.98 | Y72: 0.98 | AB72: 3SG | AC72: 0.235 | AI72: pra | AJ72: =(AJ68*T11+AJ69*U11)/(T11+U11) -> 0.6530275043
C73: U-turn prohibition | H73: =IF($H$28="Signalized",$T73^$S73,1) -> 1 | K73: =IF($H$28="Signalized",$U73^$S73,1) -> 1 | S73: =SUM(H45:I45) -> 0 | T73: =IF(H$39="Two-way",V73,W73) -> 0.96 | U73: =IF(H$39="Two-way",X73,Y73) -> 0.96 | V73: 0.96 | W73: 1 | X73: 0.96 | Y73: 1 | AB73: 4ST | AC73: 0.229 | AI73: pre | AJ73: =(AJ70*T11+AJ71*U11)/(T11+U11) -> 0.1141505785
C74: Right-turn channelization | H74: =IF($H$28="Signalized",EXP($T74*$S74),1) -> 1 | K74: =IF($H$28="Signalized",EXP($T74*$S74),1) -> 1 | S74: =H46 -> 0 | T74: =IF(H$39="Two-way",V74,W74) -> 0.2175 | U74: =IF(H$39="Two-way",X74,Y74) -> 0.2175 | V74: 0.2175 | W74: 0 | X74: 0.2175 | Y74: 0 | AB74: 4SG | AC74: 0.235 | AI74: cra | AJ74: 0.74
C75: Number of lanes | H75: =IF($H$28="Signalized",(EXP(T75*(H41-AF69))*AG69+1-AG69)*(EXP(T75*(I41-AF70))*AG70+1-AG70),1) -> 1 | K75: =IF($H$28="Signalized",(EXP(U75*(H41-AF69))*AG69+1-AG69)*(EXP(U75*(I41-AF70))*AG70+1-AG70),1) -> 1 | T75: =IF(H$39="Two-way",V75,W75) -> 0.194 | U75: =IF(H$39="Two-way",X75,Y75) -> 0.194 | V75: 0.194 | W75: 0.242 | X75: 0.194 | Y75: 0.242 | AI75: cre | AJ75: 1.18
C77: Vehicle-pedestrian crash CMFs | S77: Value | T77: 0 | U77: 1 | V77: 2 | W77: 3 | X77: 4 | Y77: 5 | Z77: 6 | AA77: 7 | AB77: 8 | AC77: Max
C78: Bus stops | H78: =HLOOKUP(S78,T$77:AC$80,2,FALSE) -> 1 | S78: =IF(H33<2,H33,"Max") -> 0 | T78: 1 | U78: 2.78 | AC78: 4.15
C79: Schools | H79: =HLOOKUP(S79,T$77:AC$80,3,FALSE) -> 1 | S79: =IF(H34="No",0,"Max") -> 0 | T79: 1 | AC79: 1.35
C80: Alcohol sales establishments | H80: =HLOOKUP(S80,T$77:AC$80,4,FALSE) -> 1 | S80: =IF(H35<9,H35,"Max") -> 0 | T80: 1 | U80: 1.12 | V80: 1.12 | W80: 1.12 | X80: 1.12 | Y80: 1.12 | Z80: 1.12 | AA80: 1.12 | AB80: 1.12 | AC80: 1.56

Sheet Totals
B1: =COLUMN() -> 2 | C1: =COLUMN() -> 3 | D1: =COLUMN() -> 4 | E1: =COLUMN() -> 5 | F1: =COLUMN() -> 6 | G1: =COLUMN() -> 7 | H1: =COLUMN() -> 8 | I1: =COLUMN() -> 9 | J1: =COLUMN() -> 10 | K1: =COLUMN() -> 11 | L1: =COLUMN() -> 12 | M1: =COLUMN() -> 13 | N1: =COLUMN() -> 14 | O1: =COLUMN() -> 15 | P1: =COLUMN() -> 16 | Q1: =COLUMN() -> 17 | R1: =COLUMN() -> 18 | S1: =COLUMN() -> 19 | T1: =COLUMN() -> 20 | U1: =COLUMN() -> 21 | V1: =COLUMN() -> 22 | W1: =COLUMN() -> 23 | X1: =COLUMN() -> 24 | Y1: =COLUMN() -> 25 | Z1: =COLUMN() -> 26 | AA1: =COLUMN() -> 27 | AB1: =COLUMN() -> 28 | AC1: =COLUMN() -> 29 | AD1: =COLUMN() -> 30 | AE1: =COLUMN() -> 31 | AF1: =COLUMN() -> 32 | AG1: =COLUMN() -> 33 | AH1: =COLUMN() -> 34 | AI1: =COLUMN() -> 35 | AJ1: =COLUMN() -> 36 | AK1: =COLUMN() -> 37 | AL1: =COLUMN() -> 38 | AM1: =COLUMN() -> 39 | AN1: =COLUMN() -> 40 | AO1: =COLUMN() -> 41 | AP1: =COLUMN() -> 42 | AQ1: =COLUMN() -> 43 | AR1: =COLUMN() -> 44 | AS1: =COLUMN() -> 45 | AT1: =COLUMN() -> 46 | AU1: =COLUMN() -> 47 | AV1: =COLUMN() -> 48 | AW1: =COLUMN() -> 49 | AX1: =COLUMN() -> 50 | AY1: =COLUMN() -> 51 | AZ1: =COLUMN() -> 52 | BA1: =COLUMN() -> 53 | BB1: =COLUMN() -> 54 | BC1: =COLUMN() -> 55 | BD1: =COLUMN() -> 56 | BE1: =COLUMN() -> 57 | BF1: =COLUMN() -> 58 | BG1: =COLUMN() -> 59 | BH1: =COLUMN() -> 60 | BI1: =COLUMN() -> 61 | BJ1: =COLUMN() -> 62 | BK1: =COLUMN() -> 63 | BL1: =COLUMN() -> 64 | BM1: =COLUMN() -> 65 | BN1: =COLUMN() -> 66 | BO1: =COLUMN() -> 67 | BP1: =COLUMN() -> 68 | BQ1: =COLUMN() -> 69 | BR1: =COLUMN() -> 70 | BS1: =COLUMN() -> 71 | BT1: =COLUMN() -> 72 | BU1: =COLUMN() -> 73 | BV1: =COLUMN() -> 74 | BW1: =COLUMN() -> 75 | BX1: =COLUMN() -> 76 | BY1: =COLUMN() -> 77 | BZ1: =COLUMN() -> 78 | CA1: =COLUMN() -> 79 | CB1: =COLUMN() -> 80 | CC1: =COLUMN() -> 81 | CD1: =COLUMN() -> 82 | CE1: =COLUMN() -> 83 | CF1: =COLUMN() -> 84 | CG1: =COLUMN() -> 85 | CH1: =COLUMN() -> 86 | CI1: =COLUMN() -> 87 | CJ1: =COLUMN() -> 88 | CK1: =COLUMN() -> 89 | CL1: =COLUMN() -> 90 | CM1: =COLUMN() -> 91 | CN1: =COLUMN() -> 92 | CO1: =COLUMN() -> 93 | CP1: =COLUMN() -> 94 | CQ1: =COLUMN() -> 95 | CR1: =COLUMN() -> 96 | CS1: =COLUMN() -> 97 | CT1: =COLUMN() -> 98 | CU1: =COLUMN() -> 99 | CV1: =COLUMN() -> 100
B2: Crash Totals Tabulation
B4: Empirical Bayes | F4: Facility Totals | I4: Project-Level Observed Crash Totals | R4: Total Expected Crash Frequency, crashes / year | BA4: Npredicted: | BC4: w0:
B5: adjustment type: | F5: MV+SV: | I5: Crash type | O5: F+I | P5: PDO | R5: Site type | T5: Multiple-vehicle | V5: Single-vehicle | X5: Total-vehicle | Z5: Veh-ped | AA5: Veh-bike | BA5: Nobserved: | BC5: N0:
B6: Site-specific | F6: VP+VB: | I6: Multiple-vehicle crashes on segments: | T6: F+I | U6: PDO | V6: F+I | W6: PDO | X6: F+I | Y6: PDO | Z6: F+I | AA6: F+I | BA6: Npredictedw0: | BC6: w1:
F7: F+I: | I7: Single-vehicle crashes on segments: | R7: Segments: | BA7: Npredictedw1: | BC7: N1: | BE7: Nexpected:
F8: PDO: | I8: Total-vehicle crashes at all intersections: | R8: Intersections:
F9: Total: | I9: Vehicle-pedestrian crashes at signalized intersections: | R9: Total: | BM9: Archived data
BM10: Origin sheet | BO10: Values
B11: Segment Site Information | F11: Predicted crash frequency, crashes / year | N11: Site-specific observed crash totals | R11: Expected crash frequency, crashes / year | Z11: Combined CMF | AD11: Location information | AI11: Length | AJ11: Sum lookup | AK11: Inverse dispersion parameter | AO11: Predicted crash total | AS11: Observed crash total | AW11: Weight | BG11: Inverse dispersion parameter coefficients
F12: Multiple-vehicle | H12: Single-vehicle | J12: Vehicle-pedestrian | L12: Vehicle-bicycle | N12: Multiple-vehicle | P12: Single-vehicle | R12: Multiple-vehicle | T12: Single-vehicle | V12: Vehicle-pedestrian | X12: Vehicle-bicycle | Z12: Multiple-vehicle | AB12: Single-vehicle | AK12: Multiple-vehicle | AM12: Single-vehicle | AO12: Multiple-vehicle | AQ12: Single-vehicle | AS12: Multiple-vehicle | AU12: Single-vehicle | AW12: Multiple-vehicle | AY12: Single-vehicle | BA12: Type | BB12: Multiple-vehicle | BD12: Single-vehicle | BH12: Multiple-vehicle | BJ12: Single-vehicle
B13: Number | C13: Year | D13: Type | E13: Street number | F13: F+I | G13: PDO | H13: F+I | I13: PDO | J13: F+I | L13: F+I | N13: F+I | O13: PDO | P13: F+I | Q13: PDO | R13: F+I | S13: PDO | T13: F+I | U13: PDO | V13: F+I | X13: F+I | Z13: F+I | AA13: PDO | AB13: F+I | AC13: PDO | AD13: Location | AE13: Street name | AK13: MV F+I | AL13: MV PDO | AM13: SV F+I | AN13: SV PDO | AO13: MV F+I | AP13: MV PDO | AQ13: SV F+I | AR13: SV PDO | AS13: MV F+I | AT13: MV PDO | AU13: SV F+I | AV13: SV PDO | AW13: MV F+I | AX13: MV PDO | AY13: SV F+I | AZ13: SV PDO | BB13: MV F+I | BC13: MV PDO | BD13: SV F+I | BE13: SV PDO | BG13: Type | BH13: MV F+I | BI13: MV PDO | BJ13: SV F+I | BK13: SV PDO
BA14: Npredicted | BG14: 6U | BH14: 2.87 | BI14: 3 | BJ14: 3.08 | BK14: 1.97
BA15: Nobserved | BG15: 6D | BH15: 2.05 | BI15: 1.91 | BJ15: 1.5 | BK15: 2
BA16: Npredictedw0 | BG16: 7T | BH16: 1.3 | BI16: 1.08 | BJ16: 3.08 | BK16: 1.97
BA17: Npredictedw1 | BG17: 8D | BH17: 2.49 | BI17: 1.67 | BJ17: 2.01 | BK17: 1.84
BG18: 2O | BH18: 2.12 | BI18: 2.46 | BJ18: 1.19 | BK18: 2.12
BG19: 3O | BH19: 2.57 | BI19: 2.45 | BJ19: 1.94 | BK19: 1.98
BG20: 4O | BH20: 2.46 | BI20: 2.52 | BJ20: 1.94 | BK20: 1.98
B30: Intersection Site Information | F30: Predicted crash frequency, crashes / year | N30: Site-specific observed crash totals | R30: Expected crash frequency, crashes / year | Z30: Combined CMF | AD30: Location information | AI30: Type | AJ30: Sum lookup | AK30: Inverse dispersion parameter | AO30: Predicted crash total | AS30: Observed crash total | AW30: Weight | BG30: Inverse dispersion parameter coefficients
F31: Total-vehicle | J31: Vehicle-pedestrian | L31: Vehicle-bicycle | N31: Total-vehicle | P31: Vehicle-pedestrian | R31: Total-vehicle | V31: Vehicle-pedestrian | X31: Vehicle-bicycle | Z31: Total-vehicle | AB31: Vehicle-pedestrian | AK31: Total-vehicle | AM31: Vehicle-pedestrian | AO31: Total-vehicle | AQ31: Vehicle-pedestrian | AS31: Total-vehicle | AU31: Vehicle-pedestrian | AW31: Total-vehicle | AY31: Vehicle-pedestrian | BA31: Type | BB31: Total-vehicle | BD31: Veh-ped | BH31: Total-vehicle | BJ31: Veh-ped
B32: Number | C32: Year | D32: Type | E32: Configuration | F32: F+I | H32: PDO | J32: F+I | L32: F+I | N32: F+I | O32: PDO | P32: F+I | R32: F+I | T32: PDO | V32: F+I | X32: F+I | Z32: F+I | AA32: PDO | AB32: F+I | AD32: Major street name | AE32: Minor street name | AK32: TV F+I | AL32: TV PDO | AM32: VP F+I | AO32: TV F+I | AP32: TV PDO | AQ32: VP F+I | AS32: TV F+I | AT32: TV PDO | AU32: VP F+I | AW32: TV F+I | AX32: TV PDO | AY32: VP F+I | BB32: TV F+I | BC32: TV PDO | BD32: VP F+I | BG32: Type & configuration | BH32: TV F+I | BI32: TV PDO | BJ32: VP F+I
BA33: Npredicted | BG33: 3ST, Two-way | BH33: 1.54 | BI33: 1.34
BA34: Nobserved | BG34: 3SG, Two-way | BH34: 1.93 | BI34: 1 | BJ34: 0.52
BA35: Npredictedw0 | BG35: 4ST, Two-way | BH35: 1.67 | BI35: 0.88
BA36: Npredictedw1 | BG36: 4SG, Two-way | BH36: 1.77 | BI36: 1.01 | BJ36: 0.24
BG37: 3ST, One-way | BH37: 0.5 | BI37: 0.97
BG38: 3SG, One-way | BH38: 1.05 | BI38: 1.11 | BJ38: 0.52
BG39: 4ST, One-way | BH39: 1.88 | BI39: 1.04
BG40: 4SG, One-way | BH40: 0.75 | BI40: 0.5 | BJ40: 0.24

Sheet Crash Cost Totals
B2: Crash Cost Totals Summary
B4: Empirical Bayes | E4: Global Inputs | J4: *If using "Site-specific" Empirical Bayes analysis (which can be selected on the Totals tab), ensure that observed crashes have been entered for all segments and intersections on the Totals tab.
B5: adjustment type: | E5: Open Year | F5: 2025
B6: =Totals!B6 -> Site-specific | E6: Period | F6: 20
B7: Project-level EB Adjustment is not compatible with Crash Cost Analysis | E7: Rate of Return | F7: 0.04
B11: Segment Site Information
F12: Growth Rate | I12: Output Sheet Name | J12: Total Crash Cost ($) (No Lighting) | K12: Total Crash Cost ($) (With Lighting)
B13: Number | C13: Year | D13: Type | E13: Street number
B14: =IF(NOT(ISBLANK(Totals!B14)),Totals!B14,"") ->  | C14: =IF(NOT(ISBLANK(Totals!C14)),Totals!C14,"") ->  | D14: =IF(NOT(ISBLANK(Totals!D14)),Totals!D14,"") ->  | E14: =IF(NOT(ISBLANK(Totals!E14)),Totals!E14,"") ->  | F14: 0.01 | I14: TWS Crash Cost #1 | J14: ='TWS Crash Cost #1'!TotalCrashCostNoLighting -> 16829369.44 | K14: ='TWS Crash Cost #1'!TotalCrashCostWithLighting -> 15819607.28
B15: =IF(NOT(ISBLANK(Totals!B15)),Totals!B15,"") ->  | C15: =IF(NOT(ISBLANK(Totals!C15)),Totals!C15,"") ->  | D15: =IF(NOT(ISBLANK(Totals!D15)),Totals!D15,"") ->  | E15: =IF(NOT(ISBLANK(Totals!E15)),Totals!E15,"") ->  | F15: 0.01 | I15: TWS Crash Cost #2 | J15: ='TWS Crash Cost #2'!TotalCrashCostNoLighting -> 20653178.66 | K15: ='TWS Crash Cost #2'!TotalCrashCostWithLighting -> 19413987.94
B16: =IF(NOT(ISBLANK(Totals!B16)),Totals!B16,"") ->  | C16: =IF(NOT(ISBLANK(Totals!C16)),Totals!C16,"") ->  | D16: =IF(NOT(ISBLANK(Totals!D16)),Totals!D16,"") ->  | E16: =IF(NOT(ISBLANK(Totals!E16)),Totals!E16,"") ->  | F16: 0.01 | I16: OWS Crash Cost #1 | J16: ='OWS Crash Cost #1'!TotalCrashCostNoLighting -> 9295456.907 | K16: ='OWS Crash Cost #1'!TotalCrashCostWithLighting -> 8737729.493
B17: =IF(NOT(ISBLANK(Totals!B17)),Totals!B17,"") ->  | C17: =IF(NOT(ISBLANK(Totals!C17)),Totals!C17,"") ->  | D17: =IF(NOT(ISBLANK(Totals!D17)),Totals!D17,"") ->  | E17: =IF(NOT(ISBLANK(Totals!E17)),Totals!E17,"") -> 
B18: =IF(NOT(ISBLANK(Totals!B18)),Totals!B18,"") ->  | C18: =IF(NOT(ISBLANK(Totals!C18)),Totals!C18,"") ->  | D18: =IF(NOT(ISBLANK(Totals!D18)),Totals!D18,"") ->  | E18: =IF(NOT(ISBLANK(Totals!E18)),Totals!E18,"") -> 
B19: =IF(NOT(ISBLANK(Totals!B19)),Totals!B19,"") ->  | C19: =IF(NOT(ISBLANK(Totals!C19)),Totals!C19,"") ->  | D19: =IF(NOT(ISBLANK(Totals!D19)),Totals!D19,"") ->  | E19: =IF(NOT(ISBLANK(Totals!E19)),Totals!E19,"") -> 
B20: =IF(NOT(ISBLANK(Totals!B20)),Totals!B20,"") ->  | C20: =IF(NOT(ISBLANK(Totals!C20)),Totals!C20,"") ->  | D20: =IF(NOT(ISBLANK(Totals!D20)),Totals!D20,"") ->  | E20: =IF(NOT(ISBLANK(Totals!E20)),Totals!E20,"") -> 
B21: =IF(NOT(ISBLANK(Totals!B21)),Totals!B21,"") ->  | C21: =IF(NOT(ISBLANK(Totals!C21)),Totals!C21,"") ->  | D21: =IF(NOT(ISBLANK(Totals!D21)),Totals!D21,"") ->  | E21: =IF(NOT(ISBLANK(Totals!E21)),Totals!E21,"") -> 
B22: =IF(NOT(ISBLANK(Totals!B22)),Totals!B22,"") ->  | C22: =IF(NOT(ISBLANK(Totals!C22)),Totals!C22,"") ->  | D22: =IF(NOT(ISBLANK(Totals!D22)),Totals!D22,"") ->  | E22: =IF(NOT(ISBLANK(Totals!E22)),Totals!E22,"") -> 
B23: =IF(NOT(ISBLANK(Totals!B23)),Totals!B23,"") ->  | C23: =IF(NOT(ISBLANK(Totals!C23)),Totals!C23,"") ->  | D23: =IF(NOT(ISBLANK(Totals!D23)),Totals!D23,"") ->  | E23: =IF(NOT(ISBLANK(Totals!E23)),Totals!E23,"") -> 
B24: =IF(NOT(ISBLANK(Totals!B24)),Totals!B24,"") ->  | C24: =IF(NOT(ISBLANK(Totals!C24)),Totals!C24,"") ->  | D24: =IF(NOT(ISBLANK(Totals!D24)),Totals!D24,"") ->  | E24: =IF(NOT(ISBLANK(Totals!E24)),Totals!E24,"") -> 
B25: =IF(NOT(ISBLANK(Totals!B25)),Totals!B25,"") ->  | C25: =IF(NOT(ISBLANK(Totals!C25)),Totals!C25,"") ->  | D25: =IF(NOT(ISBLANK(Totals!D25)),Totals!D25,"") ->  | E25: =IF(NOT(ISBLANK(Totals!E25)),Totals!E25,"") -> 
B26: =IF(NOT(ISBLANK(Totals!B26)),Totals!B26,"") ->  | C26: =IF(NOT(ISBLANK(Totals!C26)),Totals!C26,"") ->  | D26: =IF(NOT(ISBLANK(Totals!D26)),Totals!D26,"") ->  | E26: =IF(NOT(ISBLANK(Totals!E26)),Totals!E26,"") -> 
B27: =IF(NOT(ISBLANK(Totals!B27)),Totals!B27,"") ->  | C27: =IF(NOT(ISBLANK(Totals!C27)),Totals!C27,"") ->  | D27: =IF(NOT(ISBLANK(Totals!D27)),Totals!D27,"") ->  | E27: =IF(NOT(ISBLANK(Totals!E27)),Totals!E27,"") -> 
B28: =IF(NOT(ISBLANK(Totals!B28)),Totals!B28,"") ->  | C28: =IF(NOT(ISBLANK(Totals!C28)),Totals!C28,"") ->  | D28: =IF(NOT(ISBLANK(Totals!D28)),Totals!D28,"") ->  | E28: =IF(NOT(ISBLANK(Totals!E28)),Totals!E28,"") -> 
B30: Intersection Site Information
F31: Major Growth | G31: Minor Growth | H31: Segment | I31: Output Sheet Name | J31: Total Crash Cost ($) (No Lighting) | K31: Total Crash Cost ($) (With Lighting)
B32: Number | C32: Year | D32: Type | E32: Configuration
B33: =IF(NOT(ISBLANK(Totals!B33)),Totals!B33,"") ->  | C33: =IF(NOT(ISBLANK(Totals!C33)),Totals!C33,"") ->  | D33: =IF(NOT(ISBLANK(Totals!D33)),Totals!D33,"") ->  | E33: =IF(NOT(ISBLANK(Totals!E33)),Totals!E33,"") ->  | F33: 0.01 | G33: 0.01 | H33: 6U | I33: Intx Crash Cost #1 | J33: ='Intx Crash Cost #1'!TotalCrashCostNoLighting -> 26710313.74 | K33: ='Intx Crash Cost #1'!TotalCrashCostWithLighting -> 24378247.22
B34: =IF(NOT(ISBLANK(Totals!B34)),Totals!B34,"") ->  | C34: =IF(NOT(ISBLANK(Totals!C34)),Totals!C34,"") ->  | D34: =IF(NOT(ISBLANK(Totals!D34)),Totals!D34,"") ->  | E34: =IF(NOT(ISBLANK(Totals!E34)),Totals!E34,"") ->  | F34: 0.01 | G34: 0.01 | H34: 6U | I34: Intx Crash Cost #2 | J34: ='Intx Crash Cost #2'!TotalCrashCostNoLighting -> 17617915.74 | K34: ='Intx Crash Cost #2'!TotalCrashCostWithLighting -> 16067151.56
B35: =IF(NOT(ISBLANK(Totals!B35)),Totals!B35,"") ->  | C35: =IF(NOT(ISBLANK(Totals!C35)),Totals!C35,"") ->  | D35: =IF(NOT(ISBLANK(Totals!D35)),Totals!D35,"") ->  | E35: =IF(NOT(ISBLANK(Totals!E35)),Totals!E35,"") ->  | H35: 6U
B36: =IF(NOT(ISBLANK(Totals!B36)),Totals!B36,"") ->  | C36: =IF(NOT(ISBLANK(Totals!C36)),Totals!C36,"") ->  | D36: =IF(NOT(ISBLANK(Totals!D36)),Totals!D36,"") ->  | E36: =IF(NOT(ISBLANK(Totals!E36)),Totals!E36,"") ->  | H36: 6U
B37: =IF(NOT(ISBLANK(Totals!B37)),Totals!B37,"") ->  | C37: =IF(NOT(ISBLANK(Totals!C37)),Totals!C37,"") ->  | D37: =IF(NOT(ISBLANK(Totals!D37)),Totals!D37,"") ->  | E37: =IF(NOT(ISBLANK(Totals!E37)),Totals!E37,"") ->  | H37: 6U
B38: =IF(NOT(ISBLANK(Totals!B38)),Totals!B38,"") ->  | C38: =IF(NOT(ISBLANK(Totals!C38)),Totals!C38,"") ->  | D38: =IF(NOT(ISBLANK(Totals!D38)),Totals!D38,"") ->  | E38: =IF(NOT(ISBLANK(Totals!E38)),Totals!E38,"") ->  | H38: 6U
B39: =IF(NOT(ISBLANK(Totals!B39)),Totals!B39,"") ->  | C39: =IF(NOT(ISBLANK(Totals!C39)),Totals!C39,"") ->  | D39: =IF(NOT(ISBLANK(Totals!D39)),Totals!D39,"") ->  | E39: =IF(NOT(ISBLANK(Totals!E39)),Totals!E39,"") ->  | H39: 6U
B40: =IF(NOT(ISBLANK(Totals!B40)),Totals!B40,"") ->  | C40: =IF(NOT(ISBLANK(Totals!C40)),Totals!C40,"") ->  | D40: =IF(NOT(ISBLANK(Totals!D40)),Totals!D40,"") ->  | E40: =IF(NOT(ISBLANK(Totals!E40)),Totals!E40,"") ->  | H40: 6U
B41: =IF(NOT(ISBLANK(Totals!B41)),Totals!B41,"") ->  | C41: =IF(NOT(ISBLANK(Totals!C41)),Totals!C41,"") ->  | D41: =IF(NOT(ISBLANK(Totals!D41)),Totals!D41,"") ->  | E41: =IF(NOT(ISBLANK(Totals!E41)),Totals!E41,"") ->  | H41: 6U
B42: =IF(NOT(ISBLANK(Totals!B42)),Totals!B42,"") ->  | C42: =IF(NOT(ISBLANK(Totals!C42)),Totals!C42,"") ->  | D42: =IF(NOT(ISBLANK(Totals!D42)),Totals!D42,"") ->  | E42: =IF(NOT(ISBLANK(Totals!E42)),Totals!E42,"") ->  | H42: 6U
B43: =IF(NOT(ISBLANK(Totals!B43)),Totals!B43,"") ->  | C43: =IF(NOT(ISBLANK(Totals!C43)),Totals!C43,"") ->  | D43: =IF(NOT(ISBLANK(Totals!D43)),Totals!D43,"") ->  | E43: =IF(NOT(ISBLANK(Totals!E43)),Totals!E43,"") ->  | H43: 6U
B44: =IF(NOT(ISBLANK(Totals!B44)),Totals!B44,"") ->  | C44: =IF(NOT(ISBLANK(Totals!C44)),Totals!C44,"") ->  | D44: =IF(NOT(ISBLANK(Totals!D44)),Totals!D44,"") ->  | E44: =IF(NOT(ISBLANK(Totals!E44)),Totals!E44,"") ->  | H44: 6U
B45: =IF(NOT(ISBLANK(Totals!B45)),Totals!B45,"") ->  | C45: =IF(NOT(ISBLANK(Totals!C45)),Totals!C45,"") ->  | D45: =IF(NOT(ISBLANK(Totals!D45)),Totals!D45,"") ->  | E45: =IF(NOT(ISBLANK(Totals!E45)),Totals!E45,"") ->  | H45: 6U
B46: =IF(NOT(ISBLANK(Totals!B46)),Totals!B46,"") ->  | C46: =IF(NOT(ISBLANK(Totals!C46)),Totals!C46,"") ->  | D46: =IF(NOT(ISBLANK(Totals!D46)),Totals!D46,"") ->  | E46: =IF(NOT(ISBLANK(Totals!E46)),Totals!E46,"") ->  | H46: 6U
B47: =IF(NOT(ISBLANK(Totals!B47)),Totals!B47,"") ->  | C47: =IF(NOT(ISBLANK(Totals!C47)),Totals!C47,"") ->  | D47: =IF(NOT(ISBLANK(Totals!D47)),Totals!D47,"") ->  | E47: =IF(NOT(ISBLANK(Totals!E47)),Totals!E47,"") ->  | H47: 6U

Sheet Factors
A5: Segment Lighting Adjustment Factors | J5: Segment Default Crash Distributions | P5: DEPRECATED | R5: Intersection Default Crash Distributions
B6: Seg Type | C6: Lighting | D6: % w/ Lighting | E6: Lighting CMF | F6: f_adj | J6: K | K6: A | L6: B | M6: C | N6: O | R6: K | S6: A | T6: B | U6: C | V6: O
A7: Two-way | B7: 6U | C7: 1.7 | D7: =C7/2 -> 0.85 | E7: 0.94 | F7: =1/(E7*D7 + 1*(1-D7)) -> 1.05374078 | H7: Two-way | I7: 6U | J7: 0.007093166007 | K7: 0.03942163416 | L7: 0.1406356568 | M7: 0.2362569909 | N7: 0.5765925522 | P7: Urban | Q7: 3ST | R7: 0.009 | S7: 0.062 | T7: 0.166 | U7: 0.223 | V7: 0.54
B8: 6D | C8: 1.4 | D8: =C8/2 -> 0.7 | E8: 0.94 | F8: 1.043841336 | I8: 6D | J8: 0.005993102279 | K8: 0.04216373608 | L8: 0.1272120767 | M8: 0.2383954317 | N8: 0.5862356533 | Q8: 4ST | R8: 0.009 | S8: 0.062 | T8: 0.166 | U8: 0.223 | V8: 0.54
B9: 7T | C9: 1.5 | D9: 0.75 | E9: 0.94 | F9: 1.047120419 | I9: 7T | J9: - | K9: - | L9: - | M9: - | N9: - | Q9: 3SG | R9: 0.009 | S9: 0.062 | T9: 0.166 | U9: 0.223 | V9: 0.54
B10: 8D | C10: 1.9 | D10: 0.95 | E10: 0.94 | F10: 1.060445387 | I10: 8D | J10: 0.003649635036 | K10: 0.04180491042 | L10: 0.1247511612 | M10: 0.2362309224 | N10: 0.5935633709 | Q10: 4SG | R10: 0.009 | S10: 0.062 | T10: 0.166 | U10: 0.223 | V10: 0.54
A11: One-way | B11: 2O | C11: 1.38 | D11: 0.69 | E11: 0.94 | F11: 1.043187982 | H11: One-way | I11: 2O | J11: 0.003566899176 | K11: 0.03099239062 | L11: 0.1182625238 | M11: 0.2155199746 | N11: 0.6316582118 | P11: Rural | Q11: 3ST | R11: 0.009 | S11: 0.062 | T11: 0.166 | U11: 0.223 | V11: 0.54
B12: 3O | C12: 1.62 | D12: 0.81 | E12: 0.94 | F12: 1.051082615 | I12: 3O | J12: 0.003273322422 | K12: 0.02303915397 | L12: 0.1027319653 | M12: 0.1762558227 | N12: 0.6946997356 | Q12: 4ST | R12: 0.009 | S12: 0.062 | T12: 0.166 | U12: 0.223 | V12: 0.54
B13: 4O | C13: 1.74 | D13: 0.87 | E13: 0.94 | F13: 1.05507491 | I13: 4O | J13: 0.000884173298 | K13: 0.01149425287 | L13: 0.1167108753 | M13: 0.192749779 | N13: 0.6781609195 | Q13: 3SG | R13: 0.009 | S13: 0.062 | T13: 0.166 | U13: 0.223 | V13: 0.54
Q14: 4SG | R14: 0.009 | S14: 0.062 | T14: 0.166 | U14: 0.223 | V14: 0.54
H18: Facility Type | L18: Intersection Type | O18: Abbreviation | P18: Intersection Default Crash Severity Distribution
P19: K | Q19: A | R19: B | S19: C | T19: O
H20: Urban & Suburban Arterials: Intersections on 6+ lanes | L20: 3-leg stop-control (U3STM) | O20: 3ST | P20: 0.007633587786 | Q20: 0.04639378784 | R20: 0.1363516715 | S20: 0.2412476968 | T20: 0.5683732561
L21: 3-leg signalized (U3SGM) | O21: 3SG | P21: 0.003898927795 | Q21: 0.03718977281 | R21: 0.1165929369 | S21: 0.2346854615 | T21: 0.607632901
L22: 4-leg stop-control (U4STM) | O22: 4ST | P22: 0.008695652174 | Q22: 0.04903010033 | R22: 0.1450167224 | S22: 0.2430100334 | T22: 0.5542474916
L23: 4-leg signalized (U4SGM) | O23: 4SG | P23: 0.00362732995 | Q23: 0.03186868456 | R23: 0.1122643379 | S23: 0.2238123543 | T23: 0.6284272934
H24: Urban & Suburban Arterials: Intersections on one-way roads | L24: 3-leg stop-control (U3STO) | O24: 3ST | P24: 0.01226415094 | Q24: 0.02641509434 | R24: 0.1094339623 | S24: 0.170754717 | T24: 0.6811320755
L25: 3-leg signalized (U3SGO) | O25: 3SG | P25: 0 | Q25: 0.008097165992 | R25: 0.04588394062 | S25: 0.1039136302 | T25: 0.8421052632
L26: 4-leg stop-control (U4STO) | O26: 4ST | P26: 0.004306632214 | Q26: 0.03703703704 | R26: 0.1033591731 | S26: 0.1739879414 | T26: 0.6813092162
L27: 4-leg signalized (U4SGO) | O27: 4SG | P27: 0.00149775337 | Q27: 0.02013646197 | R27: 0.07938092861 | S27: 0.1607588617 | T27: 0.7382259943

Sheet TWS Crash Cost #1
B1: T W O W A Y S E G M E N T S
U3: Total Analysis Period Crash Cost
N4: Default Crash Distribution
B5: ='Crash Cost Totals'!B6 -> Site-specific | E5: FROM CRASH COST TOTALS TAB | G5: FROM TOTAL TAB | N5: K | O5: A | P5: B | Q5: C | R5: O | S5: Sum | U5: No Lighting | W5: With Lighting
B6: adjustment type: | E6: Opening Year = | F6: 2025 | G6: Segment Type = | I6: 6D | M6: % | N6: =VLOOKUP($I$6,Factors!$I$7:$N$13, 2, FALSE) -> 0.005993102279 | O6: =VLOOKUP($I$6,Factors!$I$7:$N$13, 3, FALSE) -> 0.04216373608 | P6: =VLOOKUP($I$6,Factors!$I$7:$N$13, 4,FALSE) -> 0.1272120767 | Q6: =VLOOKUP($I$6,Factors!$I$7:$N$13, 5,FALSE) -> 0.2383954317 | R6: =VLOOKUP($I$6,Factors!$I$7:$N$13, 6, FALSE) -> 0.5862356533 | S6: =SUM(N6:R6) -> 1
B7: ='Crash Cost Totals'!B6 -> Site-specific | E7: Analysis Period = | F7: 20 | G7: Analysis Year AADT = | I7: 30000 | M7: Cost* | N7: 10670000 | O7: 872612 | P7: 174018 | Q7: 106215 | R7: 7700 | U7: =SUMIF($A$14:$A$70,">0",$J$76:$J$132) -> 16829369.44 | W7: =SUMIF($A$14:$A$70,">0",$R$76:$R$132) -> 15819607.28
E8: Growth Rate = | F8: 0.01 | G8: Segment Length (mi) = | I8: 0.5 | AY8: Adjustment Factor to Reset to No Lighting Base Condition | BB8: =VLOOKUP(I6,Factors!$B$7:$F$13,5, FALSE) -> 1.043841336
E9: Rate of Return = | F9: 0.04 | G9: Analysis Year = | I9: 2020 | M9: Use Val | N9: =N7 -> 10670000 | O9: =O7 -> 872612 | P9: =P7 -> 174018 | Q9: =Q7 -> 106215 | R9: =R7 -> 7700
M10: *Values are the 2020 FDOT KABCO crash costs as laied out in the FDOT Design Manual | X10: Analysis (Base Year) EB Computations
X11: Length | Y11: Sum lookup | Z11: Inverse dispersion parameter | AD11: Predicted crash total | AH11: Observed crash total | AL11: Weight | AR11: Original Mixed Lighting Predicted crash total | AY11: Adjusted Predicted crash total | BF11: EB Adjusted crash total
B12: AADT / Year | E12: Annual Number of Crashes - No Lighting | L12: Annual Number of Crashes - With Lighting | Z12: Multiple-vehicle | AB12: Single-vehicle | AD12: Multiple-vehicle | AF12: Single-vehicle | AH12: Multiple-vehicle | AJ12: Single-vehicle | AL12: Multiple-vehicle | AN12: Single-vehicle | AR12: Multiple-vehicle | AT12: Single-vehicle | AV12: Vehicle-pedestrian | AW12: Vehicle-bicycle | AY12: Multiple-vehicle | BA12: Single-vehicle | BC12: Vehicle-pedestrian | BD12: Vehicle-bicycle | BF12: Multiple-vehicle | BH12: Single-vehicle | BJ12: Vehicle-pedestrian | BK12: Vehicle-bicycle
B13: Year | C13: Major AADT | E13: Site Specific (Np/e) | F13: Fatality | G13: Incap. | H13: Non-Inc. | I13: Poss. Injury | J13: PDO | L13: Lighting CMF | M13: Adjusted Np/e | N13: Fatality | O13: Incap. | P13: Non-Inc. | Q13: Poss. Injury | R13: PDO | Z13: MV F+I | AA13: MV PDO | AB13: SV F+I | AC13: SV PDO | AD13: MV F+I | AE13: MV PDO | AF13: SV F+I | AG13: SV PDO | AH13: MV F+I | AI13: MV PDO | AJ13: SV F+I | AK13: SV PDO | AL13: MV F+I | AM13: MV PDO | AN13: SV F+I | AO13: SV PDO | AR13: MV F+I | AS13: MV PDO | AT13: SV F+I | AU13: SV PDO | AV13: F+I | AW13: F+I | AY13: MV F+I | AZ13: MV PDO | BA13: SV F+I | BB13: SV PDO | BC13: F+I | BD13: F+I | BF13: MV F+I | BG13: MV PDO | BH13: SV F+I | BI13: SV PDO | BJ13: F+I | BK13: F+I
A14: =IF(B14=$F$6, 1, IF(AND(B14-$F$6<$F$7,B14-$F$6>0),B14-$F$6 + 1,"")) ->  | B14: =I9 -> 2020 | C14: =I7 -> 30000 | E14: =IF(B14<$F$6+$F$7,IF($B$7="Site-specific",SUM(BF14:BK14),SUM(AY14:BD14)),"") -> 7.051853624 | F14: =IF(ISNUMBER($E14),$E14*N$6,"") -> 0.04226248002 | G14: =IF(ISNUMBER($E14),$E14*O$6,"") -> 0.2973324951 | H14: =IF(ISNUMBER($E14),$E14*P$6,"") -> 0.8970809439 | I14: =IF(ISNUMBER($E14),$E14*Q$6,"") -> 1.681129689 | J14: =IF(ISNUMBER($E14),$E14*R$6,"") -> 4.134048016 | L14: =VLOOKUP(I6,Factors!$B$7:$F$13,4, FALSE) -> 0.94 | M14: =IF(B14<$F$6+$F$7,E14*L14,"") -> 6.628742407 | N14: =IF(ISNUMBER($E14),$M14*N$6,"") -> 0.03972673122 | O14: =IF(ISNUMBER($E14),$M14*O$6,"") -> 0.2794925454 | P14: =IF(ISNUMBER($E14),$M14*P$6,"") -> 0.8432560872 | Q14: =IF(ISNUMBER($E14),$M14*Q$6,"") -> 1.580261907 | R14: =IF(ISNUMBER($E14),$M14*R$6,"") -> 3.886005135 | X14: =$I$8 -> 0.5 | Z14: =EXP(VLOOKUP($I$6,Totals!$BG$14:$BK$20,2,FALSE))*$X14 -> 3.883950553 | AA14: =EXP(VLOOKUP($I$6,Totals!$BG$14:$BK$20,3,FALSE))*$X14 -> 3.376544399 | AB14: =EXP(VLOOKUP($I$6,Totals!$BG$14:$BK$20,4,FALSE))*$X14 -> 2.240844535 | AC14: =EXP(VLOOKUP($I$6,Totals!$BG$14:$BK$20,5,FALSE))*$X14 -> 3.694528049 | AD14: =AY14 -> 1.801305392 | AE14: =AZ14 -> 2.953231932 | AF14: 0.292613531 | AG14: 0.3722568793 | AH14: 3 | AI14: 5 | AJ14: 1 | AK14: 1 | AL14: =1/(1 + AD14/Z14) -> 0.6831619528 | AM14: =1/(1 + AE14/AA14) -> 0.5334381853 | AN14: 0.8845003456 | AO14: 0.9084640851 | AR14: 1.725650565 | AS14: 2.829196191 | AT14: 0.2803237627 | AU14: 0.3566220903 | AV14: 0.07787688913 | AW14: 0.04153434087 | AY14: =AR14*$BB$8 -> 1.801305392 | AZ14: =AS14*$BB$8 -> 2.953231932 | BA14: 0.292613531 | BB14: 0.3722568793 | BC14: 0.081291116 | BD14: 0.04335526187 | BF14: =AL14*AD14 + (1-AL14)*AH14 -> 2.181097451 | BG14: =AM14*AE14 + (1-AM14)*AI14 -> 3.908175756 | BH14: =AN14*AF14 + (1-AN14)*AJ14 -> 0.3743164236 | BI14: =AO14*AG14 + (1-AO14)*AK14 -> 0.4297179202 | BJ14: =BC14/SUM(AY14:BB14)*SUM(BF14:BI14) -> 0.1033996133 | BK14: =BD14/SUM(AY14:BB14)*SUM(BF14:BI14) -> 0.0551464604
A15: =IF(B15=$F$6, 1, IF(AND(B15-$F$6<$F$7,B15-$F$6>0),B15-$F$6 + 1,"")) ->  | B15: =B14+1 -> 2021 | C15: =C14*(1+$F$8) -> 30300 | E15: =IF(B15<$F$6+$F$7,IF($B$7="Site-specific",SUM(BF15:BK15),SUM(AY15:BD15)),"") -> 7.125588203 | F15: =IF(ISNUMBER($E15),$E15*N$6,"") -> 0.04270437889 | G15: 0.3004414204 | H15: 0.9064608727 | I15: 1.698707676 | J15: 4.177273855 | L15: =L14 -> 0.94 | M15: =IF(B15<$F$6+$F$7,E15*L15,"") -> 6.698052911 | N15: =IF(ISNUMBER($E15),$M15*N$6,"") -> 0.04014211616 | O15: 0.2824149352 | P15: 0.8520732204 | Q15: 1.596785215 | R15: 3.926637424 | AR15: 1.747074245 | AS15: 2.859194639 | AT15: 0.2816097881 | AU15: 0.3581512177 | AV15: 0.07869044835 | AW15: 0.04196823912 | AY15: =AR15*$BB$8 -> 1.823668314 | AZ15: 2.984545552 | BA15: 0.2939559375 | BB15: 0.3738530456 | BC15: 0.08214034274 | BD15: 0.0438081828 | BF15: =IF($B15<($F$6+$F$7),AY15/AY$14*BF$14,"--") -> 2.208175432 | BG15: =IF($B15<($F$6+$F$7),AZ15/AZ$14*BG$14,"--") -> 3.949614808 | BH15: 0.3760336539 | BI15: 0.4315604684 | BJ15: =IF($B15<($F$6+$F$7),BC15/SUM(AY15:BB15)*SUM(BF15:BI15),"--") -> 0.1044807654 | BK15: =IF($B15<($F$6+$F$7),BD15/SUM(AY15:BB15)*SUM(BF15:BI15),"--") -> 0.0557230749
B16: =B15+1 -> 2022 | C16: 30603 | E16: 7.200132315 | F16: 0.04315112938 | G16: 0.3035844786 | H16: 0.915943784 | I16: 1.716478651 | J16: 4.220974271 | L16: 0.94 | M16: 6.768124376 | N16: 0.04056206162 | O16: 0.2853694099 | P16: 0.860987157 | Q16: 1.613489932 | R16: 3.967715815 | AR16: 1.768763897 | AS16: 2.889511166 | AT16: 0.2829017134 | AU16: 0.3596869016 | AV16: 0.07951295517 | AW16: 0.04240690942 | AY16: 1.846308869 | AZ16: 3.016191196 | BA16: 0.2953045025 | BB16: 0.3754560559 | BC16: 0.08299890936 | BD16: 0.04426608499 | BF16: =IF($B16<($F$6+$F$7),AY16/AY$14*BF$14,"--") -> 2.235589582 | BG16: 3.991493246 | BH16: 0.3777587622 | BI16: 0.4334109172 | BJ16: =IF($B16<($F$6+$F$7),BC16/SUM(AY16:BB16)*SUM(BF16:BI16),"--") -> 0.1055737876 | BK16: =IF($B16<($F$6+$F$7),BD16/SUM(AY16:BB16)*SUM(BF16:BI16),"--") -> 0.05630602006
B17: 2023 | C17: 30909.03 | E17: 7.275495067 | F17: 0.04360278607 | G17: 0.3067620539 | H17: 0.9255308363 | I17: 1.734444787 | J17: 4.265154604 | L17: 0.94 | M17: 6.838965363 | N17: 0.0409866189 | O17: 0.2883563306 | P17: 0.8699989861 | Q17: 1.6303781 | R17: 4.009245328 | AR17: 1.790722822 | AS17: 2.920149144 | AT17: 0.2841995656 | AU17: 0.3612291702 | AV17: 0.08034451053 | AW17: 0.04285040562 | AY17: 1.869230503 | AZ17: 3.048172385 | BA17: 0.2966592542 | BB17: 0.3770659397 | BC17: 0.08386692122 | BD17: 0.04472902465 | BF17: 2.263344074 | BG17: 4.033815728 | BH17: 0.3794917847 | BI17: 0.4352693003 | BJ17: 0.1066788133 | BK17: 0.0568953671
B18: 2024 | C18: 31218.1203 | E18: 7.351685671 | F18: 0.04405940415 | G18: 0.3099745344 | H18: 0.9352232013 | I18: 1.752608279 | J18: 4.309820253 | L18: 0.94 | M18: 6.910584531 | N18: 0.0414158399 | O18: 0.2913760623 | P18: 0.8791098092 | Q18: 1.647451782 | R18: 4.051231037 | AR18: 1.812954364 | AS18: 2.951111982 | AT18: 0.2855033718 | AU18: 0.3627780518 | AV18: 0.08118521654 | AW18: 0.04329878216 | AY18: 1.892436705 | AZ18: 3.080492675 | BA18: 0.2980202211 | BB18: 0.3786827263 | BC18: 0.08474448491 | BD18: 0.04519705862 | BF18: 2.291443135 | BG18: 4.076586962 | BH18: 0.3812327576 | BI18: 0.4371356518 | BJ18: 0.1077959776 | BK18: 0.05749118805
A19: 1 | B19: 2025 | C19: 31530.3015 | E19: 7.428713443 | F19: 0.04452103946 | G19: 0.313222313 | H19: 0.9450220641 | I19: 1.770971348 | J19: 4.354976679 | L19: 0.94 | M19: 6.982990637 | N19: 0.04184977709 | O19: 0.2944289742 | P19: 0.8883207402 | Q19: 1.664713067 | R19: 4.093678078 | AR19: 1.835461906 | AS19: 2.982403125 | AT19: 0.2868131595 | AU19: 0.3643335747 | AV19: 0.08203517648 | AW19: 0.04375209412 | AY19: 1.915931009 | AZ19: 3.113155663 | BA19: 0.2993874316 | BB19: 0.3803064454 | BC19: 0.08563170822 | BD19: 0.04567024439 | BF19: 2.31989104 | BG19: 4.119811707 | BH19: 0.3829817176 | BI19: 0.4390100058 | BJ19: 0.1089254171 | BK19: 0.05809355576
A20: 2 | B20: 2026 | C20: 31845.60452 | E20: 7.506587805 | F20: 0.04498774848 | G20: 0.316505787 | H20: 0.9549286233 | I20: 1.78953624 | J20: 4.400629406 | L20: 0.94 | M20: 7.056192536 | N20: 0.04228848357 | O20: 0.2975154398 | P20: 0.8976329059 | Q20: 1.682164066 | R20: 4.136591641 | AR20: 1.858248877 | AS20: 3.014026052 | AT20: 0.2881289559 | AU20: 0.3658957674 | AV20: 0.08289449479 | AW20: 0.04421039722 | AY20: 1.93971699 | AZ20: 3.146164982 | BA20: 0.3007609143 | BB20: 0.3819371267 | BC20: 0.0865287002 | BD20: 0.0461486401 | BF20: 2.348692122 | BG20: 4.163494771 | BH20: 0.3847387011 | BI20: 0.4408923968 | BJ20: 0.1100672699 | BK20: 0.05870254393
A21: 3 | B21: 2027 | C21: 32164.06056 | E21: 7.585318286 | F21: 0.0454595883 | G21: 0.3198253583 | H21: 0.9649440913 | I21: 1.808305227 | J21: 4.446784021 | L21: 0.94 | M21: 7.130199189 | N21: 0.042732013 | O21: 0.3006358368 | P21: 0.9070474458 | Q21: 1.699806913 | R21: 4.17997698 | AR21: 1.881318744 | AS21: 3.045984283 | AT21: 0.2894507888 | AU21: 0.3674646584 | AV21: 0.08376327712 | AW21: 0.04467374779 | AY21: 1.963798271 | AZ21: 3.179524304 | BA21: 0.3021406982 | BB21: 0.3835748 | BC21: 0.0874355711 | BD21: 0.04663230459 | BF21: 2.377850765 | BG21: 4.207641014 | BH21: 0.386503745 | BI21: 0.442782859 | BJ21: 0.1112216757 | BK21: 0.05931822706
A22: 4 | B22: 2028 | C22: 32485.70117 | E22: 7.664914525 | F22: 0.0459366167 | G22: 0.3231814331 | H22: 0.9750696942 | I22: 1.827280607 | J22: 4.493446174 | L22: 0.94 | M22: 7.205019654 | N22: 0.0431804197 | O22: 0.3037905471 | P22: 0.9165655125 | Q22: 1.717643771 | R22: 4.223839404 | AR22: 1.90467502 | AS22: 3.078281373 | AT22: 0.2907786858 | AU22: 0.3690402766 | AV22: 0.08464163032 | AW22: 0.04514220284 | AY22: 1.988178517 | AZ22: 3.213237341 | BA22: 0.3035268119 | BB22: 0.3852194954 | BC22: 0.08835243249 | BD22: 0.04712129733 | BF22: 2.407371407 | BG22: 4.252255348 | BH22: 0.3882768864 | BI22: 0.4446814272 | BJ22: 0.112388776 | BK22: 0.05994068055
A23: 5 | B23: 2029 | C23: 32810.55818 | E23: 7.745386271 | F23: 0.04641889211 | G23: 0.3265744225 | H23: 0.9853066721 | I23: 1.846464704 | J23: 4.540621581 | L23: 0.94 | M23: 7.280663095 | N23: 0.04363375858 | O23: 0.3069799572 | P23: 0.9261882718 | Q23: 1.735676821 | R23: 4.268184286 | AR23: 1.92832126 | AS23: 3.110920914 | AT23: 0.2921126747 | AU23: 0.3706226507 | AV23: 0.08552966249 | AW23: 0.04561581999 | AY23: 2.012861441 | AZ23: 3.247307843 | BA23: 0.3049192847 | BB23: 0.3868712429 | BC23: 0.08927939717 | BD23: 0.04761567849 | BF23: 2.437258544 | BG23: 4.297342734 | BH23: 0.3900581623 | BI23: 0.4465881361 | BJ23: 0.1135687137 | BK23: 0.06056998061
A24: 6 | B24: 2030 | C24: 33138.66376 | E24: 7.826743383 | F24: 0.0469064736 | G24: 0.3300047424 | H24: 0.9956562793 | I24: 1.865859867 | J24: 4.588316021 | L24: 0.94 | M24: 7.35713878 | N24: 0.04409208519 | O24: 0.3102044578 | P24: 0.9359169026 | Q24: 1.753908275 | R24: 4.313017059 | AR24: 1.952261065 | AS24: 3.143906537 | AT24: 0.2934527835 | AU24: 0.3722118098 | AV24: 0.08642748293 | AW24: 0.04609465756 | AY24: 2.037850798 | AZ24: 3.2817396 | BA24: 0.3063181456 | BB24: 0.3885300728 | BC24: 0.09021657926 | BD24: 0.04811550894 | BF24: 2.467516725 | BG24: 4.34290819 | BH24: 0.39184761 | BI24: 0.4485030206 | BJ24: 0.1147616332 | BK24: 0.06120620437
A25: 7 | B25: 2031 | C25: 33470.0504 | E25: 7.908995834 | F25: 0.04739942096 | G25: 0.333472813 | H25: 1.006119784 | I25: 1.885468476 | J25: 4.63653534 | L25: 0.94 | M25: 7.434456084 | N25: 0.0445554557 | O25: 0.3134644442 | P25: 0.9457525974 | Q25: 1.772340367 | R25: 4.35834322 | AR25: 1.976498078 | AS25: 3.177241913 | AT25: 0.2947990402 | AU25: 0.3738077828 | AV25: 0.08733520221 | AW25: 0.04657877451 | AY25: 2.063150395 | AZ25: 3.316536444 | BA25: 0.307723424 | BB25: 0.3901960154 | BC25: 0.09116409417 | BD25: 0.04862085022 | BF25: 2.498150556 | BG25: 4.388956784 | BH25: 0.3936452671 | BI25: 0.4504261158 | BJ25: 0.1159676809 | BK25: 0.06184942979
A26: 8 | B26: 2032 | C26: 33804.7509 | E26: 7.99215371 | F26: 0.04789779461 | G26: 0.3369790597 | H26: 1.01669847 | I26: 1.905292934 | J26: 4.685285451 | L26: 0.94 | M26: 7.512624487 | N26: 0.04502392693 | O26: 0.3167603161 | P26: 0.9556965623 | Q26: 1.790975358 | R26: 4.404168324 | AR26: 2.001035991 | AS26: 3.210930749 | AT26: 0.2961514731 | AU26: 0.3754105991 | AV26: 0.08825293218 | AW26: 0.0470682305 | AY26: 2.088764082 | AZ26: 3.351702244 | BA26: 0.3091351493 | BB26: 0.3918691013 | BC26: 0.09212205864 | BD26: 0.04913176461 | BF26: 2.529164702 | BG26: 4.43549364 | BH26: 0.3954511712 | BI26: 0.4523574568 | BJ26: 0.1171870045 | BK26: 0.06249973576
A27: 9 | B27: 2033 | C27: 34142.79841 | E27: 8.076227212 | F27: 0.0484016557 | G27: 0.3405239126 | H27: 1.027393635 | I27: 1.925335672 | J27: 4.734572336 | L27: 0.94 | M27: 7.591653579 | N27: 0.04549755636 | O27: 0.3200924779 | P27: 0.9657500171 | Q27: 1.809815532 | R27: 4.450497995 | AR27: 2.025878537 | AS27: 3.244976794 | AT27: 0.2975101104 | AU27: 0.3770202879 | AV27: 0.08918078595 | AW27: 0.04756308584 | AY27: 2.114695759 | AZ27: 3.387240913 | BA27: 0.3105533511 | BB27: 0.3935493611 | BC27: 0.09309059076 | BD27: 0.04964831507 | BF27: 2.560563883 | BG27: 4.482523933 | BH27: 0.3972653601 | BI27: 0.4542970791 | BJ27: 0.1184197538 | BK27: 0.06315720205
A28: 10 | B28: 2034 | C28: 34484.2264 | E28: 8.161226657 | F28: 0.04891106607 | G28: 0.3441078068 | H28: 1.038206591 | I28: 1.945599152 | J28: 4.784402041 | L28: 0.94 | M28: 7.671553057 | N28: 0.04597640211 | O28: 0.3234613384 | P28: 0.9759141957 | Q28: 1.828863203 | R28: 4.497337918 | AR28: 2.0510295 | AS28: 3.279383835 | AT28: 0.2988749807 | AU28: 0.3786368788 | AV28: 0.09011887792 | AW28: 0.04806340156 | AY28: 2.140949374 | AZ28: 3.423156404 | BA28: 0.3119780592 | BB28: 0.3952368255 | BC28: 0.09406980994 | BD28: 0.0501705653 | BF28: 2.592352881 | BG28: 4.530052897 | BH28: 0.3990878719 | BI28: 0.4562450181 | BJ28: 0.11966608 | BK28: 0.06382190934
A29: 11 | B29: 2035 | C29: 34829.06866 | E29: 8.247162481 | F29: 0.04942608826 | G29: 0.3477311822 | H29: 1.049138666 | I29: 1.96608586 | J29: 4.834780685 | L29: 0.94 | M29: 7.752332732 | N29: 0.04646052296 | O29: 0.3268673113 | P29: 0.9861903458 | Q29: 1.848120708 | R29: 4.544693844 | AR29: 2.076492708 | AS29: 3.3141557 | AT29: 0.3002461125 | AU29: 0.3802604013 | AV29: 0.09106732382 | AW29: 0.04856923937 | AY29: 2.167528923 | AZ29: 3.459452714 | BA29: 0.3134093032 | BB29: 0.3969315254 | BC29: 0.09505983698 | BD29: 0.05069857972 | BF29: 2.624536533 | BG29: 4.578085818 | BH29: 0.4009187447 | BI29: 0.4582013094 | BJ29: 0.1209261361 | BK29: 0.06449393924
A30: 12 | B30: 2036 | C30: 35177.35935 | E30: 8.334045239 | F30: 0.04994678551 | G30: 0.3513944839 | H30: 1.060191202 | I30: 1.986798312 | J30: 4.885714455 | L30: 0.94 | M30: 7.834002524 | N30: 0.04694997838 | O30: 0.3303108149 | P30: 0.9965797297 | Q30: 1.867590414 | R30: 4.592571588 | AR30: 2.102272038 | AS30: 3.349296256 | AT30: 0.3016235346 | AU30: 0.3818908852 | AV30: 0.09202624071 | AW30: 0.04908066171 | AY30: 2.194438453 | AZ30: 3.496133879 | BA30: 0.3148471133 | BB30: 0.3986334918 | BC30: 0.09606079406 | BD30: 0.0512324235 | BF30: 2.657119741 | BG30: 4.626628041 | BH30: 0.4027580169 | BI30: 0.460165989 | BJ30: 0.1222000768 | BK30: 0.0651733743
A31: 13 | B31: 2037 | C31: 35529.13294 | E31: 8.421885605 | F31: 0.05047322181 | G31: 0.3550981619 | H31: 1.071365557 | I31: 2.007739054 | J31: 4.93720961 | L31: 0.94 | M31: 7.916572469 | N31: 0.0474448285 | O31: 0.3337922722 | P31: 1.007083624 | Q31: 1.887274711 | R31: 4.640977033 | AR31: 2.128371414 | AS31: 3.384809414 | AT31: 0.3030072758 | AU31: 0.3835283602 | AV31: 0.09299574697 | AW31: 0.04959773171 | AY31: 2.221682061 | AZ31: 3.533203981 | BA31: 0.3162915196 | BB31: 0.400342756 | BC31: 0.09707280477 | BD31: 0.05177216254 | BF31: 2.690107464 | BG31: 4.675684965 | BH31: 0.4046057271 | BI31: 0.4621390928 | BJ31: 0.1234880587 | BK31: 0.06586029799
A32: 14 | B32: 2038 | C32: 35884.42427 | E32: 8.510694377 | F32: 0.05100546187 | G32: 0.3588426716 | H32: 1.082663106 | I32: 2.02891066 | J32: 4.989272478 | L32: 0.94 | M32: 8.000052715 | N32: 0.04794513415 | O32: 0.3373121113 | P32: 1.017703319 | Q32: 1.90717602 | R32: 4.68991613 | AR32: 2.15479481 | AS32: 3.420699124 | AT32: 0.3043973651 | AU32: 0.3851728565 | AV32: 0.09397596233 | AW32: 0.05012051325 | AY32: 2.249263894 | AZ32: 3.570667144 | BA32: 0.3177425523 | BB32: 0.4020593492 | BC32: 0.09809599409 | BD32: 0.05231786351 | BF32: 2.723504724 | BG32: 4.725262048 | BH32: 0.4064619138 | BI32: 0.4641206568 | BJ32: 0.1247902401 | BK32: 0.06655479474
A33: 15 | B33: 2039 | C33: 36243.26851 | E33: 8.600482476 | F33: 0.05154357112 | G33: 0.3626284733 | H33: 1.094085236 | I33: 2.050315732 | J33: 5.041909463 | L33: 0.94 | M33: 8.084453527 | N33: 0.04845095686 | O33: 0.3408707649 | P33: 1.028440122 | Q33: 1.927296788 | R33: 4.739394895 | AR33: 2.181546248 | AS33: 3.456969379 | AT33: 0.3057938316 | AU33: 0.386824404 | AV33: 0.09496700794 | AW33: 0.0506490709 | AY33: 2.277188151 | AZ33: 3.608527535 | BA33: 0.3192002418 | BB33: 0.4037833027 | BC33: 0.09913048845 | BD33: 0.05286959384 | BF33: 2.757316606 | BG33: 4.775364805 | BH33: 0.4083266161 | BI33: 0.4661107174 | BJ33: 0.1261067812 | BK33: 0.06725694996
A34: 16 | B34: 2040 | C34: 36605.7012 | E34: 8.691260946 | F34: 0.05208761578 | G34: 0.3664560327 | H34: 1.105633354 | I34: 2.071956905 | J34: 5.095127038 | L34: 0.94 | M34: 8.169785289 | N34: 0.04896235883 | O34: 0.3444686707 | P34: 1.039295353 | Q34: 1.947639491 | R34: 4.789419416 | AR34: 2.208629801 | AS34: 3.493624213 | AT34: 0.3071967047 | AU34: 0.3884830331 | AV34: 0.09596900628 | AW34: 0.05118347002 | AY34: 2.305459083 | AZ34: 3.646789366 | BA34: 0.3206646187 | BB34: 0.4055146483 | BC34: 0.1001764157 | BD34: 0.05342742173 | BF34: 2.791548258 | BG34: 4.82599881 | BH34: 0.410199873 | BI34: 0.468109311 | BJ34: 0.1274378438 | BK34: 0.06796685001
A35: 17 | B35: 2041 | C35: 36971.75821 | E35: 8.783040958 | F35: 0.05263766278 | G35: 0.3703258209 | H35: 1.11730888 | I35: 2.093836841 | J35: 5.148931754 | L35: 0.94 | M35: 8.2560585 | N35: 0.04947940301 | O35: 0.3481062716 | P35: 1.050270347 | Q35: 1.96820663 | R35: 4.839995849 | AR35: 2.236049592 | AS35: 3.530667705 | AT35: 0.3086060136 | AU35: 0.390148774 | AV35: 0.09698208127 | AW35: 0.05172377668 | AY35: 2.334080994 | AZ35: 3.685456894 | BA35: 0.3221357136 | BB35: 0.4072534176 | BC35: 0.1012339053 | BD35: 0.05399141615 | BF35: 2.82620489 | BG35: 4.877169696 | BH35: 0.4120817237 | BI35: 0.4701164742 | BJ35: 0.1287835918 | BK35: 0.06868458227
A36: 18 | B36: 2042 | C36: 37341.47579 | E36: 8.875833811 | F36: 0.05319377984 | G36: 0.3742383143 | H36: 1.129113251 | I36: 2.115958233 | J36: 5.203330233 | L36: 0.94 | M36: 8.343283783 | N36: 0.05000215305 | O36: 0.3517840154 | P36: 1.061366456 | Q36: 1.989000739 | R36: 4.891130419 | AR36: 2.263809796 | AS36: 3.568103975 | AT36: 0.3100217879 | AU36: 0.3918216573 | AV36: 0.09800635824 | AW36: 0.05227005773 | AY36: 2.363058242 | AZ36: 3.72453442 | BA36: 0.3236135573 | BB36: 0.4089996423 | BC36: 0.1023030879 | BD36: 0.0545616469 | BF36: 2.861291778 | BG36: 4.928883156 | BH36: 0.4139722077 | BI36: 0.4721322437 | BJ36: 0.1301441908 | BK36: 0.06941023508
A37: 19 | B37: =B36+1 -> 2043 | C37: 37714.89055 | E37: 8.969650935 | F37: 0.05375603545 | G37: 0.3781939947 | H37: 1.141047922 | I37: 2.138323807 | J37: 5.258329176 | L37: 0.94 | M37: 8.431471879 | N37: 0.05053067333 | O37: 0.355502355 | P37: 1.072585047 | Q37: 2.010024378 | R37: 4.942829425 | AR37: 2.291914638 | AS37: 3.605937188 | AT37: 0.3114440573 | AU37: 0.3935017137 | AV37: 0.09904196395 | AW37: 0.05282238077 | AY37: 2.392395238 | AZ37: 3.764026292 | BA37: 0.3250981809 | BB37: 0.4107533545 | BC37: 0.103384096 | BD37: 0.05513818452 | BF37: 2.896814265 | BG37: 4.981144943 | BH37: 0.4158713646 | BI37: 0.4741566565 | BJ37: 0.1315198084 | BK37: 0.07014389783
A38: 20 | B38: 2044 | C38: 38092.03946 | E38: 9.064503886 | F38: 0.05432449889 | G38: 0.3821933495 | H38: 1.153114363 | I38: 2.160936317 | J38: 5.313935357 | L38: 0.94 | M38: 8.520633653 | N38: 0.05106502896 | O38: 0.3592617485 | P38: 1.083927501 | Q38: 2.031280138 | R38: 4.995099236 | AR38: 2.320368397 | AS38: 3.644171553 | AT38: 0.3128728516 | AU38: 0.3951889737 | AV38: 0.1000890266 | AW38: 0.05338081421 | AY38: 2.422096448 | AZ38: 3.803936903 | BA38: 0.3265896154 | BB38: 0.4125145864 | BC38: 0.1044770633 | BD38: 0.05572110042 | BF38: 2.932777758 | BG38: 5.03396087 | BH38: 0.4177792341 | BI38: 0.4761897495 | BJ38: 0.1329106142 | BK38: 0.07088566089
B39: =B38+1 -> 2045 | C39: 38472.95985 | L39: 0.94 | AY39: 0 | AZ39: 0 | BA39: 0 | BB39: 0 | BC39: 0 | BD39: 0 | BF39: -- | BG39: -- | BH39: -- | BI39: -- | BJ39: -- | BK39: --
B40: 2046 | C40: 38857.68945 | L40: 0.94 | AY40: 0 | AZ40: 0 | BA40: 0 | BB40: 0 | BC40: 0 | BD40: 0 | BF40: -- | BG40: -- | BH40: -- | BI40: -- | BJ40: -- | BK40: --
B41: 2047 | C41: 39246.26634 | L41: 0.94 | AY41: 0 | AZ41: 0 | BA41: 0 | BB41: 0 | BC41: 0 | BD41: 0 | BF41: -- | BG41: -- | BH41: -- | BI41: -- | BJ41: -- | BK41: --
B42: 2048 | C42: 39638.72901 | L42: 0.94 | AY42: 0 | AZ42: 0 | BA42: 0 | BB42: 0 | BC42: 0 | BD42: 0 | BF42: -- | BG42: -- | BH42: -- | BI42: -- | BJ42: -- | BK42: --
B43: 2049 | C43: 40035.1163 | L43: 0.94 | AY43: 0 | AZ43: 0 | BA43: 0 | BB43: 0 | BC43: 0 | BD43: 0 | BF43: -- | BG43: -- | BH43: -- | BI43: -- | BJ43: -- | BK43: --
B44: 2050 | C44: 40435.46746 | L44: 0.94 | AY44: 0 | AZ44: 0 | BA44: 0 | BB44: 0 | BC44: 0 | BD44: 0 | BF44: -- | BG44: -- | BH44: -- | BI44: -- | BJ44: -- | BK44: --
B45: 2051 | C45: 40839.82213 | L45: 0.94 | AY45: 0 | AZ45: 0 | BA45: 0 | BB45: 0 | BC45: 0 | BD45: 0 | BF45: -- | BG45: -- | BH45: -- | BI45: -- | BJ45: -- | BK45: --
B46: 2052 | C46: 41248.22036 | L46: 0.94 | AY46: 0 | AZ46: 0 | BA46: 0 | BB46: 0 | BC46: 0 | BD46: 0 | BF46: -- | BG46: -- | BH46: -- | BI46: -- | BJ46: -- | BK46: --
B47: 2053 | C47: 41660.70256 | L47: 0.94 | N47: =IF(ISNUMBER($E47),$M47*N$6,"") ->  | AY47: 0 | AZ47: 0 | BA47: 0 | BB47: 0 | BC47: 0 | BD47: 0 | BF47: -- | BG47: -- | BH47: -- | BI47: -- | BJ47: -- | BK47: --
B48: 2054 | C48: 42077.30959 | L48: 0.94 | AY48: 0 | AZ48: 0 | BA48: 0 | BB48: 0 | BC48: 0 | BD48: 0 | BF48: -- | BG48: -- | BH48: -- | BI48: -- | BJ48: -- | BK48: --
B49: 2055 | C49: 42498.08268 | L49: 0.94 | AY49: 0 | AZ49: 0 | BA49: 0 | BB49: 0 | BC49: 0 | BD49: 0 | BF49: -- | BG49: -- | BH49: -- | BI49: -- | BJ49: -- | BK49: --
B50: 2056 | C50: 42923.06351 | L50: 0.94 | AY50: 0 | AZ50: 0 | BA50: 0 | BB50: 0 | BC50: 0 | BD50: 0 | BF50: -- | BG50: -- | BH50: -- | BI50: -- | BJ50: -- | BK50: --
B51: 2057 | C51: 43352.29414 | L51: 0.94 | AY51: 0 | AZ51: 0 | BA51: 0 | BB51: 0 | BC51: 0 | BD51: 0 | BF51: -- | BG51: -- | BH51: -- | BI51: -- | BJ51: -- | BK51: --
B52: 2058 | C52: 43785.81708 | L52: 0.94 | AY52: 0 | AZ52: 0 | BA52: 0 | BB52: 0 | BC52: 0 | BD52: 0 | BF52: -- | BG52: -- | BH52: -- | BI52: -- | BJ52: -- | BK52: --
B53: 2059 | C53: 44223.67526 | L53: 0.94 | AY53: 0 | AZ53: 0 | BA53: 0 | BB53: 0 | BC53: 0 | BD53: 0 | BF53: -- | BG53: -- | BH53: -- | BI53: -- | BJ53: -- | BK53: --
B54: 2060 | C54: 44665.91201 | L54: 0.94 | AY54: 0 | AZ54: 0 | BA54: 0 | BB54: 0 | BC54: 0 | BD54: 0 | BF54: -- | BG54: -- | BH54: -- | BI54: -- | BJ54: -- | BK54: --
B55: 2061 | C55: 45112.57113 | L55: 0.94 | AY55: 0 | AZ55: 0 | BA55: 0 | BB55: 0 | BC55: 0 | BD55: 0 | BF55: -- | BG55: -- | BH55: -- | BI55: -- | BJ55: -- | BK55: --
B56: 2062 | C56: 45563.69684 | L56: 0.94 | AY56: 0 | AZ56: 0 | BA56: 0 | BB56: 0 | BC56: 0 | BD56: 0 | BF56: -- | BG56: -- | BH56: -- | BI56: -- | BJ56: -- | BK56: --
B57: 2063 | C57: 46019.33381 | L57: 0.94 | AY57: 0 | AZ57: 0 | BA57: 0 | BB57: 0 | BC57: 0 | BD57: 0 | BF57: -- | BG57: -- | BH57: -- | BI57: -- | BJ57: -- | BK57: --
B58: 2064 | C58: 46479.52715 | L58: 0.94 | AY58: 0 | AZ58: 0 | BA58: 0 | BB58: 0 | BC58: 0 | BD58: 0 | BF58: -- | BG58: -- | BH58: -- | BI58: -- | BJ58: -- | BK58: --
B59: 2065 | C59: 46944.32242 | L59: 0.94 | AY59: 0 | AZ59: 0 | BA59: 0 | BB59: 0 | BC59: 0 | BD59: 0 | BF59: -- | BG59: -- | BH59: -- | BI59: -- | BJ59: -- | BK59: --
B60: 2066 | C60: 47413.76564 | L60: 0.94 | AY60: 0 | AZ60: 0 | BA60: 0 | BB60: 0 | BC60: 0 | BD60: 0 | BF60: -- | BG60: -- | BH60: -- | BI60: -- | BJ60: -- | BK60: --
B61: 2067 | C61: 47887.9033 | L61: 0.94 | AY61: 0 | AZ61: 0 | BA61: 0 | BB61: 0 | BC61: 0 | BD61: 0 | BF61: -- | BG61: -- | BH61: -- | BI61: -- | BJ61: -- | BK61: --
B62: 2068 | C62: 48366.78233 | L62: 0.94 | AY62: 0 | AZ62: 0 | BA62: 0 | BB62: 0 | BC62: 0 | BD62: 0 | BF62: -- | BG62: -- | BH62: -- | BI62: -- | BJ62: -- | BK62: --
B63: 2069 | C63: 48850.45015 | L63: 0.94 | AY63: 0 | AZ63: 0 | BA63: 0 | BB63: 0 | BC63: 0 | BD63: 0 | BF63: -- | BG63: -- | BH63: -- | BI63: -- | BJ63: -- | BK63: --
B64: 2070 | C64: 49338.95466 | L64: 0.94 | AY64: 0 | AZ64: 0 | BA64: 0 | BB64: 0 | BC64: 0 | BD64: 0 | BF64: -- | BG64: -- | BH64: -- | BI64: -- | BJ64: -- | BK64: --
B65: 2071 | C65: 49832.3442 | L65: 0.94 | AY65: 0 | AZ65: 0 | BA65: 0 | BB65: 0 | BC65: 0 | BD65: 0 | BF65: -- | BG65: -- | BH65: -- | BI65: -- | BJ65: -- | BK65: --
B66: 2072 | C66: 50330.66764 | F66: =IF(ISNUMBER($E66),$E66*N$6,"") ->  | L66: 0.94 | AY66: 0 | AZ66: 0 | BA66: 0 | BB66: 0 | BC66: 0 | BD66: 0 | BF66: -- | BG66: -- | BH66: -- | BI66: -- | BJ66: -- | BK66: --
B67: 2073 | C67: 50833.97432 | L67: 0.94 | AY67: 0 | AZ67: 0 | BA67: 0 | BB67: 0 | BC67: 0 | BD67: 0 | BF67: -- | BG67: -- | BH67: -- | BI67: -- | BJ67: -- | BK67: --
B68: 2074 | C68: 51342.31406 | L68: 0.94 | AY68: 0 | AZ68: 0 | BA68: 0 | BB68: 0 | BC68: 0 | BD68: 0 | BF68: -- | BG68: -- | BH68: -- | BI68: -- | BJ68: -- | BK68: --
B69: 2075 | C69: 51855.7372 | L69: 0.94 | AY69: 0 | AZ69: 0 | BA69: 0 | BB69: 0 | BC69: 0 | BD69: 0 | BF69: -- | BG69: -- | BH69: -- | BI69: -- | BJ69: -- | BK69: --
B70: 2076 | C70: 52374.29458 | F70: =IF(ISNUMBER($E70),$E70*N$6,"") ->  | G70: =IF(ISNUMBER($E70),$E70*O$6,"") ->  | H70: =IF(ISNUMBER($E70),$E70*P$6,"") ->  | I70: =IF(ISNUMBER($E70),$E70*Q$6,"") ->  | J70: =IF(ISNUMBER($E70),$E70*R$6,"") ->  | L70: 0.94 | AY70: =AR70*$BB$8 -> 0 | AZ70: 0 | BA70: 0 | BB70: 0 | BC70: 0 | BD70: 0 | BF70: -- | BG70: -- | BH70: -- | BI70: -- | BJ70: -- | BK70: --
D74: Annual Cost | L74: Annual Cost
D75: Fatality | E75: Incap. | F75: Non-Inc. | G75: Poss. Injury | H75: PDO | I75: Total Cost | J75: Present Value | L75: Fatality | M75: Incap. | N75: Non-Inc. | O75: Poss. Injury | P75: PDO | Q75: Total Cost | R75: Present Value
D76: =IF(OR(NOT(ISNUMBER(A14)),ISBLANK(A14)),0,F14*N$9) -> 0 | E76: =IF(OR(NOT(ISNUMBER(A14)),ISBLANK(A14)),0,G14*O$9) -> 0 | F76: =IF(OR(NOT(ISNUMBER(A14)),ISBLANK(A14)),0,H14*P$9) -> 0 | G76: =IF(OR(NOT(ISNUMBER(A14)),ISBLANK(A14)),0,I14*Q$9) -> 0 | H76: =IF(OR(NOT(ISNUMBER(A14)),ISBLANK(A14)),0,J14*R$9) -> 0 | I76: =SUM(D76:H76) -> 0 | J76: =IF(ISNUMBER(A14),(I76)/((1+$F$9)^(A14)),0) -> 0 | L76: =IF(OR(NOT(ISNUMBER($A14)),ISBLANK($A14)),0,N14*N$9) -> 0 | M76: =IF(OR(NOT(ISNUMBER($A14)),ISBLANK($A14)),0,O14*O$9) -> 0 | N76: 0 | O76: 0 | P76: 0 | Q76: =SUM(L76:P76) -> 0 | R76: =IF(ISNUMBER(A14),(Q76)/((1+$F$9)^(A14)),0) -> 0
D77: 0 | E77: 0 | F77: 0 | G77: 0 | H77: 0 | I77: =SUM(D77:H77) -> 0 | J77: 0 | L77: =IF(OR(NOT(ISNUMBER($A15)),ISBLANK($A15)),0,N15*N$9) -> 0 | M77: 0 | N77: 0 | O77: 0 | P77: 0 | Q77: =SUM(L77:P77) -> 0 | R77: =IF(ISNUMBER(A15),(Q77)/((1+$F$9)^(A15)),0) -> 0
D78: 0 | E78: 0 | F78: 0 | G78: 0 | H78: 0 | I78: 0 | J78: 0 | L78: 0 | M78: 0 | N78: 0 | O78: 0 | P78: 0 | Q78: 0 | R78: 0
D79: 0 | E79: 0 | F79: 0 | G79: 0 | H79: 0 | I79: 0 | J79: 0 | L79: 0 | M79: 0 | N79: 0 | O79: 0 | P79: 0 | Q79: 0 | R79: 0
D80: 0 | E80: 0 | F80: 0 | G80: 0 | H80: 0 | I80: 0 | J80: 0 | L80: 0 | M80: 0 | N80: 0 | O80: 0 | P80: 0 | Q80: 0 | R80: 0
D81: 475039.4911 | E81: 273321.549 | F81: 164450.8495 | G81: 188103.7217 | H81: 33533.32042 | I81: 1134448.932 | J81: 1090816.281 | L81: 446537.1216 | M81: 256922.2561 | N81: 154583.7986 | O81: 176817.4984 | P81: 31521.3212 | Q81: 1066381.996 | R81: 1025367.304
D82: 480019.2762 | E82: 276186.7478 | F82: 166174.7692 | G82: 190075.5917 | H82: 33884.84642 | I82: 1146341.231 | J82: 1059856.908 | L82: 451218.1197 | M82: 259615.543 | N82: 156204.283 | O82: 178671.0562 | P82: 31851.75564 | Q82: 1077560.758 | R82: 996265.4933
D83: 485053.8072 | E83: 279083.4455 | F83: 167917.6409 | G83: 192069.1397 | H83: 34240.23696 | I83: 1158364.27 | J83: 1029781.618 | L83: 455950.5787 | M83: 262338.4388 | N83: 157842.5824 | O83: 180544.9913 | P83: 32185.82274 | Q83: 1088862.414 | R83: 967994.7212
D84: 490143.7002 | E84: 282011.9967 | F84: 169679.678 | G84: 194084.6097 | H84: 34599.53554 | I84: 1170519.52 | J84: 1000564.992 | L84: 460735.0782 | M84: 265091.2769 | N84: 159498.8974 | O84: 182439.5331 | P84: 32523.56341 | Q84: 1100288.349 | R84: 940531.092
D85: 495289.5788 | E85: 284972.76 | F85: 171461.0965 | G85: 196122.2485 | H85: 34962.78617 | I85: 1182808.47 | J85: 972182.3435 | L85: 465572.2041 | M85: 267874.3944 | N85: 161173.4307 | O85: 184354.9136 | P85: 32865.019 | Q85: 1111839.962 | R85: 913851.4029
D86: 500492.0734 | E86: 287966.0982 | F86: 173262.1144 | G86: 198182.3058 | H86: 35330.03336 | I86: 1195232.625 | J86: 944609.7053 | L86: 470462.549 | M86: 270688.1323 | N86: 162866.3876 | O86: 186291.3675 | P86: 33210.23136 | Q86: 1123518.668 | R86: 887933.123
D87: 505751.8216 | E87: 290992.3783 | F87: 175082.9526 | G87: 200265.0342 | H87: 35701.32212 | I87: 1207793.509 | J87: 917823.802 | L87: 475406.7123 | M87: 273532.8356 | N87: 164577.9755 | O87: 188249.1321 | P87: 33559.24279 | Q87: 1135325.898 | R87: 862754.3739
D88: 511069.4685 | E88: 294051.9713 | F88: 176923.8344 | G88: 202370.689 | H88: 36076.69798 | I88: 1220492.661 | J88: 891802.0327 | L88: 480405.3004 | M88: 276408.853 | N88: 166308.4044 | O88: 190228.4476 | P88: 33912.0961 | Q88: 1147263.101 | R88: 838293.9108
D89: 516445.6664 | E89: 297145.2525 | F89: 178784.9856 | G89: 204499.5284 | H89: 36456.20698 | I89: 1233331.64 | J89: 866522.4507 | L89: 485458.9264 | M89: 279316.5373 | N89: 168057.8865 | O89: 192229.5567 | P89: 34268.83457 | Q89: 1159331.741 | R89: 814531.1037
D90: 521881.075 | E90: 300272.6015 | F90: 180666.6346 | G90: 206651.8139 | H90: 36839.89571 | I90: 1246312.021 | J90: 841963.7444 | L90: 490568.2105 | M90: 282256.2454 | N90: 169826.6365 | O90: 194252.7051 | P90: 34629.50197 | Q90: 1171533.299 | R90: 791445.9197
D91: 527376.3617 | E91: 303434.4024 | F91: 182569.0123 | G91: 208827.8096 | H91: 37227.81127 | I91: =SUM(D91:H91) -> 1259435.397 | J91: 818105.2186 | L91: 495733.78 | M91: 285228.3382 | N91: 171614.8716 | O91: 196298.141 | P91: 34994.1426 | Q91: 1183869.273 | R91: 769018.9055
D92: 532932.2014 | E92: 306631.0434 | F92: 184492.3526 | G92: 211027.7827 | H92: 37620.0013 | I92: =SUM(D92:H92) -> 1272703.381 | J92: 794926.777 | L92: 500956.2693 | M92: 288233.1808 | N92: 173422.8114 | O92: 198366.1158 | P92: 35362.80123 | Q92: 1196341.178 | R92: 747231.1704
D93: 538549.2767 | E93: 309862.9173 | F93: 186436.8915 | G93: 213252.0037 | H93: 38016.514 | I93: 1286117.603 | J93: 772408.9042 | L93: =IF(OR(NOT(ISNUMBER($A31)),ISBLANK($A31)),0,N31*N$9) -> 506236.3201 | M93: 291271.1422 | N93: 175250.6781 | O93: 200456.8834 | P93: 35735.52316 | Q93: 1208950.547 | R93: 726064.3699
D94: 544228.2781 | E94: 313130.4213 | F94: 188402.8683 | G94: 215500.7457 | H94: 38417.39808 | I94: 1299679.712 | J94: 750532.6491 | L94: 511574.5814 | M94: 294342.596 | N94: 177098.6962 | O94: 202570.701 | P94: 36112.3542 | Q94: 1221698.929 | R94: 705500.6901
D95: 549969.9039 | E95: 316433.9573 | F95: 190390.5246 | G95: 217774.2855 | H95: 38822.70287 | I95: 1313391.374 | J95: 729279.6083 | L95: 516971.7096 | M95: 297447.9199 | N95: 178967.0931 | O95: 204707.8284 | P95: 36493.34069 | Q95: 1234587.892 | R95: 685522.8318
D96: 555774.8603 | E96: 319773.9316 | F96: 192400.105 | G96: 220072.9027 | H96: 39232.4782 | I96: 1327254.278 | J96: 708631.9101 | L96: 522428.3687 | M96: 300587.4957 | N96: 180856.0987 | O96: 206868.5285 | P96: 36878.5295 | Q96: 1247619.021 | R96: 666113.9955
D97: 561643.8618 | E97: 323150.7552 | F97: 194431.8566 | G97: 222396.88 | H97: 39646.77451 | I97: 1341270.128 | J97: 688572.1993 | L97: 527945.2301 | M97: 303761.7099 | N97: 182765.9452 | O97: 209053.0672 | P97: 37267.96803 | Q97: 1260793.921 | R97: 647257.8673
D98: 567577.6309 | E98: 326564.8439 | F98: 196486.0298 | G98: 224746.5037 | H98: 40065.64279 | I98: 1355440.651 | J98: 669083.6217 | L98: 533522.973 | M98: 306970.9533 | N98: 184696.868 | O98: 211261.7135 | P98: 37661.70423 | Q98: 1274114.212 | R98: 628938.6044
D99: 573576.8983 | E99: 330016.6181 | F99: 198562.8774 | G99: 227122.0631 | H99: 40489.13465 | I99: 1369767.592 | J99: 650149.81 | L99: 539162.2844 | M99: 310215.621 | N99: 186649.1047 | O99: 213494.7393 | P99: 38059.78657 | Q99: 1287581.536 | R99: 611140.8214
D100: 579642.4032 | E100: 333506.5031 | F100: 200662.6553 | G100: 229523.8509 | H100: 40917.30225 | I100: 1384252.715 | J100: 631754.8692 | L100: 544863.859 | M100: 313496.1129 | N100: 188622.8959 | O100: 215752.4198 | P100: 38462.26412 | Q100: 1301197.552 | R100: 593849.5771
D101: 0 | E101: 0 | F101: 0 | G101: 0 | H101: 0 | I101: 0 | J101: 0 | L101: 0 | M101: 0 | N101: 0 | O101: 0 | P101: 0 | Q101: 0 | R101: 0
D102: 0 | E102: 0 | F102: 0 | G102: 0 | H102: 0 | I102: 0 | J102: 0 | L102: 0 | M102: 0 | N102: 0 | O102: 0 | P102: 0 | Q102: 0 | R102: 0
D103: 0 | E103: 0 | F103: 0 | G103: 0 | H103: 0 | I103: 0 | J103: 0 | L103: 0 | M103: 0 | N103: 0 | O103: 0 | P103: 0 | Q103: 0 | R103: 0
D104: 0 | E104: 0 | F104: 0 | G104: 0 | H104: 0 | I104: 0 | J104: 0 | L104: 0 | M104: 0 | N104: 0 | O104: 0 | P104: 0 | Q104: 0 | R104: 0
D105: 0 | E105: 0 | F105: 0 | G105: 0 | H105: 0 | I105: 0 | J105: 0 | L105: 0 | M105: 0 | N105: 0 | O105: 0 | P105: 0 | Q105: 0 | R105: 0
D106: 0 | E106: 0 | F106: 0 | G106: 0 | H106: 0 | I106: 0 | J106: 0 | L106: 0 | M106: 0 | N106: 0 | O106: 0 | P106: 0 | Q106: 0 | R106: 0
D107: 0 | E107: 0 | F107: 0 | G107: 0 | H107: 0 | I107: 0 | J107: 0 | L107: 0 | M107: 0 | N107: 0 | O107: 0 | P107: 0 | Q107: 0 | R107: 0
D108: 0 | E108: 0 | F108: 0 | G108: 0 | H108: 0 | I108: 0 | J108: 0 | L108: 0 | M108: 0 | N108: 0 | O108: 0 | P108: 0 | Q108: 0 | R108: 0
D109: 0 | E109: 0 | F109: 0 | G109: 0 | H109: 0 | I109: 0 | J109: 0 | L109: =IF(OR(NOT(ISNUMBER($A47)),ISBLANK($A47)),0,N47*N$9) -> 0 | M109: 0 | N109: 0 | O109: 0 | P109: 0 | Q109: 0 | R109: 0
D110: 0 | E110: 0 | F110: 0 | G110: 0 | H110: 0 | I110: 0 | J110: 0 | L110: 0 | M110: 0 | N110: 0 | O110: 0 | P110: 0 | Q110: 0 | R110: 0
D111: 0 | E111: 0 | F111: 0 | G111: 0 | H111: 0 | I111: 0 | J111: 0 | L111: 0 | M111: 0 | N111: 0 | O111: 0 | P111: 0 | Q111: 0 | R111: 0
D112: 0 | E112: 0 | F112: 0 | G112: 0 | H112: 0 | I112: 0 | J112: 0 | L112: 0 | M112: 0 | N112: 0 | O112: 0 | P112: 0 | Q112: 0 | R112: 0
D113: 0 | E113: 0 | F113: 0 | G113: 0 | H113: 0 | I113: 0 | J113: 0 | L113: 0 | M113: 0 | N113: 0 | O113: 0 | P113: 0 | Q113: 0 | R113: 0
D114: 0 | E114: 0 | F114: 0 | G114: 0 | H114: 0 | I114: 0 | J114: 0 | L114: 0 | M114: 0 | N114: 0 | O114: 0 | P114: 0 | Q114: 0 | R114: 0
D115: 0 | E115: 0 | F115: 0 | G115: 0 | H115: 0 | I115: 0 | J115: 0 | L115: 0 | M115: 0 | N115: 0 | O115: 0 | P115: 0 | Q115: 0 | R115: 0
D116: 0 | E116: 0 | F116: 0 | G116: 0 | H116: 0 | I116: 0 | J116: 0 | L116: 0 | M116: 0 | N116: 0 | O116: 0 | P116: 0 | Q116: 0 | R116: 0
D117: 0 | E117: 0 | F117: 0 | G117: 0 | H117: 0 | I117: 0 | J117: 0 | L117: 0 | M117: 0 | N117: 0 | O117: 0 | P117: 0 | Q117: 0 | R117: 0
D118: 0 | E118: 0 | F118: 0 | G118: 0 | H118: 0 | I118: 0 | J118: 0 | L118: 0 | M118: 0 | N118: 0 | O118: 0 | P118: 0 | Q118: 0 | R118: 0
D119: 0 | E119: 0 | F119: 0 | G119: 0 | H119: 0 | I119: 0 | J119: 0 | L119: 0 | M119: 0 | N119: 0 | O119: 0 | P119: 0 | Q119: 0 | R119: 0
D120: 0 | E120: 0 | F120: 0 | G120: 0 | H120: 0 | I120: 0 | J120: 0 | L120: 0 | M120: 0 | N120: 0 | O120: 0 | P120: 0 | Q120: 0 | R120: 0
D121: 0 | E121: 0 | F121: 0 | G121: 0 | H121: 0 | I121: 0 | J121: 0 | L121: 0 | M121: 0 | N121: 0 | O121: 0 | P121: 0 | Q121: 0 | R121: 0
D122: 0 | E122: 0 | F122: 0 | G122: 0 | H122: 0 | I122: 0 | J122: 0 | L122: 0 | M122: 0 | N122: 0 | O122: 0 | P122: 0 | Q122: 0 | R122: 0
D123: 0 | E123: 0 | F123: 0 | G123: 0 | H123: 0 | I123: 0 | J123: 0 | L123: 0 | M123: 0 | N123: 0 | O123: 0 | P123: 0 | Q123: 0 | R123: 0
D124: 0 | E124: 0 | F124: 0 | G124: 0 | H124: 0 | I124: 0 | J124: 0 | L124: 0 | M124: 0 | N124: 0 | O124: 0 | P124: 0 | Q124: 0 | R124: 0
D125: 0 | E125: 0 | F125: 0 | G125: 0 | H125: 0 | I125: 0 | J125: 0 | L125: =IF(OR(NOT(ISNUMBER($A63)),ISBLANK($A63)),0,N63*N$9) -> 0 | M125: 0 | N125: 0 | O125: 0 | P125: 0 | Q125: 0 | R125: 0
D126: 0 | E126: 0 | F126: 0 | G126: 0 | H126: 0 | I126: 0 | J126: 0 | L126: 0 | M126: 0 | N126: 0 | O126: 0 | P126: 0 | Q126: 0 | R126: 0
D127: 0 | E127: 0 | F127: 0 | G127: 0 | H127: 0 | I127: 0 | J127: 0 | L127: 0 | M127: 0 | N127: 0 | O127: 0 | P127: 0 | Q127: 0 | R127: 0
D128: 0 | E128: 0 | F128: 0 | G128: 0 | H128: 0 | I128: 0 | J128: 0 | L128: 0 | M128: 0 | N128: 0 | O128: 0 | P128: 0 | Q128: 0 | R128: 0
D129: 0 | E129: 0 | F129: 0 | G129: 0 | H129: 0 | I129: 0 | J129: 0 | L129: 0 | M129: 0 | N129: 0 | O129: 0 | P129: 0 | Q129: 0 | R129: 0
D130: 0 | E130: 0 | F130: 0 | G130: 0 | H130: 0 | I130: 0 | J130: 0 | L130: 0 | M130: 0 | N130: 0 | O130: 0 | P130: 0 | Q130: 0 | R130: 0
D131: 0 | E131: 0 | F131: 0 | G131: 0 | H131: 0 | I131: 0 | J131: 0 | L131: 0 | M131: 0 | N131: 0 | O131: 0 | P131: 0 | Q131: 0 | R131: 0
D132: 0 | E132: 0 | F132: 0 | G132: 0 | H132: 0 | I132: 0 | J132: 0 | L132: 0 | M132: 0 | N132: 0 | O132: 0 | P132: 0 | Q132: 0 | R132: 0

Sheet TWS Crash Cost #2
B1: T W O W A Y S E G M E N T S
U3: Total Analysis Period Crash Cost
N4: Default Crash Distribution
B5: ='Crash Cost Totals'!B6 -> Site-specific | E5: FROM CRASH COST TOTALS TAB | G5: FROM TOTAL TAB | N5: K | O5: A | P5: B | Q5: C | R5: O | S5: Sum | U5: No Lighting | W5: With Lighting
B6: adjustment type: | E6: Opening Year = | F6: 2025 | G6: Segment Type = | I6: 6D | M6: % | N6: =VLOOKUP($I$6,Factors!$I$7:$N$13, 2, FALSE) -> 0.005993102279 | O6: =VLOOKUP($I$6,Factors!$I$7:$N$13, 3, FALSE) -> 0.04216373608 | P6: =VLOOKUP($I$6,Factors!$I$7:$N$13, 4,FALSE) -> 0.1272120767 | Q6: =VLOOKUP($I$6,Factors!$I$7:$N$13, 5,FALSE) -> 0.2383954317 | R6: =VLOOKUP($I$6,Factors!$I$7:$N$13, 6, FALSE) -> 0.5862356533 | S6: =SUM(N6:R6) -> 1
B7: ='Crash Cost Totals'!B6 -> Site-specific | E7: Analysis Period = | F7: 20 | G7: Analysis Year AADT = | I7: 28000 | M7: Cost* | N7: 10670000 | O7: 872612 | P7: 174018 | Q7: 106215 | R7: 7700 | U7: =SUMIF($A$14:$A$70,">0",$J$76:$J$132) -> 20653178.66 | W7: =SUMIF($A$14:$A$70,">0",$R$76:$R$132) -> 19413987.94
E8: Growth Rate = | F8: 0.01 | G8: Segment Length (mi) = | I8: 0.7 | AY8: Adjustment Factor to Reset to No Lighting Base Condition | BB8: =VLOOKUP(I6,Factors!$B$7:$F$13,5, FALSE) -> 1.043841336
E9: Rate of Return = | F9: 0.04 | G9: Analysis Year = | I9: 2020 | M9: Use Val | N9: =N7 -> 10670000 | O9: =O7 -> 872612 | P9: =P7 -> 174018 | Q9: =Q7 -> 106215 | R9: =R7 -> 7700
M10: *Values are the 2020 FDOT KABCO crash costs as laied out in the FDOT Design Manual | X10: Analysis (Base Year) EB Computations
X11: Length | Y11: Sum lookup | Z11: Inverse dispersion parameter | AD11: Predicted crash total | AH11: Observed crash total | AL11: Weight | AR11: Original Mixed Lighting Predicted crash total | AY11: Adjusted Predicted crash total | BF11: EB Adjusted crash total
B12: AADT / Year | E12: Annual Number of Crashes - No Lighting | L12: Annual Number of Crashes - With Lighting | Z12: Multiple-vehicle | AB12: Single-vehicle | AD12: Multiple-vehicle | AF12: Single-vehicle | AH12: Multiple-vehicle | AJ12: Single-vehicle | AL12: Multiple-vehicle | AN12: Single-vehicle | AR12: Multiple-vehicle | AT12: Single-vehicle | AV12: Vehicle-pedestrian | AW12: Vehicle-bicycle | AY12: Multiple-vehicle | BA12: Single-vehicle | BC12: Vehicle-pedestrian | BD12: Vehicle-bicycle | BF12: Multiple-vehicle | BH12: Single-vehicle | BJ12: Vehicle-pedestrian | BK12: Vehicle-bicycle
B13: Year | C13: Major AADT | E13: Site Specific (Np/e) | F13: Fatality | G13: Incap. | H13: Non-Inc. | I13: Poss. Injury | J13: PDO | L13: Lighting CMF | M13: Adjusted Np/e | N13: Fatality | O13: Incap. | P13: Non-Inc. | Q13: Poss. Injury | R13: PDO | Z13: MV F+I | AA13: MV PDO | AB13: SV F+I | AC13: SV PDO | AD13: MV F+I | AE13: MV PDO | AF13: SV F+I | AG13: SV PDO | AH13: MV F+I | AI13: MV PDO | AJ13: SV F+I | AK13: SV PDO | AL13: MV F+I | AM13: MV PDO | AN13: SV F+I | AO13: SV PDO | AR13: MV F+I | AS13: MV PDO | AT13: SV F+I | AU13: SV PDO | AV13: F+I | AW13: F+I | AY13: MV F+I | AZ13: MV PDO | BA13: SV F+I | BB13: SV PDO | BC13: F+I | BD13: F+I | BF13: MV F+I | BG13: MV PDO | BH13: SV F+I | BI13: SV PDO | BJ13: F+I | BK13: F+I
A14: =IF(B14=$F$6, 1, IF(AND(B14-$F$6<$F$7,B14-$F$6>0),B14-$F$6 + 1,"")) ->  | B14: =I9 -> 2020 | C14: =I7 -> 28000 | E14: =IF(B14<$F$6+$F$7,IF($B$7="Site-specific",SUM(BF14:BK14),SUM(AY14:BD14)),"") -> 8.64938613 | F14: =IF(ISNUMBER($E14),$E14*N$6,"") -> 0.05183665572 | G14: =IF(ISNUMBER($E14),$E14*O$6,"") -> 0.364690434 | H14: =IF(ISNUMBER($E14),$E14*P$6,"") -> 1.100306371 | I14: =IF(ISNUMBER($E14),$E14*Q$6,"") -> 2.06197414 | J14: =IF(ISNUMBER($E14),$E14*R$6,"") -> 5.070578529 | L14: =VLOOKUP(I6,Factors!$B$7:$F$13,4, FALSE) -> 0.94 | M14: =IF(B14<$F$6+$F$7,E14*L14,"") -> 8.130422962 | N14: =IF(ISNUMBER($E14),$M14*N$6,"") -> 0.04872645638 | O14: =IF(ISNUMBER($E14),$M14*O$6,"") -> 0.342809008 | P14: =IF(ISNUMBER($E14),$M14*P$6,"") -> 1.034287989 | Q14: =IF(ISNUMBER($E14),$M14*Q$6,"") -> 1.938255692 | R14: =IF(ISNUMBER($E14),$M14*R$6,"") -> 4.766343817 | X14: =$I$8 -> 0.7 | Z14: =EXP(VLOOKUP($I$6,Totals!$BG$14:$BK$20,2,FALSE))*$X14 -> 5.437530774 | AA14: =EXP(VLOOKUP($I$6,Totals!$BG$14:$BK$20,3,FALSE))*$X14 -> 4.727162159 | AB14: =EXP(VLOOKUP($I$6,Totals!$BG$14:$BK$20,4,FALSE))*$X14 -> 3.137182349 | AC14: =EXP(VLOOKUP($I$6,Totals!$BG$14:$BK$20,5,FALSE))*$X14 -> 5.172339269 | AD14: =AY14 -> 2.251452476 | AE14: =AZ14 -> 3.737372374 | AF14: 0.3711893132 | AG14: 0.4731977688 | AH14: 4 | AI14: 6 | AJ14: 1 | AK14: 1 | AL14: =1/(1 + AD14/Z14) -> 0.7071846299 | AM14: =1/(1 + AE14/AA14) -> 0.5584668762 | AN14: 0.8941989764 | AO14: 0.9161819743 | AR14: 2.156891472 | AS14: 3.580402734 | AT14: 0.355599362 | AU14: 0.4533234625 | AV14: 0.09819325546 | AW14: 0.05236973625 | AY14: =AR14*$BB$8 -> 2.251452476 | AZ14: =AS14*$BB$8 -> 3.737372374 | BA14: 0.3711893132 | BB14: 0.4731977688 | BC14: 0.102498179 | BD14: 0.05466569545 | BF14: =AL14*AD14 + (1-AL14)*AH14 -> 2.763454066 | BG14: =AM14*AE14 + (1-AM14)*AI14 -> 4.736397418 | BH14: =AN14*AF14 + (1-AN14)*AJ14 -> 0.4377181275 | BI14: =AO14*AG14 + (1-AO14)*AK14 -> 0.5173532917 | BJ14: =BC14/SUM(AY14:BB14)*SUM(BF14:BI14) -> 0.1268238435 | BK14: =BD14/SUM(AY14:BB14)*SUM(BF14:BI14) -> 0.06763938323
A15: =IF(B15=$F$6, 1, IF(AND(B15-$F$6<$F$7,B15-$F$6>0),B15-$F$6 + 1,"")) ->  | B15: =B14+1 -> 2021 | C15: =C14*(1+$F$8) -> 28280 | E15: =IF(B15<$F$6+$F$7,IF($B$7="Site-specific",SUM(BF15:BK15),SUM(AY15:BD15)),"") -> 8.740182578 | F15: =IF(ISNUMBER($E15),$E15*N$6,"") -> 0.05238080812 | G15: 0.3685187515 | H15: 1.111856776 | I15: 2.083619599 | J15: 5.123806644 | L15: =L14 -> 0.94 | M15: =IF(B15<$F$6+$F$7,E15*L15,"") -> 8.215771623 | N15: =IF(ISNUMBER($E15),$M15*N$6,"") -> 0.04923795963 | O15: 0.3464076264 | P15: 1.04514537 | Q15: 1.958602423 | R15: 4.816378245 | AR15: 2.18366894 | AS15: 3.618366354 | AT15: 0.3572307251 | AU15: 0.4552672268 | AV15: 0.09921799868 | AW15: 0.05291626596 | AY15: =AR15*$BB$8 -> 2.279403904 | AZ15: 3.777000369 | BA15: 0.3728921974 | BB15: 0.4752267503 | BC15: 0.1035678483 | BD15: 0.05523618576 | BF15: =IF($B15<($F$6+$F$7),AY15/AY$14*BF$14,"--") -> 2.797761913 | BG15: =IF($B15<($F$6+$F$7),AZ15/AZ$14*BG$14,"--") -> 4.786618245 | BH15: 0.4397262222 | BI15: 0.5195716037 | BJ15: =IF($B15<($F$6+$F$7),BC15/SUM(AY15:BB15)*SUM(BF15:BI15),"--") -> 0.1281551698 | BK15: =IF($B15<($F$6+$F$7),BD15/SUM(AY15:BB15)*SUM(BF15:BI15),"--") -> 0.06834942387
B16: =B15+1 -> 2022 | C16: 28562.8 | E16: 8.831978651 | F16: 0.05293095138 | G16: 0.3723892169 | H16: 1.123534345 | I16: 2.105503363 | J16: 5.177620774 | L16: 0.94 | M16: 8.302059932 | N16: 0.04975509429 | O16: 0.3500458639 | P16: 1.056122285 | Q16: 1.979173161 | R16: 4.866963528 | AR16: 2.210778846 | AS16: 3.656732507 | AT16: 0.3588695722 | AU16: 0.4572193256 | AV16: 0.1002540038 | AW16: 0.05346880201 | AY16: 2.307702344 | AZ16: 3.817048546 | BA16: 0.3746028938 | BB16: 0.4772644317 | BC16: 0.1046492732 | BD16: 0.05581294573 | BF16: =IF($B16<($F$6+$F$7),AY16/AY$14*BF$14,"--") -> 2.832495687 | BG16: 4.837371573 | BH16: 0.4417435293 | BI16: 0.5217994274 | BJ16: =IF($B16<($F$6+$F$7),BC16/SUM(AY16:BB16)*SUM(BF16:BI16),"--") -> 0.1295011532 | BK16: =IF($B16<($F$6+$F$7),BD16/SUM(AY16:BB16)*SUM(BF16:BI16),"--") -> 0.06906728173
B17: 2023 | C17: 28848.428 | E17: 8.924785619 | F17: 0.05348715303 | G17: 0.3763023054 | H17: 1.135340512 | I17: 2.12762812 | J17: 5.232027528 | L17: 0.94 | M17: 8.389298482 | N17: 0.05027792385 | O17: 0.3537241671 | P17: 1.067220082 | Q17: 1.999970433 | R17: 4.918105876 | AR17: 2.238225317 | AS17: 3.695505464 | AT17: 0.3605159378 | AU17: 0.4591797946 | AV17: 0.1013013977 | AW17: 0.05402741211 | AY17: 2.336352105 | AZ17: 3.857521361 | BA17: 0.3763214382 | BB17: 0.4793108503 | BC17: 0.1057425863 | BD17: 0.05639604604 | BF17: 2.867660674 | BG17: 4.888663046 | BH17: 0.443770091 | BI17: 0.5240368035 | BJ17: 0.1308619592 | BK17: 0.06979304492
B18: 2024 | C18: 29136.91228 | E18: 9.018614882 | F18: 0.0540494814 | G18: 0.3802584977 | H18: 1.147276728 | I18: 2.149996588 | J18: 5.287033587 | L18: 0.94 | M18: 8.477497989 | N18: 0.05080651252 | O18: 0.3574429878 | P18: 1.078440124 | Q18: 2.020996793 | R18: 4.969811572 | AR18: 2.266012531 | AS18: 3.734689537 | AT18: 0.3621698564 | AU18: 0.4611486697 | AV18: 0.1023603089 | AW18: 0.05459216476 | AY18: 2.365357548 | AZ18: 3.898423316 | BA18: 0.3780478668 | BB18: 0.4813660435 | BC18: 0.1068479216 | BD18: 0.0569855582 | BF18: 2.90326223 | BG18: 4.940498372 | BH18: 0.4458059499 | BI18: 0.5262837731 | BJ18: 0.1322377549 | BK18: 0.0705268026
A19: 1 | B19: 2025 | C19: 29428.2814 | E19: 9.113477969 | F19: 0.05461800558 | G19: 0.3842582799 | H19: 1.159344458 | I19: 2.172611515 | J19: 5.342645711 | L19: 0.94 | M19: 8.566669291 | N19: 0.05134092525 | O19: 0.3612027831 | P19: 1.089783791 | Q19: 2.042254824 | R19: 5.022086969 | AR19: 2.29414472 | AS19: 3.774289085 | AT19: 0.3638313625 | AU19: 0.463125987 | AV19: 0.1034308673 | AW19: 0.05516312924 | AY19: 2.39472309 | AZ19: 3.939758962 | BA19: 0.3797822156 | BB19: 0.4834300491 | BC19: 0.1079654147 | BD19: 0.05758155453 | BF19: 2.939305773 | BG19: 4.992883316 | BH19: 0.4478511486 | BI19: 0.5285403772 | BJ19: 0.1336287092 | BK19: 0.07126864492
A20: 2 | B20: 2026 | C20: 29722.56422 | E20: 9.209386542 | F20: 0.05519279547 | G20: 0.3883021436 | H20: 1.171545187 | I20: 2.19547568 | J20: 5.398870736 | L20: 0.94 | M20: 8.65682335 | N20: 0.05188122774 | O20: 0.365004015 | P20: 1.101252476 | Q20: 2.063747139 | R20: 5.074938492 | AR20: 2.322626165 | AS20: 3.814308515 | AT20: 0.3655004911 | AU20: 0.4651117826 | AV20: 0.1045132043 | AW20: 0.05574037563 | AY20: 2.4244532 | AZ20: 3.981532896 | BA20: 0.3815245209 | BB20: 0.4855029046 | BC20: 0.1090952028 | BD20: 0.05818410817 | BF20: 2.975796791 | BG20: 5.045823707 | BH20: 0.44990573 | BI20: 0.5308066573 | BJ20: 0.1350349933 | BK20: 0.07201866309
A21: 3 | B21: 2027 | C21: 30019.78986 | E21: 9.306352395 | F21: 0.05577392174 | G21: 0.3923905862 | H21: 1.183880414 | I21: 2.218591896 | J21: 5.455715576 | L21: 0.94 | M21: 8.747971251 | N21: 0.05242748644 | O21: 0.3688471511 | P21: 1.112847589 | Q21: 2.085476383 | R21: 5.128372642 | AR21: 2.351461203 | AS21: 3.854752277 | AT21: 0.367177277 | AU21: 0.467106093 | AV21: 0.1056074527 | AW21: 0.0563239748 | AY21: 2.454552404 | AZ21: 4.023749767 | BA21: 0.3832748194 | BB21: 0.4875846482 | BC21: 0.1102374246 | BD21: 0.05879329311 | BF21: 3.01274084 | BG21: 5.099325434 | BH21: 0.451969737 | BI21: 0.5330826547 | BJ21: 0.13645678 | BK21: 0.07277694933
A22: 4 | B22: 2028 | C22: 30319.98776 | E22: 9.404387457 | F22: 0.0563614559 | G22: 0.3965241107 | H22: 1.196351658 | I22: 2.241963007 | J22: 5.513187225 | L22: 0.94 | M22: 8.84012421 | N22: 0.05297976854 | O22: 0.3727326641 | P22: 1.124570559 | Q22: 2.107445227 | R22: 5.182395991 | AR22: 2.380654224 | AS22: 3.895624871 | AT22: 0.3688617553 | AU22: 0.4691089546 | AV22: 0.1067137471 | AW22: 0.05691399843 | AY22: 2.485025286 | AZ22: 4.06641427 | BA22: 0.3850331475 | BB22: 0.4896753179 | BC22: 0.1113922203 | BD22: 0.05940918417 | BF22: 3.050143542 | BG22: 5.153394449 | BH22: 0.454043213 | BI22: 0.5353684111 | BJ22: 0.1378942442 | BK22: 0.07354359693
A23: 5 | B23: 2029 | C23: 30623.18764 | E23: 9.503503794 | F23: 0.05695547024 | G23: 0.4007032258 | H23: 1.208960453 | I23: 2.265591889 | J23: 5.571292755 | L23: 0.94 | M23: 8.933293567 | N23: 0.05353814203 | O23: 0.3766610322 | P23: 1.136422826 | Q23: 2.129656376 | R23: 5.23701519 | AR23: 2.410209671 | AS23: 3.936930844 | AT23: 0.3705539615 | AU23: 0.471120404 | AV23: 0.1078322232 | AW23: 0.05751051904 | AY23: 2.515876483 | AZ23: 4.109531152 | BA23: 0.3867995423 | BB23: 0.491774952 | BC23: 0.1125597319 | BD23: 0.06003185704 | BF23: 3.088010594 | BG23: 5.208036767 | BH23: 0.4561262013 | BI23: 0.5376639685 | BJ23: 0.139347563 | BK23: 0.07431870025
A24: 6 | B24: 2030 | C24: 30929.41951 | E24: 9.60371361 | F24: 0.05755603792 | G24: 0.404928446 | H24: 1.221708352 | I24: 2.289481452 | J24: 5.630039322 | L24: 0.94 | M24: 9.027490794 | N24: 0.05410267564 | O24: 0.3806327393 | P24: 1.148405851 | Q24: 2.152112565 | R24: 5.292236963 | AR24: 2.440132044 | AS24: 3.978674791 | AT24: 0.3722539309 | AU24: 0.4731404782 | AV24: 0.1089630187 | AW24: 0.05811360996 | AY24: 2.547110693 | AZ24: 4.15310521 | BA24: 0.3885740407 | BB24: 0.493883589 | BC24: 0.113740103 | BD24: 0.06066138826 | BF24: 3.126347759 | BG24: 5.263258467 | BH24: 0.4582187456 | BI24: 0.5399693687 | BJ24: 0.1408169151 | BK24: 0.07510235472
A25: 7 | B25: 2031 | C25: 31238.71371 | E25: 9.705029248 | F25: 0.0581632329 | G25: 0.4092002918 | H25: 1.234596925 | I25: 2.313634637 | J25: 5.689434162 | L25: 0.94 | M25: 9.122727493 | N25: 0.05467343893 | O25: 0.3846482743 | P25: 1.160521109 | Q25: 2.174816559 | R25: 5.348068112 | AR25: 2.470425899 | AS25: 4.020861356 | AT25: 0.3739616992 | AU25: 0.4751692141 | AV25: 0.1101062725 | AW25: 0.05872334535 | AY25: 2.578732671 | AZ25: 4.197141291 | BA25: 0.3903566798 | BB25: 0.4960012673 | BC25: 0.1149334786 | BD25: 0.06129785527 | BF25: 3.165160874 | BG25: 5.319065692 | BH25: 0.4603208898 | BI25: 0.5422846541 | BJ25: 0.1423024816 | BK25: 0.07589465688
A26: 8 | B26: 2032 | C26: 31551.10084 | E26: 9.807463192 | F26: 0.05877713 | G26: 0.4135192896 | H26: 1.24762776 | I26: 2.338054421 | J26: 5.749484592 | L26: 0.94 | M26: 9.219015401 | N26: 0.0552505022 | O26: 0.3887081323 | P26: 1.172770094 | Q26: 2.197771156 | R26: 5.404515516 | AR26: 2.501095848 | AS26: 4.063495233 | AT26: 0.3756773021 | AU26: 0.4772066488 | AV26: 0.1112621255 | AW26: 0.05933980025 | AY26: 2.610747231 | AZ26: 4.241644294 | BA26: 0.392147497 | BB26: 0.4981280259 | BC26: 0.1161400057 | BD26: 0.06194133638 | BF26: 3.204455848 | BG26: 5.37546465 | BH26: 0.4624326779 | BI26: 0.544609867 | BJ26: 0.1438044456 | BK26: 0.07669570434
A27: 9 | B27: 2033 | C27: 31866.61185 | E27: 9.91102807 | F27: 0.05939780491 | G27: 0.4178859718 | H27: 1.260802463 | I27: 2.362743815 | J27: 5.810198016 | L27: 0.94 | M27: 9.316366386 | N27: 0.05583393661 | O27: 0.3928128135 | P27: 1.185154315 | Q27: 2.220979186 | R27: 5.461586135 | AR27: 2.532146559 | AS27: 4.106581164 | AT27: 0.3774007756 | AU27: 0.4792528196 | AV27: 0.1124307198 | AW27: 0.05996305055 | AY27: 2.643159247 | AZ27: 4.28661917 | BA27: 0.3939465299 | BB27: 0.5002639036 | BC27: 0.1173598327 | BD27: 0.0625919108 | BF27: 3.244238662 | BG27: 5.432461616 | BH27: 0.4645541541 | BI27: 0.5469450499 | BJ27: 0.1453229922 | BK27: 0.07750559586
A28: 10 | B28: 2034 | C28: 32185.27797 | E28: 10.01573665 | F28: 0.06002533416 | G28: 0.4223008769 | H28: 1.274122659 | I28: 2.387705863 | J28: 5.87158192 | L28: 0.94 | M28: 9.414792454 | N28: 0.05642381411 | O28: 0.3969628242 | P28: 1.197675299 | Q28: 2.244443511 | R28: 5.519287005 | AR28: 2.563582759 | AS28: 4.150123943 | AT28: 0.3791321558 | AU28: 0.4813077641 | AV28: 0.1136121993 | AW28: 0.06059317298 | AY28: 2.675973653 | AZ28: 4.332070922 | BA28: 0.395753816 | BB28: 0.5024089395 | BC28: 0.1185931099 | BD28: 0.06324965864 | BF28: 3.284515374 | BG28: 5.49006293 | BH28: 0.4666853629 | BI28: 0.5492902457 | BJ28: 0.1468583087 | BK28: 0.0783244313
A29: 11 | B29: 2035 | C29: 32507.13075 | E29: 10.12160186 | F29: 0.06065979516 | G29: 0.4267645494 | H29: 1.287589992 | I29: 2.412943644 | J29: 5.933643878 | L29: 0.94 | M29: 9.514305747 | N29: 0.05702020745 | O29: 0.4011586765 | P29: 1.210334592 | Q29: 2.268167026 | R29: 5.577625245 | AR29: 2.595409235 | AS29: 4.194128413 | AT29: 0.3808714789 | AU29: 0.4833715197 | AV29: 0.1148067097 | AW29: 0.06123024517 | AY29: 2.709195444 | AZ29: 4.378004606 | BA29: 0.3975693934 | BB29: 0.5045631729 | BC29: 0.1198399893 | BD29: 0.06391466093 | BF29: 3.325292115 | BG29: 5.548275001 | BH29: 0.4688263489 | BI29: 0.5516454972 | BJ29: 0.1484105844 | BK29: 0.0791523117
A30: 12 | B30: 2036 | C30: 32832.20206 | E30: 10.22863675 | F30: 0.06130126623 | G30: 0.4312775405 | H30: 1.301206123 | I30: 2.438460274 | J30: 5.996391549 | L30: 0.94 | M30: 9.614918547 | N30: 0.05762319025 | O30: 0.405400888 | P30: 1.223133755 | Q30: 2.292152658 | R30: 5.636608056 | AR30: 2.627630832 | AS30: 4.23859947 | AT30: 0.3826187814 | AU30: 0.4854441243 | AV30: 0.1160143981 | AW30: 0.06187434566 | AY30: 2.742829679 | AZ30: 4.424425334 | BA30: 0.3993933 | BB30: 0.5067266433 | BC30: 0.1211006243 | BD30: 0.06458699965 | BF30: 3.366575093 | BG30: 5.607104305 | BH30: 0.470977157 | BI30: 0.5540108476 | BJ30: 0.149980011 | BK30: 0.07998933922
A31: 13 | B31: 2037 | C31: 33160.52408 | E31: 10.33685455 | F31: 0.06194982655 | G31: 0.4358404071 | H31: 1.314972733 | I31: 2.464258902 | J31: 6.05983268 | L31: 0.94 | M31: 9.716643276 | N31: 0.05823283696 | O31: 0.4096899827 | P31: 1.236074369 | Q31: 2.316403368 | R31: 5.696242719 | AR31: 2.660252455 | AS31: 4.283542061 | AT31: 0.3843740999 | AU31: 0.4875256159 | AV31: 0.1172354135 | AW31: 0.06252555385 | AY31: 2.776881477 | AZ31: 4.471338268 | BA31: 0.401225574 | BB31: 0.5088993902 | BC31: 0.1223751706 | BD31: 0.06526675768 | BF31: 3.408370592 | BG31: 5.666557385 | BH31: 0.4731378322 | BI31: 0.5563863401 | BJ31: 0.1515667822 | BK31: 0.0808356172
A32: 14 | B32: 2038 | C32: 33492.12932 | E32: 10.44626862 | F32: 0.06260555624 | G32: 0.4404537129 | H32: 1.328891524 | I32: 2.490342716 | J32: 6.123975107 | L32: 0.94 | M32: 9.819492499 | N32: 0.05884922287 | O32: 0.4140264901 | P32: 1.249158033 | Q32: 2.340922153 | R32: 5.7565366 | AR32: 2.69327907 | AS32: 4.328961186 | AT32: 0.3861374712 | AU32: 0.4896160324 | AV32: 0.1184699064 | AW32: 0.06318395008 | AY32: 2.811356023 | AZ32: 4.518748628 | BA32: 0.4030662538 | BB32: 0.5110814535 | BC32: 0.1236637854 | BD32: 0.06595401887 | BF32: 3.450684976 | BG32: 5.726640857 | BH32: 0.4753084198 | BI32: 0.5587720183 | BJ32: 0.1531710941 | BK32: 0.08169125017
A33: 15 | B33: 2039 | C33: 33827.05061 | E33: 10.55689247 | F33: 0.06326853632 | G33: 0.4451180279 | H33: 1.342964214 | I33: 2.516714938 | J33: 6.188826754 | L33: 0.94 | M33: 9.923478922 | N33: 0.05947242414 | O33: 0.4184109463 | P33: 1.262386361 | Q33: 2.365712041 | R33: 5.817497149 | AR33: 2.726715705 | AS33: 4.374861898 | AT33: 0.3879089322 | AU33: 0.4917154123 | AV33: 0.1197180292 | AW33: 0.06384961558 | AY33: 2.846258565 | AZ33: 4.566661689 | BA33: 0.4049153781 | BB33: 0.513272873 | BC33: 0.1249666276 | BD33: 0.06664886804 | BF33: 3.493524687 | BG33: 5.787361404 | BH33: 0.4774889653 | BI33: 0.5611679258 | BJ33: 0.1547931447 | BK33: 0.08255634386
A34: 16 | B34: 2040 | C34: 34165.32112 | E34: 10.66873979 | F34: 0.06393884873 | G34: 0.4498339287 | H34: 1.357192544 | I34: 2.543378827 | J34: 6.254395639 | L34: 0.94 | M34: 10.0286154 | N34: 0.06010251781 | O34: 0.422843893 | P34: 1.275760991 | Q34: 2.390776097 | R34: 5.879131901 | AR34: 2.760567451 | AS34: 4.421249303 | AT34: 0.38968852 | AU34: 0.493823794 | AV34: 0.120979936 | AW34: 0.06452263254 | AY34: 2.881594417 | AZ34: 4.615082779 | BA34: 0.4067729854 | BB34: 0.5154736889 | BC34: 0.1262838581 | BD34: 0.06735139096 | BF34: 3.536896245 | BG34: 5.848725781 | BH34: 0.4796795144 | BI34: 0.5635741066 | BJ34: 0.1564331347 | BK34: 0.08343100518
A35: 17 | B35: 2041 | C35: 34506.97433 | E35: 10.7818244 | F35: 0.06461657636 | G35: 0.4546019983 | H35: 1.371578272 | I35: 2.570337681 | J35: 6.320689869 | L35: 0.94 | M35: 10.13491493 | N35: 0.06073958178 | O35: 0.4273258784 | P35: 1.289283576 | Q35: 2.416117421 | R35: 5.941448477 | AR35: 2.794839461 | AS35: 4.468128561 | AT35: 0.391476272 | AU35: 0.495941216 | AV35: 0.1222557827 | AW35: 0.06520308408 | AY35: 2.917368958 | AZ35: 4.664017287 | BA35: 0.4086391148 | BB35: 0.5176839415 | BC35: 0.1276156395 | BD35: 0.06806167441 | BF35: 3.580806255 | BG35: 5.910740816 | BH35: 0.4818801129 | BI35: 0.5659906045 | BJ35: 0.1580912668 | BK35: 0.08431534231
A36: 18 | B36: 2042 | C36: 34852.04407 | E36: 10.89616029 | F36: 0.06530180305 | G36: 0.4594228267 | H36: 1.386123178 | I36: 2.597594836 | J36: 6.387717645 | L36: 0.94 | M36: 10.24239067 | N36: 0.06138369487 | O36: 0.4318574571 | P36: 1.302955787 | Q36: 2.441739145 | R36: 6.004454586 | AR36: 2.829536953 | AS36: 4.515504888 | AT36: 0.3932722255 | AU36: 0.498067717 | AV36: 0.1235457268 | AW36: 0.06589105427 | AY36: 2.953587634 | AZ36: 4.713470656 | BA36: 0.4105138053 | BB36: 0.5199036712 | BC36: 0.1289621365 | BD36: 0.06877980613 | BF36: 3.625261401 | BG36: 5.973413406 | BH36: 0.484090807 | BI36: 0.568417464 | BJ36: 0.1597677462 | BK36: 0.08520946462
A37: 19 | B37: =B36+1 -> 2043 | C37: 35200.56451 | E37: 11.01176161 | F37: 0.06599461359 | G37: 0.4642970102 | H37: 1.400829062 | I37: 2.625153662 | J37: 6.455487261 | L37: 0.94 | M37: 10.35105591 | N37: 0.06203493678 | O37: 0.4364391896 | P37: 1.316779318 | Q37: 2.467644443 | R37: 6.068158025 | AR37: 2.864665209 | AS37: 4.563383554 | AT37: 0.3950764182 | AU37: 0.5002033361 | AV37: 0.1248499278 | AW37: 0.06658662814 | AY37: 2.990255959 | AZ37: 4.763448387 | BA37: 0.4123970962 | BB37: 0.5221329187 | BC37: 0.1303235154 | BD37: 0.06950587488 | BF37: 3.67026845 | BG37: 6.036750524 | BH37: 0.486311643 | BI37: 0.5708547294 | BJ37: 0.1614627802 | BK37: 0.08611348277
A38: 20 | B38: 2044 | C38: 35552.57016 | E38: 11.12864267 | F38: 0.06669509375 | G38: 0.4692251525 | H38: 1.415697745 | I38: 2.653017574 | J38: 6.524007107 | L38: 0.94 | M38: 10.46092411 | N38: 0.06269338812 | O38: 0.4410716433 | P38: 1.33075588 | Q38: 2.493836519 | R38: 6.13256668 | AR38: 2.900229576 | AS38: 4.611769886 | AT38: 0.3968888879 | AU38: 0.5023481124 | AV38: 0.1261685469 | AW38: 0.0672898917 | AY38: 3.027379516 | AZ38: 4.81395604 | BA38: 0.414289027 | BB38: 0.5243717248 | BC38: 0.1316999446 | BD38: 0.07023997046 | BF38: 3.715834254 | BG38: 6.100759217 | BH38: 0.4885426674 | BI38: 0.5733024453 | BJ38: 0.1631765788 | BK38: 0.08702750867
B39: =B38+1 -> 2045 | C39: 35908.09586 | L39: 0.94 | AY39: 0 | AZ39: 0 | BA39: 0 | BB39: 0 | BC39: 0 | BD39: 0 | BF39: -- | BG39: -- | BH39: -- | BI39: -- | BJ39: -- | BK39: --
B40: 2046 | C40: 36267.17682 | L40: 0.94 | AY40: 0 | AZ40: 0 | BA40: 0 | BB40: 0 | BC40: 0 | BD40: 0 | BF40: -- | BG40: -- | BH40: -- | BI40: -- | BJ40: -- | BK40: --
B41: 2047 | C41: 36629.84859 | L41: 0.94 | AY41: 0 | AZ41: 0 | BA41: 0 | BB41: 0 | BC41: 0 | BD41: 0 | BF41: -- | BG41: -- | BH41: -- | BI41: -- | BJ41: -- | BK41: --
B42: 2048 | C42: 36996.14707 | L42: 0.94 | AY42: 0 | AZ42: 0 | BA42: 0 | BB42: 0 | BC42: 0 | BD42: 0 | BF42: -- | BG42: -- | BH42: -- | BI42: -- | BJ42: -- | BK42: --
B43: 2049 | C43: 37366.10854 | L43: 0.94 | AY43: 0 | AZ43: 0 | BA43: 0 | BB43: 0 | BC43: 0 | BD43: 0 | BF43: -- | BG43: -- | BH43: -- | BI43: -- | BJ43: -- | BK43: --
B44: 2050 | C44: 37739.76963 | L44: 0.94 | AY44: 0 | AZ44: 0 | BA44: 0 | BB44: 0 | BC44: 0 | BD44: 0 | BF44: -- | BG44: -- | BH44: -- | BI44: -- | BJ44: -- | BK44: --
B45: 2051 | C45: 38117.16733 | L45: 0.94 | AY45: 0 | AZ45: 0 | BA45: 0 | BB45: 0 | BC45: 0 | BD45: 0 | BF45: -- | BG45: -- | BH45: -- | BI45: -- | BJ45: -- | BK45: --
B46: 2052 | C46: 38498.339 | L46: 0.94 | AY46: 0 | AZ46: 0 | BA46: 0 | BB46: 0 | BC46: 0 | BD46: 0 | BF46: -- | BG46: -- | BH46: -- | BI46: -- | BJ46: -- | BK46: --
B47: 2053 | C47: 38883.32239 | L47: 0.94 | N47: =IF(ISNUMBER($E47),$M47*N$6,"") ->  | AY47: 0 | AZ47: 0 | BA47: 0 | BB47: 0 | BC47: 0 | BD47: 0 | BF47: -- | BG47: -- | BH47: -- | BI47: -- | BJ47: -- | BK47: --
B48: 2054 | C48: 39272.15561 | L48: 0.94 | AY48: 0 | AZ48: 0 | BA48: 0 | BB48: 0 | BC48: 0 | BD48: 0 | BF48: -- | BG48: -- | BH48: -- | BI48: -- | BJ48: -- | BK48: --
B49: 2055 | C49: 39664.87717 | L49: 0.94 | AY49: 0 | AZ49: 0 | BA49: 0 | BB49: 0 | BC49: 0 | BD49: 0 | BF49: -- | BG49: -- | BH49: -- | BI49: -- | BJ49: -- | BK49: --
B50: 2056 | C50: 40061.52594 | L50: 0.94 | AY50: 0 | AZ50: 0 | BA50: 0 | BB50: 0 | BC50: 0 | BD50: 0 | BF50: -- | BG50: -- | BH50: -- | BI50: -- | BJ50: -- | BK50: --
B51: 2057 | C51: 40462.1412 | L51: 0.94 | AY51: 0 | AZ51: 0 | BA51: 0 | BB51: 0 | BC51: 0 | BD51: 0 | BF51: -- | BG51: -- | BH51: -- | BI51: -- | BJ51: -- | BK51: --
B52: 2058 | C52: 40866.76261 | L52: 0.94 | AY52: 0 | AZ52: 0 | BA52: 0 | BB52: 0 | BC52: 0 | BD52: 0 | BF52: -- | BG52: -- | BH52: -- | BI52: -- | BJ52: -- | BK52: --
B53: 2059 | C53: 41275.43024 | L53: 0.94 | AY53: 0 | AZ53: 0 | BA53: 0 | BB53: 0 | BC53: 0 | BD53: 0 | BF53: -- | BG53: -- | BH53: -- | BI53: -- | BJ53: -- | BK53: --
B54: 2060 | C54: 41688.18454 | L54: 0.94 | AY54: 0 | AZ54: 0 | BA54: 0 | BB54: 0 | BC54: 0 | BD54: 0 | BF54: -- | BG54: -- | BH54: -- | BI54: -- | BJ54: -- | BK54: --
B55: 2061 | C55: 42105.06639 | L55: 0.94 | AY55: 0 | AZ55: 0 | BA55: 0 | BB55: 0 | BC55: 0 | BD55: 0 | BF55: -- | BG55: -- | BH55: -- | BI55: -- | BJ55: -- | BK55: --
B56: 2062 | C56: 42526.11705 | L56: 0.94 | AY56: 0 | AZ56: 0 | BA56: 0 | BB56: 0 | BC56: 0 | BD56: 0 | BF56: -- | BG56: -- | BH56: -- | BI56: -- | BJ56: -- | BK56: --
B57: 2063 | C57: 42951.37822 | L57: 0.94 | AY57: 0 | AZ57: 0 | BA57: 0 | BB57: 0 | BC57: 0 | BD57: 0 | BF57: -- | BG57: -- | BH57: -- | BI57: -- | BJ57: -- | BK57: --
B58: 2064 | C58: 43380.892 | L58: 0.94 | AY58: 0 | AZ58: 0 | BA58: 0 | BB58: 0 | BC58: 0 | BD58: 0 | BF58: -- | BG58: -- | BH58: -- | BI58: -- | BJ58: -- | BK58: --
B59: 2065 | C59: 43814.70092 | L59: 0.94 | AY59: 0 | AZ59: 0 | BA59: 0 | BB59: 0 | BC59: 0 | BD59: 0 | BF59: -- | BG59: -- | BH59: -- | BI59: -- | BJ59: -- | BK59: --
B60: 2066 | C60: 44252.84793 | L60: 0.94 | AY60: 0 | AZ60: 0 | BA60: 0 | BB60: 0 | BC60: 0 | BD60: 0 | BF60: -- | BG60: -- | BH60: -- | BI60: -- | BJ60: -- | BK60: --
B61: 2067 | C61: 44695.37641 | L61: 0.94 | AY61: 0 | AZ61: 0 | BA61: 0 | BB61: 0 | BC61: 0 | BD61: 0 | BF61: -- | BG61: -- | BH61: -- | BI61: -- | BJ61: -- | BK61: --
B62: 2068 | C62: 45142.33018 | L62: 0.94 | AY62: 0 | AZ62: 0 | BA62: 0 | BB62: 0 | BC62: 0 | BD62: 0 | BF62: -- | BG62: -- | BH62: -- | BI62: -- | BJ62: -- | BK62: --
B63: 2069 | C63: 45593.75348 | L63: 0.94 | AY63: 0 | AZ63: 0 | BA63: 0 | BB63: 0 | BC63: 0 | BD63: 0 | BF63: -- | BG63: -- | BH63: -- | BI63: -- | BJ63: -- | BK63: --
B64: 2070 | C64: 46049.69101 | L64: 0.94 | AY64: 0 | AZ64: 0 | BA64: 0 | BB64: 0 | BC64: 0 | BD64: 0 | BF64: -- | BG64: -- | BH64: -- | BI64: -- | BJ64: -- | BK64: --
B65: 2071 | C65: 46510.18792 | L65: 0.94 | AY65: 0 | AZ65: 0 | BA65: 0 | BB65: 0 | BC65: 0 | BD65: 0 | BF65: -- | BG65: -- | BH65: -- | BI65: -- | BJ65: -- | BK65: --
B66: 2072 | C66: 46975.2898 | F66: =IF(ISNUMBER($E66),$E66*N$6,"") ->  | L66: 0.94 | AY66: 0 | AZ66: 0 | BA66: 0 | BB66: 0 | BC66: 0 | BD66: 0 | BF66: -- | BG66: -- | BH66: -- | BI66: -- | BJ66: -- | BK66: --
B67: 2073 | C67: 47445.0427 | L67: 0.94 | AY67: 0 | AZ67: 0 | BA67: 0 | BB67: 0 | BC67: 0 | BD67: 0 | BF67: -- | BG67: -- | BH67: -- | BI67: -- | BJ67: -- | BK67: --
B68: 2074 | C68: 47919.49313 | L68: 0.94 | AY68: 0 | AZ68: 0 | BA68: 0 | BB68: 0 | BC68: 0 | BD68: 0 | BF68: -- | BG68: -- | BH68: -- | BI68: -- | BJ68: -- | BK68: --
B69: 2075 | C69: 48398.68806 | L69: 0.94 | AY69: 0 | AZ69: 0 | BA69: 0 | BB69: 0 | BC69: 0 | BD69: 0 | BF69: -- | BG69: -- | BH69: -- | BI69: -- | BJ69: -- | BK69: --
B70: 2076 | C70: 48882.67494 | F70: =IF(ISNUMBER($E70),$E70*N$6,"") ->  | G70: =IF(ISNUMBER($E70),$E70*O$6,"") ->  | H70: =IF(ISNUMBER($E70),$E70*P$6,"") ->  | I70: =IF(ISNUMBER($E70),$E70*Q$6,"") ->  | J70: =IF(ISNUMBER($E70),$E70*R$6,"") ->  | L70: 0.94 | AY70: =AR70*$BB$8 -> 0 | AZ70: 0 | BA70: 0 | BB70: 0 | BC70: 0 | BD70: 0 | BF70: -- | BG70: -- | BH70: -- | BI70: -- | BJ70: -- | BK70: --
D74: Annual Cost | L74: Annual Cost
D75: Fatality | E75: Incap. | F75: Non-Inc. | G75: Poss. Injury | H75: PDO | I75: Total Cost | J75: Present Value | L75: Fatality | M75: Incap. | N75: Non-Inc. | O75: Poss. Injury | P75: PDO | Q75: Total Cost | R75: Present Value
D76: =IF(OR(NOT(ISNUMBER(A14)),ISBLANK(A14)),0,F14*N$9) -> 0 | E76: =IF(OR(NOT(ISNUMBER(A14)),ISBLANK(A14)),0,G14*O$9) -> 0 | F76: =IF(OR(NOT(ISNUMBER(A14)),ISBLANK(A14)),0,H14*P$9) -> 0 | G76: =IF(OR(NOT(ISNUMBER(A14)),ISBLANK(A14)),0,I14*Q$9) -> 0 | H76: =IF(OR(NOT(ISNUMBER(A14)),ISBLANK(A14)),0,J14*R$9) -> 0 | I76: =SUM(D76:H76) -> 0 | J76: =IF(ISNUMBER(A14),(I76)/((1+$F$9)^(A14)),0) -> 0 | L76: =IF(OR(NOT(ISNUMBER($A14)),ISBLANK($A14)),0,N14*N$9) -> 0 | M76: =IF(OR(NOT(ISNUMBER($A14)),ISBLANK($A14)),0,O14*O$9) -> 0 | N76: 0 | O76: 0 | P76: 0 | Q76: =SUM(L76:P76) -> 0 | R76: =IF(ISNUMBER(A14),(Q76)/((1+$F$9)^(A14)),0) -> 0
D77: 0 | E77: 0 | F77: 0 | G77: 0 | H77: 0 | I77: =SUM(D77:H77) -> 0 | J77: 0 | L77: =IF(OR(NOT(ISNUMBER($A15)),ISBLANK($A15)),0,N15*N$9) -> 0 | M77: 0 | N77: 0 | O77: 0 | P77: 0 | Q77: =SUM(L77:P77) -> 0 | R77: =IF(ISNUMBER(A15),(Q77)/((1+$F$9)^(A15)),0) -> 0
D78: 0 | E78: 0 | F78: 0 | G78: 0 | H78: 0 | I78: 0 | J78: 0 | L78: 0 | M78: 0 | N78: 0 | O78: 0 | P78: 0 | Q78: 0 | R78: 0
D79: 0 | E79: 0 | F79: 0 | G79: 0 | H79: 0 | I79: 0 | J79: 0 | L79: 0 | M79: 0 | N79: 0 | O79: 0 | P79: 0 | Q79: 0 | R79: 0
D80: 0 | E80: 0 | F80: 0 | G80: 0 | H80: 0 | I80: 0 | J80: 0 | L80: 0 | M80: 0 | N80: 0 | O80: 0 | P80: 0 | Q80: 0 | R80: 0
D81: 582774.1196 | E81: 335308.3861 | F81: 201746.8039 | G81: 230763.932 | H81: 41138.37198 | I81: 1391731.614 | J81: 1338203.475 | L81: 547807.6724 | M81: 315189.8829 | N81: 189641.9957 | O81: 216918.0961 | P81: 38670.06966 | Q81: 1308227.717 | R81: 1257911.266
D82: 588907.1277 | E82: 338837.1101 | F82: 203869.9503 | G82: 233192.4494 | H82: 41571.30467 | I82: 1406377.942 | J82: 1300275.464 | L82: 553572.7 | M82: 318506.8835 | N82: 191637.7533 | O82: 219200.9024 | P82: 39077.02639 | Q82: 1321995.266 | R82: 1222258.936
D83: 595107.745 | E83: 342404.7342 | F83: 206016.5019 | G83: 235647.7383 | H83: 42009.00994 | I83: 1421185.729 | J83: 1263428.938 | L83: 559401.2803 | M83: 321860.4502 | N83: 193655.5118 | O83: 221508.874 | P83: 39488.46934 | Q83: 1335914.586 | R83: 1187623.202
D84: 601376.7344 | E84: 346011.6973 | F84: 208186.7229 | G84: 238130.1008 | H84: 42451.54163 | I84: 1436156.797 | J84: 1227632.849 | L84: 565294.1304 | M84: 325250.9955 | N84: 195695.5195 | O84: 223842.2948 | P84: 39904.44913 | Q84: 1349987.389 | R84: 1153974.878
D85: 607714.8675 | E85: 349658.4433 | F85: 210380.8802 | G85: 240639.8425 | H85: 42898.95422 | I85: 1451292.988 | J85: 1192857.046 | L85: 571251.9754 | M85: 328678.9367 | N85: 197758.0273 | O85: 226201.452 | P85: 40325.01696 | Q85: 1364215.408 | R85: 1121285.624
D86: 614122.9246 | E86: 353345.4211 | F86: 212599.244 | G86: 243177.2724 | H86: 43351.30278 | I86: 1466596.165 | J86: 1159072.253 | L86: 577275.5491 | M86: 332144.6959 | N86: 199843.2894 | O86: 228586.6361 | P86: 40750.22462 | Q86: 1378600.395 | R86: 1089527.917
D87: 620601.695 | E87: 357073.0851 | F87: 214842.0877 | G87: 245742.703 | H87: 43808.64304 | I87: 1482068.214 | J87: 1126250.036 | L87: 583365.5933 | M87: 335648.7 | N87: 201951.5624 | O87: 230998.1408 | P87: 41180.12446 | Q87: 1393144.121 | R87: 1058675.034
D88: 627151.9771 | E88: 360841.8944 | F88: 217109.6875 | G88: 248336.4504 | H88: 44271.03136 | I88: 1497711.041 | J88: 1094362.787 | L88: 589522.8585 | M88: 339191.3807 | N88: 204083.1062 | O88: 233436.2633 | P88: 41614.76948 | Q88: 1407848.378 | R88: 1028701.02
D89: 633774.5784 | E89: 364652.3136 | F89: 219402.323 | G89: 250958.8343 | H89: 44738.52472 | I89: 1513526.574 | J89: 1063383.695 | L89: 595748.1037 | M89: 342773.1748 | N89: 206238.1836 | O89: 235901.3043 | P89: 42054.21324 | Q89: 1422714.98 | R89: 999580.6731
D90: 640470.3154 | E90: 368504.8128 | F90: 221720.2769 | G90: 253610.1782 | H90: 45211.18078 | I90: 1529516.764 | J90: 1033286.721 | L90: 602042.0965 | M90: 346394.524 | N90: 208417.0603 | O90: 238393.5675 | P90: 42498.50994 | Q90: 1437745.758 | R90: 971289.5181
D91: 647240.0144 | E91: 372399.867 | F91: 224063.8352 | G91: 256290.8092 | H91: 45689.05786 | I91: =SUM(D91:H91) -> 1545683.584 | J91: 1004046.582 | L91: 608405.6135 | M91: 350055.875 | N91: 210620.0051 | O91: 240913.3606 | P91: 42947.71439 | Q91: 1452942.569 | R91: 943803.7872
D92: 654084.5106 | E92: 376337.9571 | F92: 226433.2871 | G92: 259001.058 | H92: 46172.21493 | I92: =SUM(D92:H92) -> 1562029.028 | J92: 975638.7221 | L92: 614839.44 | M92: 353757.6797 | N92: 212847.2898 | O92: 243460.9945 | P92: 43401.88203 | Q92: 1468307.286 | R92: 917100.3988
D93: 661004.6493 | E93: 380319.5693 | F93: 228828.9251 | G93: 261741.2593 | H93: 46660.71164 | I93: 1578555.115 | J93: 948039.2954 | L93: =IF(OR(NOT(ISNUMBER($A31)),ISBLANK($A31)),0,N31*N$9) -> 621344.3704 | M93: 357500.3952 | N93: 215099.1896 | O93: 246036.7838 | P93: 43861.06894 | Q93: 1483841.808 | R93: 891156.9377
D94: 668001.2851 | E94: 384345.1953 | F94: 231251.0452 | G94: 264511.7516 | H94: 47154.60832 | I94: 1595263.886 | J94: 921225.1444 | L94: 627921.208 | M94: 361284.4836 | N94: 217375.9825 | O94: 248641.0465 | P94: 44325.33182 | Q94: 1499548.052 | R94: 865951.6358
D95: 675075.2825 | E95: 388415.3326 | F95: 233699.9466 | G95: 267312.8771 | H95: 47653.96601 | I95: 1612157.405 | J95: 895173.7797 | L95: 634570.7656 | M95: 365110.4126 | N95: 219677.9498 | O95: 251274.1045 | P95: 44794.72805 | Q95: 1515427.961 | R95: 841463.3529
D96: 682227.516 | E96: 392530.4842 | F96: 236175.9321 | G96: 270144.9821 | H96: 48158.84642 | I96: 1629237.761 | J96: 869863.3606 | L96: 641293.865 | M96: 368978.6551 | N96: 222005.3762 | O96: 253936.2832 | P96: 45269.31564 | Q96: 1531483.495 | R96: 817671.559
D97: 689458.8698 | E97: 396691.159 | F97: 238679.3077 | G97: 273008.4168 | H97: 48669.31199 | I97: 1646507.065 | J97: 845272.6764 | L97: 648091.3376 | M97: 372889.6894 | N97: 224358.5492 | O97: 256627.9118 | P97: 45749.15327 | Q97: 1547716.641 | R97: 794556.3158
D98: 696770.2386 | E98: 400897.8716 | F98: 241210.3832 | G98: 275903.5355 | H98: 49185.42587 | I98: 1663967.455 | J98: 821381.1281 | L98: 654964.0242 | M98: 376843.9993 | N98: 226737.7602 | O98: 259349.3233 | P98: 46234.30032 | Q98: 1564129.407 | R98: 772098.2604
D99: 704162.527 | E99: 405151.1427 | F99: 243769.4717 | G99: 278830.6962 | H99: 49707.25191 | I99: 1681621.09 | J99: 798168.7103 | L99: 661912.7754 | M99: 380842.0741 | N99: 229143.3034 | O99: 262100.8545 | P99: 46724.8168 | Q99: 1580723.824 | R99: 750278.5877
D100: 711636.6503 | E100: 409451.4988 | F100: 246356.8901 | G100: 281790.2616 | H100: 50234.85472 | I100: 1699470.156 | J100: 775615.9944 | L100: 668938.4513 | M100: 384884.4088 | N100: 231575.4767 | O100: 264882.8459 | P100: 47220.76344 | Q100: 1597501.946 | R100: 729079.0348
D101: 0 | E101: 0 | F101: 0 | G101: 0 | H101: 0 | I101: 0 | J101: 0 | L101: 0 | M101: 0 | N101: 0 | O101: 0 | P101: 0 | Q101: 0 | R101: 0
D102: 0 | E102: 0 | F102: 0 | G102: 0 | H102: 0 | I102: 0 | J102: 0 | L102: 0 | M102: 0 | N102: 0 | O102: 0 | P102: 0 | Q102: 0 | R102: 0
D103: 0 | E103: 0 | F103: 0 | G103: 0 | H103: 0 | I103: 0 | J103: 0 | L103: 0 | M103: 0 | N103: 0 | O103: 0 | P103: 0 | Q103: 0 | R103: 0
D104: 0 | E104: 0 | F104: 0 | G104: 0 | H104: 0 | I104: 0 | J104: 0 | L104: 0 | M104: 0 | N104: 0 | O104: 0 | P104: 0 | Q104: 0 | R104: 0
D105: 0 | E105: 0 | F105: 0 | G105: 0 | H105: 0 | I105: 0 | J105: 0 | L105: 0 | M105: 0 | N105: 0 | O105: 0 | P105: 0 | Q105: 0 | R105: 0
D106: 0 | E106: 0 | F106: 0 | G106: 0 | H106: 0 | I106: 0 | J106: 0 | L106: 0 | M106: 0 | N106: 0 | O106: 0 | P106: 0 | Q106: 0 | R106: 0
D107: 0 | E107: 0 | F107: 0 | G107: 0 | H107: 0 | I107: 0 | J107: 0 | L107: 0 | M107: 0 | N107: 0 | O107: 0 | P107: 0 | Q107: 0 | R107: 0
D108: 0 | E108: 0 | F108: 0 | G108: 0 | H108: 0 | I108: 0 | J108: 0 | L108: 0 | M108: 0 | N108: 0 | O108: 0 | P108: 0 | Q108: 0 | R108: 0
D109: 0 | E109: 0 | F109: 0 | G109: 0 | H109: 0 | I109: 0 | J109: 0 | L109: =IF(OR(NOT(ISNUMBER($A47)),ISBLANK($A47)),0,N47*N$9) -> 0 | M109: 0 | N109: 0 | O109: 0 | P109: 0 | Q109: 0 | R109: 0
D110: 0 | E110: 0 | F110: 0 | G110: 0 | H110: 0 | I110: 0 | J110: 0 | L110: 0 | M110: 0 | N110: 0 | O110: 0 | P110: 0 | Q110: 0 | R110: 0
D111: 0 | E111: 0 | F111: 0 | G111: 0 | H111: 0 | I111: 0 | J111: 0 | L111: 0 | M111: 0 | N111: 0 | O111: 0 | P111: 0 | Q111: 0 | R111: 0
D112: 0 | E112: 0 | F112: 0 | G112: 0 | H112: 0 | I112: 0 | J112: 0 | L112: 0 | M112: 0 | N112: 0 | O112: 0 | P112: 0 | Q112: 0 | R112: 0
D113: 0 | E113: 0 | F113: 0 | G113: 0 | H113: 0 | I113: 0 | J113: 0 | L113: 0 | M113: 0 | N113: 0 | O113: 0 | P113: 0 | Q113: 0 | R113: 0
D114: 0 | E114: 0 | F114: 0 | G114: 0 | H114: 0 | I114: 0 | J114: 0 | L114: 0 | M114: 0 | N114: 0 | O114: 0 | P114: 0 | Q114: 0 | R114: 0
D115: 0 | E115: 0 | F115: 0 | G115: 0 | H115: 0 | I115: 0 | J115: 0 | L115: 0 | M115: 0 | N115: 0 | O115: 0 | P115: 0 | Q115: 0 | R115: 0
D116: 0 | E116: 0 | F116: 0 | G116: 0 | H116: 0 | I116: 0 | J116: 0 | L116: 0 | M116: 0 | N116: 0 | O116: 0 | P116: 0 | Q116: 0 | R116: 0
D117: 0 | E117: 0 | F117: 0 | G117: 0 | H117: 0 | I117: 0 | J117: 0 | L117: 0 | M117: 0 | N117: 0 | O117: 0 | P117: 0 | Q117: 0 | R117: 0
D118: 0 | E118: 0 | F118: 0 | G118: 0 | H118: 0 | I118: 0 | J118: 0 | L118: 0 | M118: 0 | N118: 0 | O118: 0 | P118: 0 | Q118: 0 | R118: 0
D119: 0 | E119: 0 | F119: 0 | G119: 0 | H119: 0 | I119: 0 | J119: 0 | L119: 0 | M119: 0 | N119: 0 | O119: 0 | P119: 0 | Q119: 0 | R119: 0
D120: 0 | E120: 0 | F120: 0 | G120: 0 | H120: 0 | I120: 0 | J120: 0 | L120: 0 | M120: 0 | N120: 0 | O120: 0 | P120: 0 | Q120: 0 | R120: 0
D121: 0 | E121: 0 | F121: 0 | G121: 0 | H121: 0 | I121: 0 | J121: 0 | L121: 0 | M121: 0 | N121: 0 | O121: 0 | P121: 0 | Q121: 0 | R121: 0
D122: 0 | E122: 0 | F122: 0 | G122: 0 | H122: 0 | I122: 0 | J122: 0 | L122: 0 | M122: 0 | N122: 0 | O122: 0 | P122: 0 | Q122: 0 | R122: 0
D123: 0 | E123: 0 | F123: 0 | G123: 0 | H123: 0 | I123: 0 | J123: 0 | L123: 0 | M123: 0 | N123: 0 | O123: 0 | P123: 0 | Q123: 0 | R123: 0
D124: 0 | E124: 0 | F124: 0 | G124: 0 | H124: 0 | I124: 0 | J124: 0 | L124: 0 | M124: 0 | N124: 0 | O124: 0 | P124: 0 | Q124: 0 | R124: 0
D125: 0 | E125: 0 | F125: 0 | G125: 0 | H125: 0 | I125: 0 | J125: 0 | L125: =IF(OR(NOT(ISNUMBER($A63)),ISBLANK($A63)),0,N63*N$9) -> 0 | M125: 0 | N125: 0 | O125: 0 | P125: 0 | Q125: 0 | R125: 0
D126: 0 | E126: 0 | F126: 0 | G126: 0 | H126: 0 | I126: 0 | J126: 0 | L126: 0 | M126: 0 | N126: 0 | O126: 0 | P126: 0 | Q126: 0 | R126: 0
D127: 0 | E127: 0 | F127: 0 | G127: 0 | H127: 0 | I127: 0 | J127: 0 | L127: 0 | M127: 0 | N127: 0 | O127: 0 | P127: 0 | Q127: 0 | R127: 0
D128: 0 | E128: 0 | F128: 0 | G128: 0 | H128: 0 | I128: 0 | J128: 0 | L128: 0 | M128: 0 | N128: 0 | O128: 0 | P128: 0 | Q128: 0 | R128: 0
D129: 0 | E129: 0 | F129: 0 | G129: 0 | H129: 0 | I129: 0 | J129: 0 | L129: 0 | M129: 0 | N129: 0 | O129: 0 | P129: 0 | Q129: 0 | R129: 0
D130: 0 | E130: 0 | F130: 0 | G130: 0 | H130: 0 | I130: 0 | J130: 0 | L130: 0 | M130: 0 | N130: 0 | O130: 0 | P130: 0 | Q130: 0 | R130: 0
D131: 0 | E131: 0 | F131: 0 | G131: 0 | H131: 0 | I131: 0 | J131: 0 | L131: 0 | M131: 0 | N131: 0 | O131: 0 | P131: 0 | Q131: 0 | R131: 0
D132: 0 | E132: 0 | F132: 0 | G132: 0 | H132: 0 | I132: 0 | J132: 0 | L132: 0 | M132: 0 | N132: 0 | O132: 0 | P132: 0 | Q132: 0 | R132: 0

Sheet OWS Crash Cost #1
B1: O N E W A Y S E G M E N T S
U3: Total Analysis Period Crash Cost
N4: Default Crash Distribution
B5: Empirical Bayes | E5: FROM CRASH COST TOTALS TAB | G5: FROM TOTAL TAB | N5: K | O5: A | P5: B | Q5: C | R5: O | S5: Sum | U5: No Lighting | W5: With Lighting
B6: adjustment type: | E6: Opening Year = | F6: 2025 | G6: Segment Type = | I6: 3O | M6: % | N6: =VLOOKUP($I$6,Factors!$I$7:$N$13, 2,FALSE) -> 0.003273322422 | O6: =VLOOKUP($I$6,Factors!$I$7:$N$13, 3, FALSE) -> 0.02303915397 | P6: =VLOOKUP($I$6,Factors!$I$7:$N$13, 4, FALSE) -> 0.1027319653 | Q6: =VLOOKUP($I$6,Factors!$I$7:$N$13, 5, FALSE) -> 0.1762558227 | R6: =VLOOKUP($I$6,Factors!$I$7:$N$13, 6, FALSE) -> 0.6946997356 | S6: =SUM(N6:R6) -> 1
B7: ='Crash Cost Totals'!B6 -> Site-specific | E7: Analysis Period = | F7: 20 | G7: Analysis Year AADT = | I7: 20000 | M7: Cost* | N7: 10670000 | O7: 872612 | P7: 174018 | Q7: 106215 | R7: 7700 | U7: =SUMIF($A$14:$A$70,">0",$J$76:$J$132) -> 9295456.907 | W7: =SUMIF($A$14:$A$70,">0",$R$76:$R$132) -> 8737729.493
E8: Growth Rate = | F8: 0.01 | G8: Segment Length (mi) = | I8: 0.4 | AY8: Adjustment Factor to Reset to No Lighting Base Condition | BB8: =VLOOKUP(I6,Factors!$B$7:$F$13,5, FALSE) -> 1.051082615
E9: Rate of Return = | F9: 0.04 | G9: Analysis Year = | I9: 2020 | M9: Use Val | N9: =N7 -> 10670000 | O9: =O7 -> 872612 | P9: =P7 -> 174018 | Q9: =Q7 -> 106215 | R9: =R7 -> 7700
M10: *Values are the 2020 FDOT KABCO crash costs as laied out in the FDOT Design Manual | X10: Analysis (Base Year) EB Computations
X11: Length | Y11: Sum lookup | Z11: Inverse dispersion parameter | AD11: Predicted crash total | AH11: Observed crash total | AL11: Weight | AR11: Original Mixed Lighting Predicted crash total | AY11: Adjusted Predicted crash total | BF11: EB Adjusted crash total
B12: AADT / Year | E12: Annual Number of Crashes - No Lighting | L12: Annual Number of Crashes - With Lighting | Z12: Multiple-vehicle | AB12: Single-vehicle | AD12: Multiple-vehicle | AF12: Single-vehicle | AH12: Multiple-vehicle | AJ12: Single-vehicle | AL12: Multiple-vehicle | AN12: Single-vehicle | AR12: Multiple-vehicle | AT12: Single-vehicle | AV12: Vehicle-pedestrian | AW12: Vehicle-bicycle | AY12: Multiple-vehicle | BA12: Single-vehicle | BC12: Vehicle-pedestrian | BD12: Vehicle-bicycle | BF12: Multiple-vehicle | BH12: Single-vehicle | BJ12: Vehicle-pedestrian | BK12: Vehicle-bicycle
B13: Year | C13: Major AADT | E13: Site Specific (Np/e) | F13: Fatality | G13: Incap. | H13: Non-Inc. | I13: Poss. Injury | J13: PDO | L13: Lighting CMF | M13: Adjusted Np/e | N13: Fatality | O13: Incap. | P13: Non-Inc. | Q13: Poss. Injury | R13: PDO | Z13: MV F+I | AA13: MV PDO | AB13: SV F+I | AC13: SV PDO | AD13: MV F+I | AE13: MV PDO | AF13: SV F+I | AG13: SV PDO | AH13: MV F+I | AI13: MV PDO | AJ13: SV F+I | AK13: SV PDO | AL13: MV F+I | AM13: MV PDO | AN13: SV F+I | AO13: SV PDO | AR13: MV F+I | AS13: MV PDO | AT13: SV F+I | AU13: SV PDO | AV13: F+I | AW13: F+I | AY13: MV F+I | AZ13: MV PDO | BA13: SV F+I | BB13: SV PDO | BC13: F+I | BD13: F+I | BF13: MV F+I | BG13: MV PDO | BH13: SV F+I | BI13: SV PDO | BJ13: F+I | BK13: F+I
A14: =IF(B14=$F$6, 1, IF(AND(B14-$F$6<$F$7,B14-$F$6>0),B14-$F$6 + 1,"")) ->  | B14: =I9 -> 2020 | C14: =I7 -> 20000 | E14: =IF(B14<$F$6+$F$7,IF($B$7="Site-specific",SUM(BF14:BK14),SUM(AY14:BD14)),"") -> 6.151165216 | F14: =IF(ISNUMBER($E14),$E14*N$6,"") -> 0.02013474702 | G14: =IF(ISNUMBER($E14),$E14*O$6,"") -> 0.1417176425 | H14: =IF(ISNUMBER($E14),$E14*P$6,"") -> 0.6319212912 | I14: =IF(ISNUMBER($E14),$E14*Q$6,"") -> 1.084178686 | J14: =IF(ISNUMBER($E14),$E14*R$6,"") -> 4.273212849 | L14: =VLOOKUP(I6,Factors!$B$7:$F$13,4, FALSE) -> 0.94 | M14: =IF(B14<$F$6+$F$7,E14*L14,"") -> 5.782095303 | N14: =IF(ISNUMBER($E14),$M14*N$6,"") -> 0.0189266622 | O14: =IF(ISNUMBER($E14),$M14*O$6,"") -> 0.133214584 | P14: =IF(ISNUMBER($E14),$M14*P$6,"") -> 0.5940060137 | Q14: =IF(ISNUMBER($E14),$M14*Q$6,"") -> 1.019127965 | R14: =IF(ISNUMBER($E14),$M14*R$6,"") -> 4.016820078 | X14: =I8 -> 0.4 | Z14: =EXP(VLOOKUP($I$6,Totals!$BG$14:$BK$20,2,FALSE))*$X14 -> 5.226329776 | AA14: =EXP(VLOOKUP($I$6,Totals!$BG$14:$BK$20,3,FALSE))*$X14 -> 4.635338688 | AB14: =EXP(VLOOKUP($I$6,Totals!$BG$14:$BK$20,4,FALSE))*$X14 -> 2.783500388 | AC14: =EXP(VLOOKUP($I$6,Totals!$BG$14:$BK$20,5,FALSE))*$X14 -> 2.897097194 | AD14: =AY14 -> 1.547706688 | AE14: =AZ14 -> 3.596414104 | AF14: =BA14 -> 0.2523342289 | AG14: =BB14 -> 0.3437069447 | AH14: 3 | AI14: 3 | AJ14: 1 | AK14: 1 | AL14: =1/(1 + AD14/Z14) -> 0.7715237147 | AM14: =1/(1 + AE14/AA14) -> 0.5631047002 | AN14: 0.9168814311 | AO14: 0.8939439318 | AR14: 1.472488143 | AS14: 3.421628378 | AT14: 0.2400707854 | AU14: 0.3270027872 | AV14: 0.1310685623 | AW14: 0.06007309103 | AY14: =AR14*$BB$8 -> 1.547706688 | AZ14: 3.596414104 | BA14: 0.2523342289 | BB14: 0.3437069447 | BC14: 0.1377638872 | BD14: 0.06314178162 | BF14: =AL14*AD14 + (1-AL14)*AH14 -> 1.879521269 | BG14: =AM14*AE14 + (1-AM14)*AI14 -> 3.335843585 | BH14: =AN14*AF14 + (1-AN14)*AJ14 -> 0.3144791378 | BI14: =AO14*AG14 + (1-AO14)*AK14 -> 0.4133108058 | BJ14: =BC14/SUM(AY14:BB14)*SUM(BF14:BI14) -> 0.1426357151 | BK14: =AW14/SUM(AR14:AU14)*SUM(BF14:BI14) -> 0.06537470278
B15: =B14+1 -> 2021 | C15: =C14*(1+$F$8) -> 20200 | E15: =IF(B15<$F$6+$F$7,IF($B$7="Site-specific",SUM(BF15:BK15),SUM(AY15:BD15)),"") -> 6.214125171 | F15: =IF(ISNUMBER($E15),$E15*N$6,"") -> 0.02034083526 | G15: 0.1431681866 | H15: 0.6383892912 | I15: 1.095275745 | J15: 4.316951114 | L15: =L14 -> 0.94 | M15: =IF(B15<$F$6+$F$7,E15*L15,"") -> 5.841277661 | N15: =IF(ISNUMBER($E15),$M15*N$6,"") -> 0.01912038514 | O15: 0.1345780954 | P15: 0.6000859337 | Q15: 1.0295592 | R15: 4.057934047 | AR15: 1.491065554 | AS15: 3.456532466 | AT15: 0.2410761739 | AU15: 0.3284049126 | AV15: 0.1324098986 | AW15: 0.06068787017 | AY15: 1.567233082 | AZ15: 3.633101184 | BA15: 0.2533909753 | BB15: 0.3451806944 | BC15: 0.1391737424 | BD15: 0.06378796529 | BF15: =IF($B15<($F$6+$F$7),BF$14*AY15/AY$14,"--") -> 1.903233948 | BG15: =IF($B15<($F$6+$F$7),BG$14*AZ15/AZ$14,"--") -> 3.369872581 | BH15: 0.3157961399 | BI15: 0.4150830034 | BJ15: =IF($B15<($F$6+$F$7),BC15/SUM(AY15:BB15)*SUM(BF15:BI15),"--") -> 0.1440956561 | BK15: =IF($B15<($F$6+$F$7),BD15/SUM(AY15:BB15)*SUM(BF15:BI15),"--") -> 0.0660438424
B16: =B15+1 -> 2022 | C16: 20402 | E16: 6.277767618 | F16: 0.02054915751 | G16: 0.1446344547 | H16: 0.6449274048 | I16: 1.106493096 | J16: 4.361163504 | L16: 0.94 | M16: 5.901101561 | N16: 0.01931620805 | O16: 0.1359563875 | P16: 0.6062317605 | Q16: 1.040103511 | R16: 4.099493694 | AR16: 1.509877344 | AS16: 3.491792612 | AT16: 0.2420857729 | AU16: 0.3298130501 | AV16: 0.1337656507 | AW16: 0.06130925656 | AY16: 1.587005827 | AZ16: 3.67016251 | BA16: 0.2544521473 | BB16: 0.3466607632 | BC16: 0.1405987499 | BD16: 0.06444109371 | BF16: =IF($B16<($F$6+$F$7),BF$14*AY16/AY$14,"--") -> 1.927245794 | BG16: 3.404248707 | BH16: 0.3171186574 | BI16: 0.4168628 | BJ16: =IF($B16<($F$6+$F$7),BC16/SUM(AY16:BB16)*SUM(BF16:BI16),"--") -> 0.145571423 | BK16: =IF($B16<($F$6+$F$7),BD16/SUM(AY16:BB16)*SUM(BF16:BI16),"--") -> 0.06672023555
B17: 2023 | C17: 20606.02 | E17: 6.342100185 | F17: 0.02075973874 | G17: 0.1461166227 | H17: 0.6515364158 | I17: 1.117832086 | J17: 4.405855322 | L17: 0.94 | M17: 5.961574174 | N17: 0.01951415442 | O17: 0.1373496253 | P17: 0.6124442309 | Q17: 1.050762161 | R17: 4.141504002 | AR17: 1.528926469 | AS17: 3.527412446 | AT17: 0.2430996 | AU17: 0.3312272254 | AV17: 0.1351359778 | AW17: 0.06193732315 | AY17: 1.607028031 | AZ17: 3.707601899 | BA17: 0.2555177633 | BB17: 0.3481471782 | BC17: 0.1420390769 | BD17: 0.06510124359 | BF17: 1.951560582 | BG17: 3.438975505 | BH17: 0.3184467135 | BI17: 0.4186502279 | BJ17: 0.1470631927 | BK17: 0.06740396332
B18: 2024 | C18: 20812.0802 | E18: 6.407130589 | F18: 0.02097260422 | G18: 0.1476148681 | H18: 0.658217117 | I18: 1.129294073 | J18: 4.451031926 | L18: 0.94 | M18: 6.022702753 | N18: 0.01971424796 | O18: 0.1387579761 | P18: 0.61872409 | Q18: 1.061536429 | R18: 4.18397001 | AR18: 1.548215925 | AS18: 3.56339564 | AT18: 0.2441176728 | AU18: 0.3326474643 | AV18: 0.1365210408 | AW18: 0.06257214372 | AY18: 1.627302843 | AZ18: 3.745423207 | BA18: 0.256587842 | BB18: 0.3496399667 | BC18: 0.1434948926 | BD18: 0.06576849245 | BF18: 1.976182134 | BG18: 3.474056552 | BH18: 0.3197803313 | BI18: 0.42044532 | BJ18: 0.1485711441 | BK18: 0.0680951077
A19: 1 | B19: 2025 | C19: 21020.201 | E19: 6.472866633 | F19: 0.02118777948 | G19: 0.149129371 | H19: 0.66497031 | I19: 1.140880434 | J19: 4.496698738 | L19: 0.94 | M19: 6.084494635 | N19: 0.01991651272 | O19: 0.1401816087 | P19: 0.6250720914 | Q19: 1.072427608 | R19: 4.226896814 | AR19: 1.567748743 | AS19: 3.599745898 | AT19: 0.2451400093 | AU19: 0.334073793 | AV19: 0.1379210026 | AW19: 0.06321379288 | AY19: 1.647833449 | AZ19: 3.783630332 | BA19: 0.257662402 | BB19: 0.351139156 | BC19: 0.1449663681 | BD19: 0.06644291873 | BF19: 2.001114319 | BG19: 3.509495461 | BH19: 0.3211195342 | BI19: 0.4222481091 | BJ19: 0.1500954581 | BK19: 0.06879375165
A20: 2 | B20: 2026 | C20: 21230.40301 | E20: 6.53931621 | F20: 0.02140529038 | G20: 0.150660313 | H20: 0.6717968057 | I20: 1.152592559 | J20: 4.542861242 | L20: 0.94 | M20: 6.146957237 | N20: 0.02012097295 | O20: 0.1416206943 | P20: 0.6314889973 | Q20: 1.083437005 | R20: 4.270289568 | AR20: 1.587527994 | AS20: 3.636466966 | AT20: 0.2461666271 | AU20: 0.3355062376 | AV20: 0.1393360278 | AW20: 0.06386234607 | AY20: 1.668623075 | AZ20: 3.822227208 | BA20: 0.2587414622 | BB20: 0.3526447736 | BC20: 0.1464536765 | BD20: 0.06712460171 | BF20: 2.026361057 | BG20: 3.545295882 | BH20: 0.3224643454 | BI20: 0.4240586283 | BJ20: 0.1516363179 | BK20: 0.06949997904
A21: 3 | B21: 2027 | C21: 21442.70704 | E21: 6.606487304 | F21: 0.02162516302 | G21: 0.1522078782 | H21: 0.6786974241 | I21: 1.164431855 | J21: 4.589524983 | L21: 0.94 | M21: 6.210098066 | N21: 0.02032765324 | O21: 0.1430754055 | P21: 0.6379755787 | Q21: 1.094565944 | R21: 4.314153484 | AR21: 1.607556786 | AS21: 3.673562626 | AT21: 0.2471975444 | AU21: 0.3369448241 | AV21: 0.1407662827 | AW21: 0.06451787959 | AY21: 1.689674991 | AZ21: 3.861217812 | BA21: 0.2598250414 | BB21: 0.3541568469 | BC21: 0.1479569926 | BD21: 0.0678136216 | BF21: 2.051926317 | BG21: 3.581461505 | BH21: 0.3238147886 | BI21: 0.4258769105 | BJ21: 0.1531939085 | BK21: 0.07021387473
A22: 4 | B22: 2028 | C22: 21657.13411 | E22: 6.674387988 | F22: 0.02184742386 | G22: 0.1537722525 | H22: 0.6856729948 | I22: 1.176399746 | J22: 4.636695571 | L22: 0.94 | M22: 6.273924709 | N22: 0.02053657842 | O22: 0.1445459174 | P22: 0.6445326152 | Q22: 1.105815761 | R22: 4.358493836 | AR22: 1.627838269 | AS22: 3.7110367 | AT22: 0.2482327789 | AU22: 0.3383895791 | AV22: 0.1422119358 | AW22: 0.0651804706 | AY22: 1.710992505 | AZ22: 3.900606159 | BA22: 0.2609131584 | BB22: 0.3556754037 | BC22: 0.1494764934 | BD22: 0.06851005949 | BF22: 2.077814116 | BG22: 3.617996053 | BH22: 0.3251708873 | BI22: 0.4277029893 | BJ22: 0.1547684171 | BK22: 0.07093552451
A23: 5 | B23: 2029 | C23: 21873.70545 | E23: 6.743026428 | F23: 0.0220720996 | G23: 0.1553536241 | H23: 0.6927243567 | I23: 1.188497671 | J23: 4.684378677 | L23: 0.94 | M23: 6.338444842 | N23: 0.02074777362 | O23: 0.1460324067 | P23: 0.6511608953 | Q23: 1.117187811 | R23: 4.403315956 | AR23: 1.64837563 | AS23: 3.748893047 | AT23: 0.2492723489 | AU23: 0.3398405289 | AV23: 0.1436731573 | AW23: 0.0658501971 | AY23: 1.732578968 | AZ23: 3.940396308 | BA23: 0.2620058324 | BB23: 0.3572004718 | BC23: 0.1510123579 | BD23: 0.06921399737 | BF23: 2.104028525 | BG23: 3.654903292 | BH23: 0.3265326652 | BI23: 0.4295368979 | BJ23: 0.1563600331 | BK23: 0.07166501518
A24: 6 | B24: 2030 | C24: 22092.44251 | E24: 6.812410883 | F24: 0.02229921729 | G24: 0.1569521833 | H24: 0.6998523581 | I24: 1.200727085 | J24: 4.73258004 | L24: 0.94 | M24: 6.40366623 | N24: 0.02096126426 | O24: 0.1475350523 | P24: 0.6578612167 | Q24: 1.12868346 | R24: 4.448625237 | AR24: 1.669172097 | AS24: 3.787135568 | AT24: 0.2503162726 | AU24: 0.3412977001 | AV24: 0.1451501193 | AW24: 0.06652713801 | AY24: 1.754437773 | AZ24: 3.980592356 | BA24: 0.2631030824 | BB24: 0.3587320791 | BC24: 0.152564767 | BD24: 0.06992551819 | BF24: 2.130573664 | BG24: 3.692187021 | BH24: 0.327900146 | BI24: 0.4313786699 | BJ24: 0.157968948 | BK24: 0.07240243451
A25: 7 | B25: 2031 | C25: 22313.36693 | E25: 6.882549707 | F25: 0.02252880428 | G25: 0.1585681224 | H25: 0.7070578574 | I25: 1.213089461 | J25: 4.781305462 | L25: 0.94 | M25: 6.469596725 | N25: 0.02117707602 | O25: 0.1490540351 | P25: 0.6646343859 | Q25: 1.140304093 | R25: 4.494427134 | AR25: 1.690230939 | AS25: 3.825768201 | AT25: 0.251364568 | AU25: 0.3427611193 | AV25: 0.1466429958 | AW25: 0.0672113731 | AY25: 1.776572356 | AZ25: 4.021198445 | BA25: 0.2642049275 | BB25: 0.3602702537 | BC25: 0.1541339036 | BD25: 0.0706447058 | BF25: 2.157453705 | BG25: 3.729851082 | BH25: 0.3292733537 | BI25: 0.4332283392 | BJ25: 0.1595953555 | BK25: 0.07314787128
A26: 8 | B26: 2032 | C26: 22536.5006 | E26: 6.953451348 | F26: 0.02276088821 | G26: 0.1602016362 | H26: 0.7143417223 | I26: 1.225586288 | J26: 4.830560813 | L26: 0.94 | M26: 6.536244267 | N26: 0.02139523492 | O26: 0.1505895381 | P26: 0.6714812189 | Q26: 1.152051111 | R26: 4.540727164 | AR26: 1.711555467 | AS26: 3.864794926 | AT26: 0.2524172536 | AU26: 0.3442308134 | AV26: 0.148151963 | AW26: 0.06790298306 | AY26: 1.798986196 | AZ26: 4.062218758 | BA26: 0.265311387 | BB26: 0.3618150236 | BC26: 0.1557199527 | BD26: 0.07137164501 | BF26: 2.184672874 | BG26: 3.767899356 | BH26: 0.3306523122 | BI26: 0.4350859394 | BJ26: 0.1612394515 | BK26: 0.07390141529
A27: 9 | B27: 2033 | C27: 22761.86561 | E27: 7.025124351 | F27: 0.02299549706 | G27: 0.1618529216 | H27: 0.7217048307 | I27: 1.238219072 | J27: 4.880352029 | L27: 0.94 | M27: 6.60361689 | N27: 0.02161576723 | O27: 0.1521417463 | P27: 0.6784025409 | Q27: 1.163925928 | R27: 4.587530908 | AR27: 1.733149032 | AS27: 3.904219763 | AT27: 0.2534743477 | AU27: 0.3457068093 | AV27: 0.1496771989 | AW27: 0.06860204948 | AY27: 1.821682817 | AZ27: 4.103657519 | BA27: 0.2664224802 | BB27: 0.3633664172 | BC27: 0.1573231016 | BD27: 0.07210642157 | BF27: 2.212235449 | BG27: 3.80633576 | BH27: 0.3320370457 | BI27: 0.4369515047 | BJ27: 0.1629014342 | BK27: 0.07466315735
A28: 10 | B28: 2034 | C28: 22989.48426 | E28: 7.097577358 | F28: 0.02323265911 | G28: 0.1635221776 | H28: 0.7291480706 | I28: 1.250989337 | J28: 4.930685114 | L28: 0.94 | M28: 6.671722717 | N28: 0.02183869956 | O28: 0.1537108469 | P28: 0.6853991863 | Q28: 1.175929977 | R28: 4.634844008 | AR28: 1.755015029 | AS28: 3.944046774 | AT28: 0.2545358688 | AU28: 0.347189134 | AV28: 0.1512188834 | AW28: 0.06930865487 | AY28: 1.844665787 | AZ28: 4.145518998 | BA28: 0.2675382266 | BB28: 0.3649244629 | BC28: 0.1589435394 | BD28: 0.07284912221 | BF28: 2.240145763 | BG28: 3.845164254 | BH28: 0.3334275782 | BI28: 0.4388250692 | BJ28: 0.164581504 | BK28: 0.07543318932
A29: 11 | B29: 2035 | C29: 23219.37911 | E29: 7.170819111 | F29: 0.02347240298 | G29: 0.1652096056 | H29: 0.7366723398 | I29: 1.263898622 | J29: 4.981566141 | L29: 0.94 | M29: 6.740569965 | N29: 0.0220640588 | O29: 0.1552970293 | P29: 0.6924719994 | Q29: 1.188064705 | R29: 4.682672172 | AR29: 1.777156895 | AS29: 3.984280061 | AT29: 0.2556018354 | AU29: 0.3486778146 | AV29: 0.1527771986 | AW29: 0.07002288267 | AY29: 1.867938717 | AZ29: 4.187807506 | BA29: 0.2686586456 | BB29: 0.3664891892 | BC29: 0.1605814574 | BD29: 0.07359983464 | BF29: 2.268408203 | BG29: 3.884388839 | BH29: 0.3348239342 | BI29: 0.4407066671 | BJ29: 0.1662798635 | BK29: 0.07621160408
A30: 12 | B30: 2036 | C30: 23451.5729 | E30: 7.244858451 | F30: 0.02371475761 | G30: 0.1669154094 | H30: 0.7442785466 | I30: 1.276948487 | J30: 5.03300125 | L30: 0.94 | M30: 6.810166944 | N30: 0.02229187216 | O30: 0.1569004848 | P30: 0.6996218338 | Q30: 1.200331578 | R30: 4.731021175 | AR30: 1.79957811 | AS30: 4.024923769 | AT30: 0.2566722662 | AU30: 0.3501728784 | AV30: 0.1543523286 | AW30: 0.07074481726 | AY30: 1.891505266 | AZ30: 4.2305274 | BA30: 0.2697837568 | BB30: 0.3680606247 | BC30: 0.1622370492 | BD30: 0.07435864753 | BF30: 2.297027212 | BG30: 3.924013554 | BH30: 0.3362261379 | BI30: 0.442596333 | BJ30: 0.1679967177 | BK30: 0.07699849561
A31: 13 | B31: 2037 | C31: 23686.08863 | E31: 7.319704318 | F31: 0.02395975227 | G31: 0.1686397948 | H31: 0.7519676097 | I31: 1.290140507 | J31: 5.084996655 | L31: 0.94 | M31: 6.880522059 | N31: 0.02252216713 | O31: 0.1585214071 | P31: 0.7068495531 | Q31: 1.212732076 | R31: 4.779896855 | AR31: 1.822282199 | AS31: 4.065982083 | AT31: 0.2577471798 | AU31: 0.3516743527 | AV31: 0.1559444596 | AW31: 0.07147454397 | AY31: 1.915369139 | AZ31: 4.273683081 | BA31: 0.2709135798 | BB31: 0.3696387983 | BC31: 0.1639105104 | BD31: 0.07512565058 | BF31: 2.326007288 | BG31: 3.964042482 | BH31: 0.3376342138 | BI31: 0.4444941015 | BJ31: 0.169732274 | BK31: 0.07779395894
A32: 14 | B32: 2038 | C32: 23922.94951 | E32: 7.395365758 | F32: 0.02420741656 | G32: 0.1703829704 | H32: 0.7597404581 | I32: 1.303476276 | J32: 5.137558637 | L32: 0.94 | M32: 6.951643812 | N32: 0.02275497156 | O32: 0.1601599922 | P32: 0.7141560306 | Q32: 1.2252677 | R32: 4.829305119 | AR32: 1.845272731 | AS32: 4.107459234 | AT32: 0.258826595 | AU32: 0.3531822651 | AV32: 0.1575537798 | AW32: 0.07221214908 | AY32: 1.939534087 | AZ32: 4.317278993 | BA32: 0.2720481344 | BB32: 0.3712237388 | BC32: 0.1656020389 | BD32: 0.07590093449 | BF32: 2.355352986 | BG32: 4.004479746 | BH32: 0.3390481867 | BI32: 0.4464000071 | BJ32: 0.1714867422 | BK32: 0.07859809018
A33: 15 | B33: 2039 | C33: 24162.17901 | E33: 7.471851917 | F33: 0.02445778042 | G33: 0.1721451468 | H33: 0.7675980315 | I33: 1.316957407 | J33: 5.190693551 | L33: 0.94 | M33: 7.023540802 | N33: 0.02299031359 | O33: 0.161816438 | P33: 0.7215421496 | Q33: 1.237939963 | R33: 4.879251938 | AR33: 1.868553318 | AS33: 4.149359494 | AT33: 0.2599105307 | AU33: 0.3546966431 | AV33: 0.1591804797 | AW33: 0.07295771985 | AY33: 1.964003908 | AZ33: 4.361319628 | BA33: 0.2731874403 | BB33: 0.3728154752 | BC33: 0.1673118349 | BD33: 0.07668459097 | BF33: 2.38506892 | BG33: 4.04532951 | BH33: 0.3404680811 | BI33: 0.448314085 | BJ33: 0.1732603343 | BK33: 0.07941098656
A34: 16 | B34: 2040 | C34: 24403.8008 | E34: 7.549172047 | F34: 0.02471087413 | G34: 0.1739265371 | H34: 0.7755412804 | I34: 1.33058553 | J34: 5.244407825 | L34: 0.94 | M34: 7.096221724 | N34: 0.02322822168 | O34: 0.1634909449 | P34: 0.7290088036 | Q34: 1.250750398 | R34: 4.929743355 | AR34: 1.892127622 | AS34: 4.19168718 | AT34: 0.2609990058 | AU34: 0.3562175144 | AV34: 0.1608247517 | AW34: 0.07371134454 | AY34: 1.988782449 | AZ34: 4.405809523 | BA34: 0.2743315176 | BB34: 0.3744140366 | BC34: 0.1690401006 | BD34: 0.07747671278 | BF34: 2.41515976 | BG34: 4.086595984 | BH34: 0.3418939218 | BI34: 0.45023637 | BJ34: 0.1750532649 | BK34: 0.08023274639
A35: 17 | B35: 2041 | C35: 24647.83881 | E35: 7.627335505 | F35: 0.02496672833 | G35: 0.1757273571 | H35: 0.7835711661 | I35: 1.344362295 | J35: 5.298707959 | L35: 0.94 | M35: 7.169695375 | N35: 0.02346872463 | O35: 0.1651837157 | P35: 0.7365568961 | Q35: 1.263700557 | R35: 4.980785481 | AR35: 1.915999347 | AS35: 4.234446651 | AT35: 0.2620920393 | AU35: 0.357744907 | AV35: 0.1624867907 | AW35: 0.07447311238 | AY35: 2.013873604 | AZ35: 4.450753259 | BA35: 0.2754803861 | BB35: 0.3760194524 | BC35: 0.1707870408 | BD35: 0.07827739372 | BF35: 2.445630236 | BG35: 4.128283418 | BH35: 0.3433257338 | BI35: 0.4521668975 | BJ35: 0.1768657508 | BK35: 0.08106346913
A36: 18 | B36: 2042 | C36: 24894.3172 | E36: 7.706351755 | F36: 0.02522537399 | G36: 0.1775478247 | H36: 0.7916886608 | I36: 1.358289369 | J36: 5.353600527 | L36: 0.94 | M36: 7.24397065 | N36: 0.02371185156 | O36: 0.1668949552 | P36: 0.7441873411 | Q36: 1.276792007 | R36: 5.032384495 | AR36: 1.940172246 | AS36: 4.277642312 | AT36: 0.2631896503 | AU36: 0.3592788487 | AV36: 0.1641667934 | AW36: 0.07524311362 | AY36: 2.039281318 | AZ36: 4.496155467 | BA36: 0.2766340659 | BB36: 0.3776317519 | BC36: 0.1725528625 | BD36: 0.07908672863 | BF36: 2.476485138 | BG36: 4.170396106 | BH36: 0.344763542 | BI36: 0.4541057026 | BJ36: 0.1786980117 | BK36: 0.08190325537
A37: 19 | B37: =B36+1 -> 2043 | C37: 25143.26037 | E37: 7.786230371 | F37: 0.02548684246 | G37: 0.1793881604 | H37: 0.7998947479 | I37: 1.37236844 | J37: 5.40909218 | L37: 0.94 | M37: 7.319056549 | N37: 0.02395763191 | O37: 0.1686248708 | P37: 0.751901063 | Q37: 1.290026334 | R37: 5.084546649 | AR37: 1.964650118 | AS37: 4.321278612 | AT37: 0.2642918579 | AU37: 0.3608193677 | AV37: 0.1658649589 | AW37: 0.07602143951 | AY37: 2.065009584 | AZ37: 4.542020824 | BA37: 0.2777925772 | BB37: 0.3792509646 | BC37: 0.1743377748 | BD37: 0.07990481345 | BF37: 2.507729316 | BG37: 4.212938386 | BH37: 0.3462073717 | BI37: 0.456052821 | BJ37: 0.1805502695 | BK37: 0.08275220684
A38: 20 | B38: 2044 | C38: 25394.69297 | E38: 7.866981033 | F38: 0.02575116541 | G38: 0.1812485873 | H38: 0.8081904221 | I38: 1.386601214 | J38: 5.465189644 | L38: 0.94 | M38: 7.394962171 | N38: 0.02420609549 | O38: 0.1703736721 | P38: 0.7596989968 | Q38: 1.303405142 | R38: 5.137278265 | AR38: 1.989436811 | AS38: 4.365360047 | AT38: 0.2653986815 | AU38: 0.3623664921 | AV38: 0.1675814888 | AW38: 0.07680818236 | AY38: 2.091062446 | AZ38: 4.588354055 | BA38: 0.2789559402 | BB38: 0.3808771202 | BC38: 0.1761419895 | BD38: 0.08073174517 | BF38: 2.539367681 | BG38: 4.255914641 | BH38: 0.3476572479 | BI38: 0.4580082883 | BJ38: 0.1824227486 | BK38: 0.08361042644
B39: =B38+1 -> 2045 | C39: 25648.6399 | L39: 0.94 | AY39: 0 | AZ39: 0 | BA39: 0 | BB39: 0 | BC39: 0 | BD39: 0 | BF39: -- | BG39: -- | BH39: -- | BI39: -- | BJ39: -- | BK39: --
B40: 2046 | C40: 25905.1263 | L40: 0.94 | AY40: 0 | AZ40: 0 | BA40: 0 | BB40: 0 | BC40: 0 | BD40: 0 | BF40: -- | BG40: -- | BH40: -- | BI40: -- | BJ40: -- | BK40: --
B41: 2047 | C41: 26164.17756 | L41: 0.94 | AY41: 0 | AZ41: 0 | BA41: 0 | BB41: 0 | BC41: 0 | BD41: 0 | BF41: -- | BG41: -- | BH41: -- | BI41: -- | BJ41: -- | BK41: --
B42: 2048 | C42: 26425.81934 | L42: 0.94 | AY42: 0 | AZ42: 0 | BA42: 0 | BB42: 0 | BC42: 0 | BD42: 0 | BF42: -- | BG42: -- | BH42: -- | BI42: -- | BJ42: -- | BK42: --
B43: 2049 | C43: 26690.07753 | L43: 0.94 | AY43: 0 | AZ43: 0 | BA43: 0 | BB43: 0 | BC43: 0 | BD43: 0 | BF43: -- | BG43: -- | BH43: -- | BI43: -- | BJ43: -- | BK43: --
B44: 2050 | C44: 26956.97831 | L44: 0.94 | AY44: 0 | AZ44: 0 | BA44: 0 | BB44: 0 | BC44: 0 | BD44: 0 | BF44: -- | BG44: -- | BH44: -- | BI44: -- | BJ44: -- | BK44: --
B45: 2051 | C45: 27226.54809 | L45: 0.94 | AY45: 0 | AZ45: 0 | BA45: 0 | BB45: 0 | BC45: 0 | BD45: 0 | BF45: -- | BG45: -- | BH45: -- | BI45: -- | BJ45: -- | BK45: --
B46: 2052 | C46: 27498.81357 | L46: 0.94 | AY46: =AR46*$BB$8 -> 0 | AZ46: 0 | BA46: 0 | BB46: 0 | BC46: 0 | BD46: 0 | BF46: -- | BG46: -- | BH46: -- | BI46: -- | BJ46: -- | BK46: --
B47: 2053 | C47: 27773.80171 | L47: 0.94 | N47: =IF(ISNUMBER($E47),$M47*N$6,"") ->  | AY47: 0 | AZ47: 0 | BA47: 0 | BB47: 0 | BC47: 0 | BD47: 0 | BF47: -- | BG47: -- | BH47: -- | BI47: -- | BJ47: -- | BK47: --
B48: 2054 | C48: 28051.53972 | L48: 0.94 | AY48: 0 | AZ48: 0 | BA48: 0 | BB48: 0 | BC48: 0 | BD48: 0 | BF48: -- | BG48: -- | BH48: -- | BI48: -- | BJ48: -- | BK48: --
B49: 2055 | C49: 28332.05512 | L49: 0.94 | AY49: 0 | AZ49: 0 | BA49: 0 | BB49: 0 | BC49: 0 | BD49: 0 | BF49: -- | BG49: -- | BH49: -- | BI49: -- | BJ49: -- | BK49: --
B50: 2056 | C50: 28615.37567 | L50: 0.94 | AY50: 0 | AZ50: 0 | BA50: 0 | BB50: 0 | BC50: 0 | BD50: 0 | BF50: -- | BG50: -- | BH50: -- | BI50: -- | BJ50: -- | BK50: --
B51: 2057 | C51: 28901.52943 | L51: 0.94 | AY51: 0 | AZ51: 0 | BA51: 0 | BB51: 0 | BC51: 0 | BD51: 0 | BF51: -- | BG51: -- | BH51: -- | BI51: -- | BJ51: -- | BK51: --
B52: 2058 | C52: 29190.54472 | L52: 0.94 | AY52: 0 | AZ52: 0 | BA52: 0 | BB52: 0 | BC52: 0 | BD52: 0 | BF52: -- | BG52: -- | BH52: -- | BI52: -- | BJ52: -- | BK52: --
B53: 2059 | C53: 29482.45017 | L53: 0.94 | AY53: 0 | AZ53: 0 | BA53: 0 | BB53: 0 | BC53: 0 | BD53: 0 | BF53: -- | BG53: -- | BH53: -- | BI53: -- | BJ53: -- | BK53: --
B54: 2060 | C54: 29777.27467 | L54: 0.94 | AY54: 0 | AZ54: 0 | BA54: 0 | BB54: 0 | BC54: 0 | BD54: 0 | BF54: -- | BG54: -- | BH54: -- | BI54: -- | BJ54: -- | BK54: --
B55: 2061 | C55: 30075.04742 | L55: 0.94 | AY55: 0 | AZ55: 0 | BA55: 0 | BB55: 0 | BC55: 0 | BD55: 0 | BF55: -- | BG55: -- | BH55: -- | BI55: -- | BJ55: -- | BK55: --
B56: 2062 | C56: 30375.79789 | L56: 0.94 | AY56: 0 | AZ56: 0 | BA56: 0 | BB56: 0 | BC56: 0 | BD56: 0 | BF56: -- | BG56: -- | BH56: -- | BI56: -- | BJ56: -- | BK56: --
B57: 2063 | C57: 30679.55587 | L57: 0.94 | AY57: 0 | AZ57: 0 | BA57: 0 | BB57: 0 | BC57: 0 | BD57: 0 | BF57: -- | BG57: -- | BH57: -- | BI57: -- | BJ57: -- | BK57: --
B58: 2064 | C58: 30986.35143 | L58: 0.94 | AY58: 0 | AZ58: 0 | BA58: 0 | BB58: 0 | BC58: 0 | BD58: 0 | BF58: -- | BG58: -- | BH58: -- | BI58: -- | BJ58: -- | BK58: --
B59: 2065 | C59: 31296.21494 | L59: 0.94 | AY59: 0 | AZ59: 0 | BA59: 0 | BB59: 0 | BC59: 0 | BD59: 0 | BF59: -- | BG59: -- | BH59: -- | BI59: -- | BJ59: -- | BK59: --
B60: 2066 | C60: 31609.17709 | L60: 0.94 | AY60: 0 | AZ60: 0 | BA60: 0 | BB60: 0 | BC60: 0 | BD60: 0 | BF60: -- | BG60: -- | BH60: -- | BI60: -- | BJ60: -- | BK60: --
B61: 2067 | C61: 31925.26886 | L61: 0.94 | AY61: 0 | AZ61: 0 | BA61: 0 | BB61: 0 | BC61: 0 | BD61: 0 | BF61: -- | BG61: -- | BH61: -- | BI61: -- | BJ61: -- | BK61: --
B62: 2068 | C62: 32244.52155 | L62: 0.94 | AY62: 0 | AZ62: 0 | BA62: 0 | BB62: 0 | BC62: 0 | BD62: 0 | BF62: -- | BG62: -- | BH62: -- | BI62: -- | BJ62: -- | BK62: --
B63: 2069 | C63: 32566.96677 | L63: 0.94 | AY63: 0 | AZ63: 0 | BA63: 0 | BB63: 0 | BC63: 0 | BD63: 0 | BF63: -- | BG63: -- | BH63: -- | BI63: -- | BJ63: -- | BK63: --
B64: 2070 | C64: 32892.63644 | L64: 0.94 | AY64: 0 | AZ64: 0 | BA64: 0 | BB64: 0 | BC64: 0 | BD64: 0 | BF64: -- | BG64: -- | BH64: -- | BI64: -- | BJ64: -- | BK64: --
B65: 2071 | C65: 33221.5628 | L65: 0.94 | AY65: 0 | AZ65: 0 | BA65: 0 | BB65: 0 | BC65: 0 | BD65: 0 | BF65: -- | BG65: -- | BH65: -- | BI65: -- | BJ65: -- | BK65: --
B66: 2072 | C66: 33553.77843 | F66: =IF(ISNUMBER($E66),$E66*N$6,"") ->  | L66: 0.94 | AY66: 0 | AZ66: 0 | BA66: 0 | BB66: 0 | BC66: 0 | BD66: 0 | BF66: -- | BG66: -- | BH66: -- | BI66: -- | BJ66: -- | BK66: --
B67: 2073 | C67: 33889.31621 | L67: 0.94 | AY67: 0 | AZ67: 0 | BA67: 0 | BB67: 0 | BC67: 0 | BD67: 0 | BF67: -- | BG67: -- | BH67: -- | BI67: -- | BJ67: -- | BK67: --
B68: 2074 | C68: 34228.20938 | L68: 0.94 | AY68: 0 | AZ68: 0 | BA68: 0 | BB68: 0 | BC68: 0 | BD68: 0 | BF68: -- | BG68: -- | BH68: -- | BI68: -- | BJ68: -- | BK68: --
B69: 2075 | C69: 34570.49147 | L69: 0.94 | AY69: 0 | AZ69: 0 | BA69: 0 | BB69: 0 | BC69: 0 | BD69: 0 | BF69: -- | BG69: -- | BH69: -- | BI69: -- | BJ69: -- | BK69: --
B70: 2076 | C70: 34916.19638 | L70: 0.94 | AY70: 0 | AZ70: 0 | BA70: 0 | BB70: 0 | BC70: 0 | BD70: 0 | BF70: -- | BG70: -- | BH70: -- | BI70: -- | BJ70: -- | BK70: --
D74: Annual Cost | L74: Annual Cost
D75: Fatality | E75: Incap. | F75: Non-Inc. | G75: Poss. Injury | H75: PDO | I75: Total Cost | J75: Present Value | L75: Fatality | M75: Incap. | N75: Non-Inc. | O75: Poss. Injury | P75: PDO | Q75: Total Cost | R75: Present Value
D76: =IF(OR(NOT(ISNUMBER($A14)),ISBLANK($A14)),0,F14*N$9) -> 0 | E76: =IF(OR(NOT(ISNUMBER($A14)),ISBLANK($A14)),0,G14*O$9) -> 0 | F76: 0 | G76: 0 | H76: 0 | I76: =SUM(D76:H76) -> 0 | J76: =IF(ISNUMBER(A14),(I76)/((1+$F$9)^(A14)),0) -> 0 | L76: =IF(OR(NOT(ISNUMBER($A14)),ISBLANK($A14)),0,N14*N$9) -> 0 | M76: =IF(OR(NOT(ISNUMBER($A14)),ISBLANK($A14)),0,O14*O$9) -> 0 | N76: 0 | O76: 0 | P76: 0 | Q76: =SUM(L76:P76) -> 0 | R76: =IF(ISNUMBER($A14),(Q76)/((1+$F$9)^($A14)),0) -> 0
D77: =IF(OR(NOT(ISNUMBER($A15)),ISBLANK($A15)),0,F15*N$9) -> 0 | E77: 0 | F77: 0 | G77: 0 | H77: 0 | I77: =SUM(D77:H77) -> 0 | J77: 0 | L77: =IF(OR(NOT(ISNUMBER($A15)),ISBLANK($A15)),0,N15*N$9) -> 0 | M77: 0 | N77: 0 | O77: 0 | P77: 0 | Q77: =SUM(L77:P77) -> 0 | R77: =IF(ISNUMBER($A15),(Q77)/((1+$F$9)^($A15)),0) -> 0
D78: 0 | E78: 0 | F78: 0 | G78: 0 | H78: 0 | I78: 0 | J78: 0 | L78: 0 | M78: 0 | N78: 0 | O78: 0 | P78: 0 | Q78: 0 | R78: 0
D79: 0 | E79: 0 | F79: 0 | G79: 0 | H79: 0 | I79: 0 | J79: 0 | L79: 0 | M79: 0 | N79: 0 | O79: 0 | P79: 0 | Q79: 0 | R79: 0
D80: 0 | E80: 0 | F80: 0 | G80: 0 | H80: 0 | I80: 0 | J80: 0 | L80: 0 | M80: 0 | N80: 0 | O80: 0 | P80: 0 | Q80: 0 | R80: 0
D81: 226073.6071 | E81: 130132.0787 | F81: 115716.8034 | G81: 121178.6153 | H81: 34624.58029 | I81: 627725.6847 | J81: 603582.3892 | L81: 212509.1907 | M81: 122324.154 | N81: 108773.7952 | O81: 113907.8984 | P81: 32547.10547 | Q81: 590062.1437 | R81: 567367.4458
D82: 228394.4483 | E82: 131467.9971 | F82: 116904.7365 | G82: 122422.6186 | H82: 34980.03157 | I82: 634169.8321 | J82: 586325.6584 | L82: 214690.7814 | M82: 123579.9173 | N82: 109890.4523 | O82: 115077.2615 | P82: 32881.22967 | Q82: 596119.6422 | R82: 551146.1189
D83: 230740.4895 | E83: 132818.421 | F83: 118105.5684 | G83: 123680.1295 | H83: 35339.34237 | I83: 640683.9507 | J83: 569565.6992 | L83: 216896.0601 | M83: 124849.3158 | N83: 111019.2343 | O83: 116259.3217 | P83: 33218.98183 | Q83: 602242.9137 | R83: 535391.7573
D84: 233112.0125 | E84: 134183.5128 | F84: 119319.4432 | G84: 124951.299 | H84: 35702.55589 | I84: 647268.8235 | J84: 553288.103 | L84: 219125.2918 | M84: 126132.502 | N84: 112160.2766 | O84: 117454.2211 | P84: 33560.40254 | Q84: 608432.6941 | R84: 520090.8169
D85: 235509.3027 | E85: 135563.4366 | F85: 120546.5071 | G85: 126236.2801 | H85: 36069.71581 | I85: 653925.2424 | J85: 537478.8825 | L85: 221378.7446 | M85: 127429.6304 | N85: 113313.7167 | O85: 118662.1033 | P85: 33905.53286 | Q85: 614689.7279 | R85: 505230.1496
D86: 237932.6485 | E86: 136958.3585 | F86: 121786.9077 | G86: 127535.2273 | H86: 36440.8663 | I86: 660654.0084 | J86: 522124.4593 | L86: 223656.6896 | M86: 128740.857 | N86: 114479.6932 | O86: 119883.1137 | P86: 34254.41433 | Q86: 621014.7679 | R86: 490796.9917
D87: 240382.3417 | E87: 138368.4464 | F87: 123040.7942 | G87: 128848.2971 | H87: 36816.05206 | I87: 667455.9315 | J87: 507211.6519 | L87: 225959.4012 | M87: 130066.3397 | N87: 115658.3466 | O87: 121117.3993 | P87: 34607.08893 | Q87: 627408.5756 | R87: 476778.9528
D88: 242858.6772 | E88: 139793.8702 | F88: 124308.3178 | G88: 130175.6476 | H88: 37195.31826 | I88: 674331.8311 | J88: 492727.6639 | L88: 228287.1566 | M88: 131406.238 | N88: 116849.8188 | O88: 122365.1087 | P88: 34963.59917 | Q88: 633871.9212 | R88: 463164.0041
D89: 245361.9536 | E89: 141234.8016 | F89: 125589.6312 | G89: 131517.4388 | H89: 37578.71063 | I89: 681282.5358 | J89: 478660.0729 | L89: 230640.2364 | M89: 132760.7135 | N89: 118054.2534 | O89: 123626.3924 | P89: 35323.98799 | Q89: 640405.5837 | R89: 449940.4685
D90: 247892.4727 | E90: 142691.4144 | F90: 126884.8889 | G90: 132873.8324 | H90: 37966.27538 | I90: 688308.8839 | J90: 464996.819 | L90: 233018.9244 | M90: 134129.9296 | N90: 119271.7956 | O90: 124901.4025 | P90: 35688.29886 | Q90: 647010.3508 | R90: 437097.0099
D91: 250450.5398 | E91: 144163.8844 | F91: 128194.2472 | G91: 134244.9922 | H91: 38358.05928 | I91: =SUM(D91:H91) -> 695411.7229 | J91: 451726.1948 | L91: 235423.5074 | M91: 135514.0513 | N91: 120502.5924 | O91: 126190.2926 | P91: 36056.57573 | Q91: 653687.0195 | R91: 424622.6231
D92: 253036.4637 | E92: 145652.3892 | F92: 129517.8641 | G92: 135631.0835 | H92: 38754.10963 | I92: =SUM(D92:H92) -> 702591.9102 | J92: 438836.8342 | L92: 237854.2759 | M92: 136913.2458 | N92: 121746.7923 | O92: 127493.2185 | P92: 36428.86305 | Q92: 660436.3956 | R92: 412506.6241
D93: =IF(OR(NOT(ISNUMBER($A31)),ISBLANK($A31)),0,F31*N$9) -> 255650.5567 | E93: 147157.1086 | F93: 130855.8995 | G93: 137032.2739 | H93: 39154.47424 | I93: 709850.313 | J93: 426317.703 | L93: =IF(OR(NOT(ISNUMBER($A31)),ISBLANK($A31)),0,N31*N$9) -> 240311.5233 | M93: 138327.6821 | N93: 123004.5455 | O93: 128810.3375 | P93: 36805.20579 | Q93: 667259.2942 | R93: 400738.6409
D94: 258293.1347 | E94: 148678.2245 | F94: 132208.515 | G94: 138448.7327 | H94: 39559.2015 | I94: 717187.8084 | J94: 414158.0891 | L94: 242795.5466 | M94: 139757.5311 | N94: 124276.0041 | O94: 130141.8087 | P94: 37185.64941 | Q94: 674156.5399 | R94: 389308.6037
D95: 260964.517 | E95: 150215.9208 | F95: 133575.8742 | G95: 139880.631 | H95: 39968.34034 | I95: 724605.2834 | J95: 402347.5924 | L95: 245306.646 | M95: 141202.9656 | N95: 125561.3218 | O95: 131487.7931 | P95: 37570.23992 | Q95: 681128.9664 | R95: 378206.7368
D96: 263665.027 | E96: 151770.3834 | F96: 134958.1425 | G96: 141328.1421 | H96: 40381.94025 | I96: 732103.6353 | J96: 390876.1163 | L96: 247845.1254 | M96: 142664.1604 | N96: 126860.654 | O96: 132848.4536 | P96: 37959.02384 | Q96: 688177.4171 | R96: 367423.5493
D97: 266394.9913 | E97: 153341.8005 | F97: 136355.4872 | G97: 142791.4411 | H97: 40800.05128 | I97: 739683.7714 | J97: 379733.8586 | L97: 250411.2918 | M97: 144141.2925 | N97: 128174.1579 | O97: 134223.9547 | P97: 38352.0482 | Q97: 695302.7451 | R97: 356949.8271
D98: 269154.7405 | E98: 154930.3624 | F98: 137768.0774 | G98: 144270.7053 | H98: 41222.72406 | I98: 747346.6096 | J98: 368911.3027 | L98: 253005.4561 | M98: 145634.5406 | N98: 129501.9927 | O98: 135614.463 | P98: 38749.36061 | Q98: 702505.8131 | R98: 346776.6245
D99: 271944.609 | E99: 156536.2614 | F99: 139196.0842 | G99: 145766.1139 | H99: 41650.00979 | I99: 755093.0783 | J99: 358399.2091 | L99: 255627.9325 | M99: 147144.0857 | N99: 130844.3192 | O99: 137020.147 | P99: 39151.0092 | Q99: 709787.4936 | R99: 336895.2565
D100: 274764.9349 | E100: 158159.6923 | F100: 140639.6809 | G100: 147277.848 | H100: 42081.96026 | I100: 762924.1163 | J100: 348188.6076 | L100: 258279.0388 | M100: 148670.1107 | N100: 132201.3 | O100: 138441.1771 | P100: 39557.04264 | Q100: 717148.6693 | R100: 327297.2912
D101: 0 | E101: 0 | F101: 0 | G101: 0 | H101: 0 | I101: 0 | J101: 0 | L101: 0 | M101: 0 | N101: 0 | O101: 0 | P101: 0 | Q101: 0 | R101: 0
D102: 0 | E102: 0 | F102: 0 | G102: 0 | H102: 0 | I102: 0 | J102: 0 | L102: 0 | M102: 0 | N102: 0 | O102: 0 | P102: 0 | Q102: 0 | R102: 0
D103: 0 | E103: 0 | F103: 0 | G103: 0 | H103: 0 | I103: 0 | J103: 0 | L103: 0 | M103: 0 | N103: 0 | O103: 0 | P103: 0 | Q103: 0 | R103: 0
D104: 0 | E104: 0 | F104: 0 | G104: 0 | H104: 0 | I104: 0 | J104: 0 | L104: 0 | M104: 0 | N104: 0 | O104: 0 | P104: 0 | Q104: 0 | R104: 0
D105: 0 | E105: 0 | F105: 0 | G105: 0 | H105: 0 | I105: 0 | J105: 0 | L105: 0 | M105: 0 | N105: 0 | O105: 0 | P105: 0 | Q105: 0 | R105: 0
D106: 0 | E106: 0 | F106: 0 | G106: 0 | H106: 0 | I106: 0 | J106: 0 | L106: 0 | M106: 0 | N106: 0 | O106: 0 | P106: 0 | Q106: 0 | R106: 0
D107: 0 | E107: 0 | F107: 0 | G107: 0 | H107: 0 | I107: 0 | J107: 0 | L107: 0 | M107: 0 | N107: 0 | O107: 0 | P107: 0 | Q107: 0 | R107: 0
D108: 0 | E108: 0 | F108: 0 | G108: 0 | H108: 0 | I108: 0 | J108: 0 | L108: 0 | M108: 0 | N108: 0 | O108: 0 | P108: 0 | Q108: 0 | R108: 0
D109: =IF(OR(NOT(ISNUMBER($A47)),ISBLANK($A47)),0,F47*N$9) -> 0 | E109: 0 | F109: 0 | G109: 0 | H109: 0 | I109: 0 | J109: 0 | L109: =IF(OR(NOT(ISNUMBER($A47)),ISBLANK($A47)),0,N47*N$9) -> 0 | M109: 0 | N109: 0 | O109: 0 | P109: 0 | Q109: 0 | R109: 0
D110: 0 | E110: 0 | F110: 0 | G110: 0 | H110: 0 | I110: 0 | J110: 0 | L110: 0 | M110: 0 | N110: 0 | O110: 0 | P110: 0 | Q110: 0 | R110: 0
D111: 0 | E111: 0 | F111: 0 | G111: 0 | H111: 0 | I111: 0 | J111: 0 | L111: 0 | M111: 0 | N111: 0 | O111: 0 | P111: 0 | Q111: 0 | R111: 0
D112: 0 | E112: 0 | F112: 0 | G112: 0 | H112: 0 | I112: 0 | J112: 0 | L112: 0 | M112: 0 | N112: 0 | O112: 0 | P112: 0 | Q112: 0 | R112: 0
D113: 0 | E113: 0 | F113: 0 | G113: 0 | H113: 0 | I113: 0 | J113: 0 | L113: 0 | M113: 0 | N113: 0 | O113: 0 | P113: 0 | Q113: 0 | R113: 0
D114: 0 | E114: 0 | F114: 0 | G114: 0 | H114: 0 | I114: 0 | J114: 0 | L114: 0 | M114: 0 | N114: 0 | O114: 0 | P114: 0 | Q114: 0 | R114: 0
D115: 0 | E115: 0 | F115: 0 | G115: 0 | H115: 0 | I115: 0 | J115: 0 | L115: 0 | M115: 0 | N115: 0 | O115: 0 | P115: 0 | Q115: 0 | R115: 0
D116: 0 | E116: 0 | F116: 0 | G116: 0 | H116: 0 | I116: 0 | J116: 0 | L116: 0 | M116: 0 | N116: 0 | O116: 0 | P116: 0 | Q116: 0 | R116: 0
D117: 0 | E117: 0 | F117: 0 | G117: 0 | H117: 0 | I117: 0 | J117: 0 | L117: 0 | M117: 0 | N117: 0 | O117: 0 | P117: 0 | Q117: 0 | R117: 0
D118: 0 | E118: 0 | F118: 0 | G118: 0 | H118: 0 | I118: 0 | J118: 0 | L118: 0 | M118: 0 | N118: 0 | O118: 0 | P118: 0 | Q118: 0 | R118: 0
D119: 0 | E119: 0 | F119: 0 | G119: 0 | H119: 0 | I119: 0 | J119: 0 | L119: 0 | M119: 0 | N119: 0 | O119: 0 | P119: 0 | Q119: 0 | R119: 0
D120: 0 | E120: 0 | F120: 0 | G120: 0 | H120: 0 | I120: 0 | J120: 0 | L120: 0 | M120: 0 | N120: 0 | O120: 0 | P120: 0 | Q120: 0 | R120: 0
D121: 0 | E121: 0 | F121: 0 | G121: 0 | H121: 0 | I121: 0 | J121: 0 | L121: 0 | M121: 0 | N121: 0 | O121: 0 | P121: 0 | Q121: 0 | R121: 0
D122: 0 | E122: 0 | F122: 0 | G122: 0 | H122: 0 | I122: 0 | J122: 0 | L122: 0 | M122: 0 | N122: 0 | O122: 0 | P122: 0 | Q122: 0 | R122: 0
D123: 0 | E123: 0 | F123: 0 | G123: 0 | H123: 0 | I123: 0 | J123: 0 | L123: 0 | M123: 0 | N123: 0 | O123: 0 | P123: 0 | Q123: 0 | R123: 0
D124: 0 | E124: 0 | F124: 0 | G124: 0 | H124: 0 | I124: 0 | J124: 0 | L124: 0 | M124: 0 | N124: 0 | O124: 0 | P124: 0 | Q124: 0 | R124: 0
D125: =IF(OR(NOT(ISNUMBER($A63)),ISBLANK($A63)),0,F63*N$9) -> 0 | E125: 0 | F125: 0 | G125: 0 | H125: 0 | I125: 0 | J125: 0 | L125: =IF(OR(NOT(ISNUMBER($A63)),ISBLANK($A63)),0,N63*N$9) -> 0 | M125: 0 | N125: 0 | O125: 0 | P125: 0 | Q125: 0 | R125: 0
D126: 0 | E126: 0 | F126: 0 | G126: 0 | H126: 0 | I126: 0 | J126: 0 | L126: 0 | M126: 0 | N126: 0 | O126: 0 | P126: 0 | Q126: 0 | R126: 0
D127: 0 | E127: 0 | F127: 0 | G127: 0 | H127: 0 | I127: 0 | J127: 0 | L127: 0 | M127: 0 | N127: 0 | O127: 0 | P127: 0 | Q127: 0 | R127: 0
D128: 0 | E128: 0 | F128: 0 | G128: 0 | H128: 0 | I128: 0 | J128: 0 | L128: 0 | M128: 0 | N128: 0 | O128: 0 | P128: 0 | Q128: 0 | R128: 0
D129: 0 | E129: 0 | F129: 0 | G129: 0 | H129: 0 | I129: 0 | J129: 0 | L129: 0 | M129: 0 | N129: 0 | O129: 0 | P129: 0 | Q129: 0 | R129: 0
D130: 0 | E130: 0 | F130: 0 | G130: 0 | H130: 0 | I130: 0 | J130: 0 | L130: 0 | M130: 0 | N130: 0 | O130: 0 | P130: 0 | Q130: 0 | R130: 0
D131: 0 | E131: 0 | F131: 0 | G131: 0 | H131: 0 | I131: 0 | J131: 0 | L131: 0 | M131: 0 | N131: 0 | O131: 0 | P131: 0 | Q131: 0 | R131: 0
D132: 0 | E132: 0 | F132: 0 | G132: 0 | H132: 0 | I132: 0 | J132: 0 | L132: 0 | M132: 0 | N132: 0 | O132: 0 | P132: 0 | Q132: 0 | R132: 0

Sheet Intx Crash Cost #1
B1: I N T E R S E C T I O N S
U3: Total Analysis Period Crash Cost
F4: FROM TOTAL TAB | N4: Default Crash Distribution
B5: Empirical Bayes | F5: Area Type = | H5: Urban | J5: FROM CRASH COST TOTALS | N5: K | O5: A | P5: B | Q5: C | R5: O | S5: Sum | U5: No Lighting | W5: With Lighting
B6: adjustment type: | F6: Intersection Type = | H6: 4SG | J6: Opening Year = | K6: 2025 | M6: % | N6: =IF(ISNUMBER(SEARCH("Two-way", $X$14)),VLOOKUP($H$6,Factors!$O$20:$T$23, 2, FALSE),VLOOKUP($H$6,Factors!$O$24:$T$27, 2, FALSE)) -> 0.00362732995 | O6: =IF(ISNUMBER(SEARCH("Two-way", $X$14)),VLOOKUP($H$6,Factors!$O$20:$T$23, 3, FALSE),VLOOKUP($H$6,Factors!$O$24:$T$27, 3, FALSE)) -> 0.03186868456 | P6: =IF(ISNUMBER(SEARCH("Two-way", $X$14)),VLOOKUP($H$6,Factors!$O$20:$T$23,4, FALSE),VLOOKUP($H$6,Factors!$O$24:$T$27, 4, FALSE)) -> 0.1122643379 | Q6: =IF(ISNUMBER(SEARCH("Two-way", $X$14)),VLOOKUP($H$6,Factors!$O$20:$T$23, 5, FALSE),VLOOKUP($H$6,Factors!$O$24:$T$27, 5, FALSE)) -> 0.2238123543 | R6: =IF(ISNUMBER(SEARCH("Two-way", $X$14)),VLOOKUP($H$6,Factors!$O$20:$T$23, 6, FALSE),VLOOKUP($H$6,Factors!$O$24:$T$27, 6, FALSE)) -> 0.6284272934 | S6: =SUM(N6:R6) -> 1 | AW6: Intersection Lighting CMF | AZ6: =1-0.38*VLOOKUP(H6,Intersections!AB71:AC74,2,FALSE) -> 0.9107
B7: ='Crash Cost Totals'!B6 -> Site-specific | F7: Analysis Year Major AADT = | H7: 30000 | J7: Analysis Period = | K7: 20 | M7: Cost* | N7: 10670000 | O7: 872612 | P7: 174018 | Q7: 106215 | R7: 7700 | U7: =SUMIF($A$14:$A$70,">0",$K$76:$K$132) -> 26710313.74 | W7: =SUMIF($A$14:$A$70,">0",$S$76:$S$132) -> 24378247.22
F8: Analysis Year Minor AADT = | H8: 15000 | J8: Major Growth Rate = | K8: 0.01 | AW8: Adjustment to "No Lighting" Base Condition (1.0 if Intersection analyzed w/ Lighting=No) | AZ8: =IF(H10="No",1,1/AZ6) -> 1
F9: Analysis Year = | H9: 2020 | J9: Minor Growth Rate = | K9: 0.01 | M9: Use Val | N9: =N7 -> 10670000 | O9: =O7 -> 872612 | P9: =P7 -> 174018 | Q9: =Q7 -> 106215 | R9: =R7 -> 7700
F10: Analyzed W/ Lighting = | H10: No | J10: Rate of Return = | K10: 0.04 | M10: *Values are the 2020 FDOT KABCO crash costs as laied out in the FDOT Design Manual | X10: Analysis (Base Year) EB Computations
X11: Type | Y11: Sum lookup | Z11: Inverse dispersion parameter | AD11: Predicted crash total | AH11: Observed crash total | AL11: Weight | AR11: Predicted crash total - As Analyzed | AW11: Predicted crash total - No Lighting | BB11: EB Adjusted crash total
B12: AADT / Year | F12: Annual Number of Crashes - No Lighting | M12: Annual Number of Crashes - With Lighting | Z12: Total-vehicle | AB12: Vehicle-pedestrian | AD12: Total-vehicle | AF12: Vehicle-pedestrian | AH12: Total-vehicle | AJ12: Vehicle-pedestrian | AL12: Total-vehicle | AN12: Vehicle-pedestrian | AR12: Total-vehicle | AT12: Vehicle-pedestrian | AU12: Vehicle-bicycle | AW12: Total-vehicle | AY12: Vehicle-pedestrian | AZ12: Vehicle-bicycle | BB12: Total-vehicle | BD12: Vehicle-pedestrian | BE12: Vehicle-bicycle
B13: Year | C13: Major AADT | D13: Minor AADT | F13: Total Crash Pred | G13: Fatality | H13: Incap. | I13: Non-Inc. | J13: Poss. Injury | K13: PDO | M13: Lighting CMF | N13: Total Crash Pred | O13: Fatality | P13: Incap. | Q13: Non-Inc. | R13: Poss. Injury | S13: PDO | Z13: TV F+I | AA13: TV PDO | AB13: VP F+I | AD13: TV F+I | AE13: TV PDO | AF13: VP F+I | AH13: TV F+I | AI13: TV PDO | AJ13: VP F+I | AL13: TV F+I | AM13: TV PDO | AN13: VP F+I | AR13: TV F+I | AS13: TV PDO | AT13: F+I | AU13: F+I | AW13: TV F+I | AX13: TV PDO | AY13: F+I | AZ13: F+I | BB13: TV F+I | BC13: TV PDO | BD13: F+I | BE13: F+I
A14: =IF(B14=$K$6, 1, IF(AND(B14-$K$6<$K$7,B14-$K$6>0),B14-$K$6 + 1,"")) ->  | B14: =H9 -> 2020 | C14: =H7 -> 30000 | D14: =H8 -> 15000 | F14: =IF(B14<$K$6+$K$7,IF($B$7="Site-specific",SUM(BB14:BE14),SUM(AW14:AZ14)),"") -> 15.8880732 | G14: =IF(ISNUMBER($F14),$F14*N$6,"") -> 0.05763128378 | H14: =IF(ISNUMBER($F14),$F14*O$6,"") -> 0.5063319932 | I14: 1.783664018 | J14: 3.555947068 | K14: 9.98449884 | M14: =AZ6 -> 0.9107 | N14: =IF(B14<$K$6+$K$7,IF($B$7="Site-specific",(BB14+BC14+BE14)*M14+IF(OR($H$6="4SG",$H$6="3SG"),1,M14)*BD14,(AW14+AX14+AZ14)*M14+IF(OR($H$6="4SG",$H$6="3SG"),1,M14)*AY14),"") -> 14.50163039 | O14: =IF(ISNUMBER($F14),$N14*N$6,"") -> 0.05260219824 | P14: =IF(ISNUMBER($F14),$N14*O$6,"") -> 0.4621478846 | Q14: 1.628015934 | R14: 3.245644039 | S14: 9.113220337 | X14: 4SG, Two-way | Z14: =VLOOKUP($X14,Totals!$BG$33:$BJ$40,2,FALSE) -> 1.77 | AA14: =VLOOKUP($X14,Totals!$BG$33:$BJ$40,3,FALSE) -> 1.01 | AB14: =VLOOKUP($X14,Totals!$BG$33:$BJ$40,4,FALSE) -> 0.24 | AD14: =AW14 -> 4.583888295 | AE14: =AX14 -> 4.283377659 | AF14: =AY14 -> 0.04632263429 | AH14: 7 | AI14: 10 | AJ14: 2 | AL14: =1/(1+AD14/Z14) -> 0.278569581 | AM14: =1/(1+AE14/AA14) -> 0.1908044476 | AN14: =1/(1+AF14/AB14) -> 0.8382152553 | AR14: 4.583888295 | AS14: 4.283377659 | AT14: 0.04632263429 | AU14: 0.1684780531 | AW14: =IF($B14<$K$6+$K$7,AR14*$AZ$8,"--") -> 4.583888295 | AX14: =IF($B145<$K$6+$K$7,AS14*$AZ$8,"--") -> 4.283377659 | AY14: =IF($B14<$K$6+$K$7,IF(OR($H$6="4SG",$H$6="3SG"),AT14,AT14/SUM(AR14:AS14)*SUM(AW14:AX14)),"--") -> 0.04632263429 | AZ14: =IF($B14<$K$6+$K$7,SUM(AW14:AX14)*(AU14/SUM(AR14:AS14)),"--") -> 0.1684780531 | BB14: =AL14*AD14 + (1-AL14)*AH14 -> 6.326944775 | BC14: =AM14*AE14 + (1-AM14)*AI14 -> 8.909243032 | BD14: =AN14*AF14 + (1-AN14)*AJ14 -> 0.3623978281 | BE14: =AU14/SUM(AR14:AS14)*SUM(BB14:BC14) -> 0.2894875683
B15: =B14+1 -> 2021 | C15: =C14*(1+$K$8) -> 30300 | D15: =D14*(1+$K$9) -> 15150 | F15: =IF(B15<$K$6+$K$7,IF($B$7="Site-specific",SUM(BB15:BE15),SUM(AW15:AZ15)),"") -> 15.97897255 | G15: =IF(ISNUMBER($F15),$F15*N$6,"") -> 0.05796100569 | H15: 0.5092288357 | I15: 1.793868773 | J15: 3.576291464 | K15: 10.04162247 | M15: =M14 -> 0.9107 | N15: =IF(B15<$K$6+$K$7,IF($B$7="Site-specific",(BB15+BC15+BE15)*M15+IF(OR($H$6="4SG",$H$6="3SG"),1,M15)*BD15,(AW15+AX15+AZ15)*M15+IF(OR($H$6="4SG",$H$6="3SG"),1,M15)*AY15),"") -> 14.58454149 | O15: =IF(ISNUMBER($F15),$N15*N$6,"") -> 0.05290294414 | P15: 0.4647901521 | Q15: 1.637323893 | R15: 3.264200566 | S15: 9.165323932 | AR15: 4.612713608 | AS15: 4.306454957 | AT15: 0.0465073719 | AU15: 0.1694642027 | AW15: 4.612713608 | AX15: 4.306454957 | AY15: 0.0465073719 | AZ15: 0.1694642027 | BB15: =IF($B15<$K$6+$K$7,BB$14*AR15/AR$14,"--") -> 6.366731121 | BC15: 8.957242827 | BD15: 0.3638430937 | BE15: =IF($B15<$K$6+$K$7,AU15/SUM(AR15:AS15)*SUM(BB15:BC15),"--") -> 0.291155505
B16: =B15+1 -> 2022 | C16: 30603 | D16: 15301.5 | F16: 16.07039612 | G16: 0.05829262915 | H16: 0.5121423847 | I16: 1.804132379 | J16: 3.596753189 | K16: 10.09907554 | M16: =M15 -> 0.9107 | N16: 14.66793051 | O16: 0.05320542364 | P16: 0.4674476506 | Q16: 1.646685507 | R16: 3.28286406 | S16: 9.21772787 | AR16: 4.641720187 | AS16: 4.329656586 | AT16: 0.04669284626 | AU16: 0.1704561587 | AW16: 4.641720187 | AX16: 4.329656586 | AY16: 0.04669284626 | AZ16: 0.1704561587 | BB16: 6.40676766 | BC16: 9.005501228 | BD16: 0.3652941231 | BE16: =IF($B16<$K$6+$K$7,AU16/SUM(AR16:AS16)*SUM(BB16:BC16),"--") -> 0.2928331089
B17: 2023 | C17: 30909.03 | D17: 15454.515 | F17: 16.16234697 | G17: 0.05862616521 | H17: 0.5150727372 | I17: 1.81445518 | J17: 3.617332925 | K17: 10.15685996 | M17: =M16 -> 0.9107 | N17: 14.75180024 | O17: 0.05350964683 | P17: 0.4701204686 | Q17: 1.656101086 | R17: 3.301635142 | S17: 9.270433898 | AR17: 4.67090917 | AS17: 4.352983217 | AT17: 0.0468790603 | AU17: 0.1714539554 | AW17: 4.67090917 | AX17: 4.352983217 | AY17: 0.0468790603 | AZ17: 0.1714539554 | BB17: 6.447055964 | BC17: 9.054019627 | BD17: 0.3667509393 | BE17: 0.2945204362
B18: 2024 | C18: 31218.1203 | D18: 15609.06015 | F18: 16.25482815 | G18: 0.05896162499 | H18: 0.518019991 | I18: 1.82483752 | J18: 3.638031357 | K18: 10.21497766 | M18: 0.9107 | N18: 14.83615347 | O18: 0.05381562382 | P18: 0.472808695 | Q18: 1.665570946 | R18: 3.320514436 | S18: 9.323443769 | AR18: 4.700281706 | AS18: 4.376435524 | AT18: 0.04706601697 | AU18: 0.1724576274 | AW18: 4.700281706 | AX18: 4.376435524 | AY18: 0.04706601697 | AZ18: 0.1724576274 | BB18: 6.487597617 | BC18: 9.102799426 | BD18: 0.3682135654 | BE18: 0.2962175438
A19: 1 | B19: 2025 | C19: 31530.3015 | D19: 15765.15075 | F19: 16.34784276 | G19: 0.05929901965 | H19: 0.5209842441 | I19: 1.835279743 | J19: 3.658849175 | K19: 10.27343058 | M19: 0.9107 | N19: 14.92099301 | O19: 0.05412336481 | P19: 0.4755124194 | Q19: 1.6750954 | R19: 3.339502572 | S19: 9.376759249 | AR19: 4.729838948 | AS19: 4.400014183 | AT19: 0.04725371924 | AU19: 0.1734672095 | AW19: 4.729838948 | AX19: 4.400014183 | AY19: 0.04725371924 | AZ19: 0.1734672095 | BB19: 6.528394212 | BC19: 9.151842033 | BD19: 0.3696820245 | BE19: 0.2979244887
A20: 2 | B20: 2026 | C20: 31845.60452 | D20: 15922.80226 | F20: 16.44139388 | G20: 0.05963836046 | H20: 0.5239655954 | I20: 1.845782198 | J20: 3.679787073 | K20: 10.33222066 | M20: 0.9107 | N20: 15.00632167 | O20: 0.05443288004 | P20: 0.4782317318 | Q20: 1.684674766 | R20: 3.358600182 | S20: 9.430382112 | AR20: 4.759582057 | AS20: 4.423719876 | AT20: 0.04744217008 | AU20: 0.1744827367 | AW20: 4.759582057 | AX20: 4.423719876 | AY20: 0.04744217008 | AZ20: 0.1744827367 | BB20: 6.569447353 | BC20: 9.201148864 | BD20: 0.3711563399 | BE20: 0.2996413281
A21: 3 | B21: 2027 | C21: 32164.06056 | D21: 16082.03028 | F21: 16.53548465 | G21: 0.0599796587 | H21: 0.5269641443 | I21: 1.856345235 | J21: 3.700845748 | K21: 10.39134986 | M21: 0.9107 | N21: 15.09214231 | O21: 0.05474417982 | P21: 0.4809667227 | Q21: 1.694309364 | R21: 3.377807902 | S21: 9.484314145 | AR21: 4.789512203 | AS21: 4.447553287 | AT21: 0.04763137247 | AU21: 0.1755042443 | AW21: 4.789512203 | AX21: 4.447553287 | AY21: 0.04763137247 | AZ21: 0.1755042443 | BB21: 6.610758652 | BC21: 9.250721342 | BD21: 0.372636535 | BE21: 0.3013681199
A22: 4 | B22: 2028 | C22: 32485.70117 | D22: 16242.85058 | F22: 16.63011819 | G22: 0.06032292577 | H22: 0.5299799907 | I22: 1.866969207 | J22: 3.722025903 | K22: 10.45082016 | M22: 0.9107 | N22: 15.17845778 | O22: 0.05505727451 | P22: 0.4837174832 | Q22: 1.703999513 | R22: 3.397126371 | S22: 9.538557143 | AR22: 4.819630561 | AS22: 4.471515103 | AT22: 0.04782132941 | AU22: 0.1765317676 | AW22: 4.819630561 | AX22: 4.471515103 | AY22: 0.04782132941 | AZ22: 0.1765317676 | BB22: 6.652329733 | BC22: 9.300560899 | BD22: 0.3741226332 | BE22: 0.303104922
A23: 5 | B23: 2029 | C23: 32810.55818 | D23: 16405.27909 | F23: 16.72529765 | G23: 0.0606681731 | H23: 0.5330132351 | I23: 1.877654467 | J23: 3.743328244 | K23: 10.51063354 | M23: 0.9107 | N23: 15.26527096 | O23: 0.05537217455 | P23: 0.486484105 | Q23: 1.713745537 | R23: 3.416556233 | S23: 9.593112914 | AR23: 4.849938316 | AS23: 4.495606017 | AT23: 0.04801204391 | AU23: 0.1775653423 | AW23: 4.849938316 | AX23: 4.495606017 | AY23: 0.04801204391 | AZ23: 0.1775653423 | BB23: 6.694162229 | BC23: 9.350668974 | BD23: 0.375614658 | BE23: 0.3048517929
A24: 6 | B24: 2030 | C24: 33138.66376 | D24: 16569.33188 | F24: 16.82102622 | G24: 0.0610154122 | H24: 0.5360639786 | I24: 1.888401371 | J24: 3.76475348 | K24: 10.57079198 | M24: 0.9107 | N24: 15.35258474 | O24: 0.05568889043 | P24: 0.4892666802 | Q24: 1.72354776 | R24: 3.436098134 | S24: 9.647983274 | AR24: 4.880436658 | AS24: 4.519826724 | AT24: 0.048203519 | AU24: 0.1786050043 | AW24: 4.880436658 | AX24: 4.519826724 | AY24: 0.048203519 | AZ24: 0.1786050043 | BB24: 6.736257785 | BC24: 9.401047013 | BD24: 0.3771126332 | BE24: 0.3066087912
A25: 7 | B25: 2031 | C25: 33470.0504 | D25: 16735.0252 | F25: 16.91730708 | G25: 0.06136465465 | H25: 0.539132323 | I25: 1.899210278 | J25: 3.786302326 | K25: 10.6312975 | M25: 0.9107 | N25: 15.44040202 | O25: 0.05600743269 | P25: 0.4920653015 | Q25: 1.733406509 | R25: 3.455752727 | S25: 9.703170051 | AR25: 4.911126786 | AS25: 4.544177924 | AT25: 0.0483957577 | AU25: 0.1796507895 | AW25: 4.911126786 | AX25: 4.544177924 | AY25: 0.0483957577 | AZ25: 0.1796507895 | BB25: 6.778618055 | BC25: 9.45169647 | BD25: 0.3786165823 | BE25: 0.308375976
A26: 8 | B26: 2032 | C26: 33804.7509 | D26: 16902.37545 | F26: 17.01414345 | G26: 0.0617159121 | H26: 0.5422183706 | I26: 1.910081548 | J26: 3.807975501 | K26: 10.69215212 | M26: 0.9107 | N26: 15.52872574 | O26: 0.05632781195 | P26: 0.4948800621 | Q26: 1.743322113 | R26: 3.475520666 | S26: 9.758675084 | AR26: 4.942009905 | AS26: 4.568660319 | AT26: 0.04858876306 | AU26: 0.1807027343 | AW26: 4.942009905 | AX26: 4.568660319 | AY26: 0.04858876306 | AZ26: 0.1807027343 | BB26: 6.821244702 | BC26: 9.502618809 | BD26: 0.3801265293 | BE26: 0.3101534067
A27: 9 | B27: 2033 | C27: 34142.79841 | D27: 17071.39921 | F27: 17.11153854 | G27: 0.06206919625 | H27: 0.5453222242 | I27: 1.921015544 | J27: 3.829773726 | K27: 10.75335785 | M27: 0.9107 | N27: 15.61755883 | O27: 0.05665003887 | P27: 0.4977110558 | Q27: 1.753294901 | R27: 3.495402609 | S27: 9.814500222 | AR27: 4.97308723 | AS27: 4.593274616 | AT27: 0.04878253813 | AU27: 0.1817608751 | AW27: 4.97308723 | AX27: 4.593274616 | AY27: 0.04878253813 | AZ27: 0.1817608751 | BB27: 6.864139403 | BC27: 9.553815499 | BD27: 0.3816424981 | BE27: 0.3119411431
A28: 10 | B28: 2034 | C28: 34484.2264 | D28: 17242.1132 | F28: 17.20949562 | G28: 0.06242451888 | H28: 0.5484439873 | I28: 1.932012631 | J28: 3.85169773 | K28: 10.81491675 | M28: 0.9107 | N28: 15.70690425 | O28: 0.05697412421 | P28: 0.500558377 | Q28: 1.763325206 | R28: 3.515399219 | S28: 9.870647326 | AR28: 5.004359981 | AS28: 4.618021527 | AT28: 0.048977086 | AU28: 0.1828252486 | AW28: 5.004359981 | AX28: 4.618021527 | AY28: 0.048977086 | AZ28: 0.1828252486 | BB28: 6.907303843 | BC28: 9.605288018 | BD28: 0.3831645127 | BE28: 0.3137392454
A29: 11 | B29: 2035 | C29: 34829.06866 | D29: 17414.53433 | F29: 17.30801794 | G29: 0.06278189185 | H29: 0.5515837641 | I29: 1.943073174 | J29: 3.873748243 | K29: 10.87683087 | M29: 0.9107 | N29: 15.79676499 | O29: 0.05730007875 | P29: 0.5034221205 | Q29: 1.773413362 | R29: 3.535511162 | S29: 9.927118266 | AR29: 5.035829388 | AS29: 4.642901764 | AT29: 0.04917240973 | AU29: 0.1838958919 | AW29: 5.035829388 | AX29: 4.642901764 | AY29: 0.04917240973 | AZ29: 0.1838958919 | BB29: 6.950739718 | BC29: 9.657037853 | BD29: 0.3846925971 | BE29: 0.3155477738
A30: 12 | B30: 2036 | C30: 35177.35935 | D30: 17588.67967 | F30: 17.4071088 | G30: 0.06314132708 | H30: 0.5547416593 | I30: 1.954197543 | J30: 3.895926001 | K30: 10.93910227 | M30: 0.9107 | N30: 15.88714403 | O30: 0.05762791337 | P30: 0.5063023817 | Q30: 1.783559705 | R30: 3.555739108 | S30: 9.983914924 | AR30: 5.067496687 | AS30: 4.667916048 | AT30: 0.04936851243 | AU30: 0.184972842 | AW30: 5.067496687 | AX30: 4.667916048 | AY30: 0.04936851243 | AZ30: 0.184972842 | BB30: 6.994448735 | BC30: 9.709066497 | BD30: 0.3862267756 | BE30: 0.3173667894
A31: 13 | B31: 2037 | C31: 35529.13294 | D31: 17764.56647 | F31: 17.50677149 | G31: 0.06350283655 | H31: 0.5579177783 | I31: 1.965386109 | J31: 3.918231743 | K31: 11.00173302 | M31: 0.9107 | N31: 15.9780444 | O31: =IF(ISNUMBER($F31),$N31*N$6,"") -> 0.05795763898 | P31: 0.5091992567 | Q31: 1.793764574 | R31: 3.576083733 | S31: 10.04103919 | AR31: 5.099363123 | AS31: 4.6930651 | AT31: 0.04956539719 | AU31: 0.1860561362 | AW31: 5.099363123 | AX31: 4.6930651 | AY31: 0.04956539719 | AZ31: 0.1860561362 | BB31: 7.038432612 | BC31: 9.761375453 | BD31: 0.3877670726 | BE31: 0.3191963532
A32: 14 | B32: 2038 | C32: 35884.42427 | D32: 17942.21214 | F32: 17.60700935 | G32: 0.06386643233 | H32: 0.5611122269 | I32: 1.976639246 | J32: 3.940666213 | K32: 11.06472523 | M32: 0.9107 | N32: 16.06946911 | O32: 0.05828926658 | P32: 0.5121128421 | Q32: 1.804028309 | R32: 3.596545713 | S32: 10.09849298 | AR32: 5.131429947 | AS32: 4.718349645 | AT32: 0.04976306715 | AU32: 0.1871458123 | AW32: 5.131429947 | AX32: 4.718349645 | AY32: 0.04976306715 | AZ32: 0.1871458123 | BB32: 7.082693077 | BC32: 9.81396623 | BD32: 0.3893135123 | BE32: 0.3210365268
A33: 15 | B33: 2039 | C33: 36243.26851 | D33: 18121.63426 | F33: 17.70782571 | G33: 0.06423212654 | H33: 0.5643251117 | I33: 1.987957328 | J33: 3.963230161 | K33: 11.12808098 | M33: 0.9107 | N33: 16.16142122 | O33: 0.05862280721 | P33: 0.5150432348 | Q33: 1.814351252 | R33: 3.617125731 | S33: 10.15627819 | AR33: 5.16369842 | AS33: 4.743770415 | AT33: 0.04996152542 | AU33: 0.1882419079 | AW33: 5.16369842 | AX33: 4.743770415 | AY33: 0.04996152542 | AZ33: 0.1882419079 | BB33: 7.127231869 | BC33: 9.866840348 | BD33: 0.3908661194 | BE33: 0.3228873721
A34: 16 | B34: 2040 | C34: 36605.7012 | D34: 18302.8506 | F34: 17.80922394 | G34: 0.06459993139 | H34: 0.56755654 | I34: 1.999340734 | J34: 3.985924338 | K34: 11.1918024 | M34: 0.9107 | N34: 16.25390379 | O34: 0.05895827201 | P34: 0.5179905327 | Q34: 1.824733746 | R34: 3.637824473 | S34: 10.21439676 | AR34: 5.196169811 | AS34: 4.769328142 | AT34: 0.05016077517 | AU34: 0.1893444611 | AW34: 5.196169811 | AX34: 4.769328142 | AY34: 0.05016077517 | AZ34: 0.1893444611 | BB34: 7.172050739 | BC34: 9.919999333 | BD34: 0.3924249183 | BE34: 0.3247489514
A35: 17 | B35: 2041 | C35: 36971.75821 | D35: 18485.87911 | F35: 17.91120743 | G35: 0.06496985914 | H35: 0.5708066196 | I35: 2.010789842 | J35: 4.008749502 | K35: 11.2558916 | M35: 0.9107 | N35: 16.34691991 | O35: 0.05929567216 | P35: 0.520954834 | Q35: 1.835176139 | R35: 3.658642629 | S35: 10.27285063 | AR35: 5.228845394 | AS35: 4.795023566 | AT35: 0.05036081953 | AU35: 0.1904535102 | AW35: 5.228845394 | AX35: 4.795023566 | AY35: 0.05036081953 | AZ35: 0.1904535102 | BB35: 7.217151448 | BC35: 9.973444718 | BD35: 0.3939899338 | BE35: 0.3266213272
A36: 18 | B36: 2042 | C36: 37341.47579 | D36: 18670.7379 | F36: 18.01377957 | G36: 0.06534192215 | H36: 0.5740754589 | I36: 2.022305036 | J36: 4.031706415 | K36: 11.32035074 | M36: 0.9107 | N36: 16.44047267 | O36: 0.0596350189 | P36: 0.5239362375 | Q36: 1.845678778 | R36: 3.679580893 | S36: 10.33164174 | AR36: 5.261726455 | AS36: 4.820857427 | AT36: 0.05056166168 | AU36: 0.1915690938 | AW36: 5.261726455 | AX36: 4.820857427 | AY36: 0.05056166168 | AZ36: 0.1915690938 | BB36: 7.262535768 | BC36: 10.02717805 | BD36: 0.3955611907 | BE36: 0.3285045625
A37: 19 | B37: =B36+1 -> 2043 | C37: 37714.89055 | D37: 18857.44528 | F37: 18.11694379 | G37: 0.06571613282 | H37: 0.5773631669 | I37: 2.033886699 | J37: 4.054795842 | K37: 11.38518195 | M37: 0.9107 | N37: 16.5345652 | O37: 0.05997632356 | P37: 0.5269348427 | Q37: 1.856242014 | R37: 3.700639964 | S37: 10.39077206 | AR37: 5.294814284 | AS37: 4.846830472 | AT37: 0.0507633048 | AU37: 0.1926912504 | AW37: 5.294814284 | AX37: 4.846830472 | AY37: 0.0507633048 | AZ37: 0.1926912504 | BB37: 7.308205483 | BC37: 10.08120088 | BD37: 0.3971387139 | BE37: 0.3303987208
A38: 20 | B38: 2044 | C38: 38092.03946 | D38: 19046.01973 | F38: 18.22070354 | G38: 0.06609250365 | H38: 0.5806698535 | I38: 2.045535218 | J38: 4.078018555 | K38: 11.45038741 | M38: 0.9107 | N38: 16.62920063 | O38: 0.0603195975 | P38: 0.5299507495 | Q38: 1.866866198 | R38: 3.721820543 | S38: 10.45024355 | AR38: 5.328110183 | AS38: 4.87294345 | AT38: 0.05096575209 | AU38: 0.193820019 | AW38: 5.328110183 | AX38: 4.87294345 | AY38: 0.05096575209 | AZ38: 0.193820019 | BB38: 7.354162387 | BC38: 10.13551476 | BD38: 0.3987225284 | BE38: 0.3323038657
B39: =B38+1 -> 2045 | C39: 38472.95985 | D39: 19236.47993 | M39: 0.9107 | AW39: -- | AX39: 0 | AY39: -- | AZ39: -- | BB39: -- | BC39: -- | BD39: -- | BE39: --
B40: 2046 | C40: 38857.68945 | D40: 19428.84472 | M40: 0.9107 | AW40: -- | AX40: 0 | AY40: -- | AZ40: -- | BB40: -- | BC40: -- | BD40: -- | BE40: --
B41: 2047 | C41: 39246.26634 | D41: 19623.13317 | M41: 0.9107 | AW41: -- | AX41: 0 | AY41: -- | AZ41: -- | BB41: -- | BC41: -- | BD41: -- | BE41: --
B42: 2048 | C42: 39638.72901 | D42: 19819.3645 | M42: 0.9107 | AW42: -- | AX42: 0 | AY42: -- | AZ42: -- | BB42: -- | BC42: -- | BD42: -- | BE42: --
B43: 2049 | C43: 40035.1163 | D43: 20017.55815 | M43: 0.9107 | AW43: -- | AX43: 0 | AY43: -- | AZ43: -- | BB43: -- | BC43: -- | BD43: -- | BE43: --
B44: 2050 | C44: 40435.46746 | D44: 20217.73373 | M44: 0.9107 | AW44: -- | AX44: 0 | AY44: -- | AZ44: -- | BB44: -- | BC44: -- | BD44: -- | BE44: --
B45: 2051 | C45: 40839.82213 | D45: 20419.91107 | M45: 0.9107 | AW45: -- | AX45: 0 | AY45: -- | AZ45: -- | BB45: -- | BC45: -- | BD45: -- | BE45: --
B46: 2052 | C46: 41248.22036 | D46: 20624.11018 | M46: 0.9107 | AW46: -- | AX46: 0 | AY46: =IF($B46<$K$6+$K$7,IF(OR($H$6="4SG",$H$6="3SG"),AT46,AT46/SUM(AR46:AS46)*SUM(AW46:AX46)),"--") -> -- | AZ46: -- | BB46: -- | BC46: -- | BD46: -- | BE46: --
B47: 2053 | C47: 41660.70256 | D47: 20830.35128 | M47: 0.9107 | O47: =IF(ISNUMBER($F47),$N47*N$6,"") ->  | AW47: -- | AX47: 0 | AY47: -- | AZ47: -- | BB47: =IF($B47<$K$6+$K$7,BB$14*AR47/AR$14,"--") -> -- | BC47: -- | BD47: -- | BE47: --
B48: 2054 | C48: 42077.30959 | D48: 21038.65479 | M48: 0.9107 | AW48: -- | AX48: 0 | AY48: -- | AZ48: -- | BB48: -- | BC48: -- | BD48: -- | BE48: --
B49: 2055 | C49: 42498.08268 | D49: 21249.04134 | M49: 0.9107 | AW49: -- | AX49: 0 | AY49: -- | AZ49: -- | BB49: -- | BC49: -- | BD49: -- | BE49: --
B50: 2056 | C50: 42923.06351 | D50: 21461.53175 | M50: 0.9107 | AW50: -- | AX50: 0 | AY50: -- | AZ50: -- | BB50: -- | BC50: -- | BD50: -- | BE50: --
B51: 2057 | C51: 43352.29414 | D51: 21676.14707 | M51: 0.9107 | AW51: -- | AX51: 0 | AY51: -- | AZ51: -- | BB51: -- | BC51: -- | BD51: -- | BE51: --
B52: 2058 | C52: 43785.81708 | D52: 21892.90854 | M52: 0.9107 | AW52: -- | AX52: 0 | AY52: -- | AZ52: -- | BB52: -- | BC52: -- | BD52: -- | BE52: --
B53: 2059 | C53: 44223.67526 | D53: 22111.83763 | M53: 0.9107 | AW53: -- | AX53: 0 | AY53: -- | AZ53: -- | BB53: -- | BC53: -- | BD53: -- | BE53: --
B54: 2060 | C54: 44665.91201 | D54: 22332.956 | M54: 0.9107 | AW54: -- | AX54: 0 | AY54: -- | AZ54: -- | BB54: -- | BC54: -- | BD54: -- | BE54: --
B55: 2061 | C55: 45112.57113 | D55: 22556.28556 | M55: 0.9107 | AW55: -- | AX55: 0 | AY55: -- | AZ55: -- | BB55: -- | BC55: -- | BD55: -- | BE55: --
B56: 2062 | C56: 45563.69684 | D56: 22781.84842 | M56: 0.9107 | AW56: -- | AX56: 0 | AY56: -- | AZ56: -- | BB56: -- | BC56: -- | BD56: -- | BE56: --
B57: 2063 | C57: 46019.33381 | D57: 23009.6669 | M57: 0.9107 | AW57: -- | AX57: 0 | AY57: -- | AZ57: -- | BB57: -- | BC57: -- | BD57: -- | BE57: --
B58: 2064 | C58: 46479.52715 | D58: 23239.76357 | M58: 0.9107 | AW58: -- | AX58: 0 | AY58: -- | AZ58: -- | BB58: -- | BC58: -- | BD58: -- | BE58: --
B59: 2065 | C59: 46944.32242 | D59: 23472.16121 | M59: 0.9107 | AW59: -- | AX59: 0 | AY59: -- | AZ59: -- | BB59: -- | BC59: -- | BD59: -- | BE59: --
B60: 2066 | C60: 47413.76564 | D60: 23706.88282 | M60: 0.9107 | AW60: -- | AX60: 0 | AY60: -- | AZ60: -- | BB60: -- | BC60: -- | BD60: -- | BE60: --
B61: 2067 | C61: 47887.9033 | D61: 23943.95165 | M61: 0.9107 | AW61: -- | AX61: 0 | AY61: -- | AZ61: -- | BB61: -- | BC61: -- | BD61: -- | BE61: --
B62: 2068 | C62: 48366.78233 | D62: 24183.39117 | M62: 0.9107 | AW62: -- | AX62: 0 | AY62: -- | AZ62: -- | BB62: -- | BC62: -- | BD62: -- | BE62: --
B63: 2069 | C63: 48850.45015 | D63: 24425.22508 | M63: 0.9107 | O63: =IF(ISNUMBER($F63),$N63*N$6,"") ->  | AW63: -- | AX63: 0 | AY63: -- | AZ63: -- | BB63: -- | BC63: -- | BD63: -- | BE63: --
B64: 2070 | C64: 49338.95466 | D64: 24669.47733 | M64: 0.9107 | AW64: -- | AX64: 0 | AY64: -- | AZ64: -- | BB64: -- | BC64: -- | BD64: -- | BE64: --
B65: 2071 | C65: 49832.3442 | D65: 24916.1721 | M65: 0.9107 | AW65: -- | AX65: 0 | AY65: -- | AZ65: -- | BB65: -- | BC65: -- | BD65: -- | BE65: --
B66: 2072 | C66: 50330.66764 | D66: 25165.33382 | M66: 0.9107 | AW66: -- | AX66: 0 | AY66: -- | AZ66: -- | BB66: -- | BC66: -- | BD66: -- | BE66: --
B67: 2073 | C67: 50833.97432 | D67: 25416.98716 | M67: 0.9107 | AW67: -- | AX67: 0 | AY67: -- | AZ67: -- | BB67: -- | BC67: -- | BD67: -- | BE67: --
B68: 2074 | C68: 51342.31406 | D68: 25671.15703 | M68: 0.9107 | AW68: -- | AX68: 0 | AY68: -- | AZ68: -- | BB68: -- | BC68: -- | BD68: -- | BE68: --
B69: 2075 | C69: 51855.7372 | D69: 25927.8686 | M69: 0.9107 | AW69: -- | AX69: 0 | AY69: -- | AZ69: -- | BB69: -- | BC69: -- | BD69: -- | BE69: --
B70: 2076 | C70: 52374.29458 | D70: 26187.14729 | M70: =M69 -> 0.9107 | AW70: -- | AX70: 0 | AY70: -- | AZ70: -- | BB70: -- | BC70: -- | BD70: -- | BE70: --
E74: Annual Cost | M74: Annual Cost
E75: Fatality | F75: Incap. | G75: Non-Inc. | H75: Poss. Injury | I75: PDO | J75: Total Cost | K75: Present Value | M75: Fatality | N75: Incap. | O75: Non-Inc. | P75: Poss. Injury | Q75: PDO | R75: Total Cost | S75: Present Value
E76: =IF(OR(NOT(ISNUMBER($A14)),ISBLANK($A14)),0,G14*N$9) -> 0 | F76: =IF(OR(NOT(ISNUMBER($A14)),ISBLANK($A14)),0,H14*O$9) -> 0 | G76: 0 | H76: 0 | I76: 0 | J76: =SUM(E76:I76) -> 0 | K76: =IF(ISNUMBER(A14),(J76)/((1+$K$10)^(A14)),0) -> 0 | M76: =IF(OR(NOT(ISNUMBER($A14)),ISBLANK($A14)),0,O14*N$9) -> 0 | N76: =IF(OR(NOT(ISNUMBER($A14)),ISBLANK($A14)),0,P14*O$9) -> 0 | O76: 0 | P76: 0 | Q76: 0 | R76: =SUM(M76:Q76) -> 0 | S76: =IF(ISNUMBER(A14),(R76)/((1+$K$10)^(A14)),0) -> 0
E77: =IF(OR(NOT(ISNUMBER($A15)),ISBLANK($A15)),0,G15*N$9) -> 0 | F77: 0 | G77: 0 | H77: 0 | I77: 0 | J77: =SUM(E77:I77) -> 0 | K77: 0 | M77: =IF(OR(NOT(ISNUMBER($A15)),ISBLANK($A15)),0,O15*N$9) -> 0 | N77: 0 | O77: 0 | P77: 0 | Q77: 0 | R77: =SUM(M77:Q77) -> 0 | S77: 0
E78: 0 | F78: 0 | G78: 0 | H78: 0 | I78: 0 | J78: 0 | K78: 0 | M78: 0 | N78: 0 | O78: 0 | P78: 0 | Q78: 0 | R78: 0 | S78: 0
E79: 0 | F79: 0 | G79: 0 | H79: 0 | I79: 0 | J79: 0 | K79: 0 | M79: 0 | N79: 0 | O79: 0 | P79: 0 | Q79: 0 | R79: 0 | S79: 0
E80: 0 | F80: 0 | G80: 0 | H80: 0 | I80: 0 | J80: 0 | K80: 0 | M80: 0 | N80: 0 | O80: 0 | P80: 0 | Q80: 0 | R80: 0 | S80: 0
E81: 632720.5397 | F81: 454617.1032 | G81: 319371.7103 | H81: 388624.6651 | I81: 79105.41544 | J81: 1874439.434 | K81: 1802345.609 | M81: 577496.3025 | N81: 414937.8433 | O81: 291496.7513 | P81: 354705.2657 | Q81: 72201.04621 | R81: 1710837.209 | S81: 1645035.778
E82: 636341.3061 | F82: 457218.6662 | G82: 321199.3265 | H82: 390848.5839 | I82: 79558.09907 | J82: 1885165.982 | K82: 1742941.921 | M82: 580798.83 | N82: 417310.7479 | O82: 293163.7335 | P82: 356733.7184 | Q82: 72613.94226 | R82: 1720620.972 | S82: 1590810.81
E83: 639982.9584 | F83: 459835.2359 | G83: 323037.4852 | H83: 393085.3311 | I83: 80013.39394 | J83: 1895954.405 | K83: 1685496.562 | M83: 584120.3987 | N83: 419697.3338 | O83: 294840.3268 | P83: 358773.8663 | Q83: 73029.21891 | R83: 1730461.145 | S83: 1538373.656
E84: 643645.618 | F84: 462466.8996 | G84: 324886.2474 | H84: 395334.9813 | I84: 80471.31524 | J84: 1906805.062 | K84: 1629944.958 | M84: 587461.1191 | N84: 422097.6805 | O84: 296526.5872 | P84: 360825.7775 | Q84: 73446.89 | R84: 1740358.054 | S84: 1487665.359
E85: 647329.407 | F85: 465113.7451 | G85: 326745.675 | H85: 397597.6094 | I85: 80931.87822 | J85: 1917718.315 | K85: 1576224.666 | M85: 590821.1025 | N85: 424511.8678 | O85: 298222.5708 | P85: 362889.5202 | Q85: 73866.96943 | R85: 1750312.031 | S85: 1438628.903
E86: 651034.4482 | F86: 467775.8605 | G86: 328615.8298 | H86: 399873.2909 | I86: 81395.09825 | J86: 1928694.528 | K86: 1524275.301 | M86: 594200.4609 | N86: 426939.9764 | O86: 299928.3341 | P86: 364965.1633 | Q86: 74289.47121 | R86: 1760323.406 | S86: 1391209.158
E87: 654760.8652 | F87: 470453.3347 | G87: 330496.7742 | H87: 402162.1016 | I87: 81860.99076 | J87: 1939734.066 | K87: 1474038.47 | M87: 597599.3068 | N87: 429382.0869 | O87: 301643.9339 | P87: 367052.7759 | Q87: 74714.40939 | R87: 1770392.513 | S87: 1345352.807
E88: 658508.7821 | F88: 473146.2568 | G88: 332388.5709 | H88: 404464.1178 | I88: 82329.57129 | J88: 1950837.299 | K88: 1425457.706 | M88: 601017.7535 | N88: 431838.2808 | O88: 303369.4274 | P88: 369152.4275 | Q88: 75141.79815 | R88: 1780519.687 | S88: 1301008.295
E89: 662278.3239 | F89: 475854.7167 | G89: 334291.283 | H89: 406779.4163 | I89: 82800.85546 | J89: 1962004.595 | K89: 1378478.404 | M89: 604455.9148 | N89: 434308.6398 | O89: 305104.872 | P89: 371264.1881 | Q89: 75571.65171 | R89: 1790705.266 | S89: 1258125.768
E90: 666069.6165 | F90: 478578.8047 | G90: 336204.9739 | H90: 409108.0744 | I90: 83274.85899 | J90: 1973236.328 | K90: 1333047.76 | M90: 607913.9053 | N90: 436793.2465 | O90: 306850.3256 | P90: 373388.128 | Q90: 76003.98441 | R90: 1800949.59 | S90: 1216657.013
E91: 669882.7861 | F91: 481318.6116 | G91: 338129.7076 | H91: 411450.1696 | I91: 83751.59769 | J91: =SUM(E91:I91) -> 1984532.873 | K91: 1289114.712 | M91: 611391.8403 | N91: 439292.1834 | O91: 308605.8464 | P91: 375524.318 | Q91: 76438.81065 | R91: 1811252.999 | S91: 1176555.41
E92: 673717.9599 | F92: 484074.2288 | G92: 340065.5481 | H92: 413805.7802 | I92: 84231.08745 | J92: =SUM(E92:I92) -> 1995894.604 | K92: 1246629.881 | M92: 614889.8356 | N92: 441805.5339 | O92: 310371.4928 | P92: 377672.8294 | Q92: 76876.14491 | R92: 1821615.837 | S92: 1137775.877
E93: =IF(OR(NOT(ISNUMBER($A31)),ISBLANK($A31)),0,G31*N$9) -> 677575.266 | F93: 486845.7483 | G93: 342012.56 | H93: 416174.9846 | I93: 84713.34428 | J93: 2007321.903 | K93: 1205545.518 | M93: =IF(OR(NOT(ISNUMBER($A31)),ISBLANK($A31)),0,O31*N$9) -> 618408.0079 | N93: 444333.3818 | O93: 312147.3237 | P93: 379833.7337 | Q93: 77316.00179 | R93: 1832038.449 | S93: 1100274.817
E94: 681454.833 | F94: 489633.2625 | G94: 343970.8083 | H94: 418557.8618 | I94: 85198.38425 | J94: 2018815.15 | K94: 1165815.446 | M94: 621946.4744 | N94: 446875.8113 | O94: 313933.3983 | P94: 382007.1029 | Q94: 77758.39593 | R94: 1842521.183 | S94: 1064010.073
E95: 685356.7902 | F95: 492436.8644 | G95: 345940.3583 | H95: 420954.4915 | I95: 85686.22356 | J95: 2030374.728 | K95: 1127395.014 | M95: 625505.353 | N95: 449432.9072 | O95: 315729.7761 | P95: 384193.0095 | Q95: 78203.34208 | R95: 1853064.388 | S95: 1028940.876
E96: 689281.2679 | F96: 495256.6475 | G96: 347921.2758 | H96: 423364.9535 | I96: 86176.87847 | J96: 2042001.023 | K96: 1090241.041 | M96: 629084.7624 | N96: 452004.7547 | O96: 317536.5171 | P96: 386391.5264 | Q96: 78650.85509 | R96: 1863668.416 | S96: 995027.8039
E97: 693228.397 | F97: 498092.7059 | G97: 349913.6267 | H97: 425789.3284 | I97: 86670.36536 | J97: 2053694.423 | K97: 1054311.772 | M97: 632684.822 | N97: 454591.4396 | O97: 319353.6814 | P97: 388602.7268 | Q97: 79100.94986 | R97: 1874333.62 | S97: 962232.7341
E98: 697198.3093 | F98: 500945.1343 | G98: 351917.4777 | H98: 428227.6968 | I98: 87166.70069 | J98: 2065455.319 | K98: 1019566.828 | M98: 636305.6517 | N98: 457193.0481 | O98: 321181.3296 | P98: 390826.6846 | Q98: 79553.64141 | R98: 1885060.355 | S98: 930518.8012
E99: 701191.1372 | F99: 503814.0278 | G99: 353932.8956 | H99: 430680.1404 | I99: 87665.90103 | J99: 2077284.102 | K99: 985967.1616 | M99: 639947.3723 | N99: 459809.6669 | O99: 323019.5228 | P99: 393063.4738 | Q99: 80008.94483 | R99: 1895848.981 | S99: 899850.3558
E100: 705207.014 | F100: 506699.4822 | G100: 355959.9476 | H100: 433146.7408 | I100: 88167.98304 | J100: 2089181.168 | K100: 953475.0132 | M100: 643610.1053 | N100: 462441.3834 | O100: 324868.3221 | P100: 395313.169 | Q100: 80466.8753 | R100: 1906699.855 | S100: 870192.9242
E101: 0 | F101: 0 | G101: 0 | H101: 0 | I101: 0 | J101: 0 | K101: 0 | M101: 0 | N101: 0 | O101: 0 | P101: 0 | Q101: 0 | R101: 0 | S101: 0
E102: 0 | F102: 0 | G102: 0 | H102: 0 | I102: 0 | J102: 0 | K102: 0 | M102: 0 | N102: 0 | O102: 0 | P102: 0 | Q102: 0 | R102: 0 | S102: 0
E103: 0 | F103: 0 | G103: 0 | H103: 0 | I103: 0 | J103: 0 | K103: 0 | M103: 0 | N103: 0 | O103: 0 | P103: 0 | Q103: 0 | R103: 0 | S103: 0
E104: 0 | F104: 0 | G104: 0 | H104: 0 | I104: 0 | J104: 0 | K104: 0 | M104: 0 | N104: 0 | O104: 0 | P104: 0 | Q104: 0 | R104: 0 | S104: 0
E105: 0 | F105: 0 | G105: 0 | H105: 0 | I105: 0 | J105: 0 | K105: 0 | M105: 0 | N105: 0 | O105: 0 | P105: 0 | Q105: 0 | R105: 0 | S105: 0
E106: 0 | F106: 0 | G106: 0 | H106: 0 | I106: 0 | J106: 0 | K106: 0 | M106: 0 | N106: 0 | O106: 0 | P106: 0 | Q106: 0 | R106: 0 | S106: 0
E107: 0 | F107: 0 | G107: 0 | H107: 0 | I107: 0 | J107: 0 | K107: 0 | M107: 0 | N107: 0 | O107: 0 | P107: 0 | Q107: 0 | R107: 0 | S107: 0
E108: 0 | F108: 0 | G108: 0 | H108: 0 | I108: 0 | J108: 0 | K108: 0 | M108: 0 | N108: 0 | O108: 0 | P108: 0 | Q108: 0 | R108: 0 | S108: 0
E109: =IF(OR(NOT(ISNUMBER($A47)),ISBLANK($A47)),0,G47*N$9) -> 0 | F109: 0 | G109: 0 | H109: 0 | I109: 0 | J109: 0 | K109: 0 | M109: =IF(OR(NOT(ISNUMBER($A47)),ISBLANK($A47)),0,O47*N$9) -> 0 | N109: 0 | O109: 0 | P109: 0 | Q109: 0 | R109: 0 | S109: 0
E110: 0 | F110: 0 | G110: 0 | H110: 0 | I110: 0 | J110: 0 | K110: 0 | M110: 0 | N110: 0 | O110: 0 | P110: 0 | Q110: 0 | R110: 0 | S110: 0
E111: 0 | F111: 0 | G111: 0 | H111: 0 | I111: 0 | J111: 0 | K111: 0 | M111: 0 | N111: 0 | O111: 0 | P111: 0 | Q111: 0 | R111: 0 | S111: 0
E112: 0 | F112: 0 | G112: 0 | H112: 0 | I112: 0 | J112: 0 | K112: 0 | M112: 0 | N112: 0 | O112: 0 | P112: 0 | Q112: 0 | R112: 0 | S112: 0
E113: 0 | F113: 0 | G113: 0 | H113: 0 | I113: 0 | J113: 0 | K113: 0 | M113: 0 | N113: 0 | O113: 0 | P113: 0 | Q113: 0 | R113: 0 | S113: 0
E114: 0 | F114: 0 | G114: 0 | H114: 0 | I114: 0 | J114: 0 | K114: 0 | M114: 0 | N114: 0 | O114: 0 | P114: 0 | Q114: 0 | R114: 0 | S114: 0
E115: 0 | F115: 0 | G115: 0 | H115: 0 | I115: 0 | J115: 0 | K115: 0 | M115: 0 | N115: 0 | O115: 0 | P115: 0 | Q115: 0 | R115: 0 | S115: 0
E116: 0 | F116: 0 | G116: 0 | H116: 0 | I116: 0 | J116: 0 | K116: 0 | M116: 0 | N116: 0 | O116: 0 | P116: 0 | Q116: 0 | R116: 0 | S116: 0
E117: 0 | F117: 0 | G117: 0 | H117: 0 | I117: 0 | J117: 0 | K117: 0 | M117: 0 | N117: 0 | O117: 0 | P117: 0 | Q117: 0 | R117: 0 | S117: 0
E118: 0 | F118: 0 | G118: 0 | H118: 0 | I118: 0 | J118: 0 | K118: 0 | M118: 0 | N118: 0 | O118: 0 | P118: 0 | Q118: 0 | R118: 0 | S118: 0
E119: 0 | F119: 0 | G119: 0 | H119: 0 | I119: 0 | J119: 0 | K119: 0 | M119: 0 | N119: 0 | O119: 0 | P119: 0 | Q119: 0 | R119: 0 | S119: 0
E120: 0 | F120: 0 | G120: 0 | H120: 0 | I120: 0 | J120: 0 | K120: 0 | M120: 0 | N120: 0 | O120: 0 | P120: 0 | Q120: 0 | R120: 0 | S120: 0
E121: 0 | F121: 0 | G121: 0 | H121: 0 | I121: 0 | J121: 0 | K121: 0 | M121: 0 | N121: 0 | O121: 0 | P121: 0 | Q121: 0 | R121: 0 | S121: 0
E122: 0 | F122: 0 | G122: 0 | H122: 0 | I122: 0 | J122: 0 | K122: 0 | M122: 0 | N122: 0 | O122: 0 | P122: 0 | Q122: 0 | R122: 0 | S122: 0
E123: 0 | F123: 0 | G123: 0 | H123: 0 | I123: 0 | J123: 0 | K123: 0 | M123: 0 | N123: 0 | O123: 0 | P123: 0 | Q123: 0 | R123: 0 | S123: 0
E124: 0 | F124: 0 | G124: 0 | H124: 0 | I124: 0 | J124: 0 | K124: 0 | M124: 0 | N124: 0 | O124: 0 | P124: 0 | Q124: 0 | R124: 0 | S124: 0
E125: =IF(OR(NOT(ISNUMBER($A63)),ISBLANK($A63)),0,G63*N$9) -> 0 | F125: 0 | G125: 0 | H125: 0 | I125: 0 | J125: 0 | K125: 0 | M125: =IF(OR(NOT(ISNUMBER($A63)),ISBLANK($A63)),0,O63*N$9) -> 0 | N125: 0 | O125: 0 | P125: 0 | Q125: 0 | R125: 0 | S125: 0
E126: 0 | F126: 0 | G126: 0 | H126: 0 | I126: 0 | J126: 0 | K126: 0 | M126: 0 | N126: 0 | O126: 0 | P126: 0 | Q126: 0 | R126: 0 | S126: 0
E127: 0 | F127: 0 | G127: 0 | H127: 0 | I127: 0 | J127: 0 | K127: 0 | M127: 0 | N127: 0 | O127: 0 | P127: 0 | Q127: 0 | R127: 0 | S127: 0
E128: 0 | F128: 0 | G128: 0 | H128: 0 | I128: 0 | J128: 0 | K128: 0 | M128: 0 | N128: 0 | O128: 0 | P128: 0 | Q128: 0 | R128: 0 | S128: 0
E129: 0 | F129: 0 | G129: 0 | H129: 0 | I129: 0 | J129: 0 | K129: 0 | M129: 0 | N129: 0 | O129: 0 | P129: 0 | Q129: 0 | R129: 0 | S129: 0
E130: 0 | F130: 0 | G130: 0 | H130: 0 | I130: 0 | J130: 0 | K130: 0 | M130: 0 | N130: 0 | O130: 0 | P130: 0 | Q130: 0 | R130: 0 | S130: 0
E131: 0 | F131: 0 | G131: 0 | H131: 0 | I131: 0 | J131: 0 | K131: 0 | M131: 0 | N131: 0 | O131: 0 | P131: 0 | Q131: 0 | R131: 0 | S131: 0
E132: 0 | F132: 0 | G132: 0 | H132: 0 | I132: 0 | J132: 0 | K132: 0 | M132: 0 | N132: 0 | O132: 0 | P132: 0 | Q132: 0 | R132: 0 | S132: 0

Sheet Intx Crash Cost #2
B1: I N T E R S E C T I O N S
U3: Total Analysis Period Crash Cost
F4: FROM TOTAL TAB | N4: Default Crash Distribution
B5: Empirical Bayes | F5: Area Type = | H5: Urban | J5: FROM CRASH COST TOTALS | N5: K | O5: A | P5: B | Q5: C | R5: O | S5: Sum | U5: No Lighting | W5: With Lighting
B6: adjustment type: | F6: Intersection Type = | H6: 4SG | J6: Opening Year = | K6: 2025 | M6: % | N6: =IF(ISNUMBER(SEARCH("Two-way", $X$14)),VLOOKUP($H$6,Factors!$O$20:$T$23, 2, FALSE),VLOOKUP($H$6,Factors!$O$24:$T$27, 2, FALSE)) -> 0.00362732995 | O6: =IF(ISNUMBER(SEARCH("Two-way", $X$14)),VLOOKUP($H$6,Factors!$O$20:$T$23, 3, FALSE),VLOOKUP($H$6,Factors!$O$24:$T$27, 3, FALSE)) -> 0.03186868456 | P6: =IF(ISNUMBER(SEARCH("Two-way", $X$14)),VLOOKUP($H$6,Factors!$O$20:$T$23,4, FALSE),VLOOKUP($H$6,Factors!$O$24:$T$27, 4, FALSE)) -> 0.1122643379 | Q6: =IF(ISNUMBER(SEARCH("Two-way", $X$14)),VLOOKUP($H$6,Factors!$O$20:$T$23, 5, FALSE),VLOOKUP($H$6,Factors!$O$24:$T$27, 5, FALSE)) -> 0.2238123543 | R6: =IF(ISNUMBER(SEARCH("Two-way", $X$14)),VLOOKUP($H$6,Factors!$O$20:$T$23, 6, FALSE),VLOOKUP($H$6,Factors!$O$24:$T$27, 6, FALSE)) -> 0.6284272934 | S6: =SUM(N6:R6) -> 1 | AW6: Intersection Lighting CMF | AZ6: =1-0.38*VLOOKUP(H6,Intersections!AB71:AC74,2,FALSE) -> 0.9107
B7: ='Crash Cost Totals'!B6 -> Site-specific | F7: Analysis Year Major AADT = | H7: 28000 | J7: Analysis Period = | K7: 20 | M7: Cost* | N7: 10670000 | O7: 872612 | P7: 174018 | Q7: 106215 | R7: 7700 | U7: =SUMIF($A$14:$A$70,">0",$K$76:$K$132) -> 17617915.74 | W7: =SUMIF($A$14:$A$70,">0",$S$76:$S$132) -> 16067151.56
F8: Analysis Year Minor AADT = | H8: 15000 | J8: Major Growth Rate = | K8: 0.01 | AW8: Adjustment to "No Lighting" Base Condition (1.0 if Intersection analyzed w/ Lighting=No) | AZ8: =IF(H10="No",1,1/AZ6) -> 1
F9: Analysis Year = | H9: 2020 | J9: Minor Growth Rate = | K9: 0.01 | M9: Use Val | N9: =N7 -> 10670000 | O9: =O7 -> 872612 | P9: =P7 -> 174018 | Q9: =Q7 -> 106215 | R9: =R7 -> 7700
F10: Analyzed W/ Lighting = | H10: No | J10: Rate of Return = | K10: 0.04 | M10: *Values are the 2020 FDOT KABCO crash costs as laied out in the FDOT Design Manual | X10: Analysis (Base Year) EB Computations
X11: Type | Y11: Sum lookup | Z11: Inverse dispersion parameter | AD11: Predicted crash total | AH11: Observed crash total | AL11: Weight | AR11: Predicted crash total - As Analyzed | AW11: Predicted crash total - No Lighting | BB11: EB Adjusted crash total
B12: AADT / Year | F12: Annual Number of Crashes - No Lighting | M12: Annual Number of Crashes - With Lighting | Z12: Total-vehicle | AB12: Vehicle-pedestrian | AD12: Total-vehicle | AF12: Vehicle-pedestrian | AH12: Total-vehicle | AJ12: Vehicle-pedestrian | AL12: Total-vehicle | AN12: Vehicle-pedestrian | AR12: Total-vehicle | AT12: Vehicle-pedestrian | AU12: Vehicle-bicycle | AW12: Total-vehicle | AY12: Vehicle-pedestrian | AZ12: Vehicle-bicycle | BB12: Total-vehicle | BD12: Vehicle-pedestrian | BE12: Vehicle-bicycle
B13: Year | C13: Major AADT | D13: Minor AADT | F13: Total Crash Pred | G13: Fatality | H13: Incap. | I13: Non-Inc. | J13: Poss. Injury | K13: PDO | M13: Lighting CMF | N13: Total Crash Pred | O13: Fatality | P13: Incap. | Q13: Non-Inc. | R13: Poss. Injury | S13: PDO | Z13: TV F+I | AA13: TV PDO | AB13: VP F+I | AD13: TV F+I | AE13: TV PDO | AF13: VP F+I | AH13: TV F+I | AI13: TV PDO | AJ13: VP F+I | AL13: TV F+I | AM13: TV PDO | AN13: VP F+I | AR13: TV F+I | AS13: TV PDO | AT13: F+I | AU13: F+I | AW13: TV F+I | AX13: TV PDO | AY13: F+I | AZ13: F+I | BB13: TV F+I | BC13: TV PDO | BD13: F+I | BE13: F+I
A14: =IF(B14=$K$6, 1, IF(AND(B14-$K$6<$K$7,B14-$K$6>0),B14-$K$6 + 1,"")) ->  | B14: =H9 -> 2020 | C14: =H7 -> 28000 | D14: =H8 -> 15000 | F14: =IF(B14<$K$6+$K$7,IF($B$7="Site-specific",SUM(BB14:BE14),SUM(AW14:AZ14)),"") -> 10.47230505 | G14: =IF(ISNUMBER($F14),$F14*N$6,"") -> 0.03798650574 | H14: =IF(ISNUMBER($F14),$F14*O$6,"") -> 0.3337385861 | I14: 1.175666392 | J14: 2.343831247 | K14: 6.581082316 | M14: =AZ6 -> 0.9107 | N14: =IF(B14<$K$6+$K$7,IF($B$7="Site-specific",(BB14+BC14+BE14)*M14+IF(OR($H$6="4SG",$H$6="3SG"),1,M14)*BD14,(AW14+AX14+AZ14)*M14+IF(OR($H$6="4SG",$H$6="3SG"),1,M14)*AY14),"") -> 9.550833894 | O14: =IF(ISNUMBER($F14),$N14*N$6,"") -> 0.03464402583 | P14: =IF(ISNUMBER($F14),$N14*O$6,"") -> 0.3043725127 | Q14: 1.072218043 | R14: 2.137594619 | S14: 6.002004694 | X14: 4SG, Two-way | Z14: =VLOOKUP($X14,Totals!$BG$33:$BJ$40,2,FALSE) -> 1.77 | AA14: =VLOOKUP($X14,Totals!$BG$33:$BJ$40,3,FALSE) -> 1.01 | AB14: =VLOOKUP($X14,Totals!$BG$33:$BJ$40,4,FALSE) -> 0.24 | AD14: =AW14 -> 3.861312781 | AE14: =AX14 -> 3.630646905 | AF14: =AY14 -> 0.03390178504 | AH14: 5 | AI14: 6 | AJ14: 1 | AL14: =1/(1+AD14/Z14) -> 0.3143139209 | AM14: =1/(1+AE14/AA14) -> 0.2176420703 | AN14: =1/(1+AF14/AB14) -> 0.8762264911 | AR14: 3.861312781 | AS14: 3.630646905 | AT14: 0.03390178504 | AU14: 0.142347234 | AW14: =IF($B14<$K$6+$K$7,AR14*$AZ$8,"--") -> 3.861312781 | AX14: =IF($B145<$K$6+$K$7,AS14*$AZ$8,"--") -> 3.630646905 | AY14: =IF($B14<$K$6+$K$7,IF(OR($H$6="4SG",$H$6="3SG"),AT14,AT14/SUM(AR14:AS14)*SUM(AW14:AX14)),"--") -> 0.03390178504 | AZ14: =IF($B14<$K$6+$K$7,SUM(AW14:AX14)*(AU14/SUM(AR14:AS14)),"--") -> 0.142347234 | BB14: =AL14*AD14 + (1-AL14)*AH14 -> 4.642094755 | BC14: =AM14*AE14 + (1-AM14)*AI14 -> 5.484329087 | BD14: =AN14*AF14 + (1-AN14)*AJ14 -> 0.1534791511 | BE14: =AU14/SUM(AR14:AS14)*SUM(BB14:BC14) -> 0.192402053
B15: =B14+1 -> 2021 | C15: =C14*(1+$K$8) -> 28280 | D15: =D14*(1+$K$9) -> 15150 | F15: =IF(B15<$K$6+$K$7,IF($B$7="Site-specific",SUM(BB15:BE15),SUM(AW15:AZ15)),"") -> 10.5327721 | G15: =IF(ISNUMBER($F15),$F15*N$6,"") -> 0.0382058397 | H15: 0.3356655916 | I15: 1.182454686 | J15: 2.357364521 | K15: 6.619081463 | M15: =M14 -> 0.9107 | N15: =IF(B15<$K$6+$K$7,IF($B$7="Site-specific",(BB15+BC15+BE15)*M15+IF(OR($H$6="4SG",$H$6="3SG"),1,M15)*BD15,(AW15+AX15+AZ15)*M15+IF(OR($H$6="4SG",$H$6="3SG"),1,M15)*AY15),"") -> 9.6059559 | O15: =IF(ISNUMBER($F15),$N15*N$6,"") -> 0.03484397153 | P15: 0.3061291785 | Q15: 1.078406279 | R15: 2.149931605 | S15: 6.036644866 | AR15: 3.885594252 | AS15: 3.650207524 | AT15: 0.03403698751 | AU15: 0.1431802337 | AW15: 3.885594252 | AX15: 3.650207524 | AY15: 0.03403698751 | AZ15: 0.1431802337 | BB15: =IF($B15<$K$6+$K$7,BB$14*AR15/AR$14,"--") -> 4.671286094 | BC15: 5.513876678 | BD15: 0.1540912357 | BE15: =IF($B15<$K$6+$K$7,AU15/SUM(AR15:AS15)*SUM(BB15:BC15),"--") -> 0.1935180927
B16: =B15+1 -> 2022 | C16: 28562.8 | D16: 15301.5 | F16: 10.59359087 | G16: 0.03842644943 | H16: 0.3376038057 | I16: 1.189282464 | J16: 2.370976512 | K16: 6.657301636 | M16: =M15 -> 0.9107 | N16: 9.661398427 | O16: 0.03504507987 | P16: 0.3078960589 | Q16: 1.084630497 | R16: 2.162340327 | S16: 6.071486464 | AR16: 3.910028415 | AS16: 3.669873528 | AT16: 0.03417272918 | AU16: 0.1440181369 | AW16: 3.910028415 | AX16: 3.669873528 | AY16: 0.03417272918 | AZ16: 0.1440181369 | BB16: 4.700661 | BC16: 5.543583461 | BD16: 0.1547057613 | BE16: =IF($B16<$K$6+$K$7,AU16/SUM(AR16:AS16)*SUM(BB16:BC16),"--") -> 0.1946406448
B17: 2023 | C17: 28848.428 | D17: 15454.515 | F17: 10.65476341 | G17: 0.03864834241 | H17: 0.339553294 | I17: 1.196149959 | J17: 2.384667682 | K17: 6.695744129 | M17: =M16 -> 0.9107 | N17: 9.717163354 | O17: 0.03524735766 | P17: 0.3096732137 | Q17: 1.09089091 | R17: 2.174821207 | S17: 6.106530666 | AR17: 3.934616229 | AS17: 3.689645486 | AT17: 0.0343090122 | AU17: 0.1448609726 | AW17: 3.934616229 | AX17: 3.689645486 | AY17: 0.0343090122 | AZ17: 0.1448609726 | BB17: 4.730220627 | BC17: 5.573450294 | BD17: 0.1553227377 | BE17: 0.1957697475
B18: 2024 | C18: 29136.91228 | D18: 15609.06015 | F18: 10.71629179 | G18: 0.03887152616 | H18: 0.3415141226 | I18: 1.203057402 | J18: 2.398438494 | K18: 6.734410243 | M18: 0.9107 | N18: 9.773252568 | O18: 0.03545081175 | P18: 0.3114607032 | Q18: 1.097187728 | R18: 2.187374666 | S18: 6.141778659 | AR18: 3.959358662 | AS18: 3.709523968 | AT18: 0.03444583872 | AU18: 0.14570877 | AW18: 3.959358662 | AX18: 3.709523968 | AY18: 0.03444583872 | AZ18: 0.14570877 | BB18: 4.759966136 | BC18: 5.603478038 | BD18: 0.1559421747 | BE18: 0.1969054393
A19: 1 | B19: 2025 | C19: 29428.2814 | D19: 15765.15075 | F19: 10.7781781 | G19: 0.03909600822 | H19: 0.343486358 | I19: 1.210005028 | J19: 2.412289415 | K19: 6.77330129 | M19: 0.9107 | N19: 9.829667967 | O19: 0.03565544902 | P19: 0.3132585878 | Q19: 1.103521166 | R19: 2.200001129 | S19: 6.177231635 | AR19: 3.984256684 | AS19: 3.729509548 | AT19: 0.03458321092 | AU19: 0.1465615584 | AW19: 3.984256684 | AX19: 3.729509548 | AY19: 0.03458321092 | AZ19: 0.1465615584 | BB19: 4.789898697 | BC19: 5.633667561 | BD19: 0.156564082 | BE19: 0.1980477589
A20: 2 | B20: 2026 | C20: 29722.56422 | D20: 15922.80226 | F20: 10.84042444 | G20: 0.03932179622 | H20: 0.3454700668 | I20: 1.216993071 | J20: 2.426220914 | K20: 6.812418587 | M20: 0.9107 | N20: 9.886411463 | O20: 0.0358612764 | P20: 0.3150669283 | Q20: 1.109891437 | R20: 2.212701025 | S20: 6.212890797 | AR20: 4.009311276 | AS20: 3.749602803 | AT20: 0.03472113096 | AU20: 0.1474193675 | AW20: 4.009311276 | AX20: 3.749602803 | AY20: 0.03472113096 | AZ20: 0.1474193675 | BB20: 4.820019486 | BC20: 5.664019734 | BD20: 0.1571884695 | BE20: 0.1991967452
A21: 3 | B21: 2027 | C21: 30019.78986 | D21: 16082.03028 | F21: 10.9030329 | G21: 0.0395488978 | H21: 0.3474653164 | I21: 1.22402177 | J21: 2.440233463 | K21: 6.851763458 | M21: 0.9107 | N21: 9.943484977 | O21: 0.03606830086 | P21: 0.3168857862 | Q21: 1.116298757 | R21: 2.225474782 | S21: 6.248757351 | AR21: 4.03452342 | AS21: 3.769804313 | AT21: 0.03485960104 | AU21: 0.1482822269 | AW21: 4.03452342 | AX21: 3.769804313 | AY21: 0.03485960104 | AZ21: 0.1482822269 | BB21: 4.850329687 | BC21: 5.694535434 | BD21: 0.1578153471 | BE21: 0.2003524373
A22: 4 | B22: 2028 | C22: 30319.98776 | D22: 16242.85058 | F22: 10.96600563 | G22: 0.03977732065 | H22: 0.3494721743 | I22: 1.231091361 | J22: 2.454327537 | K22: 6.891337237 | M22: 0.9107 | N22: 10.00089044 | O22: 0.03627652942 | P22: 0.3187152228 | Q22: 1.122743343 | R22: 2.238322834 | S22: 6.284832511 | AR22: 4.059894109 | AS22: 3.790114662 | AT22: 0.03499862334 | AU22: 0.1491501667 | AW22: 4.059894109 | AX22: 3.790114662 | AY22: 0.03499862334 | AZ22: 0.1491501667 | BB22: 4.88083049 | BC22: 5.725215541 | BD22: 0.1584447248 | BE22: 0.2015148746
A23: 5 | B23: 2029 | C23: 30623.18764 | D23: 16405.27909 | F23: 11.02934474 | G23: 0.04000707252 | H23: 0.3514907086 | I23: 1.238202085 | J23: 2.468503613 | K23: 6.931141266 | M23: 0.9107 | N23: 10.0586298 | O23: 0.03648596913 | P23: 0.3205553002 | Q23: 1.129225414 | R23: 2.251245616 | S23: 6.321117501 | AR23: 4.085424339 | AS23: 3.810534436 | AT23: 0.03513820008 | AU23: 0.1500232167 | AW23: 4.085424339 | AX23: 3.810534436 | AY23: 0.03513820008 | AZ23: 0.1500232167 | BB23: 4.911523094 | BC23: 5.756060942 | BD23: 0.1590766124 | BE23: 0.2026840967
A24: 6 | B24: 2030 | C24: 30929.41951 | D24: 16569.33188 | F24: 11.0930524 | G24: 0.04023816119 | H24: 0.3535209876 | I24: 1.245354182 | J24: 2.482762173 | K24: 6.971176892 | M24: 0.9107 | N24: 10.11670501 | O24: 0.03669662708 | P24: 0.3224060808 | Q24: 1.135745189 | R24: 2.264243566 | S24: 6.357613548 | AR24: 4.111115113 | AS24: 3.831064224 | AT24: 0.03527833345 | AU24: 0.1509014074 | AW24: 4.111115113 | AX24: 3.831064224 | AY24: 0.03527833345 | AZ24: 0.1509014074 | BB24: 4.942408706 | BC24: 5.787072526 | BD24: 0.1597110201 | BE24: 0.2038601434
A25: 7 | B25: 2031 | C25: 31238.71371 | D25: 16735.0252 | F25: 11.15713074 | G25: 0.04047059449 | H25: 0.3555630802 | I25: 1.252547895 | J25: 2.497103698 | K25: 7.011445473 | M25: 0.9107 | N25: 10.17511804 | O25: 0.0369085104 | P25: 0.3242676271 | Q25: 1.142302889 | R25: 2.277317123 | S25: 6.394321889 | AR25: 4.13696744 | AS25: 3.851704619 | AT25: 0.03541902569 | AU25: 0.1517847691 | AW25: 4.13696744 | AX25: 3.851704619 | AY25: 0.03541902569 | AZ25: 0.1517847691 | BB25: 4.973488538 | BC25: 5.81825119 | BD25: 0.1603479578 | BE25: 0.2050430548
A26: 8 | B26: 2032 | C26: 31551.10084 | D26: 16902.37545 | F26: 11.22158195 | G26: 0.0407043803 | H26: 0.3576170555 | I26: 1.259783468 | J26: 2.511528676 | K26: 7.051948374 | M26: 0.9107 | N26: 10.23387086 | O26: 0.03712162628 | P26: 0.3261400024 | Q26: 1.148898736 | R26: 2.290466731 | S26: 6.431243767 | AR26: 4.162982338 | AS26: 3.872456217 | AT26: 0.03556027902 | AU26: 0.1526733325 | AW26: 4.162982338 | AX26: 3.872456217 | AY26: 0.03556027902 | AZ26: 0.1526733325 | BB26: 5.004763813 | BC26: 5.849597833 | BD26: 0.1609874356 | BE26: 0.2062328713
A27: 9 | B27: 2033 | C27: 31866.61185 | D27: 17071.39921 | F27: 11.28640822 | G27: 0.04093952655 | H27: 0.3596829833 | I27: 1.267061145 | J27: 2.526037594 | K27: 7.092686968 | M27: 0.9107 | N27: 10.29296547 | O27: 0.03733598194 | P27: 0.3280232699 | Q27: 1.155532954 | R27: 2.303692835 | S27: 6.468380434 | AR27: 4.189160827 | AS27: 3.893319617 | AT27: 0.03570209567 | AU27: 0.1535671284 | AW27: 4.189160827 | AX27: 3.893319617 | AY27: 0.03570209567 | AZ27: 0.1535671284 | BB27: 5.03623576 | BC27: 5.881113361 | BD27: 0.1616294637 | BE27: 0.2074296333
A28: 10 | B28: 2034 | C28: 32185.27797 | D28: 17242.1132 | F28: 11.35161173 | G28: 0.04117604121 | H28: 0.3617609335 | I28: 1.274381175 | J28: 2.540630946 | K28: 7.133662636 | M28: 0.9107 | N28: 10.35240388 | O28: 0.03755158463 | P28: 0.3299174936 | Q28: 1.162205766 | R28: 2.316995884 | S28: 6.505733148 | AR28: 4.215503937 | AS28: 3.914295422 | AT28: 0.0358444779 | AU28: 0.1544661878 | AW28: 4.215503937 | AX28: 3.914295422 | AY28: 0.0358444779 | AZ28: 0.1544661878 | BB28: 5.067905614 | BC28: 5.912798683 | BD28: 0.1622740523 | BE28: 0.2086333816
A29: 11 | B29: 2035 | C29: 32507.13075 | D29: 17414.53433 | F29: 11.4171947 | G29: 0.04141393229 | H29: 0.3638509766 | I29: 1.281743804 | J29: 2.555309226 | K29: 7.174876766 | M29: 0.9107 | N29: 10.41218808 | O29: 0.03776844167 | P29: 0.3318227375 | Q29: 1.168917401 | R29: 2.330376327 | S29: 6.543303174 | AR29: 4.242012703 | AS29: 3.935384237 | AT29: 0.03598742796 | AU29: 0.1553705419 | AW29: 4.242012703 | AX29: 3.935384237 | AY29: 0.03598742796 | AZ29: 0.1553705419 | BB29: 5.099774621 | BC29: 5.944654714 | BD29: 0.1629212116 | BE29: 0.2098441574
A30: 12 | B30: 2036 | C30: 32832.20206 | D30: 17588.67967 | F30: 11.48315936 | G30: 0.04165320787 | H30: 0.3659531834 | I30: 1.289149282 | J30: 2.570072931 | K30: 7.216330756 | M30: 0.9107 | N30: 10.47232012 | O30: 0.0379865604 | P30: 0.3337390664 | Q30: 1.175668084 | R30: 2.34383462 | S30: 6.581091786 | AR30: 4.268688167 | AS30: 3.956586671 | AT30: 0.03613094811 | AU30: 0.1562802219 | AW30: 4.268688167 | AX30: 3.956586671 | AY30: 0.03613094811 | AZ30: 0.1562802219 | BB30: 5.131844033 | BC30: 5.976682374 | BD30: 0.1635709517 | BE30: 0.2110620017
A31: 13 | B31: 2037 | C31: 33160.52408 | D31: 17764.56647 | F31: 11.54950794 | G31: 0.04189387605 | H31: 0.3680676253 | I31: 1.296597861 | J31: 2.584922562 | K31: 7.258026013 | M31: 0.9107 | N31: 10.53280202 | O31: =IF(ISNUMBER($F31),$N31*N$6,"") -> 0.03820594822 | P31: 0.335666545 | Q31: 1.182458044 | R31: 2.357371217 | S31: 6.619100264 | AR31: 4.295531377 | AS31: 3.977903336 | AT31: 0.03627504063 | AU31: 0.1571952595 | AW31: 4.295531377 | AX31: 3.977903336 | AY31: 0.03627504063 | AZ31: 0.1571952595 | BB31: 5.164115111 | BC31: 6.008882588 | BD31: 0.1642232831 | BE31: 0.2122869563
A32: 14 | B32: 2038 | C32: 33492.12932 | D32: 17942.21214 | F32: 11.61624268 | G32: 0.04213594499 | H32: 0.3701943739 | I32: 1.304089793 | J32: 2.599858623 | K32: 7.299963949 | M32: 0.9107 | N32: 10.59363584 | O32: 0.03842661255 | P32: 0.3376052388 | Q32: 1.189287513 | R32: 2.370986577 | S32: 6.657329896 | AR32: 4.322543388 | AS32: 3.999334847 | AT32: 0.0364197078 | AU32: 0.1581156865 | AW32: 4.322543388 | AX32: 3.999334847 | AY32: 0.0364197078 | AZ32: 0.1581156865 | BB32: 5.196589121 | BC32: 6.041256284 | BD32: 0.164878216 | BE32: 0.2135190627
A33: 15 | B33: 2039 | C33: 33827.05061 | D33: 18121.63426 | F33: 11.68336586 | G33: 0.04237942291 | H33: 0.3723335013 | I33: 1.311625333 | J33: 2.61488162 | K33: 7.342145987 | M33: 0.9107 | N33: 10.65482364 | O33: 0.03864856088 | P33: 0.3395552135 | Q33: 1.19615672 | R33: 2.384681162 | S33: 6.695781979 | AR33: 4.34972526 | AS33: 4.020881824 | AT33: 0.03656495191 | AU33: 0.1590415346 | AW33: 4.34972526 | AX33: 4.020881824 | AY33: 0.03656495191 | AZ33: 0.1590415346 | BB33: 5.229267341 | BC33: 6.073804399 | BD33: 0.1655357608 | BE33: 0.2147583631
A34: 16 | B34: 2040 | C34: 34165.32112 | D34: 18302.8506 | F34: 11.75087975 | G34: 0.04262431807 | H34: 0.3744850802 | I34: 1.319204735 | J34: 2.629992062 | K34: 7.384573558 | M34: 0.9107 | N34: 10.71636749 | O34: 0.03887180074 | P34: 0.3415165351 | Q34: 1.2030659 | R34: 2.398455437 | S34: 6.734457815 | AR34: 4.377078064 | AS34: 4.042544888 | AT34: 0.03671077526 | AU34: 0.1599728361 | AW34: 4.377078064 | AX34: 4.042544888 | AY34: 0.03671077526 | AZ34: 0.1599728361 | BB34: 5.262151055 | BC34: 6.106527871 | BD34: 0.1661959279 | BE34: 0.2160048996
A35: 17 | B35: 2041 | C35: 34506.97433 | D35: 18485.87911 | F35: 11.81878664 | G35: 0.04287063876 | H35: 0.3766491834 | I35: 1.326828257 | J35: 2.645190463 | K35: 7.427248101 | M35: 0.9107 | N35: 10.77826948 | O35: 0.03909633969 | P35: 0.3434892701 | Q35: 1.210015286 | R35: 2.412309867 | S35: 6.773358716 | AR35: 4.404602872 | AS35: 4.064324665 | AT35: 0.03685718017 | AU35: 0.1609096232 | AW35: 4.404602872 | AX35: 4.064324665 | AY35: 0.03685718017 | AZ35: 0.1609096232 | BB35: 5.295241555 | BC35: 6.139427645 | BD35: 0.1668587278 | BE35: 0.2172587148
A36: 18 | B36: 2042 | C36: 34852.04407 | D36: 18670.7379 | F36: 11.88708883 | G36: 0.04311839335 | H36: 0.3788258844 | I36: 1.334496157 | J36: 2.660477337 | K36: 7.470171062 | M36: 0.9107 | N36: 10.84053171 | O36: 0.03932218534 | P36: 0.3454734855 | Q36: 1.217005114 | R36: 2.426244923 | S36: 6.812486001 | AR36: 4.432300768 | AS36: 4.086221783 | AT36: 0.03700416894 | AU36: 0.1618519285 | AW36: 4.432300768 | AX36: 4.086221783 | AY36: 0.03700416894 | AZ36: 0.1618519285 | BB36: 5.328540141 | BC36: 6.172504671 | BD36: 0.1675241711 | BE36: 0.2185198514
A37: 19 | B37: =B36+1 -> 2043 | C37: 35200.56451 | D37: 18857.44528 | F37: 11.95578865 | G37: 0.04336759023 | H37: 0.3810152571 | I37: 1.342208696 | J37: 2.675853204 | K37: 7.5133439 | M37: 0.9107 | N37: 10.90315629 | O37: 0.03954934536 | P37: 0.3474692485 | Q37: 1.224035622 | R37: 2.440261078 | S37: 6.851840997 | AR37: 4.460172839 | AS37: 4.108236876 | AT37: 0.03715174392 | AU37: 0.1627997846 | AW37: 4.460172839 | AX37: 4.108236876 | AY37: 0.03715174392 | AZ37: 0.1627997846 | BB37: 5.362048122 | BC37: 6.205759905 | BD37: 0.1681922681 | BE37: 0.2197883525
A38: 20 | B38: 2044 | C38: 35552.57016 | D38: 19046.01973 | F38: 12.02488841 | G38: 0.04361823787 | H38: 0.3832173756 | I38: 1.349966135 | J38: 2.691318585 | K38: 7.556768077 | M38: 0.9107 | N38: 10.96614534 | O38: 0.03977782744 | P38: 0.3494766268 | Q38: 1.231107046 | R38: 2.454358807 | S38: 6.891425037 | AR38: 4.48822018 | AS38: 4.130370577 | AT38: 0.03729990744 | AU38: 0.1637532244 | AW38: 4.48822018 | AX38: 4.130370577 | AY38: 0.03729990744 | AZ38: 0.1637532244 | BB38: 5.395766814 | BC38: 6.239194306 | BD38: 0.1688630296 | BE38: 0.2210642613
B39: =B38+1 -> 2045 | C39: 35908.09586 | D39: 19236.47993 | M39: 0.9107 | AW39: -- | AX39: 0 | AY39: -- | AZ39: -- | BB39: -- | BC39: -- | BD39: -- | BE39: --
